Workbook

Sheet User journal (hidden)
B1: THE INDEPENDENT PRICING AND REGULATORY TRIBUNAL OF NSW
B3: WSP Retail Minus Building Block Model
B4: Journal of changes made by user
B6: Changes made by user of this model
B8: Description of changes: | C8: Worksheet: | D8: Made by: | E8: Date | F8: Notes
B10: Adjusted the calculation sheets so that AFOC and Tax depreciation estimates can be calcuated on an accelerated or straight line basis (see option on Common Inputs worksheet). Accelerated depreciation = (Opening value of asset at the beginning of each year * days held/365 * 200%/initial age of asset) | C10: Retail ReticWater ReticWW | D10: GMc | E10: 2017-01-11

Sheet Cover
B1: THE INDEPENDENT PRICING AND REGULATORY TRIBUNAL OF NSW
B3: =MID(CELL("filename"),SEARCH("[",CELL("filename"))+1, SEARCH("]",CELL("filename"))-SEARCH("[",CELL("filename"))-1) -> Retail Minus Model - Wholesale Prices - Supplementary Draft Report.xlsm
B6: Purpose of the model template
B8: The purpose of the model is to calculate annuities for a range of notional revenue requirement scenarios over various timeframes, and the relevant relating minus price.
B10: A notional revenue requirement can be estimated separately for retail and reticulation asset, based on benchmark reasonably efficient cost estimates.
B13: WACC calculation method
B15: In December 2013 the Tribunal made a final decision on the methodology we use to determine the WACC, following a 12 month review.
B16: (IPART, Review of WACC Methodology Research — Final Report. December 2013)
B18: Reflecting this decision, the model calculates the WACC using the following two-step process (on the "Common Inputs" worksheet):
B20: First, the model calculates a final WACC range and midpoint by:
C21: g | D21: Estimating two WACC ranges: one using current market data (ie, current WACC range: Columns J, K and L) and the other using long-term
D22: averages (ie, long-term WACC range: Columns M, N and O).
C23: g | D23: Using the midpoints of the long-term and current WACC ranges as the upper and lower bounds of the final WACC range (Columns K and N).
C24: g | D24: Using the average of these midpoints as the midpoint of the final WACC range (Column Q).
B26: Second, reflecting the Tribunal's decision rule, the model user chooses a WACC point estimate based on the level of economic uncertainty.
B27: IPART constructs a monthly uncertainty index using the S&P/ASX 200 VIX Index, the dispersion in analysts’ forecasts for companies in the S&P/ASX 200,
B28: credit spread and Bills-OIS spread from July 2001.
B29: The decision rule is that:
C30: g | D30: If the uncertainty index is within, or at, one standard deviation of the long-term average of 0, the Tribunal will select the midpoint WACC.
D31: Using the midpoint WACC means that we give an equal weight to current market data and long-term averages.
C32: g | D32: If not, the Tribunal will consider moving away from the midpoint WACC within the final WACC range.
D33: In deciding whether and by how much the WACC point estimate should deviate from the midpoint, the Tribunal will have regard to the value of the uncertainty index and additional financial market information, including debt and equity transaction data, interest rate swap curves, equity analyst reports and independent expert reports.
B35: The report is available on our website at
D36: http://www.ipart.nsw.gov.au/Home/Industries/Research/Reviews/WACC/Review_of_method_for_determining_the_WACC
B38: Pre-tax or post-tax WACC
B40: A post-tax WACC is used:
C41: g | D41: The model calculates a tax allowance as a component of the building block costs. The model shows the tax allowance before adjustment for franking credits and, as a separate line item, the adjustment for franking credits (gamma).
C42: g | D42: Tax depreciation is required to calculate the tax allowance. The model uses either forecast tax depreciation provided by the
D43: business, or forecast tax depreciation calculated by the model (in nominal $).
B45: A pre-tax WACC is used for all NPV calculations.
B47: Regulatory assumptions
B49: The following assumptions apply to the wholealse cost building block model.
B51: Timing assumptions
B52: The following timing assumptions are made to calculate the building block revenue requirement:
B53: g | C53: Asset free of charge (AFOC) and capital expenditure occurs at the beginning of the year.
B54: g | C54: Depreciation occurs at the end of the year.
B55: g | C55: Revenue is received mid-year (a proxy for throughout the year). Therefore
C57: Building block revenue requirement
C58: = | D58: operating costs
C59: +' | D59: year-end value of depreciation discounted by 6 months of nominal WACCa
C60: +' | D60: year-end return on fixed assets discounted by 6 months of nominal WACCa
C61: +' | D61: year-end return on working capital discounted by 6 months of nominal WACCa.
C62: +' | D62: an allowance for tax if a post-tax WACC is used.
C63: a | D63: Nominal WACC applies only when calculation are undertaken in nominal terms. Otherwise the real WACC is used.
B65: Return on working capital
B66: A return on working capital is given because the return on and of the RAB are mid-year values.
B68: The regulatory value of working capital = receivables - payables + inventory, where:
C69: g | D69: receivables are specified in days of revenue, and
C70: g | D70: payables and inventory are specified in days of opex + capex.
B72: Rolling forward the RAB
B73: The RAB is rolled forward as follows:
C74: Opening RAB
C75: + | D75: capex net of cash capital contributions (net capex)
C76: - | D76: disposals
C77: - | D77: depreciation
C78: + | D78: indexation (when the RAB is calculated in nominal prices)
C79: = | D79: Closing RAB
B81: Length of analysis
B82: This model has been developed to estimate the NRR over a 125 year timeframe.
B84: Colour coding
B86: This model uses standard IPART colour coding:
B87: Dark blue cells with white text indicate key outputs
B88: Blue cells indicate inputs
B89: Light blue cells indicate inputs with default values
D90: default values are shown in italics next to or below the light blue cells
B91: Blue font indicates IPART hard-coded values used that should not be changed
B92: Pink font indicates calculation checks
B93: Red indicates assumptions made in calculations
B94: red double line means formula changes across row

Sheet Instructions
B1: =Cover!B1 -> THE INDEPENDENT PRICING AND REGULATORY TRIBUNAL OF NSW
B3: =Cover!B3 -> Retail Minus Model - Wholesale Prices - Supplementary Draft Report.xlsm
B6: Using the model
B8: NOTE: ONLY BLUE CELLS MAY BE CHANGED BY THE MODEL USER; THESE ARE INPUT CELLS.
B9: Any blue cell may be changed, even if it contains a formula. The function of that formula will be to calculate an input value specific to the scenario
B10: being modelled.
B12: The 'Common Inputs' worksheet
B13: Enter the inputs in the blue cells only.
B15: The 'Oakley Greenwood Inputs' worksheet
B16: Enter the inputs in the blue cells only.
B18: The 'Calculations' worksheet
B19: There is no optionality on the 'Calculations' worksheets. The calculations are only influenced by values entered in the input cells.
B21: The model does not require all of the input fields to be populated.
B23: Calculations
B25: Following the input section on the calculations worksheet, the model estimates the NRR based on the inputs.
B27: The estimated NRR from the various calculation worksheets are drawn together on the "Annuity Analysis" to estimate wholesale prices.

Sheet Inputs ==>
B2: This worksheet is intentially blank.

Sheet Common Inputs
D1: =Cover!B1 -> THE INDEPENDENT PRICING AND REGULATORY TRIBUNAL OF NSW | H1: =Cover!#REF! -> 
D3: Common Inputs
D5: Year and $ basis assumptions
D7: First year of analysis | J7: 2017-18
D8: Dollar Basis of inputs | J8: $2015-16
D9: Units of $ inputs | J9: $
D12: Tax allowance assumptions
J13: 1 | K13: =J13+1 -> 2 | L13: =K13+1 -> 3 | M13: 4 | N13: 5 | O13: 6 | P13: 7 | Q13: 8 | R13: 9 | S13: 10 | T13: 11 | U13: 12 | V13: 13 | W13: 14 | X13: 15 | Y13: 16 | Z13: 17 | AA13: 18 | AB13: 19 | AC13: 20 | AD13: 21 | AE13: 22 | AF13: 23 | AG13: 24 | AH13: 25 | AI13: 26 | AJ13: 27 | AK13: 28 | AL13: 29 | AM13: 30 | AN13: 31 | AO13: 32 | AP13: 33 | AQ13: 34 | AR13: 35 | AS13: 36 | AT13: 37 | AU13: 38 | AV13: 39 | AW13: 40 | AX13: 41 | AY13: 42 | AZ13: 43 | BA13: 44 | BB13: 45 | BC13: 46 | BD13: 47 | BE13: 48 | BF13: 49 | BG13: 50 | BH13: 51 | BI13: 52 | BJ13: 53 | BK13: 54 | BL13: 55 | BM13: 56 | BN13: 57 | BO13: 58 | BP13: 59 | BQ13: 60 | BR13: 61 | BS13: 62 | BT13: 63 | BU13: 64 | BV13: 65 | BW13: 66 | BX13: =BW13+1 -> 67 | BY13: 68 | BZ13: 69 | CA13: 70 | CB13: 71 | CC13: 72 | CD13: 73 | CE13: 74 | CF13: 75 | CG13: 76 | CH13: 77 | CI13: 78 | CJ13: 79 | CK13: 80 | CL13: 81 | CM13: 82 | CN13: 83 | CO13: 84 | CP13: 85 | CQ13: 86 | CR13: 87 | CS13: 88 | CT13: 89 | CU13: 90 | CV13: 91 | CW13: 92 | CX13: 93 | CY13: 94 | CZ13: 95 | DA13: 96 | DB13: 97 | DC13: 98 | DD13: 99 | DE13: 100 | DF13: 101 | DG13: 102 | DH13: 103 | DI13: 104 | DJ13: 105 | DK13: 106 | DL13: 107 | DM13: 108 | DN13: 109 | DO13: 110 | DP13: 111 | DQ13: 112 | DR13: 113 | DS13: 114 | DT13: 115 | DU13: 116 | DV13: 117 | DW13: 118 | DX13: 119 | DY13: 120 | DZ13: 121 | EA13: 122 | EB13: 123 | EC13: 124 | ED13: 125
D14: CPI | J14: 0.025 | K14: =J14 -> 0.025 | L14: =K14 -> 0.025 | M14: 0.025 | N14: 0.025 | O14: 0.025 | P14: 0.025 | Q14: 0.025 | R14: 0.025 | S14: 0.025 | T14: 0.025 | U14: 0.025 | V14: 0.025 | W14: 0.025 | X14: 0.025 | Y14: 0.025 | Z14: 0.025 | AA14: 0.025 | AB14: 0.025 | AC14: 0.025 | AD14: 0.025 | AE14: 0.025 | AF14: 0.025 | AG14: 0.025 | AH14: 0.025 | AI14: 0.025 | AJ14: 0.025 | AK14: 0.025 | AL14: 0.025 | AM14: 0.025 | AN14: 0.025 | AO14: 0.025 | AP14: 0.025 | AQ14: 0.025 | AR14: 0.025 | AS14: 0.025 | AT14: 0.025 | AU14: 0.025 | AV14: 0.025 | AW14: 0.025 | AX14: 0.025 | AY14: 0.025 | AZ14: 0.025 | BA14: 0.025 | BB14: 0.025 | BC14: 0.025 | BD14: 0.025 | BE14: 0.025 | BF14: 0.025 | BG14: 0.025 | BH14: 0.025 | BI14: 0.025 | BJ14: 0.025 | BK14: 0.025 | BL14: 0.025 | BM14: 0.025 | BN14: 0.025 | BO14: 0.025 | BP14: 0.025 | BQ14: 0.025 | BR14: 0.025 | BS14: 0.025 | BT14: 0.025 | BU14: 0.025 | BV14: 0.025 | BW14: 0.025 | BX14: =BW14 -> 0.025 | BY14: 0.025 | BZ14: 0.025 | CA14: 0.025 | CB14: 0.025 | CC14: 0.025 | CD14: 0.025 | CE14: 0.025 | CF14: 0.025 | CG14: 0.025 | CH14: 0.025 | CI14: 0.025 | CJ14: 0.025 | CK14: 0.025 | CL14: 0.025 | CM14: =CL14 -> 0.025 | CN14: 0.025 | CO14: 0.025 | CP14: 0.025 | CQ14: 0.025 | CR14: 0.025 | CS14: 0.025 | CT14: 0.025 | CU14: 0.025 | CV14: 0.025 | CW14: 0.025 | CX14: 0.025 | CY14: 0.025 | CZ14: 0.025 | DA14: 0.025 | DB14: 0.025 | DC14: 0.025 | DD14: 0.025 | DE14: 0.025 | DF14: 0.025 | DG14: 0.025 | DH14: 0.025 | DI14: 0.025 | DJ14: 0.025 | DK14: 0.025 | DL14: 0.025 | DM14: 0.025 | DN14: 0.025 | DO14: =DN14 -> 0.025 | DP14: 0.025 | DQ14: 0.025 | DR14: 0.025 | DS14: 0.025 | DT14: 0.025 | DU14: 0.025 | DV14: 0.025 | DW14: 0.025 | DX14: 0.025 | DY14: 0.025 | DZ14: 0.025 | EA14: 0.025 | EB14: 0.025 | EC14: 0.025 | ED14: 0.025
D15: Debt to total asset | J15: 0.6
D16: Cost of Debt (nominal pre-tax) | J16: =J89 -> 0.067
D17: Gamma | J17: 0.25
D18: Corporate tax rate | J18: 0.3
D21: Working capital assumptions
D23: Receivables @ no. of days of sales | E23: days | J23: 45
D24: Inventory @ no. of days opex + net capex | E24: days | J24: 2
D25: Accounts payable @ no. of days opex + net capex | E25: days | J25: 30
D28: WACC parameters, ranges and midpoints
J29: Current WACC range | M29: Long-term WACC range | P29: Final WACC range
J30: lower | K30: midpt | L30: upper | M30: lower | N30: midpt | O30: upper | P30: lower | Q30: midpt | R30: upper
D31: Nominal risk free rate | J31: 0.026 | K31: =J31 -> 0.026 | L31: =J31 -> 0.026 | M31: 0.045 | N31: =M31 -> 0.045 | O31: =M31 -> 0.045
D32: Inflation | J32: 0.025 | K32: =J32 -> 0.025 | L32: =J32 -> 0.025 | M32: 0.025 | N32: =M32 -> 0.025 | O32: =M32 -> 0.025
D33: Debt margin | J33: 0.032 | K33: 0.032 | L33: 0.032 | M33: 0.031 | N33: =M33 -> 0.031 | O33: =M33 -> 0.031
D35: Market risk premium | J35: 0.075 | K35: 0.0865 | L35: 0.098 | M35: 0.055 | N35: 0.06 | O35: 0.065
D36: Debt funding | J36: 0.6 | K36: 0.6 | L36: 0.6 | M36: =J36 -> 0.6 | N36: =K36 -> 0.6 | O36: =L36 -> 0.6
D37: Equity funding | J37: =1-J36 -> 0.4 | K37: 0.4 | L37: 0.4 | M37: 0.4 | N37: 0.4 | O37: 0.4
D38: Total funding (debt+equity) | J38: =J36+J37 -> 1 | K38: =K36+K37 -> 1 | L38: 1 | M38: 1 | N38: 1 | O38: 1
D39: Gamma | J39: 0.25 | K39: 0.25 | L39: 0.25 | M39: =J39 -> 0.25 | N39: 0.25 | O39: 0.25
D40: Corporate tax rate | J40: 0.3 | K40: 0.3 | L40: 0.3 | M40: 0.3 | N40: 0.3 | O40: 0.3
D41: Effective tax rate for equity | J41: 0.3 | K41: 0.3 | L41: 0.3 | M41: 0.3 | N41: 0.3 | O41: 0.3
D42: Effective tax rate for debt | J42: 0.3 | K42: 0.3 | L42: 0.3 | M42: 0.3 | N42: 0.3 | O42: 0.3
D43: Equity beta | J43: 0.6 | K43: 0.7 | L43: 0.8 | M43: 0.6 | N43: 0.7 | O43: 0.8
D45: Cost of equity (nominal post-tax) | J45: =J31+J43*J35 -> 0.071 | K45: 0.08655 | L45: 0.1044 | M45: 0.078 | N45: 0.087 | O45: 0.097
D46: Cost of equity (real post-tax) | J46: =(1+J45)/(1+J32)-1 -> 0.04487804878 | K46: 0.06004878049 | L46: 0.07746341463 | M46: =(1+M45)/(1+M32)-1 -> 0.05170731707 | N46: 0.06048780488 | O46: 0.07024390244
D48: Cost of debt (nominal pre-tax) | J48: =J31+J33 -> 0.058 | K48: 0.058 | L48: 0.058 | M48: 0.076 | N48: 0.076 | O48: 0.076
D49: Cost of debt (real pre-tax) | J49: =(1+J48)/(1+J32)-1 -> 0.03219512195 | K49: 0.03219512195 | L49: 0.03219512195 | M49: =(1+M48)/(1+M32)-1 -> 0.04975609756 | N49: 0.04975609756 | O49: 0.04975609756
D50: Cost of debt (nominal post-tax) | J50: =J48*(1-J42) -> 0.0406 | K50: 0.0406 | L50: 0.0406 | M50: 0.0532 | N50: 0.0532 | O50: 0.0532
D51: Cost of debt (real post-tax) | J51: =(1+J50)/(1+J32)-1 -> 0.0152195122 | K51: 0.0152195122 | L51: 0.0152195122 | M51: =(1+M50)/(1+M32)-1 -> 0.02751219512 | N51: 0.02751219512 | O51: 0.02751219512
D53: Nominal Vanilla (Post-tax nominal) WACC | J53: =J45*J37+J48*J36 -> 0.0632 | K53: 0.06942 | L53: 0.07656 | M53: 0.0768 | N53: 0.0804 | O53: 0.0844 | P53: =MIN(K53,N53) -> 0.06942 | Q53: =AVERAGE(P53,R53) -> 0.07491 | R53: =MAX(K53,N53) -> 0.0804
D54: Post-tax real WACC | J54: =J46*J37+J49*J36 -> 0.03726829268 | K54: 0.04333658537 | L54: 0.05030243902 | M54: 0.05053658537 | N54: 0.05404878049 | O54: 0.05795121951 | P54: =MIN(K54,N54) -> 0.04333658537 | Q54: =AVERAGE(P54,R54) -> 0.04869268293 | R54: =MAX(K54,N54) -> 0.05404878049
D55: Pre-tax nominal WACC | J55: =J45*J37/(1-J41*(1-J39))+J36*J48 -> 0.07144516129 | K55: 0.07947096774 | L55: 0.08868387097 | M55: 0.08585806452 | N55: 0.09050322581 | O55: 0.09566451613 | P55: =MIN(K55,N55) -> 0.07947096774 | Q55: =AVERAGE(K55,N55) -> 0.08498709677 | R55: =MAX(K55,N55) -> 0.09050322581
D56: Pre-tax real WACC point estimate | J56: =(1+J55)/(1+J32)-1 -> 0.04531235248 | K56: 0.05314240755 | L56: 0.06213060582 | M56: 0.05937372148 | N56: 0.06390558615 | O56: 0.06894099135 | P56: =MIN(K56,N56) -> 0.05314240755 | Q56: =AVERAGE(K56,N56) -> 0.05852399685 | R56: =MAX(K56,N56) -> 0.06390558615
D58: Note: The final WACC range is given by the midpoints of the WACCs using current market data and long-term averages
D59: That is, the minimum of the 2 midpoints will be the lower bound of the final WACC range, and the maximum of the 2 midpoints will be the upper bound of the final WACC range.
D60: However, it may not always be the case that the individual WACC parameters used to estimate the lower bound are lower than those used to estimate the upper bound
D63: Point estimates for WACC parameters
D64: Based on the level of market uncertainty, using IPART's 'uncertainty index' (see Cover worksheet)
D66: Weights for current and long-term WACC range
D67: Current market data | J67: 0.5 | L67: Note: IPART uses 50% unless the 'uncertainty index' exceeds one standard deviation of the long-term average of 0.
D68: Long-term averages | J68: =J69-J67 -> 0.5
D69: Total weight | J69: 1
D71: Parameters | J71: Point estimate
D72: Nominal risk free rate | J72: =K31*$J$67+N31*$J$68 -> 0.0355
D73: Inflation | J73: =K32*$J$67+N32*$J$68 -> 0.025
D74: Debt margin | J74: =K33*$J$67+N33*$J$68 -> 0.0315
D76: Market risk premium | J76: =K35*$J$67+N35*$J$68 -> 0.07325
D77: Debt funding | J77: =K36*$J$67+N36*$J$68 -> 0.6
D78: Equity funding | J78: =1-J77 -> 0.4
D79: Total funding (debt+equity) | J79: =SUM(J77:J78) -> 1
D80: Gamma | J80: =K39*$J$67+N39*$J$68 -> 0.25
D81: Corporate tax rate | J81: =K40*$J$67+N40*$J$68 -> 0.3
D82: Effective tax rate for equity | J82: =K41*$J$67+N41*$J$68 -> 0.3
D83: Effective tax rate for debt | J83: =K42*$J$67+N42*$J$68 -> 0.3
D84: Equity beta | J84: =K43*$J$67+N43*$J$68 -> 0.7
D86: Cost of equity (nominal post-tax) | J86: =J72+J84*J76 -> 0.086775
D87: Cost of equity (real post-tax) | J87: =(1+J86)/(1+J73)-1 -> 0.06026829268
D89: Cost of debt (nominal pre-tax) | J89: =J72+J74 -> 0.067
D90: Cost of debt (real pre-tax) | J90: =(1+J89)/(1+J73)-1 -> 0.04097560976
D91: Cost of debt (nominal post-tax) | J91: =J89*(1-J83) -> 0.0469
D92: Cost of debt (real post-tax) | J92: =(1+J91)/(1+J73)-1 -> 0.02136585366
D94: Nominal Vanilla (Post-tax nominal) WACC point estimate | J94: =J86*J78+J89*J77 -> 0.07491
D95: Post-tax real WACC point estimate | J95: =J87*J78+J90*J77 -> 0.04869268293
D96: Pre-tax nominal WACC point estimate | J96: =J86*J78/(1-J82*(1-J80))+J77*J89 -> 0.08498709677
D97: Pre-tax real WACC point estimate | J97: =(1+J96)/(1+J73)-1 -> 0.05852399685

Sheet Oakley Greenwood Inputs
D1: =Cover!B1 -> THE INDEPENDENT PRICING AND REGULATORY TRIBUNAL OF NSW
D3: Oakley Greenwood Inputs & IPART Adjustments
E6: Scheme 1 | F6: Scheme 2 | G6: Scheme 3
D8: Weighting | E8: 0.4 | F8: 0.4 | G8: 0.2
D11: Retail input costs ($, $2015-16) | H11: Weighted Average
D13: Number of meters (20mm equivalents) | E13: 2000 | F13: 2000 | G13: 10000
D14: Unit rate per meter | E14: 320 | F14: 450 | G14: 450 | H14: =SUMPRODUCT($E$8:$G$8,E14:G14) -> 398
D15: Retail Non-Meter Retail Operating Expenditure - Initial | E15: 358323.2 | F15: 353323.2 | G15: 837548.8
D16: Retail Non-Meter Retail Operating Expenditure - Ongoing | E16: 356423.2 | F16: 351423.2 | G16: 825634.8
D17: Unit rate for initial meter operating costs (per meter) | E17: =E15/E$13 -> 179.1616 | F17: =F15/F$13 -> 176.6616 | G17: 83.75488 | H17: =SUMPRODUCT($E$8:$G$8,E17:G17) -> 159.080256
D18: Unit rate for ongoing meter operating costs (per meter) | E18: =E16/E$13 -> 178.2116 | F18: 175.7116 | G18: 82.56348 | H18: 158.081976
D22: Reticulation input costs ($, $2015-16) | H22: Weighted Average
D24: Water reticulation capital costs
D25: Length of mains (kms) | E25: 3.16 | F25: 53.84 | G25: 204.16
D27: Reticulation capital expenditure - initial costs | E27: 796076.34 | F27: 6322009.52 | G27: 19139154.08
D28: Unit rate per km | E28: =E27/E25 -> 251922.8924 | F28: =F27/F25 -> 117422.1679 | G28: 93745.85658 | H28: =SUMPRODUCT($E$8:$G$8,E28:G28) -> 166487.1954
D30: Reticulation capital expenditure - replacement costs | E30: 1273722.144 | F30: 13692801.73 | G30: 38211849.08
D31: Unit rate per km | E31: =E30/E25 -> 403076.6278 | F31: =F30/F25 -> 254323.9548 | G31: 187166.1887 | H31: =SUMPRODUCT($E$8:$G$8,E31:G31) -> 300393.4708
D33: Year | E33: 1 | F33: =E33+1 -> 2 | G33: =F33+1 -> 3 | H33: 4 | I33: 5 | J33: 6 | K33: 7 | L33: 8 | M33: 9 | N33: 10 | O33: 11 | P33: 12 | Q33: 13 | R33: 14 | S33: 15 | T33: 16 | U33: 17 | V33: 18 | W33: 19 | X33: 20 | Y33: 21 | Z33: 22 | AA33: 23 | AB33: 24 | AC33: 25 | AD33: 26 | AE33: 27 | AF33: 28 | AG33: 29 | AH33: 30 | AI33: 31 | AJ33: 32 | AK33: 33 | AL33: 34 | AM33: 35 | AN33: 36 | AO33: 37 | AP33: 38 | AQ33: 39 | AR33: 40 | AS33: 41 | AT33: 42 | AU33: 43 | AV33: 44 | AW33: 45 | AX33: 46 | AY33: 47 | AZ33: 48 | BA33: 49 | BB33: 50 | BC33: 51 | BD33: 52 | BE33: 53 | BF33: 54 | BG33: 55 | BH33: 56 | BI33: 57 | BJ33: 58 | BK33: 59 | BL33: 60 | BM33: 61 | BN33: 62 | BO33: 63 | BP33: 64 | BQ33: 65 | BR33: 66 | BS33: =BR33+1 -> 67 | BT33: 68 | BU33: 69 | BV33: 70 | BW33: 71 | BX33: 72 | BY33: 73 | BZ33: 74 | CA33: 75 | CB33: 76 | CC33: 77 | CD33: 78 | CE33: 79 | CF33: 80 | CG33: 81 | CH33: 82 | CI33: 83 | CJ33: 84 | CK33: 85 | CL33: 86 | CM33: 87 | CN33: 88 | CO33: 89 | CP33: 90 | CQ33: 91 | CR33: 92 | CS33: 93 | CT33: 94 | CU33: 95 | CV33: 96 | CW33: 97 | CX33: 98 | CY33: 99 | CZ33: 100
D34: Water reticulation lifecycle operating costs | E34: 517.824836 | F34: 514.544415 | G34: 512.8510347 | H34: 512.7209347 | I34: 514.1303551 | J34: 517.0555356 | K34: 521.472716 | L34: 527.3581364 | M34: 534.6880364 | N34: 543.4386561 | O34: 553.5862352 | P34: 565.1070135 | Q34: 577.977231 | R34: 592.1731276 | S34: 607.670943 | T34: 624.4469171 | U34: 642.4772898 | V34: 661.738301 | W34: 682.2061905 | X34: 703.8571981 | Y34: 726.6675638 | Z34: 750.6135273 | AA34: 775.6713286 | AB34: 801.8172075 | AC34: 829.0274039 | AD34: 857.2781576 | AE34: 886.5457084 | AF34: 916.8062963 | AG34: 948.0361611 | AH34: 980.2115426 | AI34: 1013.308681 | AJ34: 1047.303815 | AK34: 1082.173186 | AL34: 1117.893034 | AM34: 1154.439597 | AN34: 1191.789116 | AO34: 1229.917831 | AP34: 1268.801981 | AQ34: 1308.417807 | AR34: 1348.741549 | AS34: 1389.749445 | AT34: 1431.417737 | AU34: 1473.722663 | AV34: 1516.640464 | AW34: 1560.14738 | AX34: 1604.219651 | AY34: 1648.833516 | AZ34: 1693.965215 | BA34: 1739.590988 | BB34: 1785.687075 | BC34: 1832.229715 | BD34: 1879.19515 | BE34: 1926.559618 | BF34: 1974.299359 | BG34: 2022.390614 | BH34: 2070.809621 | BI34: 2119.532622 | BJ34: 2168.535855 | BK34: 2217.795561 | BL34: 2267.28798 | BM34: 2316.989351 | BN34: 2366.875914 | BO34: 2416.923909 | BP34: 2467.109577 | BQ34: 2517.409156 | BR34: 2567.798887 | BS34: 2618.255009 | BT34: 2668.753762 | BU34: 2719.271387 | BV34: 2769.784123 | BW34: 2820.26821 | BX34: 2870.699888 | BY34: 2921.055397 | BZ34: 2971.310976 | CA34: 3021.442865 | CB34: 3071.427305 | CC34: 3121.240535 | CD34: 3170.858795 | CE34: 3220.258325 | CF34: 3269.415364 | CG34: 3318.306153 | CH34: 3366.906931 | CI34: 3415.193939 | CJ34: 3463.143416 | CK34: 3510.731601 | CL34: 3557.934736 | CM34: 3604.729059 | CN34: 3651.090811 | CO34: 3696.996232 | CP34: 3742.42156 | CQ34: 3787.343037 | CR34: 3831.736902 | CS34: 3875.579394 | CT34: 3918.846755 | CU34: 3961.515223 | CV34: 4003.561038 | CW34: 4044.960441 | CX34: 4085.689671 | CY34: 4125.724968 | CZ34: 4165.042571
D37: Sewerage reticulation capital costs
D38: Length of mains (kms) | E38: 1.92 | F38: 57.6 | G38: 272.12
D40: Reticulation capital expenditure - initial costs | E40: 883649.48 | F40: 17796420.92 | G40: 91467763.12
D41: Unit rate per km | E41: =E40/E38 -> 460234.1042 | F41: =F40/F38 -> 308965.641 | G41: =G40/G38 -> 336130.2481 | H41: =SUMPRODUCT($E$8:$G$8,E41:G41) -> 374905.9477
D43: Reticulation capital expenditure - replacement costs | E43: 706919.584 | F43: 19122516.94 | G43: 97380677.32
D44: Unit rate per km | E44: =E43/E38 -> 368187.2833 | F44: =F43/F38 -> 331988.1413 | G44: 357859.3169 | H44: =SUMPRODUCT($E$8:$G$8,E44:G44) -> 351642.0332
D46: Year | E46: 1 | F46: =E46+1 -> 2 | G46: =F46+1 -> 3 | H46: 4 | I46: 5 | J46: 6 | K46: 7 | L46: 8 | M46: 9 | N46: 10 | O46: 11 | P46: 12 | Q46: 13 | R46: 14 | S46: 15 | T46: 16 | U46: 17 | V46: 18 | W46: 19 | X46: 20 | Y46: 21 | Z46: 22 | AA46: 23 | AB46: 24 | AC46: 25 | AD46: 26 | AE46: 27 | AF46: 28 | AG46: 29 | AH46: 30 | AI46: 31 | AJ46: 32 | AK46: 33 | AL46: 34 | AM46: 35 | AN46: 36 | AO46: 37 | AP46: 38 | AQ46: 39 | AR46: 40 | AS46: 41 | AT46: 42 | AU46: 43 | AV46: 44 | AW46: 45 | AX46: 46 | AY46: 47 | AZ46: 48 | BA46: 49 | BB46: 50 | BC46: 51 | BD46: 52 | BE46: 53 | BF46: 54 | BG46: 55 | BH46: 56 | BI46: 57 | BJ46: 58 | BK46: 59 | BL46: 60 | BM46: 61 | BN46: 62 | BO46: 63 | BP46: 64 | BQ46: 65 | BR46: 66 | BS46: =BR46+1 -> 67 | BT46: 68 | BU46: 69 | BV46: 70 | BW46: 71 | BX46: 72 | BY46: 73 | BZ46: 74 | CA46: 75 | CB46: 76 | CC46: 77 | CD46: 78 | CE46: 79 | CF46: 80 | CG46: 81 | CH46: 82 | CI46: 83 | CJ46: 84 | CK46: 85 | CL46: 86 | CM46: 87 | CN46: 88 | CO46: 89 | CP46: 90 | CQ46: 91 | CR46: 92 | CS46: 93 | CT46: 94 | CU46: 95 | CV46: 96 | CW46: 97 | CX46: 98 | CY46: 99 | CZ46: 100
D47: Sewerage reticulation lifecycle operating costs | E47: 775.13457 | F47: 803.7334636 | G47: 829.9054739 | H47: 853.7552489 | I47: 875.3874368 | J47: 894.9066859 | K47: 912.4176443 | L47: 928.0249602 | M47: 941.8332818 | N47: 953.9472573 | O47: 964.4715348 | P47: 973.5107625 | Q47: 981.1695886 | R47: 987.5526614 | S47: 992.7646289 | T47: 996.9101393 | U47: 1000.093841 | V47: 1002.420382 | W47: 1003.99441 | X47: 1004.920574 | Y47: 1005.303522 | Z47: 1005.247902 | AA47: 1004.858363 | AB47: 1004.239551 | AC47: 1003.496116 | AD47: 1002.732706 | AE47: 1002.053969 | AF47: 1001.564553 | AG47: 1001.369107 | AH47: 1001.572278 | AI47: 1002.278714 | AJ47: 1003.593065 | AK47: 1005.619977 | AL47: 1008.4641 | AM47: 1012.230081 | AN47: 1017.022569 | AO47: 1022.946211 | AP47: 1030.105657 | AQ47: 1038.605553 | AR47: 1048.550549 | AS47: 1060.045293 | AT47: 1073.194432 | AU47: 1088.102615 | AV47: 1104.87449 | AW47: 1123.614705 | AX47: 1144.427909 | AY47: 1167.418749 | AZ47: 1192.691874 | BA47: 1220.351932 | BB47: 1250.503571 | BC47: 1283.251439 | BD47: 1318.700185 | BE47: 1356.954457 | BF47: 1398.118902 | BG47: 1442.29817 | BH47: 1489.596908 | BI47: 1540.119764 | BJ47: 1593.971386 | BK47: 1651.256424 | BL47: 1712.079524 | BM47: 1776.545336 | BN47: 1844.758507 | BO47: 1916.823685 | BP47: 1992.845519 | BQ47: 2072.928657 | BR47: 2157.177747 | BS47: 2245.697438 | BT47: 2338.592376 | BU47: 2435.967211 | BV47: 2537.926591 | BW47: 2644.575164 | BX47: 2756.017578 | BY47: 2872.358482 | BZ47: 2993.702523 | CA47: 3120.154349 | CB47: 3251.81861 | CC47: 3388.799952 | CD47: 3531.203025 | CE47: 3679.132476 | CF47: 3832.692954 | CG47: 3991.989106 | CH47: 4157.125582 | CI47: 4328.207028 | CJ47: 4505.338094 | CK47: 4688.623428 | CL47: 4878.167677 | CM47: 5074.07549 | CN47: 5276.451515 | CO47: 5485.4004 | CP47: 5701.026794 | CQ47: 5923.435344 | CR47: 6152.730699 | CS47: 6389.017507 | CT47: 6632.400416 | CU47: 6882.984074 | CV47: 7140.87313 | CW47: 7406.172232 | CX47: 7678.986027 | CY47: 7959.419165 | CZ47: 8247.576292
D50: Sewerage pumping station capital costs
D51: Pumping station capital expenditure | E51: 0 | F51: 979450 | G51: 2938350
D52: Unit rate per km | E52: =E51/E38 -> 0 | F52: =F51/F38 -> 17004.34028 | G52: =G51/G38 -> 10797.99353 | H52: =SUMPRODUCT($E$8:$G$8,E52:G52) -> 8961.334818
D54: Sewerage pumping station operating costs
D55: Number of pumping stations | E55: 0 | F55: 1 | G55: 3
D56: Operating costs per pumping station | E56: 14490 | F56: 14490 | G56: 14490
D57: Total operating costs | E57: =E55*E56 -> 0 | F57: =F55*F56 -> 14490 | G57: 43470
D58: Operating costs per km | E58: =E57/E38 -> 0 | F58: =F57/F38 -> 251.5625 | G58: =G57/G38 -> 159.7457004 | H58: =SUMPRODUCT($E$8:$G$8,E58:G58) -> 132.5741401

Sheet RESULTS==>
B2: This worksheet is intentially blank.

Sheet Annuity Analysis
D3: ="Annuity Analysis ("&'Common Inputs'!J9&", "&'Common Inputs'!J8&")" -> Annuity Analysis ($, $2015-16)
D6: Discount Rate | F6: =ROUND('Common Inputs'!J97,3) -> 0.059 | G6: Real pre tax
F7: Consistent with retail reviews, the discount rate is rounded to 3 decimal places.
D9: Scenario | E9: =MID(CELL("filename",Retail!$A$1),FIND("]",CELL("filename",Retail!$A$1))+1,256) -> Retail | J9: ='Common Inputs'!J13 -> 1 | K9: ='Common Inputs'!K13 -> 2 | L9: ='Common Inputs'!L13 -> 3 | M9: ='Common Inputs'!M13 -> 4 | N9: ='Common Inputs'!N13 -> 5 | O9: ='Common Inputs'!O13 -> 6 | P9: ='Common Inputs'!P13 -> 7 | Q9: ='Common Inputs'!Q13 -> 8 | R9: ='Common Inputs'!R13 -> 9 | S9: ='Common Inputs'!S13 -> 10 | T9: ='Common Inputs'!T13 -> 11 | U9: ='Common Inputs'!U13 -> 12 | V9: ='Common Inputs'!V13 -> 13 | W9: ='Common Inputs'!W13 -> 14 | X9: ='Common Inputs'!X13 -> 15 | Y9: ='Common Inputs'!Y13 -> 16 | Z9: ='Common Inputs'!Z13 -> 17 | AA9: ='Common Inputs'!AA13 -> 18 | AB9: ='Common Inputs'!AB13 -> 19 | AC9: ='Common Inputs'!AC13 -> 20 | AD9: ='Common Inputs'!AD13 -> 21 | AE9: ='Common Inputs'!AE13 -> 22 | AF9: ='Common Inputs'!AF13 -> 23 | AG9: ='Common Inputs'!AG13 -> 24 | AH9: ='Common Inputs'!AH13 -> 25 | AI9: ='Common Inputs'!AI13 -> 26 | AJ9: ='Common Inputs'!AJ13 -> 27 | AK9: ='Common Inputs'!AK13 -> 28 | AL9: ='Common Inputs'!AL13 -> 29 | AM9: ='Common Inputs'!AM13 -> 30 | AN9: ='Common Inputs'!AN13 -> 31 | AO9: ='Common Inputs'!AO13 -> 32 | AP9: ='Common Inputs'!AP13 -> 33 | AQ9: ='Common Inputs'!AQ13 -> 34 | AR9: ='Common Inputs'!AR13 -> 35 | AS9: ='Common Inputs'!AS13 -> 36 | AT9: ='Common Inputs'!AT13 -> 37 | AU9: ='Common Inputs'!AU13 -> 38 | AV9: ='Common Inputs'!AV13 -> 39 | AW9: ='Common Inputs'!AW13 -> 40 | AX9: ='Common Inputs'!AX13 -> 41 | AY9: ='Common Inputs'!AY13 -> 42 | AZ9: ='Common Inputs'!AZ13 -> 43 | BA9: ='Common Inputs'!BA13 -> 44 | BB9: ='Common Inputs'!BB13 -> 45 | BC9: ='Common Inputs'!BC13 -> 46 | BD9: ='Common Inputs'!BD13 -> 47 | BE9: ='Common Inputs'!BE13 -> 48 | BF9: ='Common Inputs'!BF13 -> 49 | BG9: ='Common Inputs'!BG13 -> 50 | BH9: ='Common Inputs'!BH13 -> 51 | BI9: ='Common Inputs'!BI13 -> 52 | BJ9: ='Common Inputs'!BJ13 -> 53 | BK9: ='Common Inputs'!BK13 -> 54 | BL9: ='Common Inputs'!BL13 -> 55 | BM9: ='Common Inputs'!BM13 -> 56 | BN9: ='Common Inputs'!BN13 -> 57 | BO9: ='Common Inputs'!BO13 -> 58 | BP9: ='Common Inputs'!BP13 -> 59 | BQ9: ='Common Inputs'!BQ13 -> 60 | BR9: ='Common Inputs'!BR13 -> 61 | BS9: ='Common Inputs'!BS13 -> 62 | BT9: ='Common Inputs'!BT13 -> 63 | BU9: ='Common Inputs'!BU13 -> 64 | BV9: ='Common Inputs'!BV13 -> 65 | BW9: ='Common Inputs'!BW13 -> 66 | BX9: ='Common Inputs'!BX13 -> 67 | BY9: ='Common Inputs'!BY13 -> 68 | BZ9: ='Common Inputs'!BZ13 -> 69 | CA9: ='Common Inputs'!CA13 -> 70 | CB9: ='Common Inputs'!CB13 -> 71 | CC9: ='Common Inputs'!CC13 -> 72 | CD9: ='Common Inputs'!CD13 -> 73 | CE9: ='Common Inputs'!CE13 -> 74 | CF9: ='Common Inputs'!CF13 -> 75 | CG9: ='Common Inputs'!CG13 -> 76 | CH9: ='Common Inputs'!CH13 -> 77 | CI9: ='Common Inputs'!CI13 -> 78 | CJ9: ='Common Inputs'!CJ13 -> 79 | CK9: ='Common Inputs'!CK13 -> 80 | CL9: ='Common Inputs'!CL13 -> 81 | CM9: ='Common Inputs'!CM13 -> 82 | CN9: ='Common Inputs'!CN13 -> 83 | CO9: ='Common Inputs'!CO13 -> 84 | CP9: ='Common Inputs'!CP13 -> 85 | CQ9: ='Common Inputs'!CQ13 -> 86 | CR9: ='Common Inputs'!CR13 -> 87 | CS9: ='Common Inputs'!CS13 -> 88 | CT9: ='Common Inputs'!CT13 -> 89 | CU9: ='Common Inputs'!CU13 -> 90 | CV9: ='Common Inputs'!CV13 -> 91 | CW9: ='Common Inputs'!CW13 -> 92 | CX9: ='Common Inputs'!CX13 -> 93 | CY9: ='Common Inputs'!CY13 -> 94 | CZ9: ='Common Inputs'!CZ13 -> 95 | DA9: ='Common Inputs'!DA13 -> 96 | DB9: ='Common Inputs'!DB13 -> 97 | DC9: ='Common Inputs'!DC13 -> 98 | DD9: ='Common Inputs'!DD13 -> 99 | DE9: ='Common Inputs'!DE13 -> 100 | DF9: ='Common Inputs'!DF13 -> 101 | DG9: ='Common Inputs'!DG13 -> 102 | DH9: ='Common Inputs'!DH13 -> 103 | DI9: ='Common Inputs'!DI13 -> 104 | DJ9: ='Common Inputs'!DJ13 -> 105 | DK9: ='Common Inputs'!DK13 -> 106 | DL9: ='Common Inputs'!DL13 -> 107 | DM9: ='Common Inputs'!DM13 -> 108 | DN9: ='Common Inputs'!DN13 -> 109 | DO9: ='Common Inputs'!DO13 -> 110 | DP9: ='Common Inputs'!DP13 -> 111 | DQ9: ='Common Inputs'!DQ13 -> 112 | DR9: ='Common Inputs'!DR13 -> 113 | DS9: ='Common Inputs'!DS13 -> 114 | DT9: ='Common Inputs'!DT13 -> 115 | DU9: ='Common Inputs'!DU13 -> 116 | DV9: ='Common Inputs'!DV13 -> 117 | DW9: ='Common Inputs'!DW13 -> 118 | DX9: ='Common Inputs'!DX13 -> 119 | DY9: ='Common Inputs'!DY13 -> 120 | DZ9: ='Common Inputs'!DZ13 -> 121 | EA9: ='Common Inputs'!EA13 -> 122 | EB9: ='Common Inputs'!EB13 -> 123 | EC9: ='Common Inputs'!EC13 -> 124 | ED9: ='Common Inputs'!ED13 -> 125
D11: NRR (mid year)(no carry over of tax losses) | J11: =Retail!J53 -> 215.528792 | K11: =Retail!K53 -> 213.5475913 | L11: =Retail!L53 -> 212.0091463 | M11: =Retail!M53 -> 210.4701626 | N11: =Retail!N53 -> 208.9279841 | O11: =Retail!O53 -> 207.3826722 | P11: =Retail!P53 -> 205.8343033 | Q11: =Retail!Q53 -> 204.2829519 | R11: =Retail!R53 -> 202.7286907 | S11: =Retail!S53 -> 201.1715908 | T11: =Retail!T53 -> 199.6117213 | U11: =Retail!U53 -> 198.0491498 | V11: =Retail!V53 -> 211.5656162 | W11: =Retail!W53 -> 209.4342944 | X11: =Retail!X53 -> 207.9946506 | Y11: =Retail!Y53 -> 206.553572 | Z11: =Retail!Z53 -> 205.1069201 | AA11: =Retail!AA53 -> 203.6548049 | AB11: =Retail!AB53 -> 202.1973595 | AC11: =Retail!AC53 -> 200.7347141 | AD11: =Retail!AD53 -> 202.7067915 | AE11: =Retail!AE53 -> 201.1714556 | AF11: =Retail!AF53 -> 199.6117204 | AG11: =Retail!AG53 -> 198.0491498 | AH11: =Retail!AH53 -> 211.5656162 | AI11: =Retail!AI53 -> 209.4342944 | AJ11: =Retail!AJ53 -> 207.9946506 | AK11: =Retail!AK53 -> 206.553572 | AL11: =Retail!AL53 -> 205.1069201 | AM11: =Retail!AM53 -> 203.6548049 | AN11: =Retail!AN53 -> 202.1973595 | AO11: =Retail!AO53 -> 200.7347141 | AP11: =Retail!AP53 -> 202.7067915 | AQ11: =Retail!AQ53 -> 201.1714556 | AR11: =Retail!AR53 -> 199.6117204 | AS11: =Retail!AS53 -> 198.0491498 | AT11: =Retail!AT53 -> 211.5656162 | AU11: =Retail!AU53 -> 209.4342944 | AV11: =Retail!AV53 -> 207.9946506 | AW11: =Retail!AW53 -> 206.553572 | AX11: =Retail!AX53 -> 205.1069201 | AY11: =Retail!AY53 -> 203.6548049 | AZ11: =Retail!AZ53 -> 202.1973595 | BA11: =Retail!BA53 -> 200.7347141 | BB11: =Retail!BB53 -> 202.7067915 | BC11: =Retail!BC53 -> 201.1714556 | BD11: =Retail!BD53 -> 199.6117204 | BE11: =Retail!BE53 -> 198.0491498 | BF11: =Retail!BF53 -> 211.5656162 | BG11: =Retail!BG53 -> 209.4342944 | BH11: =Retail!BH53 -> 207.9946506 | BI11: =Retail!BI53 -> 206.553572 | BJ11: =Retail!BJ53 -> 205.1069201 | BK11: =Retail!BK53 -> 203.6548049 | BL11: =Retail!BL53 -> 202.1973595 | BM11: =Retail!BM53 -> 200.7347141 | BN11: =Retail!BN53 -> 202.7067915 | BO11: =Retail!BO53 -> 201.1714556 | BP11: =Retail!BP53 -> 199.6117204 | BQ11: =Retail!BQ53 -> 198.0491498 | BR11: =Retail!BR53 -> 211.5656162 | BS11: =Retail!BS53 -> 209.4342944 | BT11: =Retail!BT53 -> 207.9946506 | BU11: =Retail!BU53 -> 206.553572 | BV11: =Retail!BV53 -> 205.1069201 | BW11: =Retail!BW53 -> 203.6548049 | BX11: =Retail!BX53 -> 202.1973595 | BY11: =Retail!BY53 -> 200.7347141 | BZ11: =Retail!BZ53 -> 202.7067915 | CA11: =Retail!CA53 -> 201.1714556 | CB11: =Retail!CB53 -> 199.6117204 | CC11: =Retail!CC53 -> 198.0491498 | CD11: =Retail!CD53 -> 211.5656162 | CE11: =Retail!CE53 -> 209.4342944 | CF11: =Retail!CF53 -> 207.9946506 | CG11: =Retail!CG53 -> 206.553572 | CH11: =Retail!CH53 -> 205.1069201 | CI11: =Retail!CI53 -> 203.6548049 | CJ11: =Retail!CJ53 -> 202.1973595 | CK11: =Retail!CK53 -> 200.7347141 | CL11: =Retail!CL53 -> 202.7067915 | CM11: =Retail!CM53 -> 201.1714556 | CN11: =Retail!CN53 -> 199.6117204 | CO11: =Retail!CO53 -> 198.0491498 | CP11: =Retail!CP53 -> 211.5656162 | CQ11: =Retail!CQ53 -> 209.4342944 | CR11: =Retail!CR53 -> 207.9946506 | CS11: =Retail!CS53 -> 206.553572 | CT11: =Retail!CT53 -> 205.1069201 | CU11: =Retail!CU53 -> 203.6548049 | CV11: =Retail!CV53 -> 202.1973595 | CW11: =Retail!CW53 -> 200.7347141 | CX11: =Retail!CX53 -> 202.7067915 | CY11: =Retail!CY53 -> 201.1714556 | CZ11: =Retail!CZ53 -> 199.6117204 | DA11: =Retail!DA53 -> 198.0491498 | DB11: =Retail!DB53 -> 211.5656162 | DC11: =Retail!DC53 -> 209.4342944 | DD11: =Retail!DD53 -> 207.9946506 | DE11: =Retail!DE53 -> 206.553572 | DF11: =Retail!DF53 -> 205.1069201 | DG11: =Retail!DG53 -> 203.6548049 | DH11: =Retail!DH53 -> 202.1973595 | DI11: =Retail!DI53 -> 200.7347141 | DJ11: =Retail!DJ53 -> 202.7067915 | DK11: =Retail!DK53 -> 201.1714556 | DL11: =Retail!DL53 -> 199.6117204 | DM11: =Retail!DM53 -> 198.0491498 | DN11: =Retail!DN53 -> 211.5656162 | DO11: =Retail!DO53 -> 209.4342944 | DP11: =Retail!DP53 -> 207.9946506 | DQ11: =Retail!DQ53 -> 206.553572 | DR11: =Retail!DR53 -> 205.1069201 | DS11: =Retail!DS53 -> 203.6548049 | DT11: =Retail!DT53 -> 202.1973595 | DU11: =Retail!DU53 -> 200.7347141 | DV11: =Retail!DV53 -> 202.7067915 | DW11: =Retail!DW53 -> 201.1714556 | DX11: =Retail!DX53 -> 199.6117204 | DY11: =Retail!DY53 -> 198.0491498 | DZ11: =Retail!DZ53 -> 211.5656162 | EA11: =Retail!EA53 -> 209.4342944 | EB11: =Retail!EB53 -> 207.9946506 | EC11: =Retail!EC53 -> 206.553572 | ED11: =Retail!ED53 -> 205.1069201
D13: Annuity | F13: 10 | G13: years | I13: =NPV($F$6,OFFSET(J$11,0,0,1,$F13)) -> 1545.036623 | J13: =-PMT($F$6,F13,I13,,0) -> 208.9275499 | N13: =NPV($F$6,OFFSET(T11,0,0,1,$F24-$F13)) -> 3454.398101 | O13: =-PMT($F$6,$F24-$F13,N13,,0) -> 204.1822764 | P13: This annuity calculation is from the end of the initial annuity length at F13 to 120 years.
F14: =F13+10 -> 20 | G14: years | I14: =NPV($F$6,OFFSET(J$11,0,0,1,$F14)) -> 2397.479002 | J14: =-PMT($F$6,F14,I14,,0) -> 207.3294816 | N14: =NPV($F$6,OFFSET(AD11,0,0,1,$F24-$F14)) -> 3445.411789 | O14: =-PMT($F$6,$F24-$F14,N14,,0) -> 203.9398461 | P14: This annuity calculation is from the end of the initial annuity length at F14 to 120 years.
F15: =F14+10 -> 30 | G15: years | I15: =NPV($F$6,OFFSET(J$11,0,0,1,$F15)) -> 2877.50342 | J15: =-PMT($F$6,F15,I15,,0) -> 206.8155514
F16: 40 | G16: years | I16: =NPV($F$6,OFFSET(J$11,0,0,1,$F16)) -> 3147.1465 | J16: =-PMT($F$6,F16,I16,,0) -> 206.5338938
F17: 50 | G17: years | I17: =NPV($F$6,OFFSET(J$11,0,0,1,$F17)) -> 3298.906175 | J17: =-PMT($F$6,F17,I17,,0) -> 206.3809678
F18: 60 | G18: years | I18: 3384.444964 | J18: 206.3004952 | S18: The reference point for the offset function in these equations need to be manually changed if the values in range F13:F14 are adjusted.
F19: 70 | G19: years | I19: 3433.237284 | J19: 206.2914742
F20: 80 | G20: years | I20: 3460.584141 | J20: 206.2771498
F21: 90 | G21: years | I21: 3475.983609 | J21: 206.2682448
F22: 100 | G22: years | I22: 3484.63392 | J22: 206.2614715
F23: =F22+10 -> 110 | G23: years | I23: 3489.50246 | J23: =-PMT($F$6,F23,I23,,0) -> 206.2572219
F24: 120 | G24: years | I24: 3492.246595 | J24: 206.2548192
D27: Scenario | E27: =MID(CELL("filename",ReticWater!$A$1),FIND("]",CELL("filename",ReticWater!$A$1))+1,256) -> ReticWater | J27: =J9 -> 1 | K27: =K9 -> 2 | L27: 3 | M27: 4 | N27: 5 | O27: 6 | P27: 7 | Q27: 8 | R27: 9 | S27: 10 | T27: 11 | U27: 12 | V27: 13 | W27: 14 | X27: 15 | Y27: 16 | Z27: 17 | AA27: 18 | AB27: 19 | AC27: 20 | AD27: 21 | AE27: 22 | AF27: 23 | AG27: 24 | AH27: 25 | AI27: 26 | AJ27: 27 | AK27: 28 | AL27: 29 | AM27: 30 | AN27: 31 | AO27: 32 | AP27: 33 | AQ27: 34 | AR27: 35 | AS27: 36 | AT27: 37 | AU27: 38 | AV27: 39 | AW27: 40 | AX27: 41 | AY27: 42 | AZ27: 43 | BA27: 44 | BB27: 45 | BC27: 46 | BD27: 47 | BE27: 48 | BF27: 49 | BG27: 50 | BH27: 51 | BI27: 52 | BJ27: 53 | BK27: 54 | BL27: 55 | BM27: 56 | BN27: 57 | BO27: 58 | BP27: 59 | BQ27: 60 | BR27: 61 | BS27: 62 | BT27: 63 | BU27: 64 | BV27: 65 | BW27: =BW9 -> 66 | BX27: 67 | BY27: 68 | BZ27: 69 | CA27: 70 | CB27: 71 | CC27: 72 | CD27: 73 | CE27: 74 | CF27: 75 | CG27: 76 | CH27: 77 | CI27: 78 | CJ27: 79 | CK27: 80 | CL27: 81 | CM27: 82 | CN27: 83 | CO27: 84 | CP27: 85 | CQ27: 86 | CR27: 87 | CS27: 88 | CT27: 89 | CU27: 90 | CV27: 91 | CW27: 92 | CX27: 93 | CY27: 94 | CZ27: 95 | DA27: 96 | DB27: 97 | DC27: 98 | DD27: 99 | DE27: 100 | DF27: 101 | DG27: 102 | DH27: 103 | DI27: 104 | DJ27: 105 | DK27: 106 | DL27: 107 | DM27: 108 | DN27: 109 | DO27: 110 | DP27: 111 | DQ27: 112 | DR27: 113 | DS27: 114 | DT27: 115 | DU27: 116 | DV27: 117 | DW27: 118 | DX27: 119 | DY27: 120 | DZ27: 121 | EA27: 122 | EB27: 123 | EC27: 124 | ED27: 125
D29: NRR (mid year)(no carry over of tax losses) | J29: =ReticWater!J53 -> 48123.83876 | K29: =ReticWater!K53 -> 796.5055797 | L29: =ReticWater!L53 -> 515.6668802 | M29: =ReticWater!M53 -> 513.8807825 | N29: =ReticWater!N53 -> 515.2744953 | O29: =ReticWater!O53 -> 518.1971607 | P29: =ReticWater!P53 -> 522.6153686 | Q29: =ReticWater!Q53 -> 528.5052491 | R29: =ReticWater!R53 -> 535.8429883 | S29: =ReticWater!S53 -> 544.604773 | T29: =ReticWater!T53 -> 554.7667895 | U29: =ReticWater!U53 -> 566.3052247 | V29: =ReticWater!V53 -> 579.196265 | W29: =ReticWater!W53 -> 593.4160972 | X29: =ReticWater!X53 -> 608.9409077 | Y29: =ReticWater!Y53 -> 625.7468831 | Z29: =ReticWater!Z53 -> 643.8102102 | AA29: =ReticWater!AA53 -> 663.1070755 | AB29: =ReticWater!AB53 -> 683.6136655 | AC29: =ReticWater!AC53 -> 705.3061669 | AD29: =ReticWater!AD53 -> 728.1607663 | AE29: =ReticWater!AE53 -> 752.1536503 | AF29: =ReticWater!AF53 -> 777.2610055 | AG29: =ReticWater!AG53 -> 803.4590185 | AH29: =ReticWater!AH53 -> 830.7238758 | AI29: =ReticWater!AI53 -> 859.0317642 | AJ29: =ReticWater!AJ53 -> 888.3588701 | AK29: =ReticWater!AK53 -> 918.6813803 | AL29: =ReticWater!AL53 -> 949.9754812 | AM29: =ReticWater!AM53 -> 982.2173596 | AN29: =ReticWater!AN53 -> 4241.737189 | AO29: =ReticWater!AO53 -> 4382.11155 | AP29: =ReticWater!AP53 -> 4350.614426 | AQ29: =ReticWater!AQ53 -> 4318.950905 | AR29: =ReticWater!AR53 -> 4288.110084 | AS29: =ReticWater!AS53 -> 4258.074125 | AT29: =ReticWater!AT53 -> 4228.819249 | AU29: =ReticWater!AU53 -> 4200.321643 | AV29: =ReticWater!AV53 -> 4172.557494 | AW29: =ReticWater!AW53 -> 4145.502989 | AX29: =ReticWater!AX53 -> 4119.134314 | AY29: =ReticWater!AY53 -> 4093.427655 | AZ29: =ReticWater!AZ53 -> 4068.359199 | BA29: =ReticWater!BA53 -> 4043.905134 | BB29: =ReticWater!BB53 -> 4020.041644 | BC29: =ReticWater!BC53 -> 3996.744918 | BD29: =ReticWater!BD53 -> 3973.991141 | BE29: =ReticWater!BE53 -> 3951.756501 | BF29: =ReticWater!BF53 -> 3930.017183 | BG29: =ReticWater!BG53 -> 3908.749375 | BH29: =ReticWater!BH53 -> 3887.929263 | BI29: =ReticWater!BI53 -> 3867.533033 | BJ29: =ReticWater!BJ53 -> 3847.536873 | BK29: =ReticWater!BK53 -> 3827.916968 | BL29: =ReticWater!BL53 -> 3808.649506 | BM29: =ReticWater!BM53 -> 3789.710673 | BN29: =ReticWater!BN53 -> 3771.076656 | BO29: =ReticWater!BO53 -> 3752.723641 | BP29: =ReticWater!BP53 -> 3734.627814 | BQ29: =ReticWater!BQ53 -> 3716.765363 | BR29: =ReticWater!BR53 -> 5556.762496 | BS29: =ReticWater!BS53 -> 5704.59717 | BT29: =ReticWater!BT53 -> 5688.266967 | BU29: =ReticWater!BU53 -> 5671.105635 | BV29: =ReticWater!BV53 -> 5654.052894 | BW29: =ReticWater!BW53 -> 5637.090614 | BX29: =ReticWater!BX53 -> 5620.195016 | BY29: =ReticWater!BY53 -> 5603.342286 | BZ29: =ReticWater!BZ53 -> 5586.508612 | CA29: =ReticWater!CA53 -> 5569.670178 | CB29: =ReticWater!CB53 -> 5552.803172 | CC29: =ReticWater!CC53 -> 5535.883782 | CD29: =ReticWater!CD53 -> 5518.888192 | CE29: =ReticWater!CE53 -> 5501.79259 | CF29: =ReticWater!CF53 -> 5484.573163 | CG29: =ReticWater!CG53 -> 5467.206097 | CH29: =ReticWater!CH53 -> 5449.667578 | CI29: =ReticWater!CI53 -> 5431.933794 | CJ29: =ReticWater!CJ53 -> 5413.98093 | CK29: =ReticWater!CK53 -> 5395.785174 | CL29: =ReticWater!CL53 -> 5377.322712 | CM29: =ReticWater!CM53 -> 5358.569731 | CN29: =ReticWater!CN53 -> 5339.502417 | CO29: =ReticWater!CO53 -> 5320.096957 | CP29: =ReticWater!CP53 -> 5300.329537 | CQ29: =ReticWater!CQ53 -> 5280.176344 | CR29: =ReticWater!CR53 -> 5280.044774 | CS29: =ReticWater!CS53 -> 5450.5876 | CT29: =ReticWater!CT53 -> 5432.164609 | CU29: =ReticWater!CU53 -> 5411.975837 | CV29: =ReticWater!CV53 -> 7372.60052 | CW29: =ReticWater!CW53 -> 7284.522888 | CX29: =ReticWater!CX53 -> 7266.924929 | CY29: =ReticWater!CY53 -> 7248.958594 | CZ29: =ReticWater!CZ53 -> 7230.168571 | DA29: =ReticWater!DA53 -> 7210.533865 | DB29: =ReticWater!DB53 -> 7190.036026 | DC29: =ReticWater!DC53 -> 7168.656491 | DD29: =ReticWater!DD53 -> 7146.376569 | DE29: =ReticWater!DE53 -> 7123.177442 | DF29: =ReticWater!DF53 -> 19230.43129 | DG29: =ReticWater!DG53 -> 18616.81593 | DH29: =ReticWater!DH53 -> 18440.98514 | DI29: =ReticWater!DI53 -> 18268.7027 | DJ29: =ReticWater!DJ53 -> 18097.28224 | DK29: =ReticWater!DK53 -> 17926.70044 | DL29: =ReticWater!DL53 -> 17756.94997 | DM29: =ReticWater!DM53 -> 17588.02324 | DN29: =ReticWater!DN53 -> 17419.91222 | DO29: =ReticWater!DO53 -> 17252.60852 | DP29: =ReticWater!DP53 -> 17086.10338 | DQ29: =ReticWater!DQ53 -> 16920.38765 | DR29: =ReticWater!DR53 -> 16755.45185 | DS29: =ReticWater!DS53 -> 16591.28612 | DT29: =ReticWater!DT53 -> 16427.88029 | DU29: =ReticWater!DU53 -> 16265.22383 | DV29: =ReticWater!DV53 -> 16103.3059 | DW29: =ReticWater!DW53 -> 15942.11535 | DX29: =ReticWater!DX53 -> 15781.6407 | DY29: =ReticWater!DY53 -> 15621.87019 | DZ29: =ReticWater!DZ53 -> 17444.23634 | EA29: =ReticWater!EA53 -> 17219.2248 | EB29: =ReticWater!EB53 -> 17066.02589 | EC29: =ReticWater!EC53 -> 16913.79968 | ED29: =ReticWater!ED53 -> 16762.09884
D31: Annuity | F31: =F13 -> 10 | G31: years | I31: =NPV($F$6,OFFSET(J$29,0,0,1,$F31)) -> 49060.80105 | J31: =-PMT($F$6,F31,I31,,0) -> 6634.245954 | N31: =NPV($F$6,OFFSET(T29,0,0,1,$F42-$F31)) -> 32326.03226 | O31: =-PMT($F$6,$F42-$F31,N31,,0) -> 1910.724433 | P31: This annuity calculation is from the end of the initial annuity length at F31 to 120 years.
F32: =F14 -> 20 | G32: years | I32: 51622.77447 | J32: =-PMT($F$6,F32,I32,,0) -> 4464.240589 | N32: =NPV($F$6,OFFSET(AD29,0,0,1,$F42-$F32)) -> 49284.22429 | O32: =-PMT($F$6,$F42-$F32,N32,,0) -> 2917.21795 | P32: This annuity calculation is from the end of the initial annuity length at F32 to 120 years.
F33: =F15 -> 30 | G33: years | I33: 53586.61008 | J33: =-PMT($F$6,F33,I33,,0) -> 3851.444359
F34: =F16 -> 40 | G34: years | I34: 59239.74438 | J34: =-PMT($F$6,F34,I34,,0) -> 3887.653489
F35: =F17 -> 50 | G35: years | I35: 62242.40176 | J35: =-PMT($F$6,F35,I35,,0) -> 3893.911022
F36: 60 | G36: years | I36: 63845.65116 | J36: 3891.742838
F37: 70 | G37: years | I37: 65181.90802 | J37: 3916.557693
F38: 80 | G38: years | I38: 65915.20339 | J38: 3929.047735
F39: 90 | G39: years | I39: 66318.64636 | J39: 3935.412912
F40: 100 | G40: years | I40: 66626.09354 | J40: 3943.713001
F41: 110 | G41: years | I41: =NPV($F$6,OFFSET(J$29,0,0,1,$F41)) -> 67060.88564 | J41: =-PMT($F$6,F41,I41,,0) -> 3963.829265
F42: 120 | G42: years | I42: 67282.66505 | J42: 3973.766898
D45: Scenario | E45: =MID(CELL("filename",ReticSewerage!$A$1),FIND("]",CELL("filename",ReticSewerage!$A$1))+1,256) -> ReticSewerage | J45: =J27 -> 1 | K45: =K27 -> 2 | L45: 3 | M45: 4 | N45: 5 | O45: 6 | P45: 7 | Q45: 8 | R45: 9 | S45: 10 | T45: 11 | U45: 12 | V45: 13 | W45: 14 | X45: 15 | Y45: 16 | Z45: 17 | AA45: 18 | AB45: 19 | AC45: 20 | AD45: 21 | AE45: 22 | AF45: 23 | AG45: 24 | AH45: 25 | AI45: 26 | AJ45: 27 | AK45: 28 | AL45: 29 | AM45: 30 | AN45: 31 | AO45: 32 | AP45: 33 | AQ45: 34 | AR45: 35 | AS45: 36 | AT45: 37 | AU45: 38 | AV45: 39 | AW45: 40 | AX45: 41 | AY45: 42 | AZ45: 43 | BA45: 44 | BB45: 45 | BC45: 46 | BD45: 47 | BE45: 48 | BF45: 49 | BG45: 50 | BH45: 51 | BI45: 52 | BJ45: 53 | BK45: 54 | BL45: 55 | BM45: 56 | BN45: 57 | BO45: 58 | BP45: 59 | BQ45: 60 | BR45: 61 | BS45: 62 | BT45: 63 | BU45: 64 | BV45: 65 | BW45: =BW27 -> 66 | BX45: 67 | BY45: 68 | BZ45: 69 | CA45: 70 | CB45: 71 | CC45: 72 | CD45: 73 | CE45: 74 | CF45: 75 | CG45: 76 | CH45: 77 | CI45: 78 | CJ45: 79 | CK45: 80 | CL45: 81 | CM45: 82 | CN45: 83 | CO45: 84 | CP45: 85 | CQ45: 86 | CR45: 87 | CS45: 88 | CT45: 89 | CU45: 90 | CV45: 91 | CW45: 92 | CX45: 93 | CY45: 94 | CZ45: 95 | DA45: 96 | DB45: 97 | DC45: 98 | DD45: 99 | DE45: 100 | DF45: 101 | DG45: 102 | DH45: 103 | DI45: 104 | DJ45: 105 | DK45: 106 | DL45: 107 | DM45: 108 | DN45: 109 | DO45: 110 | DP45: 111 | DQ45: 112 | DR45: 113 | DS45: 114 | DT45: 115 | DU45: 116 | DV45: 117 | DW45: 118 | DX45: 119 | DY45: 120 | DZ45: 121 | EA45: 122 | EB45: 123 | EC45: 124 | ED45: 125
D47: NRR (mid year)(no carry over of tax losses) | J47: =ReticSewerage!J53 -> 110920.6723 | K47: =ReticSewerage!K53 -> 1587.116396 | L47: =ReticSewerage!L53 -> 968.3085662 | M47: =ReticSewerage!M53 -> 988.4208873 | N47: =ReticSewerage!N53 -> 1010.092313 | O47: =ReticSewerage!O53 -> 1029.66775 | P47: =ReticSewerage!P53 -> 1047.229904 | Q47: =ReticSewerage!Q53 -> 1062.883527 | R47: =ReticSewerage!R53 -> 1076.733501 | S47: =ReticSewerage!S53 -> 1088.884709 | T47: =ReticSewerage!T53 -> 1099.442034 | U47: =ReticSewerage!U53 -> 1108.510357 | V47: =ReticSewerage!V53 -> 1116.194563 | W47: =ReticSewerage!W53 -> 1122.599533 | X47: =ReticSewerage!X53 -> 1127.830151 | Y47: =ReticSewerage!Y53 -> 1131.991299 | Z47: =ReticSewerage!Z53 -> 1135.18786 | AA47: =ReticSewerage!AA53 -> 1137.524717 | AB47: =ReticSewerage!AB53 -> 1139.106752 | AC47: =ReticSewerage!AC53 -> 1140.038848 | AD47: =ReticSewerage!AD53 -> 1140.425888 | AE47: =ReticSewerage!AE53 -> 1140.372755 | AF47: =ReticSewerage!AF53 -> 1139.984332 | AG47: =ReticSewerage!AG53 -> 1139.365501 | AH47: =ReticSewerage!AH53 -> 1138.621144 | AI47: =ReticSewerage!AI53 -> 1137.856145 | AJ47: =ReticSewerage!AJ53 -> 1137.175387 | AK47: =ReticSewerage!AK53 -> 1136.683752 | AL47: =ReticSewerage!AL53 -> 1136.486123 | AM47: =ReticSewerage!AM53 -> 1136.687383 | AN47: =ReticSewerage!AN53 -> 1137.392414 | AO47: =ReticSewerage!AO53 -> 1138.706099 | AP47: =ReticSewerage!AP53 -> 1140.733321 | AQ47: =ReticSewerage!AQ53 -> 1143.578963 | AR47: =ReticSewerage!AR53 -> 1147.347907 | AS47: =ReticSewerage!AS53 -> 1152.145036 | AT47: =ReticSewerage!AT53 -> 1158.075234 | AU47: =ReticSewerage!AU53 -> 1165.243382 | AV47: =ReticSewerage!AV53 -> 1173.754363 | AW47: =ReticSewerage!AW53 -> 1183.713061 | AX47: =ReticSewerage!AX53 -> 1809.801266 | AY47: =ReticSewerage!AY53 -> 1848.765495 | AZ47: =ReticSewerage!AZ53 -> 1853.130607 | BA47: =ReticSewerage!BA53 -> 1859.148495 | BB47: =ReticSewerage!BB53 -> 1867.137248 | BC47: =ReticSewerage!BC53 -> 1877.203006 | BD47: =ReticSewerage!BD53 -> 1889.450659 | BE47: =ReticSewerage!BE53 -> 1903.98509 | BF47: =ReticSewerage!BF53 -> 1920.911183 | BG47: =ReticSewerage!BG53 -> 1940.333819 | BH47: =ReticSewerage!BH53 -> 1962.357881 | BI47: =ReticSewerage!BI53 -> 1987.088253 | BJ47: =ReticSewerage!BJ53 -> 2014.629816 | BK47: =ReticSewerage!BK53 -> 2045.087455 | BL47: =ReticSewerage!BL53 -> 2078.56605 | BM47: =ReticSewerage!BM53 -> 2115.170486 | BN47: =ReticSewerage!BN53 -> 2155.005644 | BO47: =ReticSewerage!BO53 -> 2198.176408 | BP47: =ReticSewerage!BP53 -> 2244.787661 | BQ47: =ReticSewerage!BQ53 -> 2294.944285 | BR47: =ReticSewerage!BR53 -> 2348.751162 | BS47: =ReticSewerage!BS53 -> 2406.313176 | BT47: =ReticSewerage!BT53 -> 2467.73521 | BU47: =ReticSewerage!BU53 -> 2533.122145 | BV47: =ReticSewerage!BV53 -> 2602.578866 | BW47: =ReticSewerage!BW53 -> 2676.210254 | BX47: =ReticSewerage!BX53 -> 2754.121193 | BY47: =ReticSewerage!BY53 -> 2836.416564 | BZ47: =ReticSewerage!BZ53 -> 2923.201252 | CA47: =ReticSewerage!CA53 -> 3014.580138 | CB47: =ReticSewerage!CB53 -> 3110.658105 | CC47: =ReticSewerage!CC53 -> 3211.540037 | CD47: =ReticSewerage!CD53 -> 3317.330815 | CE47: =ReticSewerage!CE53 -> 3428.135323 | CF47: =ReticSewerage!CF53 -> 3544.058443 | CG47: =ReticSewerage!CG53 -> 3665.205059 | CH47: =ReticSewerage!CH53 -> 3791.680052 | CI47: =ReticSewerage!CI53 -> 3923.588306 | CJ47: =ReticSewerage!CJ53 -> 4061.034703 | CK47: =ReticSewerage!CK53 -> 4204.124126 | CL47: =ReticSewerage!CL53 -> 4748.799998 | CM47: =ReticSewerage!CM53 -> 4938.713565 | CN47: =ReticSewerage!CN53 -> 5099.569122 | CO47: =ReticSewerage!CO53 -> 5266.280702 | CP47: =ReticSewerage!CP53 -> 5439.158504 | CQ47: =ReticSewerage!CQ53 -> 5618.308622 | CR47: =ReticSewerage!CR53 -> 5803.835945 | CS47: =ReticSewerage!CS53 -> 5995.845355 | CT47: =ReticSewerage!CT53 -> 6194.441737 | CU47: =ReticSewerage!CU53 -> 6399.729972 | CV47: =ReticSewerage!CV53 -> 6611.814944 | CW47: =ReticSewerage!CW53 -> 6830.801535 | CX47: =ReticSewerage!CX53 -> 7056.794627 | CY47: =ReticSewerage!CY53 -> 7289.899104 | CZ47: =ReticSewerage!CZ53 -> 7530.219848 | DA47: =ReticSewerage!DA53 -> 7777.861743 | DB47: =ReticSewerage!DB53 -> 8032.92967 | DC47: =ReticSewerage!DC53 -> 8295.528512 | DD47: =ReticSewerage!DD53 -> 8565.763153 | DE47: =ReticSewerage!DE53 -> 8843.738475 | DF47: =ReticSewerage!DF53 -> 20355.62406 | DG47: =ReticSewerage!DG53 -> 21563.61671 | DH47: =ReticSewerage!DH53 -> 21417.86741 | DI47: =ReticSewerage!DI53 -> 21261.8196 | DJ47: =ReticSewerage!DJ53 -> 21103.5016 | DK47: =ReticSewerage!DK53 -> 20943.06503 | DL47: =ReticSewerage!DL53 -> 20780.61504 | DM47: =ReticSewerage!DM53 -> 20616.25651 | DN47: =ReticSewerage!DN53 -> 20737.96152 | DO47: =ReticSewerage!DO53 -> 21090.02624 | DP47: =ReticSewerage!DP53 -> 20939.7487 | DQ47: =ReticSewerage!DQ53 -> 20784.29839 | DR47: =ReticSewerage!DR53 -> 20626.86249 | DS47: =ReticSewerage!DS53 -> 20467.579 | DT47: =ReticSewerage!DT53 -> 20306.56681 | DU47: =ReticSewerage!DU53 -> 20143.94432 | DV47: =ReticSewerage!DV53 -> 19979.82962 | DW47: =ReticSewerage!DW53 -> 19814.34046 | DX47: =ReticSewerage!DX53 -> 19647.59428 | DY47: =ReticSewerage!DY53 -> 19479.70824 | DZ47: =ReticSewerage!DZ53 -> 19675.7591 | EA47: =ReticSewerage!EA53 -> 19492.79245 | EB47: =ReticSewerage!EB53 -> 19324.52142 | EC47: =ReticSewerage!EC53 -> 19155.61283 | ED47: =ReticSewerage!ED53 -> 18986.08846
D49: Annuity | F49: =F31 -> 10 | G49: years | I49: =NPV($F$6,OFFSET(J$47,0,0,1,$F49)) -> 111875.272 | J49: =-PMT($F$6,F49,I49,,0) -> 15128.33167 | N49: =NPV($F$6,OFFSET(T47,0,0,1,$F60-$F49)) -> 24433.19981 | O49: =-PMT($F$6,$F60-$F49,N49,,0) -> 1444.195547 | P49: This annuity calculation is from the end of the initial annuity length at F49 to 120 years.
F50: =F32 -> 20 | G50: years | I50: 116559.5514 | J50: =-PMT($F$6,F50,I50,,0) -> 10079.8511 | N50: =NPV($F$6,OFFSET(AD47,0,0,1,$F60-$F50)) -> 28602.9042 | O50: =-PMT($F$6,$F60-$F50,N50,,0) -> 1693.055065 | P50: This annuity calculation is from the end of the initial annuity length at F50 to 120 years.
F51: 30 | G51: years | I51: 119235.0102 | J51: =-PMT($F$6,F51,I51,,0) -> 8569.808886
F52: 40 | G52: years | I52: 120760.5339 | J52: =-PMT($F$6,F52,I52,,0) -> 7925.002308
F53: 50 | G53: years | I53: 122157.627 | J53: =-PMT($F$6,F53,I53,,0) -> 7642.232898
F54: 60 | G54: years | I54: 123038.2425 | J54: 7499.856141
F55: 70 | G55: years | I55: 123660.2193 | J55: 7430.319211
F56: 80 | G56: years | I56: 124137.4803 | J56: 7399.538509
F57: 90 | G57: years | I57: 124549.4699 | J57: 7390.88656
F58: 100 | G58: years | I58: 124871.0175 | J58: 7391.330167
F59: 110 | G59: years | I59: =NPV($F$6,OFFSET(J$47,0,0,1,$F59)) -> 125374.0036 | J59: =-PMT($F$6,F59,I59,,0) -> 7410.596207
F60: 120 | G60: years | I60: 125648.0245 | J60: 7420.870744
D65: Prices in $2016-17 & $2017-18
D67: 0.013 | E67: Inflation rate to move from $2015-16 to $2016-17 (Mar 16/Mar 15)
D68: 0.02 | E68: Inflation rate to move from $2016-17 to $2017-18 (Bloomberg forecast Mar 17/Mar 16, updated 9 February 2017)
D69: 0.6183915651 | E69: Allocation of retail to water | T69: Annuity values for customer impact analysis
D71: Annuity length | G71: =TRANSPOSE(F13:F24) -> 10 | H71: 20 | I71: 30 | J71: 40 | K71: 50 | L71: 60 | M71: 70 | N71: 80 | O71: 90 | P71: 100 | Q71: 110 | R71: 120 | V71: 5 | W71: The value if V70 is not a random hard coded value, it relates to the drop down box at T70.
D73: Retail - Water
T74: $2016-17 | V74: $2017-18
D75: Schedule 1 | G75: =TRANSPOSE(J13:J24)*$D$69*(1+$D$67) -> 130.878622 | H75: 129.8775431 | I75: 129.5556014 | J75: 129.3791624 | K75: 129.2833649 | L75: 129.2329544 | M75: 129.2273034 | N75: 129.2183302 | O75: 129.2127518 | P75: 129.2085088 | Q75: 129.2058467 | R75: 129.2043416 | T75: =ROUND(OFFSET(G75,0,$V$71-1),0) -> 129 | V75: =T75*(1+$D$68) -> 131.58
D76: Schedule 2 | G76: =TRANSPOSE(O13:O14)*$D$69*(1+$D$67) -> 127.9060372 | H76: 127.7541715
D78: Retail - Sewerage
D80: Schedule 1 | G80: =TRANSPOSE(J13:J24)*(1-$D$69)*(1+$D$67) -> 80.76498604 | H80: 80.14722183 | I80: 79.94855216 | J80: 79.83967195 | K80: 79.78055547 | L80: 79.74944721 | M80: 79.74595998 | N80: 79.7404226 | O80: 79.73698018 | P80: 79.73436183 | Q80: 79.7327191 | R80: 79.73179029 | T80: =ROUND(OFFSET(G80,0,$V$71-1),0) -> 80 | V80: =T80*(1+$D$68) -> 81.6
D81: Schedule 2 | G81: =TRANSPOSE(O13:O14)*(1-$D$69)*(1+$D$67) -> 78.93060875 | H81: 78.83689264
D83: Reticulation - Water
D85: Schedule 1 | G85: =TRANSPOSE(J31:J42)*(1+$D$67) -> 6720.491151 | H85: 4522.275717 | I85: 3901.513135 | J85: 3938.192984 | K85: 3944.531866 | L85: 3942.335495 | M85: 3967.472943 | N85: 3980.125356 | O85: 3986.57328 | P85: 3994.98127 | Q85: 4015.359046 | R85: 4025.425867 | T85: =ROUND(OFFSET(G85,0,$V$71-1),0) -> 3945 | V85: =T85*(1+$D$68) -> 4023.9
D86: Schedule 2 | G86: =TRANSPOSE(O31:O32)*(1+$D$67) -> 1935.563851 | H86: 2955.141784
D88: Reticulation - Sewerage
D90: Schedule 1 | G90: =TRANSPOSE(J49:J60)*(1+$D$67) -> 15324.99998 | H90: 10210.88917 | I90: 8681.216402 | J90: 8028.027338 | K90: 7741.581925 | L90: 7597.354271 | M90: 7526.913361 | N90: 7495.732509 | O90: 7486.968085 | P90: 7487.417459 | Q90: 7506.933958 | R90: 7517.342063 | T90: =ROUND(OFFSET(G90,0,$V$71-1),0) -> 7742 | V90: =T90*(1+$D$68) -> 7896.84
D91: Schedule 2 | G91: =TRANSPOSE(O49:O50)*(1+$D$67) -> 1462.970089 | H91: 1715.064781

Sheet Calculations ==>
B2: This worksheet is intentionally blank.

Sheet QA log (hidden)
B2: Review that the QA log is for | F2: 2016-17 Wholesale Pricing Review for SWC and HWC | J2: File name(s): | K2: Version for QA - IPART's WSP Retail Minus Building Block Model
B3: NAME OF MODEL: | F3: Version for QA - IPART's WSP Retail Minus Building Block Model
B5: NAME OF MODELLER: | F5: Greg McLennan | J5: An example QA log can be found at:
B6: NAME(S) OF QA STAFF: | F6: Mike Smart | J6: \\Jabba\shared\QA\1 QA Processes and Procedures\QA modelling process\QA log example for model and spreadsheet - July 2014 (Trim D14-25291).xlsm
B8: Signature of QA staff (see B49 below):
B10: PURPOSE OF MODEL
C11: Purposes : | J11: Responses by team/model developer:
B12: 1 | C12: The context of the review is to set retail minuses that apply to retail prices on a reasonably efficient competitor (REC) basis. | J12: Industry team to confirm that QA team has understood model's purpose correctly
B13: 2 | C13: The model incorporates alternative inputs as per Tribunal decisions to calculate the notional revenue requirement (NRR) for a REC. The NRR is calculated annually over 125 years. A portion of, or the total resulting NRR profile is then used to estimate an annuity (the retail minus).
B14: 3
B16: The QA scope is to check Models, Spreadsheets and Charts by: (see list in following rows)
B17: Logic and calculations:
B18: * checking methodology and logic
B19: * checking calculations and cell referencing
B20: * checking labelling of tables, units for consistency with calculations and outputs.
B21: Inputs and additional outputs
B22: * reconciling inputs to TRIMmed source documents
B23: * checking labelling of tables, units for consistency with calculations and outputs.
B24: * checking all additional outputs not previously QA'd.
B25: This list is from the QA Report which is signed by the QA-er at the end.
B26: For more detail, refer to the Model QA Manual D09/8510
B28: Have the following items been checked in the QA? (please circle one option)
C30: Yes / No / NA | E30: Has the Regulatory Asset Base (RAB) been rolled forward correctly?
C31: Yes / No / NA | E31: Has a real weighted average cost of capital (WACC) correctly been applied to the RAB?
C32: Yes / No / NA | E32: Are timing assumptions consistent with IPART's Cash Flow assumptions?
C33: Yes / No / NA | E33: Are calculations consistent and clearly marked as real or nominal?
C34: Yes / No / NA | E34: Are calculations consistent and clearly marked as inclusive or exclusive of Goods and Services Tax (GST)?
C35: Yes / No / NA | E35: Have units been provided for all values and clearly marked, eg $m, $,000, $ or cents, kL, MWh, GJ,etc...?
C36: Yes / No / NA | E36: Have adequate error checks been built into the model?
C37: Yes / No / NA | E37: Are there any significant deviations from IPART's financial modelling policy?
C38: Yes / No / NA | E38: - If so, have these been recorded in the model's documentation?
B41: Specific areas of the model that the model developer/project team wants assurance on
B42: Use this space to document any specific areas in the model that the project team/model developer specifically identified as needing checking.
B44: The QA requires checking of changes since the Draft Report modelling.
B45: Two areas of optionality have been added, and in addition the use of tax asset lives for tax purposes.
B46: The changes are on the Common Inputs, Retail, ReticWater and ReticWW worksheets.
B47: All sections of the model which have structurally changed have been identified with green shading, eg
B49: NOTE: if options are set consistent, and tax asset lives are set equal to regulatory asset lives, this model will produce identical results to that used in the draft report. Final version for draft report is included in the subdirectory.
B51: QA staff notes
B52: In this space, the QA staff provide an assurance that the QA is completed to standard. This is the basis for the QA signature in cell E8 above.
B54: Use this space to document any notes about the QA tasks etc... eg. which sheets were not checked, what QA symbols or codes have been used etc.
D61: Only required if there is more than one QA staff doing the task | E61: These should be concise notes highlighting what the QA issue relates to, Eg, "Depreciation calcs for substations", "Hunter Water working capital" etc... | F61: If more than one spreadsheet consider using a code to identify each file and the worksheet | G61: Provide the exact cell or range of cells, where the problem lies | H61: select from the drop down list the category that the issue falls under | I61: Explain why there is an issue and provide clear details of what corrections are needed, eg the correct cell reference, source data location, formula syntax etc... | J61: Need to indicate here what is the impact of the issue, particularly whether the issue raised will impact on the output figures or not. | K61: To be completed by the team/model developer. Developer should use this section to indicate what corrections have been made. However the QA staff can also complete this section as a record of what was discussed and agreed to with the team/model developer. | L61: QA signoff that action addresses issue
B62: DETAILS OF ISSUES FOUND IN THE QA THAT NEED TO BE DISCUSSED WITH THE MODEL DEVELOPER/PROJECT TEAM
B63: Item no. | C63: Date checked | D63: QA'd by | E63: Item relates to... | F63: File / Tab sheet | G63: Cell reference | H63: Category | I63: What exactly is the issue? | J63: Comments of QA staff (impact of the issue) | K63: Responses by industry team /model developer [changed / not changed & reason] | L63: QA signoff | P63: Do not delete
B64: 1 | C64: 2017-02-15 | D64: Mike Smart | F64: Retail, ReticWater, ReticWW | G64: J1650:J1774 | H64: Calculation | I64: Two formula mistakes: (1) J$1648 and J$1509 are transposed. (2) Formula gives same result whether accelerated dep'n is chosen or not. | J64: Unsure whether this will affect outcome of calculations. | K64: Corrected - no impact on previous analysis as all assets in year 1 were treated as AFOC. The section with the error would have only impacted assets treated as capex. | L64: OK MS | P64: Data
B65: 2 | C65: 2017-02-15 | D65: Mike Smart | F65: Retail, ReticWater, ReticWW | G65: J848, K848:ED848 | H65: Calculation | I65: Reference to cell J719 and K719, respectively is redundant. Suggest removal of these references from formulae, and then deletion of rows 718:843. | J65: This suggestion applies to rows below row 848 in the same block. It also applies to J and K1109, 1380, 1650. | K65: Changes as suggested. This has also resulted in an amendment to the formulae in the matricies from column K - please confirm this change is functioning as intended. | L65: OK MS | P65: Calculation
B66: 3 | C66: 2017-02-15 | D66: Mike Smart | F66: Retail, ReticWater, ReticWW | G66: K848:ED848 | H66: Calculation | I66: Query whether the expression: "SUM(OFFSET($J848,0,$D848-1,1,K$714-$D848):J848)" does what it is thought to do? Prima facie it seems puzzling that a summation range can have a vector as one end and a single cell as the other end. | J66: This suggestion applies to rows below row 848 in the same block. It also applies to K:ED1109, 1380, 1650. | K66: Removed. The componenet at the end of the formulae was redundant. Fortuitiously, the redundant reference was the same as the end point of the vector, therefore there was no impact. | L66: OK MS | P66: Formatting
B67: 4 | H67: Spelling | P67: Spelling
B68: 5 | H68: Documentation | P68: Documentation
B69: 6 | H69: Others | P69: Others
B70: 7
B71: 8
B72: 9
B73: 10
B74: 11
B75: 12
B76: 13
B77: 14
B78: 15
B79: 16
B80: 17
B81: 18
B82: 19
B83: 20
B84: 21
B85: 22
B86: 23
B87: 24
B88: 25
B89: 26
B90: 27
B91: 28
B92: 29
B93: 30
B94: IF A LONGER LOG IS REQUIRED, INSERT NEW ROWS BETWEEN ROW 74 AND 75 AND UPDATE THE ITEM NUMBERING IN COLUMN B
B95: DO NOT ENTER LOG INFORMATION AFTER THIS POINT

Sheet Retail
D2: Retail - Notional Revenue Requirement Calculations (Water & Wastewater)
D5: ="Scenario Specific Inputs ("&'Common Inputs'!J9&", "&'Common Inputs'!J8&")" -> Scenario Specific Inputs ($, $2015-16)
D7: Opening Asset Value
E9: Meters
E10: Billing System
E11: Non-depreciation
D13: Capital Expenditure
J14: ='Common Inputs'!J13 -> 1 | K14: ='Common Inputs'!K13 -> 2 | L14: ='Common Inputs'!L13 -> 3 | M14: ='Common Inputs'!M13 -> 4 | N14: ='Common Inputs'!N13 -> 5 | O14: ='Common Inputs'!O13 -> 6 | P14: ='Common Inputs'!P13 -> 7 | Q14: ='Common Inputs'!Q13 -> 8 | R14: ='Common Inputs'!R13 -> 9 | S14: ='Common Inputs'!S13 -> 10 | T14: ='Common Inputs'!T13 -> 11 | U14: ='Common Inputs'!U13 -> 12 | V14: ='Common Inputs'!V13 -> 13 | W14: ='Common Inputs'!W13 -> 14 | X14: ='Common Inputs'!X13 -> 15 | Y14: ='Common Inputs'!Y13 -> 16 | Z14: ='Common Inputs'!Z13 -> 17 | AA14: ='Common Inputs'!AA13 -> 18 | AB14: ='Common Inputs'!AB13 -> 19 | AC14: ='Common Inputs'!AC13 -> 20 | AD14: ='Common Inputs'!AD13 -> 21 | AE14: ='Common Inputs'!AE13 -> 22 | AF14: ='Common Inputs'!AF13 -> 23 | AG14: ='Common Inputs'!AG13 -> 24 | AH14: ='Common Inputs'!AH13 -> 25 | AI14: ='Common Inputs'!AI13 -> 26 | AJ14: ='Common Inputs'!AJ13 -> 27 | AK14: ='Common Inputs'!AK13 -> 28 | AL14: ='Common Inputs'!AL13 -> 29 | AM14: ='Common Inputs'!AM13 -> 30 | AN14: ='Common Inputs'!AN13 -> 31 | AO14: ='Common Inputs'!AO13 -> 32 | AP14: ='Common Inputs'!AP13 -> 33 | AQ14: ='Common Inputs'!AQ13 -> 34 | AR14: ='Common Inputs'!AR13 -> 35 | AS14: ='Common Inputs'!AS13 -> 36 | AT14: ='Common Inputs'!AT13 -> 37 | AU14: ='Common Inputs'!AU13 -> 38 | AV14: ='Common Inputs'!AV13 -> 39 | AW14: ='Common Inputs'!AW13 -> 40 | AX14: ='Common Inputs'!AX13 -> 41 | AY14: ='Common Inputs'!AY13 -> 42 | AZ14: ='Common Inputs'!AZ13 -> 43 | BA14: ='Common Inputs'!BA13 -> 44 | BB14: ='Common Inputs'!BB13 -> 45 | BC14: ='Common Inputs'!BC13 -> 46 | BD14: ='Common Inputs'!BD13 -> 47 | BE14: ='Common Inputs'!BE13 -> 48 | BF14: ='Common Inputs'!BF13 -> 49 | BG14: ='Common Inputs'!BG13 -> 50 | BH14: ='Common Inputs'!BH13 -> 51 | BI14: ='Common Inputs'!BI13 -> 52 | BJ14: ='Common Inputs'!BJ13 -> 53 | BK14: ='Common Inputs'!BK13 -> 54 | BL14: ='Common Inputs'!BL13 -> 55 | BM14: ='Common Inputs'!BM13 -> 56 | BN14: ='Common Inputs'!BN13 -> 57 | BO14: ='Common Inputs'!BO13 -> 58 | BP14: ='Common Inputs'!BP13 -> 59 | BQ14: ='Common Inputs'!BQ13 -> 60 | BR14: ='Common Inputs'!BR13 -> 61 | BS14: ='Common Inputs'!BS13 -> 62 | BT14: ='Common Inputs'!BT13 -> 63 | BU14: ='Common Inputs'!BU13 -> 64 | BV14: ='Common Inputs'!BV13 -> 65 | BW14: ='Common Inputs'!BW13 -> 66 | BX14: ='Common Inputs'!BX13 -> 67 | BY14: ='Common Inputs'!BY13 -> 68 | BZ14: ='Common Inputs'!BZ13 -> 69 | CA14: ='Common Inputs'!CA13 -> 70 | CB14: ='Common Inputs'!CB13 -> 71 | CC14: ='Common Inputs'!CC13 -> 72 | CD14: ='Common Inputs'!CD13 -> 73 | CE14: ='Common Inputs'!CE13 -> 74 | CF14: ='Common Inputs'!CF13 -> 75 | CG14: ='Common Inputs'!CG13 -> 76 | CH14: ='Common Inputs'!CH13 -> 77 | CI14: ='Common Inputs'!CI13 -> 78 | CJ14: ='Common Inputs'!CJ13 -> 79 | CK14: ='Common Inputs'!CK13 -> 80 | CL14: ='Common Inputs'!CL13 -> 81 | CM14: ='Common Inputs'!CM13 -> 82 | CN14: ='Common Inputs'!CN13 -> 83 | CO14: ='Common Inputs'!CO13 -> 84 | CP14: ='Common Inputs'!CP13 -> 85 | CQ14: ='Common Inputs'!CQ13 -> 86 | CR14: ='Common Inputs'!CR13 -> 87 | CS14: ='Common Inputs'!CS13 -> 88 | CT14: ='Common Inputs'!CT13 -> 89 | CU14: ='Common Inputs'!CU13 -> 90 | CV14: ='Common Inputs'!CV13 -> 91 | CW14: ='Common Inputs'!CW13 -> 92 | CX14: ='Common Inputs'!CX13 -> 93 | CY14: ='Common Inputs'!CY13 -> 94 | CZ14: ='Common Inputs'!CZ13 -> 95 | DA14: ='Common Inputs'!DA13 -> 96 | DB14: ='Common Inputs'!DB13 -> 97 | DC14: ='Common Inputs'!DC13 -> 98 | DD14: ='Common Inputs'!DD13 -> 99 | DE14: ='Common Inputs'!DE13 -> 100 | DF14: ='Common Inputs'!DF13 -> 101 | DG14: ='Common Inputs'!DG13 -> 102 | DH14: ='Common Inputs'!DH13 -> 103 | DI14: ='Common Inputs'!DI13 -> 104 | DJ14: ='Common Inputs'!DJ13 -> 105 | DK14: ='Common Inputs'!DK13 -> 106 | DL14: ='Common Inputs'!DL13 -> 107 | DM14: ='Common Inputs'!DM13 -> 108 | DN14: ='Common Inputs'!DN13 -> 109 | DO14: ='Common Inputs'!DO13 -> 110 | DP14: ='Common Inputs'!DP13 -> 111 | DQ14: ='Common Inputs'!DQ13 -> 112 | DR14: ='Common Inputs'!DR13 -> 113 | DS14: ='Common Inputs'!DS13 -> 114 | DT14: ='Common Inputs'!DT13 -> 115 | DU14: ='Common Inputs'!DU13 -> 116 | DV14: ='Common Inputs'!DV13 -> 117 | DW14: ='Common Inputs'!DW13 -> 118 | DX14: ='Common Inputs'!DX13 -> 119 | DY14: ='Common Inputs'!DY13 -> 120 | DZ14: ='Common Inputs'!DZ13 -> 121 | EA14: ='Common Inputs'!EA13 -> 122 | EB14: ='Common Inputs'!EB13 -> 123 | EC14: ='Common Inputs'!EC13 -> 124 | ED14: ='Common Inputs'!ED13 -> 125
E15: =E9 -> Meters | J15: ='Oakley Greenwood Inputs'!H14 -> 398 | K15: =IF(MOD(K$14,$J$28)=1,$J$15,0) -> 0 | L15: =IF(MOD(L$14,$J$28)=1,$J$15,0) -> 0 | M15: 0 | N15: 0 | O15: 0 | P15: 0 | Q15: 0 | R15: 0 | S15: 0 | T15: 0 | U15: 0 | V15: 398 | W15: 0 | X15: 0 | Y15: 0 | Z15: 0 | AA15: 0 | AB15: 0 | AC15: 0 | AD15: 0 | AE15: 0 | AF15: 0 | AG15: 0 | AH15: 398 | AI15: 0 | AJ15: 0 | AK15: 0 | AL15: 0 | AM15: 0 | AN15: 0 | AO15: 0 | AP15: 0 | AQ15: 0 | AR15: 0 | AS15: 0 | AT15: 398 | AU15: 0 | AV15: 0 | AW15: 0 | AX15: 0 | AY15: 0 | AZ15: 0 | BA15: 0 | BB15: 0 | BC15: 0 | BD15: 0 | BE15: 0 | BF15: 398 | BG15: 0 | BH15: 0 | BI15: 0 | BJ15: 0 | BK15: 0 | BL15: 0 | BM15: 0 | BN15: 0 | BO15: 0 | BP15: 0 | BQ15: 0 | BR15: 398 | BS15: 0 | BT15: 0 | BU15: 0 | BV15: 0 | BW15: 0 | BX15: =IF(MOD(BX$14,$J$28)=1,$J$15,0) -> 0 | BY15: 0 | BZ15: 0 | CA15: 0 | CB15: 0 | CC15: 0 | CD15: 398 | CE15: 0 | CF15: 0 | CG15: 0 | CH15: 0 | CI15: 0 | CJ15: 0 | CK15: 0 | CL15: 0 | CM15: 0 | CN15: 0 | CO15: 0 | CP15: 398 | CQ15: 0 | CR15: 0 | CS15: 0 | CT15: 0 | CU15: 0 | CV15: 0 | CW15: 0 | CX15: 0 | CY15: 0 | CZ15: 0 | DA15: 0 | DB15: 398 | DC15: 0 | DD15: 0 | DE15: 0 | DF15: 0 | DG15: 0 | DH15: 0 | DI15: 0 | DJ15: 0 | DK15: 0 | DL15: 0 | DM15: 0 | DN15: 398 | DO15: 0 | DP15: 0 | DQ15: 0 | DR15: 0 | DS15: 0 | DT15: 0 | DU15: 0 | DV15: 0 | DW15: 0 | DX15: 0 | DY15: 0 | DZ15: 398 | EA15: 0 | EB15: 0 | EC15: 0 | ED15: 0
E16: =E10 -> Billing System
E17: =E11 -> Non-depreciation
D19: Asset lives
E21: Existing Assets
E23: =E9 -> Meters
E24: =E10 -> Billing System
E26: New Assets | J26: Regulatory | K26: Tax
E28: =E9 -> Meters | J28: 12 | K28: 20
E29: =E10 -> Billing System | J29: 0 | K29: 0
J31: =J14 -> 1 | K31: 2 | L31: 3 | M31: 4 | N31: 5 | O31: 6 | P31: 7 | Q31: 8 | R31: 9 | S31: 10 | T31: 11 | U31: 12 | V31: 13 | W31: 14 | X31: 15 | Y31: 16 | Z31: 17 | AA31: 18 | AB31: 19 | AC31: 20 | AD31: 21 | AE31: 22 | AF31: 23 | AG31: 24 | AH31: 25 | AI31: 26 | AJ31: 27 | AK31: 28 | AL31: 29 | AM31: 30 | AN31: 31 | AO31: 32 | AP31: 33 | AQ31: 34 | AR31: 35 | AS31: 36 | AT31: 37 | AU31: 38 | AV31: 39 | AW31: 40 | AX31: 41 | AY31: 42 | AZ31: 43 | BA31: 44 | BB31: 45 | BC31: 46 | BD31: 47 | BE31: 48 | BF31: 49 | BG31: 50 | BH31: 51 | BI31: 52 | BJ31: 53 | BK31: 54 | BL31: 55 | BM31: 56 | BN31: 57 | BO31: 58 | BP31: 59 | BQ31: 60 | BR31: 61 | BS31: 62 | BT31: 63 | BU31: 64 | BV31: =BV14 -> 65 | BW31: 66 | BX31: 67 | BY31: 68 | BZ31: 69 | CA31: 70 | CB31: 71 | CC31: 72 | CD31: 73 | CE31: 74 | CF31: 75 | CG31: 76 | CH31: 77 | CI31: 78 | CJ31: 79 | CK31: 80 | CL31: 81 | CM31: 82 | CN31: 83 | CO31: 84 | CP31: 85 | CQ31: 86 | CR31: 87 | CS31: 88 | CT31: 89 | CU31: 90 | CV31: 91 | CW31: 92 | CX31: 93 | CY31: 94 | CZ31: 95 | DA31: 96 | DB31: 97 | DC31: 98 | DD31: 99 | DE31: 100 | DF31: 101 | DG31: 102 | DH31: 103 | DI31: 104 | DJ31: 105 | DK31: 106 | DL31: 107 | DM31: 108 | DN31: 109 | DO31: 110 | DP31: 111 | DQ31: 112 | DR31: 113 | DS31: 114 | DT31: 115 | DU31: 116 | DV31: 117 | DW31: 118 | DX31: 119 | DY31: 120 | DZ31: 121 | EA31: 122 | EB31: 123 | EC31: 124 | ED31: 125
D32: Operating Costs | J32: ='Oakley Greenwood Inputs'!H17 -> 159.080256 | K32: ='Oakley Greenwood Inputs'!H18 -> 158.081976 | L32: =K32 -> 158.081976 | M32: 158.081976 | N32: 158.081976 | O32: 158.081976 | P32: 158.081976 | Q32: 158.081976 | R32: 158.081976 | S32: 158.081976 | T32: 158.081976 | U32: 158.081976 | V32: 158.081976 | W32: 158.081976 | X32: 158.081976 | Y32: 158.081976 | Z32: 158.081976 | AA32: 158.081976 | AB32: 158.081976 | AC32: 158.081976 | AD32: 158.081976 | AE32: 158.081976 | AF32: 158.081976 | AG32: 158.081976 | AH32: 158.081976 | AI32: 158.081976 | AJ32: 158.081976 | AK32: 158.081976 | AL32: 158.081976 | AM32: 158.081976 | AN32: 158.081976 | AO32: 158.081976 | AP32: 158.081976 | AQ32: 158.081976 | AR32: 158.081976 | AS32: 158.081976 | AT32: 158.081976 | AU32: 158.081976 | AV32: 158.081976 | AW32: 158.081976 | AX32: 158.081976 | AY32: 158.081976 | AZ32: 158.081976 | BA32: 158.081976 | BB32: 158.081976 | BC32: 158.081976 | BD32: 158.081976 | BE32: 158.081976 | BF32: 158.081976 | BG32: 158.081976 | BH32: 158.081976 | BI32: 158.081976 | BJ32: 158.081976 | BK32: 158.081976 | BL32: 158.081976 | BM32: 158.081976 | BN32: 158.081976 | BO32: 158.081976 | BP32: 158.081976 | BQ32: 158.081976 | BR32: 158.081976 | BS32: 158.081976 | BT32: 158.081976 | BU32: 158.081976 | BV32: 158.081976 | BW32: 158.081976 | BX32: =BW32 -> 158.081976 | BY32: 158.081976 | BZ32: 158.081976 | CA32: 158.081976 | CB32: 158.081976 | CC32: 158.081976 | CD32: 158.081976 | CE32: 158.081976 | CF32: 158.081976 | CG32: 158.081976 | CH32: 158.081976 | CI32: 158.081976 | CJ32: 158.081976 | CK32: 158.081976 | CL32: 158.081976 | CM32: 158.081976 | CN32: 158.081976 | CO32: 158.081976 | CP32: 158.081976 | CQ32: 158.081976 | CR32: 158.081976 | CS32: 158.081976 | CT32: 158.081976 | CU32: 158.081976 | CV32: 158.081976 | CW32: 158.081976 | CX32: 158.081976 | CY32: 158.081976 | CZ32: 158.081976 | DA32: 158.081976 | DB32: 158.081976 | DC32: 158.081976 | DD32: 158.081976 | DE32: 158.081976 | DF32: =DE32 -> 158.081976 | DG32: =DF32 -> 158.081976 | DH32: =DG32 -> 158.081976 | DI32: =DH32 -> 158.081976 | DJ32: =DI32 -> 158.081976 | DK32: =DJ32 -> 158.081976 | DL32: =DK32 -> 158.081976 | DM32: =DL32 -> 158.081976 | DN32: =DM32 -> 158.081976 | DO32: =DN32 -> 158.081976 | DP32: =DO32 -> 158.081976 | DQ32: =DP32 -> 158.081976 | DR32: =DQ32 -> 158.081976 | DS32: =DR32 -> 158.081976 | DT32: =DS32 -> 158.081976 | DU32: =DT32 -> 158.081976 | DV32: =DU32 -> 158.081976 | DW32: =DV32 -> 158.081976 | DX32: =DW32 -> 158.081976 | DY32: =DX32 -> 158.081976 | DZ32: =DY32 -> 158.081976 | EA32: =DZ32 -> 158.081976 | EB32: =EA32 -> 158.081976 | EC32: =EB32 -> 158.081976 | ED32: =EC32 -> 158.081976
J34: =J14 -> 1 | K34: 2 | L34: 3 | M34: 4 | N34: 5 | O34: 6 | P34: 7 | Q34: 8 | R34: 9 | S34: 10 | T34: 11 | U34: 12 | V34: 13 | W34: 14 | X34: 15 | Y34: 16 | Z34: 17 | AA34: 18 | AB34: 19 | AC34: 20 | AD34: 21 | AE34: 22 | AF34: 23 | AG34: 24 | AH34: 25 | AI34: 26 | AJ34: 27 | AK34: 28 | AL34: 29 | AM34: 30 | AN34: 31 | AO34: 32 | AP34: 33 | AQ34: 34 | AR34: 35 | AS34: 36 | AT34: 37 | AU34: 38 | AV34: 39 | AW34: 40 | AX34: 41 | AY34: 42 | AZ34: 43 | BA34: 44 | BB34: 45 | BC34: 46 | BD34: 47 | BE34: 48 | BF34: 49 | BG34: 50 | BH34: 51 | BI34: 52 | BJ34: 53 | BK34: 54 | BL34: 55 | BM34: 56 | BN34: 57 | BO34: 58 | BP34: 59 | BQ34: 60 | BR34: 61 | BS34: 62 | BT34: 63 | BU34: 64 | BV34: =BV14 -> 65 | BW34: 66 | BX34: 67 | BY34: 68 | BZ34: 69 | CA34: 70 | CB34: 71 | CC34: 72 | CD34: 73 | CE34: 74 | CF34: 75 | CG34: 76 | CH34: 77 | CI34: 78 | CJ34: 79 | CK34: 80 | CL34: 81 | CM34: 82 | CN34: 83 | CO34: 84 | CP34: 85 | CQ34: 86 | CR34: 87 | CS34: 88 | CT34: 89 | CU34: 90 | CV34: 91 | CW34: 92 | CX34: 93 | CY34: 94 | CZ34: 95 | DA34: 96 | DB34: 97 | DC34: 98 | DD34: 99 | DE34: 100 | DF34: 101 | DG34: 102 | DH34: 103 | DI34: 104 | DJ34: 105 | DK34: 106 | DL34: 107 | DM34: 108 | DN34: 109 | DO34: 110 | DP34: 111 | DQ34: 112 | DR34: 113 | DS34: 114 | DT34: 115 | DU34: 116 | DV34: 117 | DW34: 118 | DX34: 119 | DY34: 120 | DZ34: 121 | EA34: 122 | EB34: 123 | EC34: 124 | ED34: 125
D35: AFOC | J35: 0
J36: 0
J38: =J14 -> 1 | K38: 2 | L38: 3 | M38: 4 | N38: 5 | O38: 6 | P38: 7 | Q38: 8 | R38: 9 | S38: 10 | T38: 11 | U38: 12 | V38: 13 | W38: 14 | X38: 15 | Y38: 16 | Z38: 17 | AA38: 18 | AB38: 19 | AC38: 20 | AD38: 21 | AE38: 22 | AF38: 23 | AG38: 24 | AH38: 25 | AI38: 26 | AJ38: 27 | AK38: 28 | AL38: 29 | AM38: 30 | AN38: 31 | AO38: 32 | AP38: 33 | AQ38: 34 | AR38: 35 | AS38: 36 | AT38: 37 | AU38: 38 | AV38: 39 | AW38: 40 | AX38: 41 | AY38: 42 | AZ38: 43 | BA38: 44 | BB38: 45 | BC38: 46 | BD38: 47 | BE38: 48 | BF38: 49 | BG38: 50 | BH38: 51 | BI38: 52 | BJ38: 53 | BK38: 54 | BL38: 55 | BM38: 56 | BN38: 57 | BO38: 58 | BP38: 59 | BQ38: 60 | BR38: 61 | BS38: 62 | BT38: 63 | BU38: 64 | BV38: =BV14 -> 65 | BW38: 66 | BX38: 67 | BY38: 68 | BZ38: 69 | CA38: 70 | CB38: 71 | CC38: 72 | CD38: 73 | CE38: 74 | CF38: 75 | CG38: 76 | CH38: 77 | CI38: 78 | CJ38: 79 | CK38: 80 | CL38: 81 | CM38: 82 | CN38: 83 | CO38: 84 | CP38: 85 | CQ38: 86 | CR38: 87 | CS38: 88 | CT38: 89 | CU38: 90 | CV38: 91 | CW38: 92 | CX38: 93 | CY38: 94 | CZ38: 95 | DA38: 96 | DB38: 97 | DC38: 98 | DD38: 99 | DE38: 100 | DF38: 101 | DG38: 102 | DH38: 103 | DI38: 104 | DJ38: 105 | DK38: 106 | DL38: 107 | DM38: 108 | DN38: 109 | DO38: 110 | DP38: 111 | DQ38: 112 | DR38: 113 | DS38: 114 | DT38: 115 | DU38: 116 | DV38: 117 | DW38: 118 | DX38: 119 | DY38: 120 | DZ38: 121 | EA38: 122 | EB38: 123 | EC38: 124 | ED38: 125
D39: Tax depreciation
D44: ="Notional Revenue Requirement ("&'Common Inputs'!J9&", "&'Common Inputs'!J8&")" -> Notional Revenue Requirement ($, $2015-16)
D45: Year | J45: =J14 -> 1 | K45: 2 | L45: 3 | M45: 4 | N45: 5 | O45: 6 | P45: 7 | Q45: 8 | R45: 9 | S45: 10 | T45: 11 | U45: 12 | V45: 13 | W45: 14 | X45: 15 | Y45: 16 | Z45: 17 | AA45: 18 | AB45: 19 | AC45: 20 | AD45: 21 | AE45: 22 | AF45: 23 | AG45: 24 | AH45: 25 | AI45: 26 | AJ45: 27 | AK45: 28 | AL45: 29 | AM45: 30 | AN45: 31 | AO45: 32 | AP45: 33 | AQ45: 34 | AR45: 35 | AS45: 36 | AT45: 37 | AU45: 38 | AV45: 39 | AW45: 40 | AX45: 41 | AY45: 42 | AZ45: 43 | BA45: 44 | BB45: 45 | BC45: 46 | BD45: 47 | BE45: 48 | BF45: 49 | BG45: 50 | BH45: 51 | BI45: 52 | BJ45: 53 | BK45: 54 | BL45: 55 | BM45: 56 | BN45: 57 | BO45: 58 | BP45: 59 | BQ45: 60 | BR45: 61 | BS45: 62 | BT45: 63 | BU45: 64 | BV45: =BV14 -> 65 | BW45: 66 | BX45: 67 | BY45: 68 | BZ45: 69 | CA45: 70 | CB45: 71 | CC45: 72 | CD45: 73 | CE45: 74 | CF45: 75 | CG45: 76 | CH45: 77 | CI45: 78 | CJ45: 79 | CK45: 80 | CL45: 81 | CM45: 82 | CN45: 83 | CO45: 84 | CP45: 85 | CQ45: 86 | CR45: 87 | CS45: 88 | CT45: 89 | CU45: 90 | CV45: 91 | CW45: 92 | CX45: 93 | CY45: 94 | CZ45: 95 | DA45: 96 | DB45: 97 | DC45: 98 | DD45: 99 | DE45: 100 | DF45: 101 | DG45: 102 | DH45: 103 | DI45: 104 | DJ45: 105 | DK45: 106 | DL45: 107 | DM45: 108 | DN45: 109 | DO45: 110 | DP45: 111 | DQ45: 112 | DR45: 113 | DS45: 114 | DT45: 115 | DU45: 116 | DV45: 117 | DW45: 118 | DX45: 119 | DY45: 120 | DZ45: 121 | EA45: 122 | EB45: 123 | EC45: 124 | ED45: 125
D47: Operating expenditure | J47: =J32 -> 159.080256 | K47: 158.081976 | L47: 158.081976 | M47: 158.081976 | N47: 158.081976 | O47: 158.081976 | P47: 158.081976 | Q47: 158.081976 | R47: 158.081976 | S47: 158.081976 | T47: 158.081976 | U47: 158.081976 | V47: 158.081976 | W47: 158.081976 | X47: 158.081976 | Y47: 158.081976 | Z47: 158.081976 | AA47: 158.081976 | AB47: 158.081976 | AC47: 158.081976 | AD47: 158.081976 | AE47: 158.081976 | AF47: 158.081976 | AG47: 158.081976 | AH47: 158.081976 | AI47: 158.081976 | AJ47: 158.081976 | AK47: 158.081976 | AL47: 158.081976 | AM47: 158.081976 | AN47: 158.081976 | AO47: 158.081976 | AP47: 158.081976 | AQ47: 158.081976 | AR47: 158.081976 | AS47: 158.081976 | AT47: 158.081976 | AU47: 158.081976 | AV47: 158.081976 | AW47: 158.081976 | AX47: 158.081976 | AY47: 158.081976 | AZ47: 158.081976 | BA47: 158.081976 | BB47: 158.081976 | BC47: 158.081976 | BD47: 158.081976 | BE47: 158.081976 | BF47: 158.081976 | BG47: 158.081976 | BH47: 158.081976 | BI47: 158.081976 | BJ47: 158.081976 | BK47: 158.081976 | BL47: 158.081976 | BM47: 158.081976 | BN47: 158.081976 | BO47: 158.081976 | BP47: 158.081976 | BQ47: 158.081976 | BR47: 158.081976 | BS47: 158.081976 | BT47: 158.081976 | BU47: 158.081976 | BV47: =BV32 -> 158.081976 | BW47: 158.081976 | BX47: 158.081976 | BY47: 158.081976 | BZ47: 158.081976 | CA47: 158.081976 | CB47: 158.081976 | CC47: 158.081976 | CD47: 158.081976 | CE47: 158.081976 | CF47: 158.081976 | CG47: 158.081976 | CH47: 158.081976 | CI47: 158.081976 | CJ47: 158.081976 | CK47: 158.081976 | CL47: 158.081976 | CM47: 158.081976 | CN47: 158.081976 | CO47: 158.081976 | CP47: 158.081976 | CQ47: 158.081976 | CR47: 158.081976 | CS47: 158.081976 | CT47: 158.081976 | CU47: 158.081976 | CV47: 158.081976 | CW47: 158.081976 | CX47: 158.081976 | CY47: 158.081976 | CZ47: 158.081976 | DA47: 158.081976 | DB47: 158.081976 | DC47: 158.081976 | DD47: 158.081976 | DE47: 158.081976 | DF47: 158.081976 | DG47: 158.081976 | DH47: 158.081976 | DI47: 158.081976 | DJ47: 158.081976 | DK47: 158.081976 | DL47: 158.081976 | DM47: 158.081976 | DN47: 158.081976 | DO47: 158.081976 | DP47: 158.081976 | DQ47: 158.081976 | DR47: 158.081976 | DS47: 158.081976 | DT47: 158.081976 | DU47: 158.081976 | DV47: 158.081976 | DW47: 158.081976 | DX47: 158.081976 | DY47: 158.081976 | DZ47: 158.081976 | EA47: 158.081976 | EB47: 158.081976 | EC47: 158.081976 | ED47: 158.081976
D48: Depreciation (regulatory) | G48: mid-year value | J48: =J82/(1+ROUND('Common Inputs'!$J$95,3))^0.5 -> 32.38277646 | K48: =K82/(1+ROUND('Common Inputs'!$J$95,3))^0.5 -> 32.38277646 | L48: =L82/(1+ROUND('Common Inputs'!$J$95,3))^0.5 -> 32.38277646 | M48: =M82/(1+ROUND('Common Inputs'!$J$95,3))^0.5 -> 32.38277646 | N48: =N82/(1+ROUND('Common Inputs'!$J$95,3))^0.5 -> 32.38277646 | O48: =O82/(1+ROUND('Common Inputs'!$J$95,3))^0.5 -> 32.38277646 | P48: =P82/(1+ROUND('Common Inputs'!$J$95,3))^0.5 -> 32.38277646 | Q48: =Q82/(1+ROUND('Common Inputs'!$J$95,3))^0.5 -> 32.38277646 | R48: =R82/(1+ROUND('Common Inputs'!$J$95,3))^0.5 -> 32.38277646 | S48: =S82/(1+ROUND('Common Inputs'!$J$95,3))^0.5 -> 32.38277646 | T48: =T82/(1+ROUND('Common Inputs'!$J$95,3))^0.5 -> 32.38277646 | U48: =U82/(1+ROUND('Common Inputs'!$J$95,3))^0.5 -> 32.38277646 | V48: =V82/(1+ROUND('Common Inputs'!$J$95,3))^0.5 -> 32.38277646 | W48: =W82/(1+ROUND('Common Inputs'!$J$95,3))^0.5 -> 32.38277646 | X48: =X82/(1+ROUND('Common Inputs'!$J$95,3))^0.5 -> 32.38277646 | Y48: =Y82/(1+ROUND('Common Inputs'!$J$95,3))^0.5 -> 32.38277646 | Z48: =Z82/(1+ROUND('Common Inputs'!$J$95,3))^0.5 -> 32.38277646 | AA48: =AA82/(1+ROUND('Common Inputs'!$J$95,3))^0.5 -> 32.38277646 | AB48: =AB82/(1+ROUND('Common Inputs'!$J$95,3))^0.5 -> 32.38277646 | AC48: =AC82/(1+ROUND('Common Inputs'!$J$95,3))^0.5 -> 32.38277646 | AD48: =AD82/(1+ROUND('Common Inputs'!$J$95,3))^0.5 -> 32.38277646 | AE48: =AE82/(1+ROUND('Common Inputs'!$J$95,3))^0.5 -> 32.38277646 | AF48: =AF82/(1+ROUND('Common Inputs'!$J$95,3))^0.5 -> 32.38277646 | AG48: =AG82/(1+ROUND('Common Inputs'!$J$95,3))^0.5 -> 32.38277646 | AH48: =AH82/(1+ROUND('Common Inputs'!$J$95,3))^0.5 -> 32.38277646 | AI48: =AI82/(1+ROUND('Common Inputs'!$J$95,3))^0.5 -> 32.38277646 | AJ48: =AJ82/(1+ROUND('Common Inputs'!$J$95,3))^0.5 -> 32.38277646 | AK48: =AK82/(1+ROUND('Common Inputs'!$J$95,3))^0.5 -> 32.38277646 | AL48: =AL82/(1+ROUND('Common Inputs'!$J$95,3))^0.5 -> 32.38277646 | AM48: =AM82/(1+ROUND('Common Inputs'!$J$95,3))^0.5 -> 32.38277646 | AN48: =AN82/(1+ROUND('Common Inputs'!$J$95,3))^0.5 -> 32.38277646 | AO48: =AO82/(1+ROUND('Common Inputs'!$J$95,3))^0.5 -> 32.38277646 | AP48: =AP82/(1+ROUND('Common Inputs'!$J$95,3))^0.5 -> 32.38277646 | AQ48: =AQ82/(1+ROUND('Common Inputs'!$J$95,3))^0.5 -> 32.38277646 | AR48: =AR82/(1+ROUND('Common Inputs'!$J$95,3))^0.5 -> 32.38277646 | AS48: =AS82/(1+ROUND('Common Inputs'!$J$95,3))^0.5 -> 32.38277646 | AT48: =AT82/(1+ROUND('Common Inputs'!$J$95,3))^0.5 -> 32.38277646 | AU48: =AU82/(1+ROUND('Common Inputs'!$J$95,3))^0.5 -> 32.38277646 | AV48: =AV82/(1+ROUND('Common Inputs'!$J$95,3))^0.5 -> 32.38277646 | AW48: =AW82/(1+ROUND('Common Inputs'!$J$95,3))^0.5 -> 32.38277646 | AX48: =AX82/(1+ROUND('Common Inputs'!$J$95,3))^0.5 -> 32.38277646 | AY48: =AY82/(1+ROUND('Common Inputs'!$J$95,3))^0.5 -> 32.38277646 | AZ48: =AZ82/(1+ROUND('Common Inputs'!$J$95,3))^0.5 -> 32.38277646 | BA48: =BA82/(1+ROUND('Common Inputs'!$J$95,3))^0.5 -> 32.38277646 | BB48: =BB82/(1+ROUND('Common Inputs'!$J$95,3))^0.5 -> 32.38277646 | BC48: =BC82/(1+ROUND('Common Inputs'!$J$95,3))^0.5 -> 32.38277646 | BD48: =BD82/(1+ROUND('Common Inputs'!$J$95,3))^0.5 -> 32.38277646 | BE48: =BE82/(1+ROUND('Common Inputs'!$J$95,3))^0.5 -> 32.38277646 | BF48: =BF82/(1+ROUND('Common Inputs'!$J$95,3))^0.5 -> 32.38277646 | BG48: =BG82/(1+ROUND('Common Inputs'!$J$95,3))^0.5 -> 32.38277646 | BH48: =BH82/(1+ROUND('Common Inputs'!$J$95,3))^0.5 -> 32.38277646 | BI48: =BI82/(1+ROUND('Common Inputs'!$J$95,3))^0.5 -> 32.38277646 | BJ48: =BJ82/(1+ROUND('Common Inputs'!$J$95,3))^0.5 -> 32.38277646 | BK48: =BK82/(1+ROUND('Common Inputs'!$J$95,3))^0.5 -> 32.38277646 | BL48: =BL82/(1+ROUND('Common Inputs'!$J$95,3))^0.5 -> 32.38277646 | BM48: =BM82/(1+ROUND('Common Inputs'!$J$95,3))^0.5 -> 32.38277646 | BN48: =BN82/(1+ROUND('Common Inputs'!$J$95,3))^0.5 -> 32.38277646 | BO48: =BO82/(1+ROUND('Common Inputs'!$J$95,3))^0.5 -> 32.38277646 | BP48: =BP82/(1+ROUND('Common Inputs'!$J$95,3))^0.5 -> 32.38277646 | BQ48: =BQ82/(1+ROUND('Common Inputs'!$J$95,3))^0.5 -> 32.38277646 | BR48: =BR82/(1+ROUND('Common Inputs'!$J$95,3))^0.5 -> 32.38277646 | BS48: =BS82/(1+ROUND('Common Inputs'!$J$95,3))^0.5 -> 32.38277646 | BT48: =BT82/(1+ROUND('Common Inputs'!$J$95,3))^0.5 -> 32.38277646 | BU48: =BU82/(1+ROUND('Common Inputs'!$J$95,3))^0.5 -> 32.38277646 | BV48: =BV82/(1+ROUND('Common Inputs'!$J$95,3))^0.5 -> 32.38277646 | BW48: =BW82/(1+ROUND('Common Inputs'!$J$95,3))^0.5 -> 32.38277646 | BX48: =BX82/(1+ROUND('Common Inputs'!$J$95,3))^0.5 -> 32.38277646 | BY48: =BY82/(1+ROUND('Common Inputs'!$J$95,3))^0.5 -> 32.38277646 | BZ48: =BZ82/(1+ROUND('Common Inputs'!$J$95,3))^0.5 -> 32.38277646 | CA48: =CA82/(1+ROUND('Common Inputs'!$J$95,3))^0.5 -> 32.38277646 | CB48: =CB82/(1+ROUND('Common Inputs'!$J$95,3))^0.5 -> 32.38277646 | CC48: =CC82/(1+ROUND('Common Inputs'!$J$95,3))^0.5 -> 32.38277646 | CD48: =CD82/(1+ROUND('Common Inputs'!$J$95,3))^0.5 -> 32.38277646 | CE48: =CE82/(1+ROUND('Common Inputs'!$J$95,3))^0.5 -> 32.38277646 | CF48: =CF82/(1+ROUND('Common Inputs'!$J$95,3))^0.5 -> 32.38277646 | CG48: =CG82/(1+ROUND('Common Inputs'!$J$95,3))^0.5 -> 32.38277646 | CH48: =CH82/(1+ROUND('Common Inputs'!$J$95,3))^0.5 -> 32.38277646 | CI48: =CI82/(1+ROUND('Common Inputs'!$J$95,3))^0.5 -> 32.38277646 | CJ48: =CJ82/(1+ROUND('Common Inputs'!$J$95,3))^0.5 -> 32.38277646 | CK48: =CK82/(1+ROUND('Common Inputs'!$J$95,3))^0.5 -> 32.38277646 | CL48: =CL82/(1+ROUND('Common Inputs'!$J$95,3))^0.5 -> 32.38277646 | CM48: =CM82/(1+ROUND('Common Inputs'!$J$95,3))^0.5 -> 32.38277646 | CN48: =CN82/(1+ROUND('Common Inputs'!$J$95,3))^0.5 -> 32.38277646 | CO48: =CO82/(1+ROUND('Common Inputs'!$J$95,3))^0.5 -> 32.38277646 | CP48: =CP82/(1+ROUND('Common Inputs'!$J$95,3))^0.5 -> 32.38277646 | CQ48: =CQ82/(1+ROUND('Common Inputs'!$J$95,3))^0.5 -> 32.38277646 | CR48: =CR82/(1+ROUND('Common Inputs'!$J$95,3))^0.5 -> 32.38277646 | CS48: =CS82/(1+ROUND('Common Inputs'!$J$95,3))^0.5 -> 32.38277646 | CT48: =CT82/(1+ROUND('Common Inputs'!$J$95,3))^0.5 -> 32.38277646 | CU48: =CU82/(1+ROUND('Common Inputs'!$J$95,3))^0.5 -> 32.38277646 | CV48: =CV82/(1+ROUND('Common Inputs'!$J$95,3))^0.5 -> 32.38277646 | CW48: =CW82/(1+ROUND('Common Inputs'!$J$95,3))^0.5 -> 32.38277646 | CX48: =CX82/(1+ROUND('Common Inputs'!$J$95,3))^0.5 -> 32.38277646 | CY48: =CY82/(1+ROUND('Common Inputs'!$J$95,3))^0.5 -> 32.38277646 | CZ48: =CZ82/(1+ROUND('Common Inputs'!$J$95,3))^0.5 -> 32.38277646 | DA48: =DA82/(1+ROUND('Common Inputs'!$J$95,3))^0.5 -> 32.38277646 | DB48: =DB82/(1+ROUND('Common Inputs'!$J$95,3))^0.5 -> 32.38277646 | DC48: =DC82/(1+ROUND('Common Inputs'!$J$95,3))^0.5 -> 32.38277646 | DD48: =DD82/(1+ROUND('Common Inputs'!$J$95,3))^0.5 -> 32.38277646 | DE48: =DE82/(1+ROUND('Common Inputs'!$J$95,3))^0.5 -> 32.38277646 | DF48: =DF82/(1+ROUND('Common Inputs'!$J$95,3))^0.5 -> 32.38277646 | DG48: =DG82/(1+ROUND('Common Inputs'!$J$95,3))^0.5 -> 32.38277646 | DH48: =DH82/(1+ROUND('Common Inputs'!$J$95,3))^0.5 -> 32.38277646 | DI48: =DI82/(1+ROUND('Common Inputs'!$J$95,3))^0.5 -> 32.38277646 | DJ48: =DJ82/(1+ROUND('Common Inputs'!$J$95,3))^0.5 -> 32.38277646 | DK48: =DK82/(1+ROUND('Common Inputs'!$J$95,3))^0.5 -> 32.38277646 | DL48: =DL82/(1+ROUND('Common Inputs'!$J$95,3))^0.5 -> 32.38277646 | DM48: =DM82/(1+ROUND('Common Inputs'!$J$95,3))^0.5 -> 32.38277646 | DN48: =DN82/(1+ROUND('Common Inputs'!$J$95,3))^0.5 -> 32.38277646 | DO48: =DO82/(1+ROUND('Common Inputs'!$J$95,3))^0.5 -> 32.38277646 | DP48: =DP82/(1+ROUND('Common Inputs'!$J$95,3))^0.5 -> 32.38277646 | DQ48: =DQ82/(1+ROUND('Common Inputs'!$J$95,3))^0.5 -> 32.38277646 | DR48: =DR82/(1+ROUND('Common Inputs'!$J$95,3))^0.5 -> 32.38277646 | DS48: =DS82/(1+ROUND('Common Inputs'!$J$95,3))^0.5 -> 32.38277646 | DT48: =DT82/(1+ROUND('Common Inputs'!$J$95,3))^0.5 -> 32.38277646 | DU48: =DU82/(1+ROUND('Common Inputs'!$J$95,3))^0.5 -> 32.38277646 | DV48: =DV82/(1+ROUND('Common Inputs'!$J$95,3))^0.5 -> 32.38277646 | DW48: =DW82/(1+ROUND('Common Inputs'!$J$95,3))^0.5 -> 32.38277646 | DX48: =DX82/(1+ROUND('Common Inputs'!$J$95,3))^0.5 -> 32.38277646 | DY48: =DY82/(1+ROUND('Common Inputs'!$J$95,3))^0.5 -> 32.38277646 | DZ48: =DZ82/(1+ROUND('Common Inputs'!$J$95,3))^0.5 -> 32.38277646 | EA48: =EA82/(1+ROUND('Common Inputs'!$J$95,3))^0.5 -> 32.38277646 | EB48: =EB82/(1+ROUND('Common Inputs'!$J$95,3))^0.5 -> 32.38277646 | EC48: =EC82/(1+ROUND('Common Inputs'!$J$95,3))^0.5 -> 32.38277646 | ED48: =ED82/(1+ROUND('Common Inputs'!$J$95,3))^0.5 -> 32.38277646
D49: Return on RAB | G49: mid-year value | J49: =J106 -> 19.04107256 | K49: 17.45431651 | L49: 15.86756047 | M49: 14.28080442 | N49: 12.69404837 | O49: 11.10729233 | P49: 9.52053628 | Q49: 7.933780233 | R49: 6.347024187 | S49: 4.76026814 | T49: 3.173512093 | U49: 1.586756047 | V49: 19.04107256 | W49: 17.45431651 | X49: 15.86756047 | Y49: 14.28080442 | Z49: 12.69404837 | AA49: 11.10729233 | AB49: 9.52053628 | AC49: 7.933780233 | AD49: 6.347024187 | AE49: 4.76026814 | AF49: 3.173512093 | AG49: 1.586756047 | AH49: 19.04107256 | AI49: 17.45431651 | AJ49: 15.86756047 | AK49: 14.28080442 | AL49: 12.69404837 | AM49: 11.10729233 | AN49: 9.52053628 | AO49: 7.933780233 | AP49: 6.347024187 | AQ49: 4.76026814 | AR49: 3.173512093 | AS49: 1.586756047 | AT49: 19.04107256 | AU49: 17.45431651 | AV49: 15.86756047 | AW49: 14.28080442 | AX49: 12.69404837 | AY49: 11.10729233 | AZ49: 9.52053628 | BA49: 7.933780233 | BB49: 6.347024187 | BC49: 4.76026814 | BD49: 3.173512093 | BE49: 1.586756047 | BF49: 19.04107256 | BG49: 17.45431651 | BH49: 15.86756047 | BI49: 14.28080442 | BJ49: 12.69404837 | BK49: 11.10729233 | BL49: 9.52053628 | BM49: 7.933780233 | BN49: 6.347024187 | BO49: 4.76026814 | BP49: 3.173512093 | BQ49: 1.586756047 | BR49: 19.04107256 | BS49: 17.45431651 | BT49: 15.86756047 | BU49: 14.28080442 | BV49: =BV106 -> 12.69404837 | BW49: 11.10729233 | BX49: 9.52053628 | BY49: 7.933780233 | BZ49: 6.347024187 | CA49: 4.76026814 | CB49: 3.173512093 | CC49: 1.586756047 | CD49: 19.04107256 | CE49: 17.45431651 | CF49: 15.86756047 | CG49: 14.28080442 | CH49: 12.69404837 | CI49: 11.10729233 | CJ49: 9.52053628 | CK49: 7.933780233 | CL49: 6.347024187 | CM49: 4.76026814 | CN49: 3.173512093 | CO49: 1.586756047 | CP49: 19.04107256 | CQ49: 17.45431651 | CR49: 15.86756047 | CS49: 14.28080442 | CT49: 12.69404837 | CU49: 11.10729233 | CV49: 9.52053628 | CW49: 7.933780233 | CX49: 6.347024187 | CY49: 4.76026814 | CZ49: 3.173512093 | DA49: 1.586756047 | DB49: 19.04107256 | DC49: 17.45431651 | DD49: 15.86756047 | DE49: 14.28080442 | DF49: 12.69404837 | DG49: 11.10729233 | DH49: 9.52053628 | DI49: 7.933780233 | DJ49: 6.347024187 | DK49: 4.76026814 | DL49: 3.173512093 | DM49: 1.586756047 | DN49: 19.04107256 | DO49: 17.45431651 | DP49: 15.86756047 | DQ49: 14.28080442 | DR49: 12.69404837 | DS49: 11.10729233 | DT49: 9.52053628 | DU49: 7.933780233 | DV49: 6.347024187 | DW49: 4.76026814 | DX49: 3.173512093 | DY49: 1.586756047 | DZ49: 19.04107256 | EA49: 17.45431651 | EB49: 15.86756047 | EC49: 14.28080442 | ED49: 12.69404837
D50: Return on working capital | G50: mid-year value | J50: =J132 -> -2.044519558 | K50: 0.6910859849 | L50: 0.6794002384 | M50: 0.6703260046 | N50: 0.6612485936 | O50: 0.6521523385 | P50: 0.6430376018 | Q50: 0.6339048336 | R50: 0.6247544738 | S50: 0.6155869513 | T50: 0.6064026849 | U50: 0.5972020828 | V50: -0.8726994747 | W50: 0.6677099244 | X50: 0.6551387163 | Y50: 0.6466472432 | Z50: 0.6381473075 | AA50: 0.6296144981 | AB50: 0.6210494648 | AC50: 0.6124529926 | AD50: 0.6038258484 | AE50: 0.6154577832 | AF50: 0.6064018877 | AG50: 0.5972020779 | AH50: -0.8726994748 | AI50: 0.6677099244 | AJ50: 0.6551387163 | AK50: 0.6466472432 | AL50: 0.6381473075 | AM50: 0.6296144981 | AN50: 0.6210494648 | AO50: 0.6124529926 | AP50: 0.6038258484 | AQ50: 0.6154577832 | AR50: 0.6064018877 | AS50: 0.5972020779 | AT50: -0.8726994748 | AU50: 0.6677099244 | AV50: 0.6551387163 | AW50: 0.6466472432 | AX50: 0.6381473075 | AY50: 0.6296144981 | AZ50: 0.6210494648 | BA50: 0.6124529926 | BB50: 0.6038258484 | BC50: 0.6154577832 | BD50: 0.6064018877 | BE50: 0.5972020779 | BF50: -0.8726994748 | BG50: 0.6677099244 | BH50: 0.6551387163 | BI50: 0.6466472432 | BJ50: 0.6381473075 | BK50: 0.6296144981 | BL50: 0.6210494648 | BM50: 0.6124529926 | BN50: 0.6038258484 | BO50: 0.6154577832 | BP50: 0.6064018877 | BQ50: 0.5972020779 | BR50: -0.8726994748 | BS50: 0.6677099244 | BT50: 0.6551387163 | BU50: 0.6466472432 | BV50: =BV132 -> 0.6381473075 | BW50: 0.6296144981 | BX50: 0.6210494648 | BY50: 0.6124529926 | BZ50: 0.6038258484 | CA50: 0.6154577832 | CB50: 0.6064018877 | CC50: 0.5972020779 | CD50: -0.8726994748 | CE50: 0.6677099244 | CF50: 0.6551387163 | CG50: 0.6466472432 | CH50: 0.6381473075 | CI50: 0.6296144981 | CJ50: 0.6210494648 | CK50: 0.6124529926 | CL50: 0.6038258484 | CM50: 0.6154577832 | CN50: 0.6064018877 | CO50: 0.5972020779 | CP50: -0.8726994748 | CQ50: 0.6677099244 | CR50: 0.6551387163 | CS50: 0.6466472432 | CT50: 0.6381473075 | CU50: 0.6296144981 | CV50: 0.6210494648 | CW50: 0.6124529926 | CX50: 0.6038258484 | CY50: 0.6154577832 | CZ50: 0.6064018877 | DA50: 0.5972020779 | DB50: -0.8726994748 | DC50: 0.6677099244 | DD50: 0.6551387163 | DE50: 0.6466472432 | DF50: 0.6381473075 | DG50: 0.6296144981 | DH50: 0.6210494648 | DI50: 0.6124529926 | DJ50: 0.6038258484 | DK50: 0.6154577832 | DL50: 0.6064018877 | DM50: 0.5972020779 | DN50: -0.8726994748 | DO50: 0.6677099244 | DP50: 0.6551387163 | DQ50: 0.6466472432 | DR50: 0.6381473075 | DS50: 0.6296144981 | DT50: 0.6210494648 | DU50: 0.6124529926 | DV50: 0.6038258484 | DW50: 0.6154577832 | DX50: 0.6064018877 | DY50: 0.5972020779 | DZ50: -0.8726994748 | EA50: 0.6677099244 | EB50: 0.6551387163 | EC50: 0.6466472432 | ED50: 0.6381473075
D51: Tax allowance | J51: =J156 -> 9.425608743 | K51: 6.583248457 | L51: 6.663244162 | M51: 6.739039627 | N51: 6.810579565 | O51: 6.877966796 | P51: 6.941302599 | Q51: 7.000685789 | R51: 7.056212772 | S51: 7.107977602 | T51: 7.156072038 | U51: 7.200585602 | V51: 3.909987556 | W51: 1.130020675 | X51: 1.342931932 | Y51: 1.548490555 | Z51: 1.746629247 | AA51: 1.937527461 | AB51: 2.121361784 | AC51: 2.298304507 | AD51: 7.054918717 | AE51: 7.107969615 | AF51: 7.156071988 | AG51: 7.200585601 | AH51: 3.909987556 | AI51: 1.130020675 | AJ51: 1.342931932 | AK51: 1.548490555 | AL51: 1.746629247 | AM51: 1.937527461 | AN51: 2.121361784 | AO51: 2.298304507 | AP51: 7.054918717 | AQ51: 7.107969615 | AR51: 7.156071988 | AS51: 7.200585601 | AT51: 3.909987556 | AU51: 1.130020675 | AV51: 1.342931932 | AW51: 1.548490555 | AX51: 1.746629247 | AY51: 1.937527461 | AZ51: 2.121361784 | BA51: 2.298304507 | BB51: 7.054918717 | BC51: 7.107969615 | BD51: 7.156071988 | BE51: 7.200585601 | BF51: 3.909987556 | BG51: 1.130020675 | BH51: 1.342931932 | BI51: 1.548490555 | BJ51: 1.746629247 | BK51: 1.937527461 | BL51: 2.121361784 | BM51: 2.298304507 | BN51: 7.054918717 | BO51: 7.107969615 | BP51: 7.156071988 | BQ51: 7.200585601 | BR51: 3.909987556 | BS51: 1.130020675 | BT51: 1.342931932 | BU51: 1.548490555 | BV51: =BV156 -> 1.746629247 | BW51: 1.937527461 | BX51: 2.121361784 | BY51: 2.298304507 | BZ51: 7.054918717 | CA51: 7.107969615 | CB51: 7.156071988 | CC51: 7.200585601 | CD51: 3.909987556 | CE51: 1.130020675 | CF51: 1.342931932 | CG51: 1.548490555 | CH51: 1.746629247 | CI51: 1.937527461 | CJ51: 2.121361784 | CK51: 2.298304507 | CL51: 7.054918717 | CM51: 7.107969615 | CN51: 7.156071988 | CO51: 7.200585601 | CP51: 3.909987556 | CQ51: 1.130020675 | CR51: 1.342931932 | CS51: 1.548490555 | CT51: 1.746629247 | CU51: 1.937527461 | CV51: 2.121361784 | CW51: 2.298304507 | CX51: 7.054918717 | CY51: 7.107969615 | CZ51: 7.156071988 | DA51: 7.200585601 | DB51: 3.909987556 | DC51: 1.130020675 | DD51: 1.342931932 | DE51: 1.548490555 | DF51: 1.746629247 | DG51: 1.937527461 | DH51: 2.121361784 | DI51: 2.298304507 | DJ51: 7.054918717 | DK51: 7.107969615 | DL51: 7.156071988 | DM51: 7.200585601 | DN51: 3.909987556 | DO51: 1.130020675 | DP51: 1.342931932 | DQ51: 1.548490555 | DR51: 1.746629247 | DS51: 1.937527461 | DT51: 2.121361784 | DU51: 2.298304507 | DV51: 7.054918717 | DW51: 7.107969615 | DX51: 7.156071988 | DY51: 7.200585601 | DZ51: 3.909987556 | EA51: 1.130020675 | EB51: 1.342931932 | EC51: 1.548490555 | ED51: 1.746629247
D52: less adjustment for franking credits (gamma) | J52: -2.356402186 | K52: -1.645812114 | L52: -1.665811041 | M52: -1.684759907 | N52: -1.702644891 | O52: -1.719491699 | P52: -1.73532565 | Q52: -1.750171447 | R52: -1.764053193 | S52: -1.7769944 | T52: -1.789018009 | U52: -1.8001464 | V52: -0.977496889 | W52: -0.2825051687 | X52: -0.335732983 | Y52: -0.3871226387 | Z52: -0.4366573118 | AA52: -0.4843818653 | AB52: -0.5303404461 | AC52: -0.5745761267 | AD52: -1.763729679 | AE52: -1.776992404 | AF52: -1.789017997 | AG52: -1.8001464 | AH52: -0.977496889 | AI52: -0.2825051687 | AJ52: -0.335732983 | AK52: -0.3871226387 | AL52: -0.4366573118 | AM52: -0.4843818653 | AN52: -0.5303404461 | AO52: -0.5745761267 | AP52: -1.763729679 | AQ52: -1.776992404 | AR52: -1.789017997 | AS52: -1.8001464 | AT52: -0.977496889 | AU52: -0.2825051687 | AV52: -0.335732983 | AW52: -0.3871226387 | AX52: -0.4366573118 | AY52: -0.4843818653 | AZ52: -0.5303404461 | BA52: -0.5745761267 | BB52: -1.763729679 | BC52: -1.776992404 | BD52: -1.789017997 | BE52: -1.8001464 | BF52: -0.977496889 | BG52: -0.2825051687 | BH52: -0.335732983 | BI52: -0.3871226387 | BJ52: -0.4366573118 | BK52: -0.4843818653 | BL52: -0.5303404461 | BM52: -0.5745761267 | BN52: -1.763729679 | BO52: -1.776992404 | BP52: -1.789017997 | BQ52: -1.8001464 | BR52: -0.977496889 | BS52: -0.2825051687 | BT52: -0.335732983 | BU52: -0.3871226387 | BV52: -0.4366573118 | BW52: -0.4843818653 | BX52: -0.5303404461 | BY52: -0.5745761267 | BZ52: -1.763729679 | CA52: -1.776992404 | CB52: -1.789017997 | CC52: -1.8001464 | CD52: -0.977496889 | CE52: -0.2825051687 | CF52: -0.335732983 | CG52: -0.3871226387 | CH52: -0.4366573118 | CI52: -0.4843818653 | CJ52: -0.5303404461 | CK52: -0.5745761267 | CL52: -1.763729679 | CM52: -1.776992404 | CN52: -1.789017997 | CO52: -1.8001464 | CP52: -0.977496889 | CQ52: -0.2825051687 | CR52: -0.335732983 | CS52: -0.3871226387 | CT52: -0.4366573118 | CU52: -0.4843818653 | CV52: -0.5303404461 | CW52: -0.5745761267 | CX52: -1.763729679 | CY52: -1.776992404 | CZ52: -1.789017997 | DA52: -1.8001464 | DB52: -0.977496889 | DC52: -0.2825051687 | DD52: -0.335732983 | DE52: -0.3871226387 | DF52: -0.4366573118 | DG52: -0.4843818653 | DH52: -0.5303404461 | DI52: -0.5745761267 | DJ52: -1.763729679 | DK52: -1.776992404 | DL52: -1.789017997 | DM52: -1.8001464 | DN52: -0.977496889 | DO52: -0.2825051687 | DP52: -0.335732983 | DQ52: -0.3871226387 | DR52: -0.4366573118 | DS52: -0.4843818653 | DT52: -0.5303404461 | DU52: -0.5745761267 | DV52: -1.763729679 | DW52: -1.776992404 | DX52: -1.789017997 | DY52: -1.8001464 | DZ52: -0.977496889 | EA52: -0.2825051687 | EB52: -0.335732983 | EC52: -0.3871226387 | ED52: -0.4366573118
D53: Notional revenue requirement | J53: =SUM(J47:J52) -> 215.528792 | K53: =SUM(K47:K52) -> 213.5475913 | L53: 212.0091463 | M53: 210.4701626 | N53: 208.9279841 | O53: 207.3826722 | P53: 205.8343033 | Q53: 204.2829519 | R53: 202.7286907 | S53: 201.1715908 | T53: 199.6117213 | U53: 198.0491498 | V53: 211.5656162 | W53: 209.4342944 | X53: 207.9946506 | Y53: 206.553572 | Z53: 205.1069201 | AA53: 203.6548049 | AB53: 202.1973595 | AC53: 200.7347141 | AD53: 202.7067915 | AE53: 201.1714556 | AF53: 199.6117204 | AG53: 198.0491498 | AH53: 211.5656162 | AI53: 209.4342944 | AJ53: 207.9946506 | AK53: 206.553572 | AL53: 205.1069201 | AM53: 203.6548049 | AN53: 202.1973595 | AO53: 200.7347141 | AP53: 202.7067915 | AQ53: 201.1714556 | AR53: 199.6117204 | AS53: 198.0491498 | AT53: 211.5656162 | AU53: 209.4342944 | AV53: 207.9946506 | AW53: 206.553572 | AX53: 205.1069201 | AY53: 203.6548049 | AZ53: 202.1973595 | BA53: 200.7347141 | BB53: 202.7067915 | BC53: 201.1714556 | BD53: 199.6117204 | BE53: 198.0491498 | BF53: 211.5656162 | BG53: 209.4342944 | BH53: 207.9946506 | BI53: 206.553572 | BJ53: 205.1069201 | BK53: 203.6548049 | BL53: 202.1973595 | BM53: 200.7347141 | BN53: 202.7067915 | BO53: 201.1714556 | BP53: 199.6117204 | BQ53: 198.0491498 | BR53: 211.5656162 | BS53: 209.4342944 | BT53: 207.9946506 | BU53: 206.553572 | BV53: 205.1069201 | BW53: =SUM(BW47:BW52) -> 203.6548049 | BX53: 202.1973595 | BY53: 200.7347141 | BZ53: 202.7067915 | CA53: 201.1714556 | CB53: 199.6117204 | CC53: 198.0491498 | CD53: 211.5656162 | CE53: 209.4342944 | CF53: 207.9946506 | CG53: 206.553572 | CH53: 205.1069201 | CI53: 203.6548049 | CJ53: 202.1973595 | CK53: 200.7347141 | CL53: 202.7067915 | CM53: 201.1714556 | CN53: 199.6117204 | CO53: 198.0491498 | CP53: 211.5656162 | CQ53: 209.4342944 | CR53: 207.9946506 | CS53: 206.553572 | CT53: 205.1069201 | CU53: 203.6548049 | CV53: 202.1973595 | CW53: 200.7347141 | CX53: 202.7067915 | CY53: 201.1714556 | CZ53: 199.6117204 | DA53: 198.0491498 | DB53: 211.5656162 | DC53: 209.4342944 | DD53: 207.9946506 | DE53: 206.553572 | DF53: 205.1069201 | DG53: 203.6548049 | DH53: 202.1973595 | DI53: 200.7347141 | DJ53: 202.7067915 | DK53: 201.1714556 | DL53: 199.6117204 | DM53: 198.0491498 | DN53: 211.5656162 | DO53: 209.4342944 | DP53: 207.9946506 | DQ53: 206.553572 | DR53: 205.1069201 | DS53: 203.6548049 | DT53: 202.1973595 | DU53: 200.7347141 | DV53: 202.7067915 | DW53: 201.1714556 | DX53: 199.6117204 | DY53: 198.0491498 | DZ53: 211.5656162 | EA53: 209.4342944 | EB53: 207.9946506 | EC53: 206.553572 | ED53: 205.1069201
D58: ="RAB Roll Forward ("&'Common Inputs'!J9&", "&'Common Inputs'!J8&")" -> RAB Roll Forward ($, $2015-16)
D59: Year | J59: =J14 -> 1 | K59: 2 | L59: 3 | M59: 4 | N59: 5 | O59: 6 | P59: 7 | Q59: 8 | R59: 9 | S59: 10 | T59: 11 | U59: 12 | V59: 13 | W59: 14 | X59: 15 | Y59: 16 | Z59: 17 | AA59: 18 | AB59: 19 | AC59: 20 | AD59: 21 | AE59: 22 | AF59: 23 | AG59: 24 | AH59: 25 | AI59: 26 | AJ59: 27 | AK59: 28 | AL59: 29 | AM59: 30 | AN59: 31 | AO59: 32 | AP59: 33 | AQ59: 34 | AR59: 35 | AS59: 36 | AT59: 37 | AU59: 38 | AV59: 39 | AW59: 40 | AX59: 41 | AY59: 42 | AZ59: 43 | BA59: 44 | BB59: 45 | BC59: 46 | BD59: 47 | BE59: 48 | BF59: 49 | BG59: 50 | BH59: 51 | BI59: 52 | BJ59: 53 | BK59: 54 | BL59: 55 | BM59: 56 | BN59: 57 | BO59: 58 | BP59: 59 | BQ59: 60 | BR59: 61 | BS59: 62 | BT59: 63 | BU59: 64 | BV59: =BV14 -> 65 | BW59: 66 | BX59: 67 | BY59: 68 | BZ59: 69 | CA59: 70 | CB59: 71 | CC59: 72 | CD59: 73 | CE59: 74 | CF59: 75 | CG59: 76 | CH59: 77 | CI59: 78 | CJ59: 79 | CK59: 80 | CL59: 81 | CM59: 82 | CN59: 83 | CO59: 84 | CP59: 85 | CQ59: 86 | CR59: 87 | CS59: 88 | CT59: 89 | CU59: 90 | CV59: 91 | CW59: 92 | CX59: 93 | CY59: 94 | CZ59: 95 | DA59: 96 | DB59: 97 | DC59: 98 | DD59: 99 | DE59: 100 | DF59: 101 | DG59: 102 | DH59: 103 | DI59: 104 | DJ59: 105 | DK59: 106 | DL59: 107 | DM59: 108 | DN59: 109 | DO59: 110 | DP59: 111 | DQ59: 112 | DR59: 113 | DS59: 114 | DT59: 115 | DU59: 116 | DV59: 117 | DW59: 118 | DX59: 119 | DY59: 120 | DZ59: 121 | EA59: 122 | EB59: 123 | EC59: 124 | ED59: 125
D61: =E9 -> Meters
D62: Opening RAB | J62: =J9 -> 0 | K62: =J65 -> 364.8333333 | L62: 331.6666667 | M62: 298.5 | N62: 265.3333333 | O62: 232.1666667 | P62: 199 | Q62: 165.8333333 | R62: 132.6666667 | S62: 99.5 | T62: 66.33333333 | U62: 33.16666667 | V62: 0 | W62: 364.8333333 | X62: 331.6666667 | Y62: 298.5 | Z62: 265.3333333 | AA62: 232.1666667 | AB62: 199 | AC62: 165.8333333 | AD62: 132.6666667 | AE62: 99.5 | AF62: 66.33333333 | AG62: 33.16666667 | AH62: 0 | AI62: 364.8333333 | AJ62: 331.6666667 | AK62: 298.5 | AL62: 265.3333333 | AM62: 232.1666667 | AN62: 199 | AO62: 165.8333333 | AP62: 132.6666667 | AQ62: 99.5 | AR62: 66.33333333 | AS62: 33.16666667 | AT62: 0 | AU62: 364.8333333 | AV62: 331.6666667 | AW62: 298.5 | AX62: 265.3333333 | AY62: 232.1666667 | AZ62: 199 | BA62: 165.8333333 | BB62: 132.6666667 | BC62: 99.5 | BD62: 66.33333333 | BE62: 33.16666667 | BF62: 0 | BG62: 364.8333333 | BH62: 331.6666667 | BI62: 298.5 | BJ62: 265.3333333 | BK62: 232.1666667 | BL62: 199 | BM62: 165.8333333 | BN62: 132.6666667 | BO62: 99.5 | BP62: 66.33333333 | BQ62: 33.16666667 | BR62: 0 | BS62: 364.8333333 | BT62: 331.6666667 | BU62: 298.5 | BV62: 265.3333333 | BW62: =BV65 -> 232.1666667 | BX62: 199 | BY62: 165.8333333 | BZ62: 132.6666667 | CA62: 99.5 | CB62: 66.33333333 | CC62: 33.16666667 | CD62: 0 | CE62: 364.8333333 | CF62: 331.6666667 | CG62: 298.5 | CH62: 265.3333333 | CI62: 232.1666667 | CJ62: 199 | CK62: 165.8333333 | CL62: 132.6666667 | CM62: 99.5 | CN62: 66.33333333 | CO62: 33.16666667 | CP62: 0 | CQ62: 364.8333333 | CR62: 331.6666667 | CS62: 298.5 | CT62: 265.3333333 | CU62: 232.1666667 | CV62: 199 | CW62: 165.8333333 | CX62: 132.6666667 | CY62: 99.5 | CZ62: 66.33333333 | DA62: 33.16666667 | DB62: 0 | DC62: 364.8333333 | DD62: 331.6666667 | DE62: 298.5 | DF62: 265.3333333 | DG62: 232.1666667 | DH62: 199 | DI62: 165.8333333 | DJ62: 132.6666667 | DK62: 99.5 | DL62: 66.33333333 | DM62: 33.16666667 | DN62: 0 | DO62: 364.8333333 | DP62: 331.6666667 | DQ62: 298.5 | DR62: 265.3333333 | DS62: 232.1666667 | DT62: 199 | DU62: 165.8333333 | DV62: 132.6666667 | DW62: 99.5 | DX62: 66.33333333 | DY62: 33.16666667 | DZ62: 0 | EA62: 364.8333333 | EB62: 331.6666667 | EC62: 298.5 | ED62: 265.3333333
D63: capex | J63: =J15 -> 398 | K63: 0 | L63: 0 | M63: 0 | N63: 0 | O63: 0 | P63: 0 | Q63: 0 | R63: 0 | S63: 0 | T63: 0 | U63: 0 | V63: 398 | W63: 0 | X63: 0 | Y63: 0 | Z63: 0 | AA63: 0 | AB63: 0 | AC63: 0 | AD63: 0 | AE63: 0 | AF63: 0 | AG63: 0 | AH63: 398 | AI63: 0 | AJ63: 0 | AK63: 0 | AL63: 0 | AM63: 0 | AN63: 0 | AO63: 0 | AP63: 0 | AQ63: 0 | AR63: 0 | AS63: 0 | AT63: 398 | AU63: 0 | AV63: 0 | AW63: 0 | AX63: 0 | AY63: 0 | AZ63: 0 | BA63: 0 | BB63: 0 | BC63: 0 | BD63: 0 | BE63: 0 | BF63: 398 | BG63: 0 | BH63: 0 | BI63: 0 | BJ63: 0 | BK63: 0 | BL63: 0 | BM63: 0 | BN63: 0 | BO63: 0 | BP63: 0 | BQ63: 0 | BR63: 398 | BS63: 0 | BT63: 0 | BU63: 0 | BV63: =BV15 -> 0 | BW63: 0 | BX63: 0 | BY63: 0 | BZ63: 0 | CA63: 0 | CB63: 0 | CC63: 0 | CD63: 398 | CE63: 0 | CF63: 0 | CG63: 0 | CH63: 0 | CI63: 0 | CJ63: 0 | CK63: 0 | CL63: 0 | CM63: 0 | CN63: 0 | CO63: 0 | CP63: 398 | CQ63: 0 | CR63: 0 | CS63: 0 | CT63: 0 | CU63: 0 | CV63: 0 | CW63: 0 | CX63: 0 | CY63: 0 | CZ63: 0 | DA63: 0 | DB63: 398 | DC63: 0 | DD63: 0 | DE63: 0 | DF63: 0 | DG63: 0 | DH63: 0 | DI63: 0 | DJ63: 0 | DK63: 0 | DL63: 0 | DM63: 0 | DN63: 398 | DO63: 0 | DP63: 0 | DQ63: 0 | DR63: 0 | DS63: 0 | DT63: 0 | DU63: 0 | DV63: 0 | DW63: 0 | DX63: 0 | DY63: 0 | DZ63: 398 | EA63: 0 | EB63: 0 | EC63: 0 | ED63: 0
D64: depreciation | J64: =J169+J302 -> 33.16666667 | K64: 33.16666667 | L64: 33.16666667 | M64: 33.16666667 | N64: 33.16666667 | O64: 33.16666667 | P64: 33.16666667 | Q64: 33.16666667 | R64: 33.16666667 | S64: 33.16666667 | T64: 33.16666667 | U64: 33.16666667 | V64: 33.16666667 | W64: 33.16666667 | X64: 33.16666667 | Y64: 33.16666667 | Z64: 33.16666667 | AA64: 33.16666667 | AB64: 33.16666667 | AC64: 33.16666667 | AD64: 33.16666667 | AE64: 33.16666667 | AF64: 33.16666667 | AG64: 33.16666667 | AH64: 33.16666667 | AI64: 33.16666667 | AJ64: 33.16666667 | AK64: 33.16666667 | AL64: 33.16666667 | AM64: 33.16666667 | AN64: 33.16666667 | AO64: 33.16666667 | AP64: =AP169+AP302 -> 33.16666667 | AQ64: 33.16666667 | AR64: 33.16666667 | AS64: 33.16666667 | AT64: 33.16666667 | AU64: 33.16666667 | AV64: 33.16666667 | AW64: 33.16666667 | AX64: 33.16666667 | AY64: 33.16666667 | AZ64: 33.16666667 | BA64: 33.16666667 | BB64: 33.16666667 | BC64: 33.16666667 | BD64: 33.16666667 | BE64: 33.16666667 | BF64: 33.16666667 | BG64: 33.16666667 | BH64: 33.16666667 | BI64: 33.16666667 | BJ64: 33.16666667 | BK64: 33.16666667 | BL64: 33.16666667 | BM64: 33.16666667 | BN64: 33.16666667 | BO64: 33.16666667 | BP64: 33.16666667 | BQ64: 33.16666667 | BR64: 33.16666667 | BS64: 33.16666667 | BT64: 33.16666667 | BU64: 33.16666667 | BV64: =BV169+BV302 -> 33.16666667 | BW64: 33.16666667 | BX64: 33.16666667 | BY64: 33.16666667 | BZ64: 33.16666667 | CA64: 33.16666667 | CB64: 33.16666667 | CC64: 33.16666667 | CD64: 33.16666667 | CE64: 33.16666667 | CF64: 33.16666667 | CG64: 33.16666667 | CH64: 33.16666667 | CI64: 33.16666667 | CJ64: 33.16666667 | CK64: 33.16666667 | CL64: 33.16666667 | CM64: 33.16666667 | CN64: 33.16666667 | CO64: 33.16666667 | CP64: 33.16666667 | CQ64: 33.16666667 | CR64: 33.16666667 | CS64: 33.16666667 | CT64: 33.16666667 | CU64: 33.16666667 | CV64: 33.16666667 | CW64: 33.16666667 | CX64: 33.16666667 | CY64: 33.16666667 | CZ64: 33.16666667 | DA64: 33.16666667 | DB64: =DB169+DB302 -> 33.16666667 | DC64: 33.16666667 | DD64: 33.16666667 | DE64: 33.16666667 | DF64: 33.16666667 | DG64: 33.16666667 | DH64: 33.16666667 | DI64: 33.16666667 | DJ64: 33.16666667 | DK64: 33.16666667 | DL64: 33.16666667 | DM64: 33.16666667 | DN64: 33.16666667 | DO64: 33.16666667 | DP64: 33.16666667 | DQ64: 33.16666667 | DR64: 33.16666667 | DS64: 33.16666667 | DT64: 33.16666667 | DU64: 33.16666667 | DV64: 33.16666667 | DW64: 33.16666667 | DX64: 33.16666667 | DY64: 33.16666667 | DZ64: 33.16666667 | EA64: 33.16666667 | EB64: 33.16666667 | EC64: 33.16666667 | ED64: 33.16666667
D65: Closing RAB | J65: =J62+J63-J64 -> 364.8333333 | K65: =K62+K63-K64 -> 331.6666667 | L65: 298.5 | M65: 265.3333333 | N65: 232.1666667 | O65: 199 | P65: 165.8333333 | Q65: 132.6666667 | R65: 99.5 | S65: 66.33333333 | T65: 33.16666667 | U65: 0 | V65: 364.8333333 | W65: 331.6666667 | X65: 298.5 | Y65: 265.3333333 | Z65: 232.1666667 | AA65: 199 | AB65: 165.8333333 | AC65: 132.6666667 | AD65: 99.5 | AE65: 66.33333333 | AF65: 33.16666667 | AG65: 0 | AH65: 364.8333333 | AI65: 331.6666667 | AJ65: 298.5 | AK65: 265.3333333 | AL65: 232.1666667 | AM65: 199 | AN65: 165.8333333 | AO65: 132.6666667 | AP65: 99.5 | AQ65: 66.33333333 | AR65: 33.16666667 | AS65: 0 | AT65: 364.8333333 | AU65: 331.6666667 | AV65: 298.5 | AW65: 265.3333333 | AX65: 232.1666667 | AY65: 199 | AZ65: 165.8333333 | BA65: 132.6666667 | BB65: 99.5 | BC65: 66.33333333 | BD65: 33.16666667 | BE65: 0 | BF65: 364.8333333 | BG65: 331.6666667 | BH65: 298.5 | BI65: 265.3333333 | BJ65: 232.1666667 | BK65: 199 | BL65: 165.8333333 | BM65: 132.6666667 | BN65: 99.5 | BO65: 66.33333333 | BP65: 33.16666667 | BQ65: 0 | BR65: 364.8333333 | BS65: 331.6666667 | BT65: 298.5 | BU65: 265.3333333 | BV65: 232.1666667 | BW65: =BW62+BW63-BW64 -> 199 | BX65: 165.8333333 | BY65: 132.6666667 | BZ65: 99.5 | CA65: 66.33333333 | CB65: 33.16666667 | CC65: 0 | CD65: 364.8333333 | CE65: 331.6666667 | CF65: 298.5 | CG65: 265.3333333 | CH65: 232.1666667 | CI65: 199 | CJ65: 165.8333333 | CK65: 132.6666667 | CL65: 99.5 | CM65: 66.33333333 | CN65: 33.16666667 | CO65: 0 | CP65: 364.8333333 | CQ65: 331.6666667 | CR65: 298.5 | CS65: 265.3333333 | CT65: 232.1666667 | CU65: 199 | CV65: 165.8333333 | CW65: 132.6666667 | CX65: 99.5 | CY65: 66.33333333 | CZ65: 33.16666667 | DA65: 0 | DB65: 364.8333333 | DC65: 331.6666667 | DD65: 298.5 | DE65: 265.3333333 | DF65: 232.1666667 | DG65: 199 | DH65: 165.8333333 | DI65: 132.6666667 | DJ65: 99.5 | DK65: 66.33333333 | DL65: 33.16666667 | DM65: 0 | DN65: 364.8333333 | DO65: 331.6666667 | DP65: 298.5 | DQ65: 265.3333333 | DR65: 232.1666667 | DS65: 199 | DT65: 165.8333333 | DU65: 132.6666667 | DV65: 99.5 | DW65: 66.33333333 | DX65: 33.16666667 | DY65: 0 | DZ65: 364.8333333 | EA65: 331.6666667 | EB65: 298.5 | EC65: 265.3333333 | ED65: 232.1666667
D67: =E10 -> Billing System
D68: Opening RAB | J68: =J10 -> 0 | K68: =J71 -> 0 | L68: 0 | M68: 0 | N68: 0 | O68: 0 | P68: 0 | Q68: 0 | R68: 0 | S68: 0 | T68: 0 | U68: 0 | V68: 0 | W68: 0 | X68: 0 | Y68: 0 | Z68: 0 | AA68: 0 | AB68: 0 | AC68: 0 | AD68: 0 | AE68: 0 | AF68: 0 | AG68: 0 | AH68: 0 | AI68: 0 | AJ68: 0 | AK68: 0 | AL68: 0 | AM68: 0 | AN68: 0 | AO68: 0 | AP68: 0 | AQ68: 0 | AR68: 0 | AS68: 0 | AT68: 0 | AU68: 0 | AV68: 0 | AW68: 0 | AX68: 0 | AY68: 0 | AZ68: 0 | BA68: 0 | BB68: 0 | BC68: 0 | BD68: 0 | BE68: 0 | BF68: 0 | BG68: 0 | BH68: 0 | BI68: 0 | BJ68: 0 | BK68: 0 | BL68: 0 | BM68: 0 | BN68: 0 | BO68: 0 | BP68: 0 | BQ68: 0 | BR68: 0 | BS68: 0 | BT68: 0 | BU68: 0 | BV68: 0 | BW68: =BV71 -> 0 | BX68: 0 | BY68: 0 | BZ68: 0 | CA68: 0 | CB68: 0 | CC68: 0 | CD68: 0 | CE68: 0 | CF68: 0 | CG68: 0 | CH68: 0 | CI68: 0 | CJ68: 0 | CK68: 0 | CL68: 0 | CM68: 0 | CN68: 0 | CO68: 0 | CP68: 0 | CQ68: 0 | CR68: 0 | CS68: 0 | CT68: 0 | CU68: 0 | CV68: 0 | CW68: 0 | CX68: 0 | CY68: 0 | CZ68: 0 | DA68: 0 | DB68: 0 | DC68: 0 | DD68: 0 | DE68: 0 | DF68: 0 | DG68: 0 | DH68: 0 | DI68: 0 | DJ68: 0 | DK68: 0 | DL68: 0 | DM68: 0 | DN68: 0 | DO68: 0 | DP68: 0 | DQ68: 0 | DR68: 0 | DS68: 0 | DT68: 0 | DU68: 0 | DV68: 0 | DW68: 0 | DX68: 0 | DY68: 0 | DZ68: 0 | EA68: 0 | EB68: 0 | EC68: 0 | ED68: 0
D69: capex | J69: =J16 -> 0 | K69: 0 | L69: 0 | M69: 0 | N69: 0 | O69: 0 | P69: 0 | Q69: 0 | R69: 0 | S69: 0 | T69: 0 | U69: 0 | V69: 0 | W69: 0 | X69: 0 | Y69: 0 | Z69: 0 | AA69: 0 | AB69: 0 | AC69: 0 | AD69: 0 | AE69: 0 | AF69: 0 | AG69: 0 | AH69: 0 | AI69: 0 | AJ69: 0 | AK69: 0 | AL69: 0 | AM69: 0 | AN69: 0 | AO69: 0 | AP69: 0 | AQ69: 0 | AR69: 0 | AS69: 0 | AT69: 0 | AU69: 0 | AV69: 0 | AW69: 0 | AX69: 0 | AY69: 0 | AZ69: 0 | BA69: 0 | BB69: 0 | BC69: 0 | BD69: 0 | BE69: 0 | BF69: 0 | BG69: 0 | BH69: 0 | BI69: 0 | BJ69: 0 | BK69: 0 | BL69: 0 | BM69: 0 | BN69: 0 | BO69: 0 | BP69: 0 | BQ69: 0 | BR69: 0 | BS69: 0 | BT69: 0 | BU69: 0 | BV69: =BV16 -> 0 | BW69: 0 | BX69: 0 | BY69: 0 | BZ69: 0 | CA69: 0 | CB69: 0 | CC69: 0 | CD69: 0 | CE69: 0 | CF69: 0 | CG69: 0 | CH69: 0 | CI69: 0 | CJ69: 0 | CK69: 0 | CL69: 0 | CM69: 0 | CN69: 0 | CO69: 0 | CP69: 0 | CQ69: 0 | CR69: 0 | CS69: 0 | CT69: 0 | CU69: 0 | CV69: 0 | CW69: 0 | CX69: 0 | CY69: 0 | CZ69: 0 | DA69: 0 | DB69: 0 | DC69: 0 | DD69: 0 | DE69: 0 | DF69: 0 | DG69: 0 | DH69: 0 | DI69: 0 | DJ69: 0 | DK69: 0 | DL69: 0 | DM69: 0 | DN69: 0 | DO69: 0 | DP69: 0 | DQ69: 0 | DR69: 0 | DS69: 0 | DT69: 0 | DU69: 0 | DV69: 0 | DW69: 0 | DX69: 0 | DY69: 0 | DZ69: 0 | EA69: 0 | EB69: 0 | EC69: 0 | ED69: 0
D70: depreciation | J70: =J312+J445 -> 0 | K70: 0 | L70: 0 | M70: 0 | N70: 0 | O70: 0 | P70: 0 | Q70: 0 | R70: 0 | S70: 0 | T70: 0 | U70: 0 | V70: 0 | W70: 0 | X70: 0 | Y70: 0 | Z70: 0 | AA70: 0 | AB70: 0 | AC70: 0 | AD70: 0 | AE70: 0 | AF70: 0 | AG70: 0 | AH70: 0 | AI70: 0 | AJ70: 0 | AK70: 0 | AL70: 0 | AM70: 0 | AN70: 0 | AO70: 0 | AP70: =AP312+AP445 -> 0 | AQ70: 0 | AR70: 0 | AS70: 0 | AT70: 0 | AU70: 0 | AV70: 0 | AW70: 0 | AX70: 0 | AY70: 0 | AZ70: 0 | BA70: 0 | BB70: 0 | BC70: 0 | BD70: 0 | BE70: 0 | BF70: 0 | BG70: 0 | BH70: 0 | BI70: 0 | BJ70: 0 | BK70: 0 | BL70: 0 | BM70: 0 | BN70: 0 | BO70: 0 | BP70: 0 | BQ70: 0 | BR70: 0 | BS70: 0 | BT70: 0 | BU70: 0 | BV70: =BV312+BV445 -> 0 | BW70: 0 | BX70: 0 | BY70: 0 | BZ70: 0 | CA70: 0 | CB70: 0 | CC70: 0 | CD70: 0 | CE70: 0 | CF70: 0 | CG70: 0 | CH70: 0 | CI70: 0 | CJ70: 0 | CK70: 0 | CL70: 0 | CM70: 0 | CN70: 0 | CO70: 0 | CP70: 0 | CQ70: 0 | CR70: 0 | CS70: 0 | CT70: 0 | CU70: 0 | CV70: 0 | CW70: 0 | CX70: 0 | CY70: 0 | CZ70: 0 | DA70: 0 | DB70: =DB312+DB445 -> 0 | DC70: 0 | DD70: 0 | DE70: 0 | DF70: 0 | DG70: 0 | DH70: 0 | DI70: 0 | DJ70: 0 | DK70: 0 | DL70: 0 | DM70: 0 | DN70: 0 | DO70: 0 | DP70: 0 | DQ70: 0 | DR70: 0 | DS70: 0 | DT70: 0 | DU70: 0 | DV70: 0 | DW70: 0 | DX70: 0 | DY70: 0 | DZ70: 0 | EA70: 0 | EB70: 0 | EC70: 0 | ED70: 0
D71: Closing RAB | J71: =J68+J69-J70 -> 0 | K71: =K68+K69-K70 -> 0 | L71: 0 | M71: 0 | N71: 0 | O71: 0 | P71: 0 | Q71: 0 | R71: 0 | S71: 0 | T71: 0 | U71: 0 | V71: 0 | W71: 0 | X71: 0 | Y71: 0 | Z71: 0 | AA71: 0 | AB71: 0 | AC71: 0 | AD71: 0 | AE71: 0 | AF71: 0 | AG71: 0 | AH71: 0 | AI71: 0 | AJ71: 0 | AK71: 0 | AL71: 0 | AM71: 0 | AN71: 0 | AO71: 0 | AP71: 0 | AQ71: 0 | AR71: 0 | AS71: 0 | AT71: 0 | AU71: 0 | AV71: 0 | AW71: 0 | AX71: 0 | AY71: 0 | AZ71: 0 | BA71: 0 | BB71: 0 | BC71: 0 | BD71: 0 | BE71: 0 | BF71: 0 | BG71: 0 | BH71: 0 | BI71: 0 | BJ71: 0 | BK71: 0 | BL71: 0 | BM71: 0 | BN71: 0 | BO71: 0 | BP71: 0 | BQ71: 0 | BR71: 0 | BS71: 0 | BT71: 0 | BU71: 0 | BV71: 0 | BW71: =BW68+BW69-BW70 -> 0 | BX71: 0 | BY71: 0 | BZ71: 0 | CA71: 0 | CB71: 0 | CC71: 0 | CD71: 0 | CE71: 0 | CF71: 0 | CG71: 0 | CH71: 0 | CI71: 0 | CJ71: 0 | CK71: 0 | CL71: 0 | CM71: 0 | CN71: 0 | CO71: 0 | CP71: 0 | CQ71: 0 | CR71: 0 | CS71: 0 | CT71: 0 | CU71: 0 | CV71: 0 | CW71: 0 | CX71: 0 | CY71: 0 | CZ71: 0 | DA71: 0 | DB71: 0 | DC71: 0 | DD71: 0 | DE71: 0 | DF71: 0 | DG71: 0 | DH71: 0 | DI71: 0 | DJ71: 0 | DK71: 0 | DL71: 0 | DM71: 0 | DN71: 0 | DO71: 0 | DP71: 0 | DQ71: 0 | DR71: 0 | DS71: 0 | DT71: 0 | DU71: 0 | DV71: 0 | DW71: 0 | DX71: 0 | DY71: 0 | DZ71: 0 | EA71: 0 | EB71: 0 | EC71: 0 | ED71: 0
D73: =E11 -> Non-depreciation
D74: Opening RAB | J74: =J11 -> 0 | K74: =J76 -> 0 | L74: 0 | M74: 0 | N74: 0 | O74: 0 | P74: 0 | Q74: 0 | R74: 0 | S74: 0 | T74: 0 | U74: 0 | V74: 0 | W74: 0 | X74: 0 | Y74: 0 | Z74: 0 | AA74: 0 | AB74: 0 | AC74: 0 | AD74: 0 | AE74: 0 | AF74: 0 | AG74: 0 | AH74: 0 | AI74: 0 | AJ74: 0 | AK74: 0 | AL74: 0 | AM74: 0 | AN74: 0 | AO74: 0 | AP74: 0 | AQ74: 0 | AR74: 0 | AS74: 0 | AT74: 0 | AU74: 0 | AV74: 0 | AW74: 0 | AX74: 0 | AY74: 0 | AZ74: 0 | BA74: 0 | BB74: 0 | BC74: 0 | BD74: 0 | BE74: 0 | BF74: 0 | BG74: 0 | BH74: 0 | BI74: 0 | BJ74: 0 | BK74: 0 | BL74: 0 | BM74: 0 | BN74: 0 | BO74: 0 | BP74: 0 | BQ74: 0 | BR74: 0 | BS74: 0 | BT74: 0 | BU74: 0 | BV74: 0 | BW74: =BV76 -> 0 | BX74: 0 | BY74: 0 | BZ74: 0 | CA74: 0 | CB74: 0 | CC74: 0 | CD74: 0 | CE74: 0 | CF74: 0 | CG74: 0 | CH74: 0 | CI74: 0 | CJ74: 0 | CK74: 0 | CL74: 0 | CM74: 0 | CN74: 0 | CO74: 0 | CP74: 0 | CQ74: 0 | CR74: 0 | CS74: 0 | CT74: 0 | CU74: 0 | CV74: 0 | CW74: 0 | CX74: 0 | CY74: 0 | CZ74: 0 | DA74: 0 | DB74: 0 | DC74: 0 | DD74: 0 | DE74: 0 | DF74: 0 | DG74: 0 | DH74: 0 | DI74: 0 | DJ74: 0 | DK74: 0 | DL74: 0 | DM74: 0 | DN74: 0 | DO74: 0 | DP74: 0 | DQ74: 0 | DR74: 0 | DS74: 0 | DT74: 0 | DU74: 0 | DV74: 0 | DW74: 0 | DX74: 0 | DY74: 0 | DZ74: 0 | EA74: 0 | EB74: 0 | EC74: 0 | ED74: 0
D75: capex | J75: =J17 -> 0 | K75: 0 | L75: 0 | M75: 0 | N75: 0 | O75: 0 | P75: 0 | Q75: 0 | R75: 0 | S75: 0 | T75: 0 | U75: 0 | V75: 0 | W75: 0 | X75: 0 | Y75: 0 | Z75: 0 | AA75: 0 | AB75: 0 | AC75: 0 | AD75: 0 | AE75: 0 | AF75: 0 | AG75: 0 | AH75: 0 | AI75: 0 | AJ75: 0 | AK75: 0 | AL75: 0 | AM75: 0 | AN75: 0 | AO75: 0 | AP75: 0 | AQ75: 0 | AR75: 0 | AS75: 0 | AT75: 0 | AU75: 0 | AV75: 0 | AW75: 0 | AX75: 0 | AY75: 0 | AZ75: 0 | BA75: 0 | BB75: 0 | BC75: 0 | BD75: 0 | BE75: 0 | BF75: 0 | BG75: 0 | BH75: 0 | BI75: 0 | BJ75: 0 | BK75: 0 | BL75: 0 | BM75: 0 | BN75: 0 | BO75: 0 | BP75: 0 | BQ75: 0 | BR75: 0 | BS75: 0 | BT75: 0 | BU75: 0 | BV75: =BV17 -> 0 | BW75: 0 | BX75: 0 | BY75: 0 | BZ75: 0 | CA75: 0 | CB75: 0 | CC75: 0 | CD75: 0 | CE75: 0 | CF75: 0 | CG75: 0 | CH75: 0 | CI75: 0 | CJ75: 0 | CK75: 0 | CL75: 0 | CM75: 0 | CN75: 0 | CO75: 0 | CP75: 0 | CQ75: 0 | CR75: 0 | CS75: 0 | CT75: 0 | CU75: 0 | CV75: 0 | CW75: 0 | CX75: 0 | CY75: 0 | CZ75: 0 | DA75: 0 | DB75: 0 | DC75: 0 | DD75: 0 | DE75: 0 | DF75: 0 | DG75: 0 | DH75: 0 | DI75: 0 | DJ75: 0 | DK75: 0 | DL75: 0 | DM75: 0 | DN75: 0 | DO75: 0 | DP75: 0 | DQ75: 0 | DR75: 0 | DS75: 0 | DT75: 0 | DU75: 0 | DV75: 0 | DW75: 0 | DX75: 0 | DY75: 0 | DZ75: 0 | EA75: 0 | EB75: 0 | EC75: 0 | ED75: 0
D76: Closing RAB | J76: =J74+J75 -> 0 | K76: =K74+K75 -> 0 | L76: 0 | M76: 0 | N76: 0 | O76: 0 | P76: 0 | Q76: 0 | R76: 0 | S76: 0 | T76: 0 | U76: 0 | V76: 0 | W76: 0 | X76: 0 | Y76: 0 | Z76: 0 | AA76: 0 | AB76: 0 | AC76: 0 | AD76: 0 | AE76: 0 | AF76: 0 | AG76: 0 | AH76: 0 | AI76: 0 | AJ76: 0 | AK76: 0 | AL76: 0 | AM76: 0 | AN76: 0 | AO76: 0 | AP76: 0 | AQ76: 0 | AR76: 0 | AS76: 0 | AT76: 0 | AU76: 0 | AV76: 0 | AW76: 0 | AX76: 0 | AY76: 0 | AZ76: 0 | BA76: 0 | BB76: 0 | BC76: 0 | BD76: 0 | BE76: 0 | BF76: 0 | BG76: 0 | BH76: 0 | BI76: 0 | BJ76: 0 | BK76: 0 | BL76: 0 | BM76: 0 | BN76: 0 | BO76: 0 | BP76: 0 | BQ76: 0 | BR76: 0 | BS76: 0 | BT76: 0 | BU76: 0 | BV76: 0 | BW76: =BW74+BW75 -> 0 | BX76: 0 | BY76: 0 | BZ76: 0 | CA76: 0 | CB76: 0 | CC76: 0 | CD76: 0 | CE76: 0 | CF76: 0 | CG76: 0 | CH76: 0 | CI76: 0 | CJ76: 0 | CK76: 0 | CL76: 0 | CM76: 0 | CN76: 0 | CO76: 0 | CP76: 0 | CQ76: 0 | CR76: 0 | CS76: 0 | CT76: 0 | CU76: 0 | CV76: 0 | CW76: 0 | CX76: 0 | CY76: 0 | CZ76: 0 | DA76: 0 | DB76: 0 | DC76: 0 | DD76: 0 | DE76: 0 | DF76: 0 | DG76: 0 | DH76: 0 | DI76: 0 | DJ76: 0 | DK76: 0 | DL76: 0 | DM76: 0 | DN76: 0 | DO76: 0 | DP76: 0 | DQ76: 0 | DR76: 0 | DS76: 0 | DT76: 0 | DU76: 0 | DV76: 0 | DW76: 0 | DX76: 0 | DY76: 0 | DZ76: 0 | EA76: 0 | EB76: 0 | EC76: 0 | ED76: 0
D79: Total RAB
D80: =D62 -> Opening RAB | J80: =SUM(J62,J68,J74) -> 0 | K80: 364.8333333 | L80: 331.6666667 | M80: 298.5 | N80: 265.3333333 | O80: 232.1666667 | P80: 199 | Q80: 165.8333333 | R80: 132.6666667 | S80: 99.5 | T80: 66.33333333 | U80: 33.16666667 | V80: 0 | W80: 364.8333333 | X80: 331.6666667 | Y80: 298.5 | Z80: 265.3333333 | AA80: 232.1666667 | AB80: 199 | AC80: 165.8333333 | AD80: 132.6666667 | AE80: 99.5 | AF80: 66.33333333 | AG80: 33.16666667 | AH80: 0 | AI80: 364.8333333 | AJ80: 331.6666667 | AK80: 298.5 | AL80: 265.3333333 | AM80: 232.1666667 | AN80: 199 | AO80: 165.8333333 | AP80: 132.6666667 | AQ80: 99.5 | AR80: 66.33333333 | AS80: 33.16666667 | AT80: 0 | AU80: 364.8333333 | AV80: 331.6666667 | AW80: 298.5 | AX80: 265.3333333 | AY80: 232.1666667 | AZ80: 199 | BA80: 165.8333333 | BB80: 132.6666667 | BC80: 99.5 | BD80: 66.33333333 | BE80: 33.16666667 | BF80: 0 | BG80: 364.8333333 | BH80: 331.6666667 | BI80: 298.5 | BJ80: 265.3333333 | BK80: 232.1666667 | BL80: 199 | BM80: 165.8333333 | BN80: 132.6666667 | BO80: 99.5 | BP80: 66.33333333 | BQ80: 33.16666667 | BR80: 0 | BS80: 364.8333333 | BT80: 331.6666667 | BU80: 298.5 | BV80: =SUM(BV62,BV68,BV74) -> 265.3333333 | BW80: 232.1666667 | BX80: 199 | BY80: 165.8333333 | BZ80: 132.6666667 | CA80: 99.5 | CB80: 66.33333333 | CC80: 33.16666667 | CD80: 0 | CE80: 364.8333333 | CF80: 331.6666667 | CG80: 298.5 | CH80: 265.3333333 | CI80: 232.1666667 | CJ80: 199 | CK80: 165.8333333 | CL80: 132.6666667 | CM80: 99.5 | CN80: 66.33333333 | CO80: 33.16666667 | CP80: 0 | CQ80: 364.8333333 | CR80: 331.6666667 | CS80: 298.5 | CT80: 265.3333333 | CU80: 232.1666667 | CV80: 199 | CW80: 165.8333333 | CX80: 132.6666667 | CY80: 99.5 | CZ80: 66.33333333 | DA80: 33.16666667 | DB80: 0 | DC80: 364.8333333 | DD80: 331.6666667 | DE80: 298.5 | DF80: 265.3333333 | DG80: 232.1666667 | DH80: 199 | DI80: 165.8333333 | DJ80: 132.6666667 | DK80: 99.5 | DL80: 66.33333333 | DM80: 33.16666667 | DN80: 0 | DO80: 364.8333333 | DP80: 331.6666667 | DQ80: 298.5 | DR80: 265.3333333 | DS80: 232.1666667 | DT80: 199 | DU80: 165.8333333 | DV80: 132.6666667 | DW80: 99.5 | DX80: 66.33333333 | DY80: 33.16666667 | DZ80: 0 | EA80: 364.8333333 | EB80: 331.6666667 | EC80: 298.5 | ED80: 265.3333333
D81: =D63 -> capex | J81: 398 | K81: 0 | L81: 0 | M81: 0 | N81: 0 | O81: 0 | P81: 0 | Q81: 0 | R81: 0 | S81: 0 | T81: 0 | U81: 0 | V81: 398 | W81: 0 | X81: 0 | Y81: 0 | Z81: 0 | AA81: 0 | AB81: 0 | AC81: 0 | AD81: 0 | AE81: 0 | AF81: 0 | AG81: 0 | AH81: 398 | AI81: 0 | AJ81: 0 | AK81: 0 | AL81: 0 | AM81: 0 | AN81: 0 | AO81: 0 | AP81: 0 | AQ81: 0 | AR81: 0 | AS81: 0 | AT81: 398 | AU81: 0 | AV81: 0 | AW81: 0 | AX81: 0 | AY81: 0 | AZ81: 0 | BA81: 0 | BB81: 0 | BC81: 0 | BD81: 0 | BE81: 0 | BF81: 398 | BG81: 0 | BH81: 0 | BI81: 0 | BJ81: 0 | BK81: 0 | BL81: 0 | BM81: 0 | BN81: 0 | BO81: 0 | BP81: 0 | BQ81: 0 | BR81: 398 | BS81: 0 | BT81: 0 | BU81: 0 | BV81: 0 | BW81: 0 | BX81: 0 | BY81: 0 | BZ81: 0 | CA81: 0 | CB81: 0 | CC81: 0 | CD81: 398 | CE81: 0 | CF81: 0 | CG81: 0 | CH81: 0 | CI81: 0 | CJ81: 0 | CK81: 0 | CL81: 0 | CM81: 0 | CN81: 0 | CO81: 0 | CP81: 398 | CQ81: 0 | CR81: 0 | CS81: 0 | CT81: 0 | CU81: 0 | CV81: 0 | CW81: 0 | CX81: 0 | CY81: 0 | CZ81: 0 | DA81: 0 | DB81: 398 | DC81: 0 | DD81: 0 | DE81: 0 | DF81: 0 | DG81: 0 | DH81: 0 | DI81: 0 | DJ81: 0 | DK81: 0 | DL81: 0 | DM81: 0 | DN81: 398 | DO81: 0 | DP81: 0 | DQ81: 0 | DR81: 0 | DS81: 0 | DT81: 0 | DU81: 0 | DV81: 0 | DW81: 0 | DX81: 0 | DY81: 0 | DZ81: 398 | EA81: 0 | EB81: 0 | EC81: 0 | ED81: 0
D82: =D64 -> depreciation | J82: =SUM(J64,J70) -> 33.16666667 | K82: 33.16666667 | L82: 33.16666667 | M82: 33.16666667 | N82: 33.16666667 | O82: 33.16666667 | P82: 33.16666667 | Q82: 33.16666667 | R82: 33.16666667 | S82: 33.16666667 | T82: 33.16666667 | U82: 33.16666667 | V82: 33.16666667 | W82: 33.16666667 | X82: 33.16666667 | Y82: 33.16666667 | Z82: 33.16666667 | AA82: 33.16666667 | AB82: 33.16666667 | AC82: 33.16666667 | AD82: 33.16666667 | AE82: 33.16666667 | AF82: 33.16666667 | AG82: 33.16666667 | AH82: 33.16666667 | AI82: 33.16666667 | AJ82: 33.16666667 | AK82: 33.16666667 | AL82: 33.16666667 | AM82: 33.16666667 | AN82: 33.16666667 | AO82: 33.16666667 | AP82: 33.16666667 | AQ82: 33.16666667 | AR82: 33.16666667 | AS82: 33.16666667 | AT82: 33.16666667 | AU82: 33.16666667 | AV82: 33.16666667 | AW82: 33.16666667 | AX82: 33.16666667 | AY82: 33.16666667 | AZ82: 33.16666667 | BA82: 33.16666667 | BB82: 33.16666667 | BC82: 33.16666667 | BD82: 33.16666667 | BE82: 33.16666667 | BF82: 33.16666667 | BG82: 33.16666667 | BH82: 33.16666667 | BI82: 33.16666667 | BJ82: 33.16666667 | BK82: 33.16666667 | BL82: 33.16666667 | BM82: 33.16666667 | BN82: 33.16666667 | BO82: 33.16666667 | BP82: 33.16666667 | BQ82: 33.16666667 | BR82: 33.16666667 | BS82: 33.16666667 | BT82: 33.16666667 | BU82: 33.16666667 | BV82: =SUM(BV64,BV70) -> 33.16666667 | BW82: 33.16666667 | BX82: 33.16666667 | BY82: 33.16666667 | BZ82: 33.16666667 | CA82: 33.16666667 | CB82: 33.16666667 | CC82: 33.16666667 | CD82: 33.16666667 | CE82: 33.16666667 | CF82: 33.16666667 | CG82: 33.16666667 | CH82: 33.16666667 | CI82: 33.16666667 | CJ82: 33.16666667 | CK82: 33.16666667 | CL82: 33.16666667 | CM82: 33.16666667 | CN82: 33.16666667 | CO82: 33.16666667 | CP82: 33.16666667 | CQ82: 33.16666667 | CR82: 33.16666667 | CS82: 33.16666667 | CT82: 33.16666667 | CU82: 33.16666667 | CV82: 33.16666667 | CW82: 33.16666667 | CX82: 33.16666667 | CY82: 33.16666667 | CZ82: 33.16666667 | DA82: 33.16666667 | DB82: 33.16666667 | DC82: 33.16666667 | DD82: 33.16666667 | DE82: 33.16666667 | DF82: 33.16666667 | DG82: 33.16666667 | DH82: 33.16666667 | DI82: 33.16666667 | DJ82: 33.16666667 | DK82: 33.16666667 | DL82: 33.16666667 | DM82: 33.16666667 | DN82: 33.16666667 | DO82: 33.16666667 | DP82: 33.16666667 | DQ82: 33.16666667 | DR82: 33.16666667 | DS82: 33.16666667 | DT82: 33.16666667 | DU82: 33.16666667 | DV82: 33.16666667 | DW82: 33.16666667 | DX82: 33.16666667 | DY82: 33.16666667 | DZ82: 33.16666667 | EA82: 33.16666667 | EB82: 33.16666667 | EC82: 33.16666667 | ED82: 33.16666667
D83: =D65 -> Closing RAB | J83: =SUM(J65,J71,J76) -> 364.8333333 | K83: 331.6666667 | L83: 298.5 | M83: 265.3333333 | N83: 232.1666667 | O83: 199 | P83: 165.8333333 | Q83: 132.6666667 | R83: 99.5 | S83: 66.33333333 | T83: 33.16666667 | U83: 0 | V83: 364.8333333 | W83: 331.6666667 | X83: 298.5 | Y83: 265.3333333 | Z83: 232.1666667 | AA83: 199 | AB83: 165.8333333 | AC83: 132.6666667 | AD83: 99.5 | AE83: 66.33333333 | AF83: 33.16666667 | AG83: 0 | AH83: 364.8333333 | AI83: 331.6666667 | AJ83: 298.5 | AK83: 265.3333333 | AL83: 232.1666667 | AM83: 199 | AN83: 165.8333333 | AO83: 132.6666667 | AP83: 99.5 | AQ83: 66.33333333 | AR83: 33.16666667 | AS83: 0 | AT83: 364.8333333 | AU83: 331.6666667 | AV83: 298.5 | AW83: 265.3333333 | AX83: 232.1666667 | AY83: 199 | AZ83: 165.8333333 | BA83: 132.6666667 | BB83: 99.5 | BC83: 66.33333333 | BD83: 33.16666667 | BE83: 0 | BF83: 364.8333333 | BG83: 331.6666667 | BH83: 298.5 | BI83: 265.3333333 | BJ83: 232.1666667 | BK83: 199 | BL83: 165.8333333 | BM83: 132.6666667 | BN83: 99.5 | BO83: 66.33333333 | BP83: 33.16666667 | BQ83: 0 | BR83: 364.8333333 | BS83: 331.6666667 | BT83: 298.5 | BU83: 265.3333333 | BV83: =SUM(BV65,BV71,BV76) -> 232.1666667 | BW83: 199 | BX83: 165.8333333 | BY83: 132.6666667 | BZ83: 99.5 | CA83: 66.33333333 | CB83: 33.16666667 | CC83: 0 | CD83: 364.8333333 | CE83: 331.6666667 | CF83: 298.5 | CG83: 265.3333333 | CH83: 232.1666667 | CI83: 199 | CJ83: 165.8333333 | CK83: 132.6666667 | CL83: 99.5 | CM83: 66.33333333 | CN83: 33.16666667 | CO83: 0 | CP83: 364.8333333 | CQ83: 331.6666667 | CR83: 298.5 | CS83: 265.3333333 | CT83: 232.1666667 | CU83: 199 | CV83: 165.8333333 | CW83: 132.6666667 | CX83: 99.5 | CY83: 66.33333333 | CZ83: 33.16666667 | DA83: 0 | DB83: 364.8333333 | DC83: 331.6666667 | DD83: 298.5 | DE83: 265.3333333 | DF83: 232.1666667 | DG83: 199 | DH83: 165.8333333 | DI83: 132.6666667 | DJ83: 99.5 | DK83: 66.33333333 | DL83: 33.16666667 | DM83: 0 | DN83: 364.8333333 | DO83: 331.6666667 | DP83: 298.5 | DQ83: 265.3333333 | DR83: 232.1666667 | DS83: 199 | DT83: 165.8333333 | DU83: 132.6666667 | DV83: 99.5 | DW83: 66.33333333 | DX83: 33.16666667 | DY83: 0 | DZ83: 364.8333333 | EA83: 331.6666667 | EB83: 298.5 | EC83: 265.3333333 | ED83: 232.1666667
D86: Total RAB for Tax Analysis
D87: =D68 -> Opening RAB | J87: =J80 -> 0 | K87: =J91 -> 373.9541667 | L87: =K91 -> 348.4572917 | M87: =L91 -> 321.4518516 | N87: =M91 -> 292.8783536 | O87: 262.6752734 | P87: 230.7789902 | Q87: 197.1237208 | R87: 161.6414511 | S87: 124.2618655 | T87: 84.91227477 | U87: 43.51754082 | V87: 0 | W87: 502.9267795 | X87: 468.6363173 | Y87: 432.3170027 | Z87: 393.8888247 | AA87: 353.2690396 | AB87: 310.3720848 | AC87: 265.1094891 | AD87: 217.3897811 | AE87: 167.1183942 | AF87: 114.1975694 | AG87: 58.5262543 | AH87: 0 | AI87: 676.3806052 | AJ87: 630.2637458 | AK87: 581.4183055 | AL87: 529.7366783 | AM87: 475.1075834 | AN87: 417.4159482 | AO87: 356.5427891 | AP87: 292.3650871 | AQ87: 224.7556607 | AR87: 153.5830348 | AS87: 78.71130534 | AT87: 0 | AU87: 909.6567169 | AV87: 847.634668 | AW87: 781.9429812 | AX87: 712.4369385 | AY87: 638.9668792 | AZ87: 561.3780438 | BA87: 479.5104125 | BB87: 393.1985382 | BC87: 302.2713762 | BD87: 206.5521071 | BE87: 105.8579549 | BF87: 0 | BG87: 1223.387152 | BH87: 1139.974392 | BI87: 1051.626377 | BJ87: 958.1484765 | BK87: 859.3394149 | BL87: 754.9910573 | BM87: 644.8881948 | BN87: 528.8083197 | BO87: 406.5213958 | BP87: 277.7896205 | BQ87: 142.3671805 | BR87: 0 | BS87: 1645.319709 | BT87: 1533.13882 | BU87: 1414.320561 | BV87: 1288.603178 | BW87: 1155.715975 | BX87: 1015.379035 | BY87: 867.3029261 | BZ87: =BY91 -> 711.1883994 | CA87: 546.726082 | CB87: 373.5961561 | CC87: 191.46803 | CD87: 0 | CE87: 2212.772089 | CF87: 2061.901265 | CG87: 1902.103917 | CH87: 1733.028013 | CI87: 1554.309499 | CJ87: 1365.571917 | CK87: 1166.426013 | CL87: 956.4693303 | CM87: 735.2857977 | CN87: 502.4452951 | CO87: 257.5032137 | CP87: 0 | CQ87: 2975.932453 | CR87: 2773.027968 | CS87: 2558.1183 | CT87: 2330.730007 | CU87: 2090.373475 | CV87: 1836.54241 | CW87: 1568.713309 | CX87: 1286.344913 | CY87: 988.8776519 | CZ87: 675.7330621 | DA87: 346.3131943 | DB87: 0 | DC87: 4002.298298 | DD87: 3729.414323 | DE87: 3440.384713 | DF87: 3134.572738 | DG87: 2811.319925 | DH87: 2469.945363 | DI87: 2109.744997 | DJ87: 1729.990898 | DK87: 1329.930503 | DL87: 908.7858434 | DM87: 465.7527448 | DN87: 0 | DO87: 5382.646252 | DP87: 5015.647644 | DQ87: 4626.934952 | DR87: 4215.651845 | DS87: 3780.912748 | DT87: 3321.801915 | DU87: 2837.372469 | DV87: 2326.645424 | DW87: 1788.60867 | DX87: 1222.215924 | DY87: 626.3856613 | DZ87: 0 | EA87: 7239.060789 | EB87: 6745.488463 | EC87: 6222.713107 | ED87: 5669.583053
D88: =D69 -> capex | J88: =J81*(1+'Common Inputs'!J$14)^J59 -> 407.95 | K88: =K81*(1+'Common Inputs'!K$14)^K59 -> 0 | L88: =L81*(1+'Common Inputs'!L$14)^L59 -> 0 | M88: =M81*(1+'Common Inputs'!M$14)^M59 -> 0 | N88: =N81*(1+'Common Inputs'!N$14)^N59 -> 0 | O88: =O81*(1+'Common Inputs'!O$14)^O59 -> 0 | P88: =P81*(1+'Common Inputs'!P$14)^P59 -> 0 | Q88: =Q81*(1+'Common Inputs'!Q$14)^Q59 -> 0 | R88: =R81*(1+'Common Inputs'!R$14)^R59 -> 0 | S88: =S81*(1+'Common Inputs'!S$14)^S59 -> 0 | T88: =T81*(1+'Common Inputs'!T$14)^T59 -> 0 | U88: =U81*(1+'Common Inputs'!U$14)^U59 -> 0 | V88: =V81*(1+'Common Inputs'!V$14)^V59 -> 548.6473959 | W88: =W81*(1+'Common Inputs'!W$14)^W59 -> 0 | X88: =X81*(1+'Common Inputs'!X$14)^X59 -> 0 | Y88: =Y81*(1+'Common Inputs'!Y$14)^Y59 -> 0 | Z88: =Z81*(1+'Common Inputs'!Z$14)^Z59 -> 0 | AA88: =AA81*(1+'Common Inputs'!AA$14)^AA59 -> 0 | AB88: =AB81*(1+'Common Inputs'!AB$14)^AB59 -> 0 | AC88: =AC81*(1+'Common Inputs'!AC$14)^AC59 -> 0 | AD88: =AD81*(1+'Common Inputs'!AD$14)^AD59 -> 0 | AE88: =AE81*(1+'Common Inputs'!AE$14)^AE59 -> 0 | AF88: =AF81*(1+'Common Inputs'!AF$14)^AF59 -> 0 | AG88: =AG81*(1+'Common Inputs'!AG$14)^AG59 -> 0 | AH88: =AH81*(1+'Common Inputs'!AH$14)^AH59 -> 737.8697511 | AI88: =AI81*(1+'Common Inputs'!AI$14)^AI59 -> 0 | AJ88: =AJ81*(1+'Common Inputs'!AJ$14)^AJ59 -> 0 | AK88: =AK81*(1+'Common Inputs'!AK$14)^AK59 -> 0 | AL88: =AL81*(1+'Common Inputs'!AL$14)^AL59 -> 0 | AM88: =AM81*(1+'Common Inputs'!AM$14)^AM59 -> 0 | AN88: =AN81*(1+'Common Inputs'!AN$14)^AN59 -> 0 | AO88: =AO81*(1+'Common Inputs'!AO$14)^AO59 -> 0 | AP88: =AP81*(1+'Common Inputs'!AP$14)^AP59 -> 0 | AQ88: =AQ81*(1+'Common Inputs'!AQ$14)^AQ59 -> 0 | AR88: =AR81*(1+'Common Inputs'!AR$14)^AR59 -> 0 | AS88: =AS81*(1+'Common Inputs'!AS$14)^AS59 -> 0 | AT88: =AT81*(1+'Common Inputs'!AT$14)^AT59 -> 992.352782 | AU88: =AU81*(1+'Common Inputs'!AU$14)^AU59 -> 0 | AV88: =AV81*(1+'Common Inputs'!AV$14)^AV59 -> 0 | AW88: =AW81*(1+'Common Inputs'!AW$14)^AW59 -> 0 | AX88: =AX81*(1+'Common Inputs'!AX$14)^AX59 -> 0 | AY88: =AY81*(1+'Common Inputs'!AY$14)^AY59 -> 0 | AZ88: =AZ81*(1+'Common Inputs'!AZ$14)^AZ59 -> 0 | BA88: =BA81*(1+'Common Inputs'!BA$14)^BA59 -> 0 | BB88: =BB81*(1+'Common Inputs'!BB$14)^BB59 -> 0 | BC88: =BC81*(1+'Common Inputs'!BC$14)^BC59 -> 0 | BD88: =BD81*(1+'Common Inputs'!BD$14)^BD59 -> 0 | BE88: =BE81*(1+'Common Inputs'!BE$14)^BE59 -> 0 | BF88: =BF81*(1+'Common Inputs'!BF$14)^BF59 -> 1334.604166 | BG88: =BG81*(1+'Common Inputs'!BG$14)^BG59 -> 0 | BH88: =BH81*(1+'Common Inputs'!BH$14)^BH59 -> 0 | BI88: =BI81*(1+'Common Inputs'!BI$14)^BI59 -> 0 | BJ88: =BJ81*(1+'Common Inputs'!BJ$14)^BJ59 -> 0 | BK88: =BK81*(1+'Common Inputs'!BK$14)^BK59 -> 0 | BL88: =BL81*(1+'Common Inputs'!BL$14)^BL59 -> 0 | BM88: =BM81*(1+'Common Inputs'!BM$14)^BM59 -> 0 | BN88: =BN81*(1+'Common Inputs'!BN$14)^BN59 -> 0 | BO88: =BO81*(1+'Common Inputs'!BO$14)^BO59 -> 0 | BP88: =BP81*(1+'Common Inputs'!BP$14)^BP59 -> 0 | BQ88: =BQ81*(1+'Common Inputs'!BQ$14)^BQ59 -> 0 | BR88: =BR81*(1+'Common Inputs'!BR$14)^BR59 -> 1794.894228 | BS88: =BS81*(1+'Common Inputs'!BS$14)^BS59 -> 0 | BT88: =BT81*(1+'Common Inputs'!BT$14)^BT59 -> 0 | BU88: =BU81*(1+'Common Inputs'!BU$14)^BU59 -> 0 | BV88: =BV81*(1+'Common Inputs'!BV$14)^BV59 -> 0 | BW88: =BW81*(1+'Common Inputs'!BW$14)^BW59 -> 0 | BX88: =BX81*(1+'Common Inputs'!BX$14)^BX59 -> 0 | BY88: =BY81*(1+'Common Inputs'!BY$14)^BY59 -> 0 | BZ88: =BZ81*(1+'Common Inputs'!BZ$14)^BZ59 -> 0 | CA88: =CA81*(1+'Common Inputs'!CA$14)^CA59 -> 0 | CB88: =CB81*(1+'Common Inputs'!CB$14)^CB59 -> 0 | CC88: =CC81*(1+'Common Inputs'!CC$14)^CC59 -> 0 | CD88: =CD81*(1+'Common Inputs'!CD$14)^CD59 -> 2413.933188 | CE88: =CE81*(1+'Common Inputs'!CE$14)^CE59 -> 0 | CF88: =CF81*(1+'Common Inputs'!CF$14)^CF59 -> 0 | CG88: =CG81*(1+'Common Inputs'!CG$14)^CG59 -> 0 | CH88: =CH81*(1+'Common Inputs'!CH$14)^CH59 -> 0 | CI88: =CI81*(1+'Common Inputs'!CI$14)^CI59 -> 0 | CJ88: =CJ81*(1+'Common Inputs'!CJ$14)^CJ59 -> 0 | CK88: =CK81*(1+'Common Inputs'!CK$14)^CK59 -> 0 | CL88: =CL81*(1+'Common Inputs'!CL$14)^CL59 -> 0 | CM88: =CM81*(1+'Common Inputs'!CM$14)^CM59 -> 0 | CN88: =CN81*(1+'Common Inputs'!CN$14)^CN59 -> 0 | CO88: =CO81*(1+'Common Inputs'!CO$14)^CO59 -> 0 | CP88: =CP81*(1+'Common Inputs'!CP$14)^CP59 -> 3246.471767 | CQ88: =CQ81*(1+'Common Inputs'!CQ$14)^CQ59 -> 0 | CR88: =CR81*(1+'Common Inputs'!CR$14)^CR59 -> 0 | CS88: =CS81*(1+'Common Inputs'!CS$14)^CS59 -> 0 | CT88: =CT81*(1+'Common Inputs'!CT$14)^CT59 -> 0 | CU88: =CU81*(1+'Common Inputs'!CU$14)^CU59 -> 0 | CV88: =CV81*(1+'Common Inputs'!CV$14)^CV59 -> 0 | CW88: =CW81*(1+'Common Inputs'!CW$14)^CW59 -> 0 | CX88: =CX81*(1+'Common Inputs'!CX$14)^CX59 -> 0 | CY88: =CY81*(1+'Common Inputs'!CY$14)^CY59 -> 0 | CZ88: =CZ81*(1+'Common Inputs'!CZ$14)^CZ59 -> 0 | DA88: =DA81*(1+'Common Inputs'!DA$14)^DA59 -> 0 | DB88: =DB81*(1+'Common Inputs'!DB$14)^DB59 -> 4366.143598 | DC88: =DC81*(1+'Common Inputs'!DC$14)^DC59 -> 0 | DD88: =DD81*(1+'Common Inputs'!DD$14)^DD59 -> 0 | DE88: =DE81*(1+'Common Inputs'!DE$14)^DE59 -> 0 | DF88: =DF81*(1+'Common Inputs'!DF$14)^DF59 -> 0 | DG88: =DG81*(1+'Common Inputs'!DG$14)^DG59 -> 0 | DH88: =DH81*(1+'Common Inputs'!DH$14)^DH59 -> 0 | DI88: =DI81*(1+'Common Inputs'!DI$14)^DI59 -> 0 | DJ88: =DJ81*(1+'Common Inputs'!DJ$14)^DJ59 -> 0 | DK88: =DK81*(1+'Common Inputs'!DK$14)^DK59 -> 0 | DL88: =DL81*(1+'Common Inputs'!DL$14)^DL59 -> 0 | DM88: =DM81*(1+'Common Inputs'!DM$14)^DM59 -> 0 | DN88: =DN81*(1+'Common Inputs'!DN$14)^DN59 -> 5871.97773 | DO88: =DO81*(1+'Common Inputs'!DO$14)^DO59 -> 0 | DP88: =DP81*(1+'Common Inputs'!DP$14)^DP59 -> 0 | DQ88: =DQ81*(1+'Common Inputs'!DQ$14)^DQ59 -> 0 | DR88: =DR81*(1+'Common Inputs'!DR$14)^DR59 -> 0 | DS88: =DS81*(1+'Common Inputs'!DS$14)^DS59 -> 0 | DT88: =DT81*(1+'Common Inputs'!DT$14)^DT59 -> 0 | DU88: =DU81*(1+'Common Inputs'!DU$14)^DU59 -> 0 | DV88: =DV81*(1+'Common Inputs'!DV$14)^DV59 -> 0 | DW88: =DW81*(1+'Common Inputs'!DW$14)^DW59 -> 0 | DX88: =DX81*(1+'Common Inputs'!DX$14)^DX59 -> 0 | DY88: =DY81*(1+'Common Inputs'!DY$14)^DY59 -> 0 | DZ88: =DZ81*(1+'Common Inputs'!DZ$14)^DZ59 -> 7897.157225 | EA88: =EA81*(1+'Common Inputs'!EA$14)^EA59 -> 0 | EB88: =EB81*(1+'Common Inputs'!EB$14)^EB59 -> 0 | EC88: =EC81*(1+'Common Inputs'!EC$14)^EC59 -> 0 | ED88: =ED81*(1+'Common Inputs'!ED$14)^ED59 -> 0
D89: =D70 -> depreciation | J89: =J82*(1+'Common Inputs'!J$14)^J59 -> 33.99583333 | K89: =K82*(1+'Common Inputs'!K$14)^K59 -> 34.84572917 | L89: =L82*(1+'Common Inputs'!L$14)^L59 -> 35.7168724 | M89: =M82*(1+'Common Inputs'!M$14)^M59 -> 36.60979421 | N89: =N82*(1+'Common Inputs'!N$14)^N59 -> 37.52503906 | O89: =O82*(1+'Common Inputs'!O$14)^O59 -> 38.46316504 | P89: =P82*(1+'Common Inputs'!P$14)^P59 -> 39.42474416 | Q89: =Q82*(1+'Common Inputs'!Q$14)^Q59 -> 40.41036277 | R89: =R82*(1+'Common Inputs'!R$14)^R59 -> 41.42062184 | S89: =S82*(1+'Common Inputs'!S$14)^S59 -> 42.45613738 | T89: =T82*(1+'Common Inputs'!T$14)^T59 -> 43.51754082 | U89: =U82*(1+'Common Inputs'!U$14)^U59 -> 44.60547934 | V89: =V82*(1+'Common Inputs'!V$14)^V59 -> 45.72061632 | W89: =W82*(1+'Common Inputs'!W$14)^W59 -> 46.86363173 | X89: =X82*(1+'Common Inputs'!X$14)^X59 -> 48.03522252 | Y89: =Y82*(1+'Common Inputs'!Y$14)^Y59 -> 49.23610309 | Z89: =Z82*(1+'Common Inputs'!Z$14)^Z59 -> 50.46700566 | AA89: =AA82*(1+'Common Inputs'!AA$14)^AA59 -> 51.7286808 | AB89: =AB82*(1+'Common Inputs'!AB$14)^AB59 -> 53.02189782 | AC89: =AC82*(1+'Common Inputs'!AC$14)^AC59 -> 54.34744527 | AD89: =AD82*(1+'Common Inputs'!AD$14)^AD59 -> 55.7061314 | AE89: =AE82*(1+'Common Inputs'!AE$14)^AE59 -> 57.09878469 | AF89: =AF82*(1+'Common Inputs'!AF$14)^AF59 -> 58.5262543 | AG89: =AG82*(1+'Common Inputs'!AG$14)^AG59 -> 59.98941066 | AH89: =AH82*(1+'Common Inputs'!AH$14)^AH59 -> 61.48914593 | AI89: =AI82*(1+'Common Inputs'!AI$14)^AI59 -> 63.02637458 | AJ89: =AJ82*(1+'Common Inputs'!AJ$14)^AJ59 -> 64.60203394 | AK89: =AK82*(1+'Common Inputs'!AK$14)^AK59 -> 66.21708479 | AL89: =AL82*(1+'Common Inputs'!AL$14)^AL59 -> 67.87251191 | AM89: =AM82*(1+'Common Inputs'!AM$14)^AM59 -> 69.56932471 | AN89: =AN82*(1+'Common Inputs'!AN$14)^AN59 -> 71.30855782 | AO89: =AO82*(1+'Common Inputs'!AO$14)^AO59 -> 73.09127177 | AP89: =AP82*(1+'Common Inputs'!AP$14)^AP59 -> 74.91855356 | AQ89: =AQ82*(1+'Common Inputs'!AQ$14)^AQ59 -> 76.7915174 | AR89: =AR82*(1+'Common Inputs'!AR$14)^AR59 -> 78.71130534 | AS89: =AS82*(1+'Common Inputs'!AS$14)^AS59 -> 80.67908797 | AT89: =AT82*(1+'Common Inputs'!AT$14)^AT59 -> 82.69606517 | AU89: =AU82*(1+'Common Inputs'!AU$14)^AU59 -> 84.7634668 | AV89: =AV82*(1+'Common Inputs'!AV$14)^AV59 -> 86.88255347 | AW89: =AW82*(1+'Common Inputs'!AW$14)^AW59 -> 89.05461731 | AX89: =AX82*(1+'Common Inputs'!AX$14)^AX59 -> 91.28098274 | AY89: =AY82*(1+'Common Inputs'!AY$14)^AY59 -> 93.56300731 | AZ89: =AZ82*(1+'Common Inputs'!AZ$14)^AZ59 -> 95.90208249 | BA89: =BA82*(1+'Common Inputs'!BA$14)^BA59 -> 98.29963455 | BB89: =BB82*(1+'Common Inputs'!BB$14)^BB59 -> 100.7571254 | BC89: =BC82*(1+'Common Inputs'!BC$14)^BC59 -> 103.2760536 | BD89: =BD82*(1+'Common Inputs'!BD$14)^BD59 -> 105.8579549 | BE89: =BE82*(1+'Common Inputs'!BE$14)^BE59 -> 108.5044038 | BF89: =BF82*(1+'Common Inputs'!BF$14)^BF59 -> 111.2170139 | BG89: =BG82*(1+'Common Inputs'!BG$14)^BG59 -> 113.9974392 | BH89: =BH82*(1+'Common Inputs'!BH$14)^BH59 -> 116.8473752 | BI89: =BI82*(1+'Common Inputs'!BI$14)^BI59 -> 119.7685596 | BJ89: =BJ82*(1+'Common Inputs'!BJ$14)^BJ59 -> 122.7627736 | BK89: =BK82*(1+'Common Inputs'!BK$14)^BK59 -> 125.8318429 | BL89: =BL82*(1+'Common Inputs'!BL$14)^BL59 -> 128.977639 | BM89: =BM82*(1+'Common Inputs'!BM$14)^BM59 -> 132.2020799 | BN89: =BN82*(1+'Common Inputs'!BN$14)^BN59 -> 135.5071319 | BO89: =BO82*(1+'Common Inputs'!BO$14)^BO59 -> 138.8948102 | BP89: =BP82*(1+'Common Inputs'!BP$14)^BP59 -> 142.3671805 | BQ89: =BQ82*(1+'Common Inputs'!BQ$14)^BQ59 -> 145.92636 | BR89: =BR82*(1+'Common Inputs'!BR$14)^BR59 -> 149.574519 | BS89: =BS82*(1+'Common Inputs'!BS$14)^BS59 -> 153.313882 | BT89: =BT82*(1+'Common Inputs'!BT$14)^BT59 -> 157.146729 | BU89: =BU82*(1+'Common Inputs'!BU$14)^BU59 -> 161.0753973 | BV89: =BV82*(1+'Common Inputs'!BV$14)^BV59 -> 165.1022822 | BW89: =BW82*(1+'Common Inputs'!BW$14)^BW59 -> 169.2298392 | BX89: =BX82*(1+'Common Inputs'!BX$14)^BX59 -> 173.4605852 | BY89: =BY82*(1+'Common Inputs'!BY$14)^BY59 -> 177.7970998 | BZ89: =BZ82*(1+'Common Inputs'!BZ$14)^BZ59 -> 182.2420273 | CA89: =CA82*(1+'Common Inputs'!CA$14)^CA59 -> 186.798078 | CB89: =CB82*(1+'Common Inputs'!CB$14)^CB59 -> 191.46803 | CC89: =CC82*(1+'Common Inputs'!CC$14)^CC59 -> 196.2547307 | CD89: =CD82*(1+'Common Inputs'!CD$14)^CD59 -> 201.161099 | CE89: =CE82*(1+'Common Inputs'!CE$14)^CE59 -> 206.1901265 | CF89: =CF82*(1+'Common Inputs'!CF$14)^CF59 -> 211.3448796 | CG89: =CG82*(1+'Common Inputs'!CG$14)^CG59 -> 216.6285016 | CH89: =CH82*(1+'Common Inputs'!CH$14)^CH59 -> 222.0442142 | CI89: =CI82*(1+'Common Inputs'!CI$14)^CI59 -> 227.5953195 | CJ89: =CJ82*(1+'Common Inputs'!CJ$14)^CJ59 -> 233.2852025 | CK89: =CK82*(1+'Common Inputs'!CK$14)^CK59 -> 239.1173326 | CL89: =CL82*(1+'Common Inputs'!CL$14)^CL59 -> 245.0952659 | CM89: =CM82*(1+'Common Inputs'!CM$14)^CM59 -> 251.2226475 | CN89: =CN82*(1+'Common Inputs'!CN$14)^CN59 -> 257.5032137 | CO89: =CO82*(1+'Common Inputs'!CO$14)^CO59 -> 263.9407941 | CP89: =CP82*(1+'Common Inputs'!CP$14)^CP59 -> 270.5393139 | CQ89: =CQ82*(1+'Common Inputs'!CQ$14)^CQ59 -> 277.3027968 | CR89: =CR82*(1+'Common Inputs'!CR$14)^CR59 -> 284.2353667 | CS89: =CS82*(1+'Common Inputs'!CS$14)^CS59 -> 291.3412509 | CT89: =CT82*(1+'Common Inputs'!CT$14)^CT59 -> 298.6247821 | CU89: =CU82*(1+'Common Inputs'!CU$14)^CU59 -> 306.0904017 | CV89: =CV82*(1+'Common Inputs'!CV$14)^CV59 -> 313.7426617 | CW89: =CW82*(1+'Common Inputs'!CW$14)^CW59 -> 321.5862283 | CX89: =CX82*(1+'Common Inputs'!CX$14)^CX59 -> 329.625884 | CY89: =CY82*(1+'Common Inputs'!CY$14)^CY59 -> 337.8665311 | CZ89: =CZ82*(1+'Common Inputs'!CZ$14)^CZ59 -> 346.3131943 | DA89: =DA82*(1+'Common Inputs'!DA$14)^DA59 -> 354.9710242 | DB89: =DB82*(1+'Common Inputs'!DB$14)^DB59 -> 363.8452998 | DC89: =DC82*(1+'Common Inputs'!DC$14)^DC59 -> 372.9414323 | DD89: =DD82*(1+'Common Inputs'!DD$14)^DD59 -> 382.2649681 | DE89: =DE82*(1+'Common Inputs'!DE$14)^DE59 -> 391.8215923 | DF89: =DF82*(1+'Common Inputs'!DF$14)^DF59 -> 401.6171321 | DG89: =DG82*(1+'Common Inputs'!DG$14)^DG59 -> 411.6575604 | DH89: =DH82*(1+'Common Inputs'!DH$14)^DH59 -> 421.9489994 | DI89: =DI82*(1+'Common Inputs'!DI$14)^DI59 -> 432.4977244 | DJ89: =DJ82*(1+'Common Inputs'!DJ$14)^DJ59 -> 443.3101675 | DK89: =DK82*(1+'Common Inputs'!DK$14)^DK59 -> 454.3929217 | DL89: =DL82*(1+'Common Inputs'!DL$14)^DL59 -> 465.7527448 | DM89: =DM82*(1+'Common Inputs'!DM$14)^DM59 -> 477.3965634 | DN89: =DN82*(1+'Common Inputs'!DN$14)^DN59 -> 489.3314775 | DO89: =DO82*(1+'Common Inputs'!DO$14)^DO59 -> 501.5647644 | DP89: =DP82*(1+'Common Inputs'!DP$14)^DP59 -> 514.1038835 | DQ89: =DQ82*(1+'Common Inputs'!DQ$14)^DQ59 -> 526.9564806 | DR89: =DR82*(1+'Common Inputs'!DR$14)^DR59 -> 540.1303926 | DS89: =DS82*(1+'Common Inputs'!DS$14)^DS59 -> 553.6336524 | DT89: =DT82*(1+'Common Inputs'!DT$14)^DT59 -> 567.4744937 | DU89: =DU82*(1+'Common Inputs'!DU$14)^DU59 -> 581.6613561 | DV89: =DV82*(1+'Common Inputs'!DV$14)^DV59 -> 596.20289 | DW89: =DW82*(1+'Common Inputs'!DW$14)^DW59 -> 611.1079622 | DX89: =DX82*(1+'Common Inputs'!DX$14)^DX59 -> 626.3856613 | DY89: =DY82*(1+'Common Inputs'!DY$14)^DY59 -> 642.0453028 | DZ89: =DZ82*(1+'Common Inputs'!DZ$14)^DZ59 -> 658.0964354 | EA89: =EA82*(1+'Common Inputs'!EA$14)^EA59 -> 674.5488463 | EB89: =EB82*(1+'Common Inputs'!EB$14)^EB59 -> 691.4125674 | EC89: =EC82*(1+'Common Inputs'!EC$14)^EC59 -> 708.6978816 | ED89: =ED82*(1+'Common Inputs'!ED$14)^ED59 -> 726.4153287
D90: indexation | J90: =J91-J87-J88+J89 -> -6.394884622e-14 | K90: =K91-K87-K88+K89 -> 9.348854167 | L90: 8.711432292 | M90: 8.036296289 | N90: 7.321958841 | O90: 6.566881836 | P90: 5.769474756 | Q90: 4.92809302 | R90: 4.041036277 | S90: 3.106546638 | T90: 2.122806869 | U90: 1.08793852 | V90: 0 | W90: 12.57316949 | X90: 11.71590793 | Y90: 10.80792507 | Z90: 9.847220617 | AA90: 8.831725991 | AB90: 7.759302121 | AC90: 6.627737228 | AD90: 5.434744527 | AE90: 4.177959855 | AF90: 2.854939234 | AG90: 1.463156358 | AH90: -8.526512829e-14 | AI90: 16.90951513 | AJ90: 15.75659364 | AK90: 14.53545764 | AL90: 13.24341696 | AM90: 11.87768958 | AN90: 10.43539871 | AO90: 8.913569728 | AP90: 7.309127177 | AQ90: 5.618891517 | AR90: 3.83957587 | AS90: 1.967782633 | AT90: 0 | AU90: 22.74141792 | AV90: 21.1908667 | AW90: 19.54857453 | AX90: 17.81092346 | AY90: 15.97417198 | AZ90: 14.0344511 | BA90: 11.98776031 | BB90: 9.829963455 | BC90: 7.556784406 | BD90: 5.163802678 | BE90: 2.646448872 | BF90: 0 | BG90: 30.58467881 | BH90: 28.4993598 | BI90: 26.29065942 | BJ90: 23.95371191 | BK90: 21.48348537 | BL90: 18.87477643 | BM90: 16.12220487 | BN90: 13.22020799 | BO90: 10.1630349 | BP90: 6.944740512 | BQ90: 3.559179512 | BR90: 0 | BS90: 41.13299273 | BT90: 38.32847049 | BU90: 35.35801403 | BV90: 32.21507945 | BW90: =BW91-BW87-BW88+BW89 -> 28.89289938 | BX90: 25.38447589 | BY90: 21.68257315 | BZ90: 17.77970998 | CA90: 13.66815205 | CB90: 9.339903901 | CC90: 4.78670075 | CD90: 0 | CE90: 55.31930222 | CF90: 51.54753162 | CG90: 47.55259792 | CH90: 43.32570033 | CI90: 38.85773748 | CJ90: 34.13929793 | CK90: 29.16065031 | CL90: 23.91173326 | CM90: 18.38214494 | CN90: 12.56113238 | CO90: 6.437580343 | CP90: 0 | CQ90: 74.39831133 | CR90: 69.32569919 | CS90: 63.9529575 | CT90: 58.26825017 | CU90: 52.25933687 | CV90: 45.91356025 | CW90: 39.21783271 | CX90: 32.15862283 | CY90: 24.7219413 | CZ90: 16.89332655 | DA90: 8.657829859 | DB90: -6.821210263e-13 | DC90: 100.0574574 | DD90: 93.23535808 | DE90: 86.00961782 | DF90: 78.36431846 | DG90: 70.28299812 | DH90: 61.74863406 | DI90: 52.74362493 | DJ90: 43.24977244 | DK90: 33.24826256 | DL90: 22.71964609 | DM90: 11.64381862 | DN90: 0 | DO90: 134.5661563 | DP90: 125.3911911 | DQ90: 115.6733738 | DR90: 105.3912961 | DS90: 94.52281871 | DT90: 83.04504786 | DU90: 70.93431172 | DV90: 58.16613561 | DW90: 44.71521675 | DX90: 30.55539811 | DY90: 15.65964153 | DZ90: 0 | EA90: 180.9765197 | EB90: 168.6372116 | EC90: 155.5678277 | ED90: 141.7395763
D91: =D71 -> Closing RAB | J91: =J83*(1+'Common Inputs'!J$14)^J59 -> 373.9541667 | K91: =K83*(1+'Common Inputs'!K$14)^K59 -> 348.4572917 | L91: =L83*(1+'Common Inputs'!L$14)^L59 -> 321.4518516 | M91: =M83*(1+'Common Inputs'!M$14)^M59 -> 292.8783536 | N91: =N83*(1+'Common Inputs'!N$14)^N59 -> 262.6752734 | O91: =O83*(1+'Common Inputs'!O$14)^O59 -> 230.7789902 | P91: =P83*(1+'Common Inputs'!P$14)^P59 -> 197.1237208 | Q91: =Q83*(1+'Common Inputs'!Q$14)^Q59 -> 161.6414511 | R91: =R83*(1+'Common Inputs'!R$14)^R59 -> 124.2618655 | S91: =S83*(1+'Common Inputs'!S$14)^S59 -> 84.91227477 | T91: =T83*(1+'Common Inputs'!T$14)^T59 -> 43.51754082 | U91: =U83*(1+'Common Inputs'!U$14)^U59 -> 0 | V91: =V83*(1+'Common Inputs'!V$14)^V59 -> 502.9267795 | W91: =W83*(1+'Common Inputs'!W$14)^W59 -> 468.6363173 | X91: =X83*(1+'Common Inputs'!X$14)^X59 -> 432.3170027 | Y91: =Y83*(1+'Common Inputs'!Y$14)^Y59 -> 393.8888247 | Z91: =Z83*(1+'Common Inputs'!Z$14)^Z59 -> 353.2690396 | AA91: =AA83*(1+'Common Inputs'!AA$14)^AA59 -> 310.3720848 | AB91: =AB83*(1+'Common Inputs'!AB$14)^AB59 -> 265.1094891 | AC91: =AC83*(1+'Common Inputs'!AC$14)^AC59 -> 217.3897811 | AD91: =AD83*(1+'Common Inputs'!AD$14)^AD59 -> 167.1183942 | AE91: =AE83*(1+'Common Inputs'!AE$14)^AE59 -> 114.1975694 | AF91: =AF83*(1+'Common Inputs'!AF$14)^AF59 -> 58.5262543 | AG91: =AG83*(1+'Common Inputs'!AG$14)^AG59 -> 0 | AH91: =AH83*(1+'Common Inputs'!AH$14)^AH59 -> 676.3806052 | AI91: =AI83*(1+'Common Inputs'!AI$14)^AI59 -> 630.2637458 | AJ91: =AJ83*(1+'Common Inputs'!AJ$14)^AJ59 -> 581.4183055 | AK91: =AK83*(1+'Common Inputs'!AK$14)^AK59 -> 529.7366783 | AL91: =AL83*(1+'Common Inputs'!AL$14)^AL59 -> 475.1075834 | AM91: =AM83*(1+'Common Inputs'!AM$14)^AM59 -> 417.4159482 | AN91: =AN83*(1+'Common Inputs'!AN$14)^AN59 -> 356.5427891 | AO91: =AO83*(1+'Common Inputs'!AO$14)^AO59 -> 292.3650871 | AP91: =AP83*(1+'Common Inputs'!AP$14)^AP59 -> 224.7556607 | AQ91: =AQ83*(1+'Common Inputs'!AQ$14)^AQ59 -> 153.5830348 | AR91: =AR83*(1+'Common Inputs'!AR$14)^AR59 -> 78.71130534 | AS91: =AS83*(1+'Common Inputs'!AS$14)^AS59 -> 0 | AT91: =AT83*(1+'Common Inputs'!AT$14)^AT59 -> 909.6567169 | AU91: =AU83*(1+'Common Inputs'!AU$14)^AU59 -> 847.634668 | AV91: =AV83*(1+'Common Inputs'!AV$14)^AV59 -> 781.9429812 | AW91: =AW83*(1+'Common Inputs'!AW$14)^AW59 -> 712.4369385 | AX91: =AX83*(1+'Common Inputs'!AX$14)^AX59 -> 638.9668792 | AY91: =AY83*(1+'Common Inputs'!AY$14)^AY59 -> 561.3780438 | AZ91: =AZ83*(1+'Common Inputs'!AZ$14)^AZ59 -> 479.5104125 | BA91: =BA83*(1+'Common Inputs'!BA$14)^BA59 -> 393.1985382 | BB91: =BB83*(1+'Common Inputs'!BB$14)^BB59 -> 302.2713762 | BC91: =BC83*(1+'Common Inputs'!BC$14)^BC59 -> 206.5521071 | BD91: =BD83*(1+'Common Inputs'!BD$14)^BD59 -> 105.8579549 | BE91: =BE83*(1+'Common Inputs'!BE$14)^BE59 -> 0 | BF91: =BF83*(1+'Common Inputs'!BF$14)^BF59 -> 1223.387152 | BG91: =BG83*(1+'Common Inputs'!BG$14)^BG59 -> 1139.974392 | BH91: =BH83*(1+'Common Inputs'!BH$14)^BH59 -> 1051.626377 | BI91: =BI83*(1+'Common Inputs'!BI$14)^BI59 -> 958.1484765 | BJ91: =BJ83*(1+'Common Inputs'!BJ$14)^BJ59 -> 859.3394149 | BK91: =BK83*(1+'Common Inputs'!BK$14)^BK59 -> 754.9910573 | BL91: =BL83*(1+'Common Inputs'!BL$14)^BL59 -> 644.8881948 | BM91: =BM83*(1+'Common Inputs'!BM$14)^BM59 -> 528.8083197 | BN91: =BN83*(1+'Common Inputs'!BN$14)^BN59 -> 406.5213958 | BO91: =BO83*(1+'Common Inputs'!BO$14)^BO59 -> 277.7896205 | BP91: =BP83*(1+'Common Inputs'!BP$14)^BP59 -> 142.3671805 | BQ91: =BQ83*(1+'Common Inputs'!BQ$14)^BQ59 -> 0 | BR91: =BR83*(1+'Common Inputs'!BR$14)^BR59 -> 1645.319709 | BS91: =BS83*(1+'Common Inputs'!BS$14)^BS59 -> 1533.13882 | BT91: =BT83*(1+'Common Inputs'!BT$14)^BT59 -> 1414.320561 | BU91: =BU83*(1+'Common Inputs'!BU$14)^BU59 -> 1288.603178 | BV91: =BV83*(1+'Common Inputs'!BV$14)^BV59 -> 1155.715975 | BW91: =BW83*(1+'Common Inputs'!BW$14)^BW59 -> 1015.379035 | BX91: =BX83*(1+'Common Inputs'!BX$14)^BX59 -> 867.3029261 | BY91: =BY83*(1+'Common Inputs'!BY$14)^BY59 -> 711.1883994 | BZ91: =BZ83*(1+'Common Inputs'!BZ$14)^BZ59 -> 546.726082 | CA91: =CA83*(1+'Common Inputs'!CA$14)^CA59 -> 373.5961561 | CB91: =CB83*(1+'Common Inputs'!CB$14)^CB59 -> 191.46803 | CC91: =CC83*(1+'Common Inputs'!CC$14)^CC59 -> 0 | CD91: =CD83*(1+'Common Inputs'!CD$14)^CD59 -> 2212.772089 | CE91: =CE83*(1+'Common Inputs'!CE$14)^CE59 -> 2061.901265 | CF91: =CF83*(1+'Common Inputs'!CF$14)^CF59 -> 1902.103917 | CG91: =CG83*(1+'Common Inputs'!CG$14)^CG59 -> 1733.028013 | CH91: =CH83*(1+'Common Inputs'!CH$14)^CH59 -> 1554.309499 | CI91: =CI83*(1+'Common Inputs'!CI$14)^CI59 -> 1365.571917 | CJ91: =CJ83*(1+'Common Inputs'!CJ$14)^CJ59 -> 1166.426013 | CK91: =CK83*(1+'Common Inputs'!CK$14)^CK59 -> 956.4693303 | CL91: =CL83*(1+'Common Inputs'!CL$14)^CL59 -> 735.2857977 | CM91: =CM83*(1+'Common Inputs'!CM$14)^CM59 -> 502.4452951 | CN91: =CN83*(1+'Common Inputs'!CN$14)^CN59 -> 257.5032137 | CO91: =CO83*(1+'Common Inputs'!CO$14)^CO59 -> 0 | CP91: =CP83*(1+'Common Inputs'!CP$14)^CP59 -> 2975.932453 | CQ91: =CQ83*(1+'Common Inputs'!CQ$14)^CQ59 -> 2773.027968 | CR91: =CR83*(1+'Common Inputs'!CR$14)^CR59 -> 2558.1183 | CS91: =CS83*(1+'Common Inputs'!CS$14)^CS59 -> 2330.730007 | CT91: =CT83*(1+'Common Inputs'!CT$14)^CT59 -> 2090.373475 | CU91: =CU83*(1+'Common Inputs'!CU$14)^CU59 -> 1836.54241 | CV91: =CV83*(1+'Common Inputs'!CV$14)^CV59 -> 1568.713309 | CW91: =CW83*(1+'Common Inputs'!CW$14)^CW59 -> 1286.344913 | CX91: =CX83*(1+'Common Inputs'!CX$14)^CX59 -> 988.8776519 | CY91: =CY83*(1+'Common Inputs'!CY$14)^CY59 -> 675.7330621 | CZ91: =CZ83*(1+'Common Inputs'!CZ$14)^CZ59 -> 346.3131943 | DA91: =DA83*(1+'Common Inputs'!DA$14)^DA59 -> 0 | DB91: =DB83*(1+'Common Inputs'!DB$14)^DB59 -> 4002.298298 | DC91: =DC83*(1+'Common Inputs'!DC$14)^DC59 -> 3729.414323 | DD91: =DD83*(1+'Common Inputs'!DD$14)^DD59 -> 3440.384713 | DE91: =DE83*(1+'Common Inputs'!DE$14)^DE59 -> 3134.572738 | DF91: =DF83*(1+'Common Inputs'!DF$14)^DF59 -> 2811.319925 | DG91: =DG83*(1+'Common Inputs'!DG$14)^DG59 -> 2469.945363 | DH91: =DH83*(1+'Common Inputs'!DH$14)^DH59 -> 2109.744997 | DI91: =DI83*(1+'Common Inputs'!DI$14)^DI59 -> 1729.990898 | DJ91: =DJ83*(1+'Common Inputs'!DJ$14)^DJ59 -> 1329.930503 | DK91: =DK83*(1+'Common Inputs'!DK$14)^DK59 -> 908.7858434 | DL91: =DL83*(1+'Common Inputs'!DL$14)^DL59 -> 465.7527448 | DM91: =DM83*(1+'Common Inputs'!DM$14)^DM59 -> 0 | DN91: =DN83*(1+'Common Inputs'!DN$14)^DN59 -> 5382.646252 | DO91: =DO83*(1+'Common Inputs'!DO$14)^DO59 -> 5015.647644 | DP91: =DP83*(1+'Common Inputs'!DP$14)^DP59 -> 4626.934952 | DQ91: =DQ83*(1+'Common Inputs'!DQ$14)^DQ59 -> 4215.651845 | DR91: =DR83*(1+'Common Inputs'!DR$14)^DR59 -> 3780.912748 | DS91: =DS83*(1+'Common Inputs'!DS$14)^DS59 -> 3321.801915 | DT91: =DT83*(1+'Common Inputs'!DT$14)^DT59 -> 2837.372469 | DU91: =DU83*(1+'Common Inputs'!DU$14)^DU59 -> 2326.645424 | DV91: =DV83*(1+'Common Inputs'!DV$14)^DV59 -> 1788.60867 | DW91: =DW83*(1+'Common Inputs'!DW$14)^DW59 -> 1222.215924 | DX91: =DX83*(1+'Common Inputs'!DX$14)^DX59 -> 626.3856613 | DY91: =DY83*(1+'Common Inputs'!DY$14)^DY59 -> 0 | DZ91: =DZ83*(1+'Common Inputs'!DZ$14)^DZ59 -> 7239.060789 | EA91: =EA83*(1+'Common Inputs'!EA$14)^EA59 -> 6745.488463 | EB91: =EB83*(1+'Common Inputs'!EB$14)^EB59 -> 6222.713107 | EC91: =EC83*(1+'Common Inputs'!EC$14)^EC59 -> 5669.583053 | ED91: =ED83*(1+'Common Inputs'!ED$14)^ED59 -> 5084.907301
D95: ="Return on Assets ("&'Common Inputs'!J9&", "&'Common Inputs'!J8&")" -> Return on Assets ($, $2015-16)
D96: Year | J96: =J14 -> 1 | K96: 2 | L96: 3 | M96: 4 | N96: 5 | O96: 6 | P96: 7 | Q96: 8 | R96: 9 | S96: 10 | T96: 11 | U96: 12 | V96: 13 | W96: 14 | X96: 15 | Y96: 16 | Z96: 17 | AA96: 18 | AB96: 19 | AC96: 20 | AD96: 21 | AE96: 22 | AF96: 23 | AG96: 24 | AH96: 25 | AI96: 26 | AJ96: 27 | AK96: 28 | AL96: 29 | AM96: 30 | AN96: 31 | AO96: 32 | AP96: 33 | AQ96: 34 | AR96: 35 | AS96: 36 | AT96: 37 | AU96: 38 | AV96: 39 | AW96: 40 | AX96: 41 | AY96: 42 | AZ96: 43 | BA96: 44 | BB96: 45 | BC96: 46 | BD96: 47 | BE96: 48 | BF96: 49 | BG96: 50 | BH96: 51 | BI96: 52 | BJ96: 53 | BK96: 54 | BL96: 55 | BM96: 56 | BN96: 57 | BO96: 58 | BP96: 59 | BQ96: 60 | BR96: 61 | BS96: 62 | BT96: 63 | BU96: 64 | BV96: =BV14 -> 65 | BW96: 66 | BX96: 67 | BY96: 68 | BZ96: 69 | CA96: 70 | CB96: 71 | CC96: 72 | CD96: 73 | CE96: 74 | CF96: 75 | CG96: 76 | CH96: 77 | CI96: 78 | CJ96: 79 | CK96: 80 | CL96: 81 | CM96: 82 | CN96: 83 | CO96: 84 | CP96: 85 | CQ96: 86 | CR96: 87 | CS96: 88 | CT96: 89 | CU96: 90 | CV96: 91 | CW96: 92 | CX96: 93 | CY96: 94 | CZ96: 95 | DA96: 96 | DB96: 97 | DC96: 98 | DD96: 99 | DE96: 100 | DF96: 101 | DG96: 102 | DH96: 103 | DI96: 104 | DJ96: 105 | DK96: 106 | DL96: 107 | DM96: 108 | DN96: 109 | DO96: 110 | DP96: 111 | DQ96: 112 | DR96: 113 | DS96: 114 | DT96: 115 | DU96: 116 | DV96: 117 | DW96: 118 | DX96: 119 | DY96: 120 | DZ96: 121 | EA96: 122 | EB96: 123 | EC96: 124 | ED96: 125
D98: =D62 -> Opening RAB | J98: =SUM(J62,J68,J74) -> 0 | K98: 364.8333333 | L98: 331.6666667 | M98: 298.5 | N98: 265.3333333 | O98: 232.1666667 | P98: 199 | Q98: 165.8333333 | R98: 132.6666667 | S98: 99.5 | T98: 66.33333333 | U98: 33.16666667 | V98: 0 | W98: 364.8333333 | X98: 331.6666667 | Y98: 298.5 | Z98: 265.3333333 | AA98: 232.1666667 | AB98: 199 | AC98: 165.8333333 | AD98: 132.6666667 | AE98: 99.5 | AF98: 66.33333333 | AG98: 33.16666667 | AH98: 0 | AI98: 364.8333333 | AJ98: 331.6666667 | AK98: 298.5 | AL98: 265.3333333 | AM98: 232.1666667 | AN98: 199 | AO98: 165.8333333 | AP98: 132.6666667 | AQ98: 99.5 | AR98: 66.33333333 | AS98: 33.16666667 | AT98: 0 | AU98: 364.8333333 | AV98: 331.6666667 | AW98: 298.5 | AX98: 265.3333333 | AY98: 232.1666667 | AZ98: 199 | BA98: 165.8333333 | BB98: 132.6666667 | BC98: 99.5 | BD98: 66.33333333 | BE98: 33.16666667 | BF98: 0 | BG98: 364.8333333 | BH98: 331.6666667 | BI98: 298.5 | BJ98: 265.3333333 | BK98: 232.1666667 | BL98: 199 | BM98: 165.8333333 | BN98: 132.6666667 | BO98: 99.5 | BP98: 66.33333333 | BQ98: 33.16666667 | BR98: 0 | BS98: 364.8333333 | BT98: 331.6666667 | BU98: 298.5 | BV98: =SUM(BV62,BV68,BV74) -> 265.3333333 | BW98: 232.1666667 | BX98: 199 | BY98: 165.8333333 | BZ98: 132.6666667 | CA98: 99.5 | CB98: 66.33333333 | CC98: 33.16666667 | CD98: 0 | CE98: 364.8333333 | CF98: 331.6666667 | CG98: 298.5 | CH98: 265.3333333 | CI98: 232.1666667 | CJ98: 199 | CK98: 165.8333333 | CL98: 132.6666667 | CM98: 99.5 | CN98: 66.33333333 | CO98: 33.16666667 | CP98: 0 | CQ98: 364.8333333 | CR98: 331.6666667 | CS98: 298.5 | CT98: 265.3333333 | CU98: 232.1666667 | CV98: 199 | CW98: 165.8333333 | CX98: 132.6666667 | CY98: 99.5 | CZ98: 66.33333333 | DA98: 33.16666667 | DB98: 0 | DC98: 364.8333333 | DD98: 331.6666667 | DE98: 298.5 | DF98: 265.3333333 | DG98: 232.1666667 | DH98: 199 | DI98: 165.8333333 | DJ98: 132.6666667 | DK98: 99.5 | DL98: 66.33333333 | DM98: 33.16666667 | DN98: 0 | DO98: 364.8333333 | DP98: 331.6666667 | DQ98: 298.5 | DR98: 265.3333333 | DS98: 232.1666667 | DT98: 199 | DU98: 165.8333333 | DV98: 132.6666667 | DW98: 99.5 | DX98: 66.33333333 | DY98: 33.16666667 | DZ98: 0 | EA98: 364.8333333 | EB98: 331.6666667 | EC98: 298.5 | ED98: 265.3333333
D99: =D63 -> capex | J99: 398 | K99: 0 | L99: 0 | M99: 0 | N99: 0 | O99: 0 | P99: 0 | Q99: 0 | R99: 0 | S99: 0 | T99: 0 | U99: 0 | V99: 398 | W99: 0 | X99: 0 | Y99: 0 | Z99: 0 | AA99: 0 | AB99: 0 | AC99: 0 | AD99: 0 | AE99: 0 | AF99: 0 | AG99: 0 | AH99: 398 | AI99: 0 | AJ99: 0 | AK99: 0 | AL99: 0 | AM99: 0 | AN99: 0 | AO99: 0 | AP99: 0 | AQ99: 0 | AR99: 0 | AS99: 0 | AT99: 398 | AU99: 0 | AV99: 0 | AW99: 0 | AX99: 0 | AY99: 0 | AZ99: 0 | BA99: 0 | BB99: 0 | BC99: 0 | BD99: 0 | BE99: 0 | BF99: 398 | BG99: 0 | BH99: 0 | BI99: 0 | BJ99: 0 | BK99: 0 | BL99: 0 | BM99: 0 | BN99: 0 | BO99: 0 | BP99: 0 | BQ99: 0 | BR99: 398 | BS99: 0 | BT99: 0 | BU99: 0 | BV99: 0 | BW99: 0 | BX99: 0 | BY99: 0 | BZ99: 0 | CA99: 0 | CB99: 0 | CC99: 0 | CD99: 398 | CE99: 0 | CF99: 0 | CG99: 0 | CH99: 0 | CI99: 0 | CJ99: 0 | CK99: 0 | CL99: 0 | CM99: 0 | CN99: 0 | CO99: 0 | CP99: 398 | CQ99: 0 | CR99: 0 | CS99: 0 | CT99: 0 | CU99: 0 | CV99: 0 | CW99: 0 | CX99: 0 | CY99: 0 | CZ99: 0 | DA99: 0 | DB99: 398 | DC99: 0 | DD99: 0 | DE99: 0 | DF99: 0 | DG99: 0 | DH99: 0 | DI99: 0 | DJ99: 0 | DK99: 0 | DL99: 0 | DM99: 0 | DN99: 398 | DO99: 0 | DP99: 0 | DQ99: 0 | DR99: 0 | DS99: 0 | DT99: 0 | DU99: 0 | DV99: 0 | DW99: 0 | DX99: 0 | DY99: 0 | DZ99: 398 | EA99: 0 | EB99: 0 | EC99: 0 | ED99: 0
D100: =D64 -> depreciation | J100: =SUM(J64,J70) -> 33.16666667 | K100: 33.16666667 | L100: 33.16666667 | M100: 33.16666667 | N100: 33.16666667 | O100: 33.16666667 | P100: 33.16666667 | Q100: 33.16666667 | R100: 33.16666667 | S100: 33.16666667 | T100: 33.16666667 | U100: 33.16666667 | V100: 33.16666667 | W100: 33.16666667 | X100: 33.16666667 | Y100: 33.16666667 | Z100: 33.16666667 | AA100: 33.16666667 | AB100: 33.16666667 | AC100: 33.16666667 | AD100: 33.16666667 | AE100: 33.16666667 | AF100: 33.16666667 | AG100: 33.16666667 | AH100: 33.16666667 | AI100: 33.16666667 | AJ100: 33.16666667 | AK100: 33.16666667 | AL100: 33.16666667 | AM100: 33.16666667 | AN100: 33.16666667 | AO100: 33.16666667 | AP100: 33.16666667 | AQ100: 33.16666667 | AR100: 33.16666667 | AS100: 33.16666667 | AT100: 33.16666667 | AU100: 33.16666667 | AV100: 33.16666667 | AW100: 33.16666667 | AX100: 33.16666667 | AY100: 33.16666667 | AZ100: 33.16666667 | BA100: 33.16666667 | BB100: 33.16666667 | BC100: 33.16666667 | BD100: 33.16666667 | BE100: 33.16666667 | BF100: 33.16666667 | BG100: 33.16666667 | BH100: 33.16666667 | BI100: 33.16666667 | BJ100: 33.16666667 | BK100: 33.16666667 | BL100: 33.16666667 | BM100: 33.16666667 | BN100: 33.16666667 | BO100: 33.16666667 | BP100: 33.16666667 | BQ100: 33.16666667 | BR100: 33.16666667 | BS100: 33.16666667 | BT100: 33.16666667 | BU100: 33.16666667 | BV100: =SUM(BV64,BV70) -> 33.16666667 | BW100: 33.16666667 | BX100: 33.16666667 | BY100: 33.16666667 | BZ100: 33.16666667 | CA100: 33.16666667 | CB100: 33.16666667 | CC100: 33.16666667 | CD100: 33.16666667 | CE100: 33.16666667 | CF100: 33.16666667 | CG100: 33.16666667 | CH100: 33.16666667 | CI100: 33.16666667 | CJ100: 33.16666667 | CK100: 33.16666667 | CL100: 33.16666667 | CM100: 33.16666667 | CN100: 33.16666667 | CO100: 33.16666667 | CP100: 33.16666667 | CQ100: 33.16666667 | CR100: 33.16666667 | CS100: 33.16666667 | CT100: 33.16666667 | CU100: 33.16666667 | CV100: 33.16666667 | CW100: 33.16666667 | CX100: 33.16666667 | CY100: 33.16666667 | CZ100: 33.16666667 | DA100: 33.16666667 | DB100: 33.16666667 | DC100: 33.16666667 | DD100: 33.16666667 | DE100: 33.16666667 | DF100: 33.16666667 | DG100: 33.16666667 | DH100: 33.16666667 | DI100: 33.16666667 | DJ100: 33.16666667 | DK100: 33.16666667 | DL100: 33.16666667 | DM100: 33.16666667 | DN100: 33.16666667 | DO100: 33.16666667 | DP100: 33.16666667 | DQ100: 33.16666667 | DR100: 33.16666667 | DS100: 33.16666667 | DT100: 33.16666667 | DU100: 33.16666667 | DV100: 33.16666667 | DW100: 33.16666667 | DX100: 33.16666667 | DY100: 33.16666667 | DZ100: 33.16666667 | EA100: 33.16666667 | EB100: 33.16666667 | EC100: 33.16666667 | ED100: 33.16666667
D101: =D65 -> Closing RAB | J101: =SUM(J65,J71,J76) -> 364.8333333 | K101: 331.6666667 | L101: 298.5 | M101: 265.3333333 | N101: 232.1666667 | O101: 199 | P101: 165.8333333 | Q101: 132.6666667 | R101: 99.5 | S101: 66.33333333 | T101: 33.16666667 | U101: 0 | V101: 364.8333333 | W101: 331.6666667 | X101: 298.5 | Y101: 265.3333333 | Z101: 232.1666667 | AA101: 199 | AB101: 165.8333333 | AC101: 132.6666667 | AD101: 99.5 | AE101: 66.33333333 | AF101: 33.16666667 | AG101: 0 | AH101: 364.8333333 | AI101: 331.6666667 | AJ101: 298.5 | AK101: 265.3333333 | AL101: 232.1666667 | AM101: 199 | AN101: 165.8333333 | AO101: 132.6666667 | AP101: 99.5 | AQ101: 66.33333333 | AR101: 33.16666667 | AS101: 0 | AT101: 364.8333333 | AU101: 331.6666667 | AV101: 298.5 | AW101: 265.3333333 | AX101: 232.1666667 | AY101: 199 | AZ101: 165.8333333 | BA101: 132.6666667 | BB101: 99.5 | BC101: 66.33333333 | BD101: 33.16666667 | BE101: 0 | BF101: 364.8333333 | BG101: 331.6666667 | BH101: 298.5 | BI101: 265.3333333 | BJ101: 232.1666667 | BK101: 199 | BL101: 165.8333333 | BM101: 132.6666667 | BN101: 99.5 | BO101: 66.33333333 | BP101: 33.16666667 | BQ101: 0 | BR101: 364.8333333 | BS101: 331.6666667 | BT101: 298.5 | BU101: 265.3333333 | BV101: =SUM(BV65,BV71,BV76) -> 232.1666667 | BW101: 199 | BX101: 165.8333333 | BY101: 132.6666667 | BZ101: 99.5 | CA101: 66.33333333 | CB101: 33.16666667 | CC101: 0 | CD101: 364.8333333 | CE101: 331.6666667 | CF101: 298.5 | CG101: 265.3333333 | CH101: 232.1666667 | CI101: 199 | CJ101: 165.8333333 | CK101: 132.6666667 | CL101: 99.5 | CM101: 66.33333333 | CN101: 33.16666667 | CO101: 0 | CP101: 364.8333333 | CQ101: 331.6666667 | CR101: 298.5 | CS101: 265.3333333 | CT101: 232.1666667 | CU101: 199 | CV101: 165.8333333 | CW101: 132.6666667 | CX101: 99.5 | CY101: 66.33333333 | CZ101: 33.16666667 | DA101: 0 | DB101: 364.8333333 | DC101: 331.6666667 | DD101: 298.5 | DE101: 265.3333333 | DF101: 232.1666667 | DG101: 199 | DH101: 165.8333333 | DI101: 132.6666667 | DJ101: 99.5 | DK101: 66.33333333 | DL101: 33.16666667 | DM101: 0 | DN101: 364.8333333 | DO101: 331.6666667 | DP101: 298.5 | DQ101: 265.3333333 | DR101: 232.1666667 | DS101: 199 | DT101: 165.8333333 | DU101: 132.6666667 | DV101: 99.5 | DW101: 66.33333333 | DX101: 33.16666667 | DY101: 0 | DZ101: 364.8333333 | EA101: 331.6666667 | EB101: 298.5 | EC101: 265.3333333 | ED101: 232.1666667
D103: Calculation of return on RAB
D104: Value of fixed RAB on which year-end return given | J104: =J98+J99 -> 398 | K104: =K98+K99 -> 364.8333333 | L104: 331.6666667 | M104: 298.5 | N104: 265.3333333 | O104: 232.1666667 | P104: 199 | Q104: 165.8333333 | R104: 132.6666667 | S104: 99.5 | T104: 66.33333333 | U104: 33.16666667 | V104: 398 | W104: 364.8333333 | X104: 331.6666667 | Y104: 298.5 | Z104: 265.3333333 | AA104: 232.1666667 | AB104: 199 | AC104: 165.8333333 | AD104: 132.6666667 | AE104: 99.5 | AF104: 66.33333333 | AG104: 33.16666667 | AH104: 398 | AI104: 364.8333333 | AJ104: 331.6666667 | AK104: 298.5 | AL104: 265.3333333 | AM104: 232.1666667 | AN104: 199 | AO104: 165.8333333 | AP104: 132.6666667 | AQ104: 99.5 | AR104: 66.33333333 | AS104: 33.16666667 | AT104: 398 | AU104: 364.8333333 | AV104: 331.6666667 | AW104: 298.5 | AX104: 265.3333333 | AY104: 232.1666667 | AZ104: 199 | BA104: 165.8333333 | BB104: 132.6666667 | BC104: 99.5 | BD104: 66.33333333 | BE104: 33.16666667 | BF104: 398 | BG104: 364.8333333 | BH104: 331.6666667 | BI104: 298.5 | BJ104: 265.3333333 | BK104: 232.1666667 | BL104: 199 | BM104: 165.8333333 | BN104: 132.6666667 | BO104: 99.5 | BP104: 66.33333333 | BQ104: 33.16666667 | BR104: 398 | BS104: 364.8333333 | BT104: 331.6666667 | BU104: 298.5 | BV104: 265.3333333 | BW104: =BW98+BW99 -> 232.1666667 | BX104: 199 | BY104: 165.8333333 | BZ104: 132.6666667 | CA104: 99.5 | CB104: 66.33333333 | CC104: 33.16666667 | CD104: 398 | CE104: 364.8333333 | CF104: 331.6666667 | CG104: 298.5 | CH104: 265.3333333 | CI104: 232.1666667 | CJ104: 199 | CK104: 165.8333333 | CL104: 132.6666667 | CM104: 99.5 | CN104: 66.33333333 | CO104: 33.16666667 | CP104: 398 | CQ104: 364.8333333 | CR104: 331.6666667 | CS104: 298.5 | CT104: 265.3333333 | CU104: 232.1666667 | CV104: 199 | CW104: 165.8333333 | CX104: 132.6666667 | CY104: 99.5 | CZ104: 66.33333333 | DA104: 33.16666667 | DB104: 398 | DC104: 364.8333333 | DD104: 331.6666667 | DE104: 298.5 | DF104: 265.3333333 | DG104: 232.1666667 | DH104: 199 | DI104: 165.8333333 | DJ104: 132.6666667 | DK104: 99.5 | DL104: 66.33333333 | DM104: 33.16666667 | DN104: 398 | DO104: 364.8333333 | DP104: 331.6666667 | DQ104: 298.5 | DR104: 265.3333333 | DS104: 232.1666667 | DT104: 199 | DU104: 165.8333333 | DV104: 132.6666667 | DW104: 99.5 | DX104: 66.33333333 | DY104: 33.16666667 | DZ104: 398 | EA104: 364.8333333 | EB104: 331.6666667 | EC104: 298.5 | ED104: 265.3333333
D105: Return on fixed RAB (year-end value) | J105: =J104*ROUND('Common Inputs'!$J$95,3) -> 19.502 | K105: =K104*ROUND('Common Inputs'!$J$95,3) -> 17.87683333 | L105: =L104*ROUND('Common Inputs'!$J$95,3) -> 16.25166667 | M105: =M104*ROUND('Common Inputs'!$J$95,3) -> 14.6265 | N105: =N104*ROUND('Common Inputs'!$J$95,3) -> 13.00133333 | O105: =O104*ROUND('Common Inputs'!$J$95,3) -> 11.37616667 | P105: =P104*ROUND('Common Inputs'!$J$95,3) -> 9.751 | Q105: =Q104*ROUND('Common Inputs'!$J$95,3) -> 8.125833333 | R105: =R104*ROUND('Common Inputs'!$J$95,3) -> 6.500666667 | S105: =S104*ROUND('Common Inputs'!$J$95,3) -> 4.8755 | T105: =T104*ROUND('Common Inputs'!$J$95,3) -> 3.250333333 | U105: =U104*ROUND('Common Inputs'!$J$95,3) -> 1.625166667 | V105: =V104*ROUND('Common Inputs'!$J$95,3) -> 19.502 | W105: =W104*ROUND('Common Inputs'!$J$95,3) -> 17.87683333 | X105: =X104*ROUND('Common Inputs'!$J$95,3) -> 16.25166667 | Y105: =Y104*ROUND('Common Inputs'!$J$95,3) -> 14.6265 | Z105: =Z104*ROUND('Common Inputs'!$J$95,3) -> 13.00133333 | AA105: =AA104*ROUND('Common Inputs'!$J$95,3) -> 11.37616667 | AB105: =AB104*ROUND('Common Inputs'!$J$95,3) -> 9.751 | AC105: =AC104*ROUND('Common Inputs'!$J$95,3) -> 8.125833333 | AD105: =AD104*ROUND('Common Inputs'!$J$95,3) -> 6.500666667 | AE105: =AE104*ROUND('Common Inputs'!$J$95,3) -> 4.8755 | AF105: =AF104*ROUND('Common Inputs'!$J$95,3) -> 3.250333333 | AG105: =AG104*ROUND('Common Inputs'!$J$95,3) -> 1.625166667 | AH105: =AH104*ROUND('Common Inputs'!$J$95,3) -> 19.502 | AI105: =AI104*ROUND('Common Inputs'!$J$95,3) -> 17.87683333 | AJ105: =AJ104*ROUND('Common Inputs'!$J$95,3) -> 16.25166667 | AK105: =AK104*ROUND('Common Inputs'!$J$95,3) -> 14.6265 | AL105: =AL104*ROUND('Common Inputs'!$J$95,3) -> 13.00133333 | AM105: =AM104*ROUND('Common Inputs'!$J$95,3) -> 11.37616667 | AN105: =AN104*ROUND('Common Inputs'!$J$95,3) -> 9.751 | AO105: =AO104*ROUND('Common Inputs'!$J$95,3) -> 8.125833333 | AP105: =AP104*ROUND('Common Inputs'!$J$95,3) -> 6.500666667 | AQ105: =AQ104*ROUND('Common Inputs'!$J$95,3) -> 4.8755 | AR105: =AR104*ROUND('Common Inputs'!$J$95,3) -> 3.250333333 | AS105: =AS104*ROUND('Common Inputs'!$J$95,3) -> 1.625166667 | AT105: =AT104*ROUND('Common Inputs'!$J$95,3) -> 19.502 | AU105: =AU104*ROUND('Common Inputs'!$J$95,3) -> 17.87683333 | AV105: =AV104*ROUND('Common Inputs'!$J$95,3) -> 16.25166667 | AW105: =AW104*ROUND('Common Inputs'!$J$95,3) -> 14.6265 | AX105: =AX104*ROUND('Common Inputs'!$J$95,3) -> 13.00133333 | AY105: =AY104*ROUND('Common Inputs'!$J$95,3) -> 11.37616667 | AZ105: =AZ104*ROUND('Common Inputs'!$J$95,3) -> 9.751 | BA105: =BA104*ROUND('Common Inputs'!$J$95,3) -> 8.125833333 | BB105: =BB104*ROUND('Common Inputs'!$J$95,3) -> 6.500666667 | BC105: =BC104*ROUND('Common Inputs'!$J$95,3) -> 4.8755 | BD105: =BD104*ROUND('Common Inputs'!$J$95,3) -> 3.250333333 | BE105: =BE104*ROUND('Common Inputs'!$J$95,3) -> 1.625166667 | BF105: =BF104*ROUND('Common Inputs'!$J$95,3) -> 19.502 | BG105: =BG104*ROUND('Common Inputs'!$J$95,3) -> 17.87683333 | BH105: =BH104*ROUND('Common Inputs'!$J$95,3) -> 16.25166667 | BI105: =BI104*ROUND('Common Inputs'!$J$95,3) -> 14.6265 | BJ105: =BJ104*ROUND('Common Inputs'!$J$95,3) -> 13.00133333 | BK105: =BK104*ROUND('Common Inputs'!$J$95,3) -> 11.37616667 | BL105: =BL104*ROUND('Common Inputs'!$J$95,3) -> 9.751 | BM105: =BM104*ROUND('Common Inputs'!$J$95,3) -> 8.125833333 | BN105: =BN104*ROUND('Common Inputs'!$J$95,3) -> 6.500666667 | BO105: =BO104*ROUND('Common Inputs'!$J$95,3) -> 4.8755 | BP105: =BP104*ROUND('Common Inputs'!$J$95,3) -> 3.250333333 | BQ105: =BQ104*ROUND('Common Inputs'!$J$95,3) -> 1.625166667 | BR105: =BR104*ROUND('Common Inputs'!$J$95,3) -> 19.502 | BS105: =BS104*ROUND('Common Inputs'!$J$95,3) -> 17.87683333 | BT105: =BT104*ROUND('Common Inputs'!$J$95,3) -> 16.25166667 | BU105: =BU104*ROUND('Common Inputs'!$J$95,3) -> 14.6265 | BV105: =BV104*ROUND('Common Inputs'!$J$95,3) -> 13.00133333 | BW105: =BW104*ROUND('Common Inputs'!$J$95,3) -> 11.37616667 | BX105: =BX104*ROUND('Common Inputs'!$J$95,3) -> 9.751 | BY105: =BY104*ROUND('Common Inputs'!$J$95,3) -> 8.125833333 | BZ105: =BZ104*ROUND('Common Inputs'!$J$95,3) -> 6.500666667 | CA105: =CA104*ROUND('Common Inputs'!$J$95,3) -> 4.8755 | CB105: =CB104*ROUND('Common Inputs'!$J$95,3) -> 3.250333333 | CC105: =CC104*ROUND('Common Inputs'!$J$95,3) -> 1.625166667 | CD105: =CD104*ROUND('Common Inputs'!$J$95,3) -> 19.502 | CE105: =CE104*ROUND('Common Inputs'!$J$95,3) -> 17.87683333 | CF105: =CF104*ROUND('Common Inputs'!$J$95,3) -> 16.25166667 | CG105: =CG104*ROUND('Common Inputs'!$J$95,3) -> 14.6265 | CH105: =CH104*ROUND('Common Inputs'!$J$95,3) -> 13.00133333 | CI105: =CI104*ROUND('Common Inputs'!$J$95,3) -> 11.37616667 | CJ105: =CJ104*ROUND('Common Inputs'!$J$95,3) -> 9.751 | CK105: =CK104*ROUND('Common Inputs'!$J$95,3) -> 8.125833333 | CL105: =CL104*ROUND('Common Inputs'!$J$95,3) -> 6.500666667 | CM105: =CM104*ROUND('Common Inputs'!$J$95,3) -> 4.8755 | CN105: =CN104*ROUND('Common Inputs'!$J$95,3) -> 3.250333333 | CO105: =CO104*ROUND('Common Inputs'!$J$95,3) -> 1.625166667 | CP105: =CP104*ROUND('Common Inputs'!$J$95,3) -> 19.502 | CQ105: =CQ104*ROUND('Common Inputs'!$J$95,3) -> 17.87683333 | CR105: =CR104*ROUND('Common Inputs'!$J$95,3) -> 16.25166667 | CS105: =CS104*ROUND('Common Inputs'!$J$95,3) -> 14.6265 | CT105: =CT104*ROUND('Common Inputs'!$J$95,3) -> 13.00133333 | CU105: =CU104*ROUND('Common Inputs'!$J$95,3) -> 11.37616667 | CV105: =CV104*ROUND('Common Inputs'!$J$95,3) -> 9.751 | CW105: =CW104*ROUND('Common Inputs'!$J$95,3) -> 8.125833333 | CX105: =CX104*ROUND('Common Inputs'!$J$95,3) -> 6.500666667 | CY105: =CY104*ROUND('Common Inputs'!$J$95,3) -> 4.8755 | CZ105: =CZ104*ROUND('Common Inputs'!$J$95,3) -> 3.250333333 | DA105: =DA104*ROUND('Common Inputs'!$J$95,3) -> 1.625166667 | DB105: =DB104*ROUND('Common Inputs'!$J$95,3) -> 19.502 | DC105: =DC104*ROUND('Common Inputs'!$J$95,3) -> 17.87683333 | DD105: =DD104*ROUND('Common Inputs'!$J$95,3) -> 16.25166667 | DE105: =DE104*ROUND('Common Inputs'!$J$95,3) -> 14.6265 | DF105: =DF104*ROUND('Common Inputs'!$J$95,3) -> 13.00133333 | DG105: =DG104*ROUND('Common Inputs'!$J$95,3) -> 11.37616667 | DH105: =DH104*ROUND('Common Inputs'!$J$95,3) -> 9.751 | DI105: =DI104*ROUND('Common Inputs'!$J$95,3) -> 8.125833333 | DJ105: =DJ104*ROUND('Common Inputs'!$J$95,3) -> 6.500666667 | DK105: =DK104*ROUND('Common Inputs'!$J$95,3) -> 4.8755 | DL105: =DL104*ROUND('Common Inputs'!$J$95,3) -> 3.250333333 | DM105: =DM104*ROUND('Common Inputs'!$J$95,3) -> 1.625166667 | DN105: =DN104*ROUND('Common Inputs'!$J$95,3) -> 19.502 | DO105: =DO104*ROUND('Common Inputs'!$J$95,3) -> 17.87683333 | DP105: =DP104*ROUND('Common Inputs'!$J$95,3) -> 16.25166667 | DQ105: =DQ104*ROUND('Common Inputs'!$J$95,3) -> 14.6265 | DR105: =DR104*ROUND('Common Inputs'!$J$95,3) -> 13.00133333 | DS105: =DS104*ROUND('Common Inputs'!$J$95,3) -> 11.37616667 | DT105: =DT104*ROUND('Common Inputs'!$J$95,3) -> 9.751 | DU105: =DU104*ROUND('Common Inputs'!$J$95,3) -> 8.125833333 | DV105: =DV104*ROUND('Common Inputs'!$J$95,3) -> 6.500666667 | DW105: =DW104*ROUND('Common Inputs'!$J$95,3) -> 4.8755 | DX105: =DX104*ROUND('Common Inputs'!$J$95,3) -> 3.250333333 | DY105: =DY104*ROUND('Common Inputs'!$J$95,3) -> 1.625166667 | DZ105: =DZ104*ROUND('Common Inputs'!$J$95,3) -> 19.502 | EA105: =EA104*ROUND('Common Inputs'!$J$95,3) -> 17.87683333 | EB105: =EB104*ROUND('Common Inputs'!$J$95,3) -> 16.25166667 | EC105: =EC104*ROUND('Common Inputs'!$J$95,3) -> 14.6265 | ED105: =ED104*ROUND('Common Inputs'!$J$95,3) -> 13.00133333
D106: Return on fixed RAB to be recovered from revenue (mid-year value) | J106: =J105/(1+ROUND('Common Inputs'!$J$95,3))^0.5 -> 19.04107256 | K106: =K105/(1+ROUND('Common Inputs'!$J$95,3))^0.5 -> 17.45431651 | L106: =L105/(1+ROUND('Common Inputs'!$J$95,3))^0.5 -> 15.86756047 | M106: =M105/(1+ROUND('Common Inputs'!$J$95,3))^0.5 -> 14.28080442 | N106: =N105/(1+ROUND('Common Inputs'!$J$95,3))^0.5 -> 12.69404837 | O106: =O105/(1+ROUND('Common Inputs'!$J$95,3))^0.5 -> 11.10729233 | P106: =P105/(1+ROUND('Common Inputs'!$J$95,3))^0.5 -> 9.52053628 | Q106: =Q105/(1+ROUND('Common Inputs'!$J$95,3))^0.5 -> 7.933780233 | R106: =R105/(1+ROUND('Common Inputs'!$J$95,3))^0.5 -> 6.347024187 | S106: =S105/(1+ROUND('Common Inputs'!$J$95,3))^0.5 -> 4.76026814 | T106: =T105/(1+ROUND('Common Inputs'!$J$95,3))^0.5 -> 3.173512093 | U106: =U105/(1+ROUND('Common Inputs'!$J$95,3))^0.5 -> 1.586756047 | V106: =V105/(1+ROUND('Common Inputs'!$J$95,3))^0.5 -> 19.04107256 | W106: =W105/(1+ROUND('Common Inputs'!$J$95,3))^0.5 -> 17.45431651 | X106: =X105/(1+ROUND('Common Inputs'!$J$95,3))^0.5 -> 15.86756047 | Y106: =Y105/(1+ROUND('Common Inputs'!$J$95,3))^0.5 -> 14.28080442 | Z106: =Z105/(1+ROUND('Common Inputs'!$J$95,3))^0.5 -> 12.69404837 | AA106: =AA105/(1+ROUND('Common Inputs'!$J$95,3))^0.5 -> 11.10729233 | AB106: =AB105/(1+ROUND('Common Inputs'!$J$95,3))^0.5 -> 9.52053628 | AC106: =AC105/(1+ROUND('Common Inputs'!$J$95,3))^0.5 -> 7.933780233 | AD106: =AD105/(1+ROUND('Common Inputs'!$J$95,3))^0.5 -> 6.347024187 | AE106: =AE105/(1+ROUND('Common Inputs'!$J$95,3))^0.5 -> 4.76026814 | AF106: =AF105/(1+ROUND('Common Inputs'!$J$95,3))^0.5 -> 3.173512093 | AG106: =AG105/(1+ROUND('Common Inputs'!$J$95,3))^0.5 -> 1.586756047 | AH106: =AH105/(1+ROUND('Common Inputs'!$J$95,3))^0.5 -> 19.04107256 | AI106: =AI105/(1+ROUND('Common Inputs'!$J$95,3))^0.5 -> 17.45431651 | AJ106: =AJ105/(1+ROUND('Common Inputs'!$J$95,3))^0.5 -> 15.86756047 | AK106: =AK105/(1+ROUND('Common Inputs'!$J$95,3))^0.5 -> 14.28080442 | AL106: =AL105/(1+ROUND('Common Inputs'!$J$95,3))^0.5 -> 12.69404837 | AM106: =AM105/(1+ROUND('Common Inputs'!$J$95,3))^0.5 -> 11.10729233 | AN106: =AN105/(1+ROUND('Common Inputs'!$J$95,3))^0.5 -> 9.52053628 | AO106: =AO105/(1+ROUND('Common Inputs'!$J$95,3))^0.5 -> 7.933780233 | AP106: =AP105/(1+ROUND('Common Inputs'!$J$95,3))^0.5 -> 6.347024187 | AQ106: =AQ105/(1+ROUND('Common Inputs'!$J$95,3))^0.5 -> 4.76026814 | AR106: =AR105/(1+ROUND('Common Inputs'!$J$95,3))^0.5 -> 3.173512093 | AS106: =AS105/(1+ROUND('Common Inputs'!$J$95,3))^0.5 -> 1.586756047 | AT106: =AT105/(1+ROUND('Common Inputs'!$J$95,3))^0.5 -> 19.04107256 | AU106: =AU105/(1+ROUND('Common Inputs'!$J$95,3))^0.5 -> 17.45431651 | AV106: =AV105/(1+ROUND('Common Inputs'!$J$95,3))^0.5 -> 15.86756047 | AW106: =AW105/(1+ROUND('Common Inputs'!$J$95,3))^0.5 -> 14.28080442 | AX106: =AX105/(1+ROUND('Common Inputs'!$J$95,3))^0.5 -> 12.69404837 | AY106: =AY105/(1+ROUND('Common Inputs'!$J$95,3))^0.5 -> 11.10729233 | AZ106: =AZ105/(1+ROUND('Common Inputs'!$J$95,3))^0.5 -> 9.52053628 | BA106: =BA105/(1+ROUND('Common Inputs'!$J$95,3))^0.5 -> 7.933780233 | BB106: =BB105/(1+ROUND('Common Inputs'!$J$95,3))^0.5 -> 6.347024187 | BC106: =BC105/(1+ROUND('Common Inputs'!$J$95,3))^0.5 -> 4.76026814 | BD106: =BD105/(1+ROUND('Common Inputs'!$J$95,3))^0.5 -> 3.173512093 | BE106: =BE105/(1+ROUND('Common Inputs'!$J$95,3))^0.5 -> 1.586756047 | BF106: =BF105/(1+ROUND('Common Inputs'!$J$95,3))^0.5 -> 19.04107256 | BG106: =BG105/(1+ROUND('Common Inputs'!$J$95,3))^0.5 -> 17.45431651 | BH106: =BH105/(1+ROUND('Common Inputs'!$J$95,3))^0.5 -> 15.86756047 | BI106: =BI105/(1+ROUND('Common Inputs'!$J$95,3))^0.5 -> 14.28080442 | BJ106: =BJ105/(1+ROUND('Common Inputs'!$J$95,3))^0.5 -> 12.69404837 | BK106: =BK105/(1+ROUND('Common Inputs'!$J$95,3))^0.5 -> 11.10729233 | BL106: =BL105/(1+ROUND('Common Inputs'!$J$95,3))^0.5 -> 9.52053628 | BM106: =BM105/(1+ROUND('Common Inputs'!$J$95,3))^0.5 -> 7.933780233 | BN106: =BN105/(1+ROUND('Common Inputs'!$J$95,3))^0.5 -> 6.347024187 | BO106: =BO105/(1+ROUND('Common Inputs'!$J$95,3))^0.5 -> 4.76026814 | BP106: =BP105/(1+ROUND('Common Inputs'!$J$95,3))^0.5 -> 3.173512093 | BQ106: =BQ105/(1+ROUND('Common Inputs'!$J$95,3))^0.5 -> 1.586756047 | BR106: =BR105/(1+ROUND('Common Inputs'!$J$95,3))^0.5 -> 19.04107256 | BS106: =BS105/(1+ROUND('Common Inputs'!$J$95,3))^0.5 -> 17.45431651 | BT106: =BT105/(1+ROUND('Common Inputs'!$J$95,3))^0.5 -> 15.86756047 | BU106: =BU105/(1+ROUND('Common Inputs'!$J$95,3))^0.5 -> 14.28080442 | BV106: =BV105/(1+ROUND('Common Inputs'!$J$95,3))^0.5 -> 12.69404837 | BW106: =BW105/(1+ROUND('Common Inputs'!$J$95,3))^0.5 -> 11.10729233 | BX106: =BX105/(1+ROUND('Common Inputs'!$J$95,3))^0.5 -> 9.52053628 | BY106: =BY105/(1+ROUND('Common Inputs'!$J$95,3))^0.5 -> 7.933780233 | BZ106: =BZ105/(1+ROUND('Common Inputs'!$J$95,3))^0.5 -> 6.347024187 | CA106: =CA105/(1+ROUND('Common Inputs'!$J$95,3))^0.5 -> 4.76026814 | CB106: =CB105/(1+ROUND('Common Inputs'!$J$95,3))^0.5 -> 3.173512093 | CC106: =CC105/(1+ROUND('Common Inputs'!$J$95,3))^0.5 -> 1.586756047 | CD106: =CD105/(1+ROUND('Common Inputs'!$J$95,3))^0.5 -> 19.04107256 | CE106: =CE105/(1+ROUND('Common Inputs'!$J$95,3))^0.5 -> 17.45431651 | CF106: =CF105/(1+ROUND('Common Inputs'!$J$95,3))^0.5 -> 15.86756047 | CG106: =CG105/(1+ROUND('Common Inputs'!$J$95,3))^0.5 -> 14.28080442 | CH106: =CH105/(1+ROUND('Common Inputs'!$J$95,3))^0.5 -> 12.69404837 | CI106: =CI105/(1+ROUND('Common Inputs'!$J$95,3))^0.5 -> 11.10729233 | CJ106: =CJ105/(1+ROUND('Common Inputs'!$J$95,3))^0.5 -> 9.52053628 | CK106: =CK105/(1+ROUND('Common Inputs'!$J$95,3))^0.5 -> 7.933780233 | CL106: =CL105/(1+ROUND('Common Inputs'!$J$95,3))^0.5 -> 6.347024187 | CM106: =CM105/(1+ROUND('Common Inputs'!$J$95,3))^0.5 -> 4.76026814 | CN106: =CN105/(1+ROUND('Common Inputs'!$J$95,3))^0.5 -> 3.173512093 | CO106: =CO105/(1+ROUND('Common Inputs'!$J$95,3))^0.5 -> 1.586756047 | CP106: =CP105/(1+ROUND('Common Inputs'!$J$95,3))^0.5 -> 19.04107256 | CQ106: =CQ105/(1+ROUND('Common Inputs'!$J$95,3))^0.5 -> 17.45431651 | CR106: =CR105/(1+ROUND('Common Inputs'!$J$95,3))^0.5 -> 15.86756047 | CS106: =CS105/(1+ROUND('Common Inputs'!$J$95,3))^0.5 -> 14.28080442 | CT106: =CT105/(1+ROUND('Common Inputs'!$J$95,3))^0.5 -> 12.69404837 | CU106: =CU105/(1+ROUND('Common Inputs'!$J$95,3))^0.5 -> 11.10729233 | CV106: =CV105/(1+ROUND('Common Inputs'!$J$95,3))^0.5 -> 9.52053628 | CW106: =CW105/(1+ROUND('Common Inputs'!$J$95,3))^0.5 -> 7.933780233 | CX106: =CX105/(1+ROUND('Common Inputs'!$J$95,3))^0.5 -> 6.347024187 | CY106: =CY105/(1+ROUND('Common Inputs'!$J$95,3))^0.5 -> 4.76026814 | CZ106: =CZ105/(1+ROUND('Common Inputs'!$J$95,3))^0.5 -> 3.173512093 | DA106: =DA105/(1+ROUND('Common Inputs'!$J$95,3))^0.5 -> 1.586756047 | DB106: =DB105/(1+ROUND('Common Inputs'!$J$95,3))^0.5 -> 19.04107256 | DC106: =DC105/(1+ROUND('Common Inputs'!$J$95,3))^0.5 -> 17.45431651 | DD106: =DD105/(1+ROUND('Common Inputs'!$J$95,3))^0.5 -> 15.86756047 | DE106: =DE105/(1+ROUND('Common Inputs'!$J$95,3))^0.5 -> 14.28080442 | DF106: =DF105/(1+ROUND('Common Inputs'!$J$95,3))^0.5 -> 12.69404837 | DG106: =DG105/(1+ROUND('Common Inputs'!$J$95,3))^0.5 -> 11.10729233 | DH106: =DH105/(1+ROUND('Common Inputs'!$J$95,3))^0.5 -> 9.52053628 | DI106: =DI105/(1+ROUND('Common Inputs'!$J$95,3))^0.5 -> 7.933780233 | DJ106: =DJ105/(1+ROUND('Common Inputs'!$J$95,3))^0.5 -> 6.347024187 | DK106: =DK105/(1+ROUND('Common Inputs'!$J$95,3))^0.5 -> 4.76026814 | DL106: =DL105/(1+ROUND('Common Inputs'!$J$95,3))^0.5 -> 3.173512093 | DM106: =DM105/(1+ROUND('Common Inputs'!$J$95,3))^0.5 -> 1.586756047 | DN106: =DN105/(1+ROUND('Common Inputs'!$J$95,3))^0.5 -> 19.04107256 | DO106: =DO105/(1+ROUND('Common Inputs'!$J$95,3))^0.5 -> 17.45431651 | DP106: =DP105/(1+ROUND('Common Inputs'!$J$95,3))^0.5 -> 15.86756047 | DQ106: =DQ105/(1+ROUND('Common Inputs'!$J$95,3))^0.5 -> 14.28080442 | DR106: =DR105/(1+ROUND('Common Inputs'!$J$95,3))^0.5 -> 12.69404837 | DS106: =DS105/(1+ROUND('Common Inputs'!$J$95,3))^0.5 -> 11.10729233 | DT106: =DT105/(1+ROUND('Common Inputs'!$J$95,3))^0.5 -> 9.52053628 | DU106: =DU105/(1+ROUND('Common Inputs'!$J$95,3))^0.5 -> 7.933780233 | DV106: =DV105/(1+ROUND('Common Inputs'!$J$95,3))^0.5 -> 6.347024187 | DW106: =DW105/(1+ROUND('Common Inputs'!$J$95,3))^0.5 -> 4.76026814 | DX106: =DX105/(1+ROUND('Common Inputs'!$J$95,3))^0.5 -> 3.173512093 | DY106: =DY105/(1+ROUND('Common Inputs'!$J$95,3))^0.5 -> 1.586756047 | DZ106: =DZ105/(1+ROUND('Common Inputs'!$J$95,3))^0.5 -> 19.04107256 | EA106: =EA105/(1+ROUND('Common Inputs'!$J$95,3))^0.5 -> 17.45431651 | EB106: =EB105/(1+ROUND('Common Inputs'!$J$95,3))^0.5 -> 15.86756047 | EC106: =EC105/(1+ROUND('Common Inputs'!$J$95,3))^0.5 -> 14.28080442 | ED106: =ED105/(1+ROUND('Common Inputs'!$J$95,3))^0.5 -> 12.69404837
D108: Capital maintenance check
D110: Opening assets | J110: =J98 -> 0 | K110: 364.8333333 | L110: 331.6666667 | M110: 298.5 | N110: 265.3333333 | O110: 232.1666667 | P110: 199 | Q110: 165.8333333 | R110: 132.6666667 | S110: 99.5 | T110: 66.33333333 | U110: 33.16666667 | V110: 0 | W110: 364.8333333 | X110: 331.6666667 | Y110: 298.5 | Z110: 265.3333333 | AA110: 232.1666667 | AB110: 199 | AC110: 165.8333333 | AD110: 132.6666667 | AE110: 99.5 | AF110: 66.33333333 | AG110: 33.16666667 | AH110: 0 | AI110: 364.8333333 | AJ110: 331.6666667 | AK110: 298.5 | AL110: 265.3333333 | AM110: 232.1666667 | AN110: 199 | AO110: 165.8333333 | AP110: 132.6666667 | AQ110: 99.5 | AR110: 66.33333333 | AS110: 33.16666667 | AT110: 0 | AU110: 364.8333333 | AV110: 331.6666667 | AW110: 298.5 | AX110: 265.3333333 | AY110: 232.1666667 | AZ110: 199 | BA110: 165.8333333 | BB110: 132.6666667 | BC110: 99.5 | BD110: 66.33333333 | BE110: 33.16666667 | BF110: 0 | BG110: 364.8333333 | BH110: 331.6666667 | BI110: 298.5 | BJ110: 265.3333333 | BK110: 232.1666667 | BL110: 199 | BM110: 165.8333333 | BN110: 132.6666667 | BO110: 99.5 | BP110: 66.33333333 | BQ110: 33.16666667 | BR110: 0 | BS110: 364.8333333 | BT110: 331.6666667 | BU110: 298.5 | BV110: =BV98 -> 265.3333333 | BW110: 232.1666667 | BX110: 199 | BY110: 165.8333333 | BZ110: 132.6666667 | CA110: 99.5 | CB110: 66.33333333 | CC110: 33.16666667 | CD110: 0 | CE110: 364.8333333 | CF110: 331.6666667 | CG110: 298.5 | CH110: 265.3333333 | CI110: 232.1666667 | CJ110: 199 | CK110: 165.8333333 | CL110: 132.6666667 | CM110: 99.5 | CN110: 66.33333333 | CO110: 33.16666667 | CP110: 0 | CQ110: 364.8333333 | CR110: 331.6666667 | CS110: 298.5 | CT110: 265.3333333 | CU110: 232.1666667 | CV110: 199 | CW110: 165.8333333 | CX110: 132.6666667 | CY110: 99.5 | CZ110: 66.33333333 | DA110: 33.16666667 | DB110: 0 | DC110: 364.8333333 | DD110: 331.6666667 | DE110: 298.5 | DF110: 265.3333333 | DG110: 232.1666667 | DH110: 199 | DI110: 165.8333333 | DJ110: 132.6666667 | DK110: 99.5 | DL110: 66.33333333 | DM110: 33.16666667 | DN110: 0 | DO110: 364.8333333 | DP110: 331.6666667 | DQ110: 298.5 | DR110: 265.3333333 | DS110: 232.1666667 | DT110: 199 | DU110: 165.8333333 | DV110: 132.6666667 | DW110: 99.5 | DX110: 66.33333333 | DY110: 33.16666667 | DZ110: 0 | EA110: 364.8333333 | EB110: 331.6666667 | EC110: 298.5 | ED110: 265.3333333
D111: Capex | J111: 398 | K111: 0 | L111: 0 | M111: 0 | N111: 0 | O111: 0 | P111: 0 | Q111: 0 | R111: 0 | S111: 0 | T111: 0 | U111: 0 | V111: 398 | W111: 0 | X111: 0 | Y111: 0 | Z111: 0 | AA111: 0 | AB111: 0 | AC111: 0 | AD111: 0 | AE111: 0 | AF111: 0 | AG111: 0 | AH111: 398 | AI111: 0 | AJ111: 0 | AK111: 0 | AL111: 0 | AM111: 0 | AN111: 0 | AO111: 0 | AP111: 0 | AQ111: 0 | AR111: 0 | AS111: 0 | AT111: 398 | AU111: 0 | AV111: 0 | AW111: 0 | AX111: 0 | AY111: 0 | AZ111: 0 | BA111: 0 | BB111: 0 | BC111: 0 | BD111: 0 | BE111: 0 | BF111: 398 | BG111: 0 | BH111: 0 | BI111: 0 | BJ111: 0 | BK111: 0 | BL111: 0 | BM111: 0 | BN111: 0 | BO111: 0 | BP111: 0 | BQ111: 0 | BR111: 398 | BS111: 0 | BT111: 0 | BU111: 0 | BV111: 0 | BW111: 0 | BX111: 0 | BY111: 0 | BZ111: 0 | CA111: 0 | CB111: 0 | CC111: 0 | CD111: 398 | CE111: 0 | CF111: 0 | CG111: 0 | CH111: 0 | CI111: 0 | CJ111: 0 | CK111: 0 | CL111: 0 | CM111: 0 | CN111: 0 | CO111: 0 | CP111: 398 | CQ111: 0 | CR111: 0 | CS111: 0 | CT111: 0 | CU111: 0 | CV111: 0 | CW111: 0 | CX111: 0 | CY111: 0 | CZ111: 0 | DA111: 0 | DB111: 398 | DC111: 0 | DD111: 0 | DE111: 0 | DF111: 0 | DG111: 0 | DH111: 0 | DI111: 0 | DJ111: 0 | DK111: 0 | DL111: 0 | DM111: 0 | DN111: 398 | DO111: 0 | DP111: 0 | DQ111: 0 | DR111: 0 | DS111: 0 | DT111: 0 | DU111: 0 | DV111: 0 | DW111: 0 | DX111: 0 | DY111: 0 | DZ111: 398 | EA111: 0 | EB111: 0 | EC111: 0 | ED111: 0
D112: NPV of investment in assets | J112: =J110+J111 -> 398 | K112: =K110+K111 -> 364.8333333 | L112: 331.6666667 | M112: 298.5 | N112: 265.3333333 | O112: 232.1666667 | P112: 199 | Q112: 165.8333333 | R112: 132.6666667 | S112: 99.5 | T112: 66.33333333 | U112: 33.16666667 | V112: 398 | W112: 364.8333333 | X112: 331.6666667 | Y112: 298.5 | Z112: 265.3333333 | AA112: 232.1666667 | AB112: 199 | AC112: 165.8333333 | AD112: 132.6666667 | AE112: 99.5 | AF112: 66.33333333 | AG112: 33.16666667 | AH112: 398 | AI112: 364.8333333 | AJ112: 331.6666667 | AK112: 298.5 | AL112: 265.3333333 | AM112: 232.1666667 | AN112: 199 | AO112: 165.8333333 | AP112: 132.6666667 | AQ112: 99.5 | AR112: 66.33333333 | AS112: 33.16666667 | AT112: 398 | AU112: 364.8333333 | AV112: 331.6666667 | AW112: 298.5 | AX112: 265.3333333 | AY112: 232.1666667 | AZ112: 199 | BA112: 165.8333333 | BB112: 132.6666667 | BC112: 99.5 | BD112: 66.33333333 | BE112: 33.16666667 | BF112: 398 | BG112: 364.8333333 | BH112: 331.6666667 | BI112: 298.5 | BJ112: 265.3333333 | BK112: 232.1666667 | BL112: 199 | BM112: 165.8333333 | BN112: 132.6666667 | BO112: 99.5 | BP112: 66.33333333 | BQ112: 33.16666667 | BR112: 398 | BS112: 364.8333333 | BT112: 331.6666667 | BU112: 298.5 | BV112: 265.3333333 | BW112: =BW110+BW111 -> 232.1666667 | BX112: 199 | BY112: 165.8333333 | BZ112: 132.6666667 | CA112: 99.5 | CB112: 66.33333333 | CC112: 33.16666667 | CD112: 398 | CE112: 364.8333333 | CF112: 331.6666667 | CG112: 298.5 | CH112: 265.3333333 | CI112: 232.1666667 | CJ112: 199 | CK112: 165.8333333 | CL112: 132.6666667 | CM112: 99.5 | CN112: 66.33333333 | CO112: 33.16666667 | CP112: 398 | CQ112: 364.8333333 | CR112: 331.6666667 | CS112: 298.5 | CT112: 265.3333333 | CU112: 232.1666667 | CV112: 199 | CW112: 165.8333333 | CX112: 132.6666667 | CY112: 99.5 | CZ112: 66.33333333 | DA112: 33.16666667 | DB112: 398 | DC112: 364.8333333 | DD112: 331.6666667 | DE112: 298.5 | DF112: 265.3333333 | DG112: 232.1666667 | DH112: 199 | DI112: 165.8333333 | DJ112: 132.6666667 | DK112: 99.5 | DL112: 66.33333333 | DM112: 33.16666667 | DN112: 398 | DO112: 364.8333333 | DP112: 331.6666667 | DQ112: 298.5 | DR112: 265.3333333 | DS112: 232.1666667 | DT112: 199 | DU112: 165.8333333 | DV112: 132.6666667 | DW112: 99.5 | DX112: 66.33333333 | DY112: 33.16666667 | DZ112: 398 | EA112: 364.8333333 | EB112: 331.6666667 | EC112: 298.5 | ED112: 265.3333333
D114: Return on assets (year end value) | J114: =J105 -> 19.502 | K114: 17.87683333 | L114: 16.25166667 | M114: 14.6265 | N114: 13.00133333 | O114: 11.37616667 | P114: 9.751 | Q114: 8.125833333 | R114: 6.500666667 | S114: 4.8755 | T114: 3.250333333 | U114: 1.625166667 | V114: 19.502 | W114: 17.87683333 | X114: 16.25166667 | Y114: 14.6265 | Z114: 13.00133333 | AA114: 11.37616667 | AB114: 9.751 | AC114: 8.125833333 | AD114: 6.500666667 | AE114: 4.8755 | AF114: 3.250333333 | AG114: 1.625166667 | AH114: 19.502 | AI114: 17.87683333 | AJ114: 16.25166667 | AK114: 14.6265 | AL114: 13.00133333 | AM114: 11.37616667 | AN114: 9.751 | AO114: 8.125833333 | AP114: 6.500666667 | AQ114: 4.8755 | AR114: 3.250333333 | AS114: 1.625166667 | AT114: 19.502 | AU114: 17.87683333 | AV114: 16.25166667 | AW114: 14.6265 | AX114: 13.00133333 | AY114: 11.37616667 | AZ114: 9.751 | BA114: 8.125833333 | BB114: 6.500666667 | BC114: 4.8755 | BD114: 3.250333333 | BE114: 1.625166667 | BF114: 19.502 | BG114: 17.87683333 | BH114: 16.25166667 | BI114: 14.6265 | BJ114: 13.00133333 | BK114: 11.37616667 | BL114: 9.751 | BM114: 8.125833333 | BN114: 6.500666667 | BO114: 4.8755 | BP114: 3.250333333 | BQ114: 1.625166667 | BR114: 19.502 | BS114: 17.87683333 | BT114: 16.25166667 | BU114: 14.6265 | BV114: =BV105 -> 13.00133333 | BW114: 11.37616667 | BX114: 9.751 | BY114: 8.125833333 | BZ114: 6.500666667 | CA114: 4.8755 | CB114: 3.250333333 | CC114: 1.625166667 | CD114: 19.502 | CE114: 17.87683333 | CF114: 16.25166667 | CG114: 14.6265 | CH114: 13.00133333 | CI114: 11.37616667 | CJ114: 9.751 | CK114: 8.125833333 | CL114: 6.500666667 | CM114: 4.8755 | CN114: 3.250333333 | CO114: 1.625166667 | CP114: 19.502 | CQ114: 17.87683333 | CR114: 16.25166667 | CS114: 14.6265 | CT114: 13.00133333 | CU114: 11.37616667 | CV114: 9.751 | CW114: 8.125833333 | CX114: 6.500666667 | CY114: 4.8755 | CZ114: 3.250333333 | DA114: 1.625166667 | DB114: 19.502 | DC114: 17.87683333 | DD114: 16.25166667 | DE114: 14.6265 | DF114: 13.00133333 | DG114: 11.37616667 | DH114: 9.751 | DI114: 8.125833333 | DJ114: 6.500666667 | DK114: 4.8755 | DL114: 3.250333333 | DM114: 1.625166667 | DN114: 19.502 | DO114: 17.87683333 | DP114: 16.25166667 | DQ114: 14.6265 | DR114: 13.00133333 | DS114: 11.37616667 | DT114: 9.751 | DU114: 8.125833333 | DV114: 6.500666667 | DW114: 4.8755 | DX114: 3.250333333 | DY114: 1.625166667 | DZ114: 19.502 | EA114: 17.87683333 | EB114: 16.25166667 | EC114: 14.6265 | ED114: 13.00133333
D115: Depreciation (year end value) | J115: =J100 -> 33.16666667 | K115: 33.16666667 | L115: 33.16666667 | M115: 33.16666667 | N115: 33.16666667 | O115: 33.16666667 | P115: 33.16666667 | Q115: 33.16666667 | R115: 33.16666667 | S115: 33.16666667 | T115: 33.16666667 | U115: 33.16666667 | V115: 33.16666667 | W115: 33.16666667 | X115: 33.16666667 | Y115: 33.16666667 | Z115: 33.16666667 | AA115: 33.16666667 | AB115: 33.16666667 | AC115: 33.16666667 | AD115: 33.16666667 | AE115: 33.16666667 | AF115: 33.16666667 | AG115: 33.16666667 | AH115: 33.16666667 | AI115: 33.16666667 | AJ115: 33.16666667 | AK115: 33.16666667 | AL115: 33.16666667 | AM115: 33.16666667 | AN115: 33.16666667 | AO115: 33.16666667 | AP115: 33.16666667 | AQ115: 33.16666667 | AR115: 33.16666667 | AS115: 33.16666667 | AT115: 33.16666667 | AU115: 33.16666667 | AV115: 33.16666667 | AW115: 33.16666667 | AX115: 33.16666667 | AY115: 33.16666667 | AZ115: 33.16666667 | BA115: 33.16666667 | BB115: 33.16666667 | BC115: 33.16666667 | BD115: 33.16666667 | BE115: 33.16666667 | BF115: 33.16666667 | BG115: 33.16666667 | BH115: 33.16666667 | BI115: 33.16666667 | BJ115: 33.16666667 | BK115: 33.16666667 | BL115: 33.16666667 | BM115: 33.16666667 | BN115: 33.16666667 | BO115: 33.16666667 | BP115: 33.16666667 | BQ115: 33.16666667 | BR115: 33.16666667 | BS115: 33.16666667 | BT115: 33.16666667 | BU115: 33.16666667 | BV115: =BV100 -> 33.16666667 | BW115: 33.16666667 | BX115: 33.16666667 | BY115: 33.16666667 | BZ115: 33.16666667 | CA115: 33.16666667 | CB115: 33.16666667 | CC115: 33.16666667 | CD115: 33.16666667 | CE115: 33.16666667 | CF115: 33.16666667 | CG115: 33.16666667 | CH115: 33.16666667 | CI115: 33.16666667 | CJ115: 33.16666667 | CK115: 33.16666667 | CL115: 33.16666667 | CM115: 33.16666667 | CN115: 33.16666667 | CO115: 33.16666667 | CP115: 33.16666667 | CQ115: 33.16666667 | CR115: 33.16666667 | CS115: 33.16666667 | CT115: 33.16666667 | CU115: 33.16666667 | CV115: 33.16666667 | CW115: 33.16666667 | CX115: 33.16666667 | CY115: 33.16666667 | CZ115: 33.16666667 | DA115: 33.16666667 | DB115: 33.16666667 | DC115: 33.16666667 | DD115: 33.16666667 | DE115: 33.16666667 | DF115: 33.16666667 | DG115: 33.16666667 | DH115: 33.16666667 | DI115: 33.16666667 | DJ115: 33.16666667 | DK115: 33.16666667 | DL115: 33.16666667 | DM115: 33.16666667 | DN115: 33.16666667 | DO115: 33.16666667 | DP115: 33.16666667 | DQ115: 33.16666667 | DR115: 33.16666667 | DS115: 33.16666667 | DT115: 33.16666667 | DU115: 33.16666667 | DV115: 33.16666667 | DW115: 33.16666667 | DX115: 33.16666667 | DY115: 33.16666667 | DZ115: 33.16666667 | EA115: 33.16666667 | EB115: 33.16666667 | EC115: 33.16666667 | ED115: 33.16666667
D116: Closing asset value | J116: 364.8333333 | K116: 331.6666667 | L116: 298.5 | M116: 265.3333333 | N116: 232.1666667 | O116: 199 | P116: 165.8333333 | Q116: 132.6666667 | R116: 99.5 | S116: 66.33333333 | T116: 33.16666667 | U116: 0 | V116: 364.8333333 | W116: 331.6666667 | X116: 298.5 | Y116: 265.3333333 | Z116: 232.1666667 | AA116: 199 | AB116: 165.8333333 | AC116: 132.6666667 | AD116: 99.5 | AE116: 66.33333333 | AF116: 33.16666667 | AG116: 0 | AH116: 364.8333333 | AI116: 331.6666667 | AJ116: 298.5 | AK116: 265.3333333 | AL116: 232.1666667 | AM116: 199 | AN116: 165.8333333 | AO116: 132.6666667 | AP116: 99.5 | AQ116: 66.33333333 | AR116: 33.16666667 | AS116: 0 | AT116: 364.8333333 | AU116: 331.6666667 | AV116: 298.5 | AW116: 265.3333333 | AX116: 232.1666667 | AY116: 199 | AZ116: 165.8333333 | BA116: 132.6666667 | BB116: 99.5 | BC116: 66.33333333 | BD116: 33.16666667 | BE116: 0 | BF116: 364.8333333 | BG116: 331.6666667 | BH116: 298.5 | BI116: 265.3333333 | BJ116: 232.1666667 | BK116: 199 | BL116: 165.8333333 | BM116: 132.6666667 | BN116: 99.5 | BO116: 66.33333333 | BP116: 33.16666667 | BQ116: 0 | BR116: 364.8333333 | BS116: 331.6666667 | BT116: 298.5 | BU116: 265.3333333 | BV116: 232.1666667 | BW116: 199 | BX116: 165.8333333 | BY116: 132.6666667 | BZ116: 99.5 | CA116: 66.33333333 | CB116: 33.16666667 | CC116: 0 | CD116: 364.8333333 | CE116: 331.6666667 | CF116: 298.5 | CG116: 265.3333333 | CH116: 232.1666667 | CI116: 199 | CJ116: 165.8333333 | CK116: 132.6666667 | CL116: 99.5 | CM116: 66.33333333 | CN116: 33.16666667 | CO116: 0 | CP116: 364.8333333 | CQ116: 331.6666667 | CR116: 298.5 | CS116: 265.3333333 | CT116: 232.1666667 | CU116: 199 | CV116: 165.8333333 | CW116: 132.6666667 | CX116: 99.5 | CY116: 66.33333333 | CZ116: 33.16666667 | DA116: 0 | DB116: 364.8333333 | DC116: 331.6666667 | DD116: 298.5 | DE116: 265.3333333 | DF116: 232.1666667 | DG116: 199 | DH116: 165.8333333 | DI116: 132.6666667 | DJ116: 99.5 | DK116: 66.33333333 | DL116: 33.16666667 | DM116: 0 | DN116: 364.8333333 | DO116: 331.6666667 | DP116: 298.5 | DQ116: 265.3333333 | DR116: 232.1666667 | DS116: 199 | DT116: 165.8333333 | DU116: 132.6666667 | DV116: 99.5 | DW116: 66.33333333 | DX116: 33.16666667 | DY116: 0 | DZ116: 364.8333333 | EA116: 331.6666667 | EB116: 298.5 | EC116: 265.3333333 | ED116: 232.1666667
D117: NPV of asset returns | J117: =SUM(J114:J116)/(1+ROUND('Common Inputs'!$J$95,3)) -> 398 | K117: =SUM(K114:K116)/(1+ROUND('Common Inputs'!$J$95,3)) -> 364.8333333 | L117: =SUM(L114:L116)/(1+ROUND('Common Inputs'!$J$95,3)) -> 331.6666667 | M117: =SUM(M114:M116)/(1+ROUND('Common Inputs'!$J$95,3)) -> 298.5 | N117: =SUM(N114:N116)/(1+ROUND('Common Inputs'!$J$95,3)) -> 265.3333333 | O117: =SUM(O114:O116)/(1+ROUND('Common Inputs'!$J$95,3)) -> 232.1666667 | P117: =SUM(P114:P116)/(1+ROUND('Common Inputs'!$J$95,3)) -> 199 | Q117: =SUM(Q114:Q116)/(1+ROUND('Common Inputs'!$J$95,3)) -> 165.8333333 | R117: =SUM(R114:R116)/(1+ROUND('Common Inputs'!$J$95,3)) -> 132.6666667 | S117: =SUM(S114:S116)/(1+ROUND('Common Inputs'!$J$95,3)) -> 99.5 | T117: =SUM(T114:T116)/(1+ROUND('Common Inputs'!$J$95,3)) -> 66.33333333 | U117: =SUM(U114:U116)/(1+ROUND('Common Inputs'!$J$95,3)) -> 33.16666667 | V117: =SUM(V114:V116)/(1+ROUND('Common Inputs'!$J$95,3)) -> 398 | W117: =SUM(W114:W116)/(1+ROUND('Common Inputs'!$J$95,3)) -> 364.8333333 | X117: =SUM(X114:X116)/(1+ROUND('Common Inputs'!$J$95,3)) -> 331.6666667 | Y117: =SUM(Y114:Y116)/(1+ROUND('Common Inputs'!$J$95,3)) -> 298.5 | Z117: =SUM(Z114:Z116)/(1+ROUND('Common Inputs'!$J$95,3)) -> 265.3333333 | AA117: =SUM(AA114:AA116)/(1+ROUND('Common Inputs'!$J$95,3)) -> 232.1666667 | AB117: =SUM(AB114:AB116)/(1+ROUND('Common Inputs'!$J$95,3)) -> 199 | AC117: =SUM(AC114:AC116)/(1+ROUND('Common Inputs'!$J$95,3)) -> 165.8333333 | AD117: =SUM(AD114:AD116)/(1+ROUND('Common Inputs'!$J$95,3)) -> 132.6666667 | AE117: =SUM(AE114:AE116)/(1+ROUND('Common Inputs'!$J$95,3)) -> 99.5 | AF117: =SUM(AF114:AF116)/(1+ROUND('Common Inputs'!$J$95,3)) -> 66.33333333 | AG117: =SUM(AG114:AG116)/(1+ROUND('Common Inputs'!$J$95,3)) -> 33.16666667 | AH117: =SUM(AH114:AH116)/(1+ROUND('Common Inputs'!$J$95,3)) -> 398 | AI117: =SUM(AI114:AI116)/(1+ROUND('Common Inputs'!$J$95,3)) -> 364.8333333 | AJ117: =SUM(AJ114:AJ116)/(1+ROUND('Common Inputs'!$J$95,3)) -> 331.6666667 | AK117: =SUM(AK114:AK116)/(1+ROUND('Common Inputs'!$J$95,3)) -> 298.5 | AL117: =SUM(AL114:AL116)/(1+ROUND('Common Inputs'!$J$95,3)) -> 265.3333333 | AM117: =SUM(AM114:AM116)/(1+ROUND('Common Inputs'!$J$95,3)) -> 232.1666667 | AN117: =SUM(AN114:AN116)/(1+ROUND('Common Inputs'!$J$95,3)) -> 199 | AO117: =SUM(AO114:AO116)/(1+ROUND('Common Inputs'!$J$95,3)) -> 165.8333333 | AP117: =SUM(AP114:AP116)/(1+ROUND('Common Inputs'!$J$95,3)) -> 132.6666667 | AQ117: =SUM(AQ114:AQ116)/(1+ROUND('Common Inputs'!$J$95,3)) -> 99.5 | AR117: =SUM(AR114:AR116)/(1+ROUND('Common Inputs'!$J$95,3)) -> 66.33333333 | AS117: =SUM(AS114:AS116)/(1+ROUND('Common Inputs'!$J$95,3)) -> 33.16666667 | AT117: =SUM(AT114:AT116)/(1+ROUND('Common Inputs'!$J$95,3)) -> 398 | AU117: =SUM(AU114:AU116)/(1+ROUND('Common Inputs'!$J$95,3)) -> 364.8333333 | AV117: =SUM(AV114:AV116)/(1+ROUND('Common Inputs'!$J$95,3)) -> 331.6666667 | AW117: =SUM(AW114:AW116)/(1+ROUND('Common Inputs'!$J$95,3)) -> 298.5 | AX117: =SUM(AX114:AX116)/(1+ROUND('Common Inputs'!$J$95,3)) -> 265.3333333 | AY117: =SUM(AY114:AY116)/(1+ROUND('Common Inputs'!$J$95,3)) -> 232.1666667 | AZ117: =SUM(AZ114:AZ116)/(1+ROUND('Common Inputs'!$J$95,3)) -> 199 | BA117: =SUM(BA114:BA116)/(1+ROUND('Common Inputs'!$J$95,3)) -> 165.8333333 | BB117: =SUM(BB114:BB116)/(1+ROUND('Common Inputs'!$J$95,3)) -> 132.6666667 | BC117: =SUM(BC114:BC116)/(1+ROUND('Common Inputs'!$J$95,3)) -> 99.5 | BD117: =SUM(BD114:BD116)/(1+ROUND('Common Inputs'!$J$95,3)) -> 66.33333333 | BE117: =SUM(BE114:BE116)/(1+ROUND('Common Inputs'!$J$95,3)) -> 33.16666667 | BF117: =SUM(BF114:BF116)/(1+ROUND('Common Inputs'!$J$95,3)) -> 398 | BG117: =SUM(BG114:BG116)/(1+ROUND('Common Inputs'!$J$95,3)) -> 364.8333333 | BH117: =SUM(BH114:BH116)/(1+ROUND('Common Inputs'!$J$95,3)) -> 331.6666667 | BI117: =SUM(BI114:BI116)/(1+ROUND('Common Inputs'!$J$95,3)) -> 298.5 | BJ117: =SUM(BJ114:BJ116)/(1+ROUND('Common Inputs'!$J$95,3)) -> 265.3333333 | BK117: =SUM(BK114:BK116)/(1+ROUND('Common Inputs'!$J$95,3)) -> 232.1666667 | BL117: =SUM(BL114:BL116)/(1+ROUND('Common Inputs'!$J$95,3)) -> 199 | BM117: =SUM(BM114:BM116)/(1+ROUND('Common Inputs'!$J$95,3)) -> 165.8333333 | BN117: =SUM(BN114:BN116)/(1+ROUND('Common Inputs'!$J$95,3)) -> 132.6666667 | BO117: =SUM(BO114:BO116)/(1+ROUND('Common Inputs'!$J$95,3)) -> 99.5 | BP117: =SUM(BP114:BP116)/(1+ROUND('Common Inputs'!$J$95,3)) -> 66.33333333 | BQ117: =SUM(BQ114:BQ116)/(1+ROUND('Common Inputs'!$J$95,3)) -> 33.16666667 | BR117: =SUM(BR114:BR116)/(1+ROUND('Common Inputs'!$J$95,3)) -> 398 | BS117: =SUM(BS114:BS116)/(1+ROUND('Common Inputs'!$J$95,3)) -> 364.8333333 | BT117: =SUM(BT114:BT116)/(1+ROUND('Common Inputs'!$J$95,3)) -> 331.6666667 | BU117: =SUM(BU114:BU116)/(1+ROUND('Common Inputs'!$J$95,3)) -> 298.5 | BV117: =SUM(BV114:BV116)/(1+ROUND('Common Inputs'!$J$95,3)) -> 265.3333333 | BW117: =SUM(BW114:BW116)/(1+ROUND('Common Inputs'!$J$95,3)) -> 232.1666667 | BX117: =SUM(BX114:BX116)/(1+ROUND('Common Inputs'!$J$95,3)) -> 199 | BY117: =SUM(BY114:BY116)/(1+ROUND('Common Inputs'!$J$95,3)) -> 165.8333333 | BZ117: =SUM(BZ114:BZ116)/(1+ROUND('Common Inputs'!$J$95,3)) -> 132.6666667 | CA117: =SUM(CA114:CA116)/(1+ROUND('Common Inputs'!$J$95,3)) -> 99.5 | CB117: =SUM(CB114:CB116)/(1+ROUND('Common Inputs'!$J$95,3)) -> 66.33333333 | CC117: =SUM(CC114:CC116)/(1+ROUND('Common Inputs'!$J$95,3)) -> 33.16666667 | CD117: =SUM(CD114:CD116)/(1+ROUND('Common Inputs'!$J$95,3)) -> 398 | CE117: =SUM(CE114:CE116)/(1+ROUND('Common Inputs'!$J$95,3)) -> 364.8333333 | CF117: =SUM(CF114:CF116)/(1+ROUND('Common Inputs'!$J$95,3)) -> 331.6666667 | CG117: =SUM(CG114:CG116)/(1+ROUND('Common Inputs'!$J$95,3)) -> 298.5 | CH117: =SUM(CH114:CH116)/(1+ROUND('Common Inputs'!$J$95,3)) -> 265.3333333 | CI117: =SUM(CI114:CI116)/(1+ROUND('Common Inputs'!$J$95,3)) -> 232.1666667 | CJ117: =SUM(CJ114:CJ116)/(1+ROUND('Common Inputs'!$J$95,3)) -> 199 | CK117: =SUM(CK114:CK116)/(1+ROUND('Common Inputs'!$J$95,3)) -> 165.8333333 | CL117: =SUM(CL114:CL116)/(1+ROUND('Common Inputs'!$J$95,3)) -> 132.6666667 | CM117: =SUM(CM114:CM116)/(1+ROUND('Common Inputs'!$J$95,3)) -> 99.5 | CN117: =SUM(CN114:CN116)/(1+ROUND('Common Inputs'!$J$95,3)) -> 66.33333333 | CO117: =SUM(CO114:CO116)/(1+ROUND('Common Inputs'!$J$95,3)) -> 33.16666667 | CP117: =SUM(CP114:CP116)/(1+ROUND('Common Inputs'!$J$95,3)) -> 398 | CQ117: =SUM(CQ114:CQ116)/(1+ROUND('Common Inputs'!$J$95,3)) -> 364.8333333 | CR117: =SUM(CR114:CR116)/(1+ROUND('Common Inputs'!$J$95,3)) -> 331.6666667 | CS117: =SUM(CS114:CS116)/(1+ROUND('Common Inputs'!$J$95,3)) -> 298.5 | CT117: =SUM(CT114:CT116)/(1+ROUND('Common Inputs'!$J$95,3)) -> 265.3333333 | CU117: =SUM(CU114:CU116)/(1+ROUND('Common Inputs'!$J$95,3)) -> 232.1666667 | CV117: =SUM(CV114:CV116)/(1+ROUND('Common Inputs'!$J$95,3)) -> 199 | CW117: =SUM(CW114:CW116)/(1+ROUND('Common Inputs'!$J$95,3)) -> 165.8333333 | CX117: =SUM(CX114:CX116)/(1+ROUND('Common Inputs'!$J$95,3)) -> 132.6666667 | CY117: =SUM(CY114:CY116)/(1+ROUND('Common Inputs'!$J$95,3)) -> 99.5 | CZ117: =SUM(CZ114:CZ116)/(1+ROUND('Common Inputs'!$J$95,3)) -> 66.33333333 | DA117: =SUM(DA114:DA116)/(1+ROUND('Common Inputs'!$J$95,3)) -> 33.16666667 | DB117: =SUM(DB114:DB116)/(1+ROUND('Common Inputs'!$J$95,3)) -> 398 | DC117: =SUM(DC114:DC116)/(1+ROUND('Common Inputs'!$J$95,3)) -> 364.8333333 | DD117: =SUM(DD114:DD116)/(1+ROUND('Common Inputs'!$J$95,3)) -> 331.6666667 | DE117: =SUM(DE114:DE116)/(1+ROUND('Common Inputs'!$J$95,3)) -> 298.5 | DF117: =SUM(DF114:DF116)/(1+ROUND('Common Inputs'!$J$95,3)) -> 265.3333333 | DG117: =SUM(DG114:DG116)/(1+ROUND('Common Inputs'!$J$95,3)) -> 232.1666667 | DH117: =SUM(DH114:DH116)/(1+ROUND('Common Inputs'!$J$95,3)) -> 199 | DI117: =SUM(DI114:DI116)/(1+ROUND('Common Inputs'!$J$95,3)) -> 165.8333333 | DJ117: =SUM(DJ114:DJ116)/(1+ROUND('Common Inputs'!$J$95,3)) -> 132.6666667 | DK117: =SUM(DK114:DK116)/(1+ROUND('Common Inputs'!$J$95,3)) -> 99.5 | DL117: =SUM(DL114:DL116)/(1+ROUND('Common Inputs'!$J$95,3)) -> 66.33333333 | DM117: =SUM(DM114:DM116)/(1+ROUND('Common Inputs'!$J$95,3)) -> 33.16666667 | DN117: =SUM(DN114:DN116)/(1+ROUND('Common Inputs'!$J$95,3)) -> 398 | DO117: =SUM(DO114:DO116)/(1+ROUND('Common Inputs'!$J$95,3)) -> 364.8333333 | DP117: =SUM(DP114:DP116)/(1+ROUND('Common Inputs'!$J$95,3)) -> 331.6666667 | DQ117: =SUM(DQ114:DQ116)/(1+ROUND('Common Inputs'!$J$95,3)) -> 298.5 | DR117: =SUM(DR114:DR116)/(1+ROUND('Common Inputs'!$J$95,3)) -> 265.3333333 | DS117: =SUM(DS114:DS116)/(1+ROUND('Common Inputs'!$J$95,3)) -> 232.1666667 | DT117: =SUM(DT114:DT116)/(1+ROUND('Common Inputs'!$J$95,3)) -> 199 | DU117: =SUM(DU114:DU116)/(1+ROUND('Common Inputs'!$J$95,3)) -> 165.8333333 | DV117: =SUM(DV114:DV116)/(1+ROUND('Common Inputs'!$J$95,3)) -> 132.6666667 | DW117: =SUM(DW114:DW116)/(1+ROUND('Common Inputs'!$J$95,3)) -> 99.5 | DX117: =SUM(DX114:DX116)/(1+ROUND('Common Inputs'!$J$95,3)) -> 66.33333333 | DY117: =SUM(DY114:DY116)/(1+ROUND('Common Inputs'!$J$95,3)) -> 33.16666667 | DZ117: =SUM(DZ114:DZ116)/(1+ROUND('Common Inputs'!$J$95,3)) -> 398 | EA117: =SUM(EA114:EA116)/(1+ROUND('Common Inputs'!$J$95,3)) -> 364.8333333 | EB117: =SUM(EB114:EB116)/(1+ROUND('Common Inputs'!$J$95,3)) -> 331.6666667 | EC117: =SUM(EC114:EC116)/(1+ROUND('Common Inputs'!$J$95,3)) -> 298.5 | ED117: =SUM(ED114:ED116)/(1+ROUND('Common Inputs'!$J$95,3)) -> 265.3333333
D119: Difference (must=0) | J119: =J117-J112 -> 0 | K119: =K117-K112 -> 0 | L119: 0 | M119: 0 | N119: 0 | O119: 0 | P119: 0 | Q119: 0 | R119: =R117-R112 -> 0 | S119: =S117-S112 -> 0 | T119: =T117-T112 -> 0 | U119: 0 | V119: 0 | W119: 0 | X119: 0 | Y119: 0 | Z119: 0 | AA119: 0 | AB119: 0 | AC119: 0 | AD119: 0 | AE119: 0 | AF119: 0 | AG119: 0 | AH119: 0 | AI119: 0 | AJ119: 0 | AK119: 0 | AL119: 0 | AM119: 0 | AN119: 0 | AO119: 0 | AP119: 0 | AQ119: 0 | AR119: 0 | AS119: 0 | AT119: 0 | AU119: 0 | AV119: 0 | AW119: 0 | AX119: 0 | AY119: 0 | AZ119: 0 | BA119: 0 | BB119: 0 | BC119: 0 | BD119: 0 | BE119: 0 | BF119: 0 | BG119: 0 | BH119: 0 | BI119: 0 | BJ119: 0 | BK119: 0 | BL119: 0 | BM119: 0 | BN119: 0 | BO119: 0 | BP119: 0 | BQ119: 0 | BR119: 0 | BS119: 0 | BT119: 0 | BU119: 0 | BV119: 0 | BW119: 0 | BX119: 0 | BY119: 0 | BZ119: 0 | CA119: 0 | CB119: 0 | CC119: 0 | CD119: 0 | CE119: 0 | CF119: =CF117-CF112 -> 0 | CG119: 0 | CH119: 0 | CI119: 0 | CJ119: 0 | CK119: 0 | CL119: 0 | CM119: 0 | CN119: 0 | CO119: 0 | CP119: 0 | CQ119: 0 | CR119: 0 | CS119: 0 | CT119: 0 | CU119: 0 | CV119: 0 | CW119: 0 | CX119: 0 | CY119: 0 | CZ119: 0 | DA119: 0 | DB119: 0 | DC119: 0 | DD119: 0 | DE119: 0 | DF119: 0 | DG119: 0 | DH119: 0 | DI119: 0 | DJ119: 0 | DK119: 0 | DL119: 0 | DM119: 0 | DN119: 0 | DO119: 0 | DP119: 0 | DQ119: 0 | DR119: 0 | DS119: 0 | DT119: 0 | DU119: 0 | DV119: 0 | DW119: 0 | DX119: 0 | DY119: 0 | DZ119: 0 | EA119: 0 | EB119: 0 | EC119: 0 | ED119: 0
D122: ="Working Capital ("&'Common Inputs'!J9&", "&'Common Inputs'!J8&")" -> Working Capital ($, $2015-16)
D123: Year | J123: =J14 -> 1 | K123: 2 | L123: 3 | M123: 4 | N123: 5 | O123: 6 | P123: 7 | Q123: 8 | R123: 9 | S123: 10 | T123: 11 | U123: 12 | V123: 13 | W123: 14 | X123: 15 | Y123: 16 | Z123: 17 | AA123: 18 | AB123: 19 | AC123: 20 | AD123: 21 | AE123: 22 | AF123: 23 | AG123: 24 | AH123: 25 | AI123: 26 | AJ123: 27 | AK123: 28 | AL123: 29 | AM123: 30 | AN123: 31 | AO123: 32 | AP123: 33 | AQ123: 34 | AR123: 35 | AS123: 36 | AT123: 37 | AU123: 38 | AV123: 39 | AW123: 40 | AX123: 41 | AY123: 42 | AZ123: 43 | BA123: 44 | BB123: 45 | BC123: 46 | BD123: 47 | BE123: 48 | BF123: 49 | BG123: 50 | BH123: 51 | BI123: 52 | BJ123: 53 | BK123: 54 | BL123: 55 | BM123: 56 | BN123: 57 | BO123: 58 | BP123: 59 | BQ123: 60 | BR123: 61 | BS123: 62 | BT123: 63 | BU123: 64 | BV123: =BV14 -> 65 | BW123: 66 | BX123: 67 | BY123: 68 | BZ123: 69 | CA123: 70 | CB123: 71 | CC123: 72 | CD123: 73 | CE123: 74 | CF123: 75 | CG123: 76 | CH123: 77 | CI123: 78 | CJ123: 79 | CK123: 80 | CL123: 81 | CM123: 82 | CN123: 83 | CO123: 84 | CP123: 85 | CQ123: 86 | CR123: 87 | CS123: 88 | CT123: 89 | CU123: 90 | CV123: 91 | CW123: 92 | CX123: 93 | CY123: 94 | CZ123: 95 | DA123: 96 | DB123: 97 | DC123: 98 | DD123: 99 | DE123: 100 | DF123: 101 | DG123: 102 | DH123: 103 | DI123: 104 | DJ123: 105 | DK123: 106 | DL123: 107 | DM123: 108 | DN123: 109 | DO123: 110 | DP123: 111 | DQ123: 112 | DR123: 113 | DS123: 114 | DT123: 115 | DU123: 116 | DV123: 117 | DW123: 118 | DX123: 119 | DY123: 120 | DZ123: 121 | EA123: 122 | EB123: 123 | EC123: 124 | ED123: 125
D126: Receivables (option 1, where revenue = revenue from tariffs in previous year increased by CPI) | J126: 0 | K126: ='Common Inputs'!$J$23/365*J53 -> 26.57204285 | L126: ='Common Inputs'!$J$23/365*K53 -> 26.32778523 | M126: ='Common Inputs'!$J$23/365*L53 -> 26.13811393 | N126: ='Common Inputs'!$J$23/365*M53 -> 25.94837621 | O126: ='Common Inputs'!$J$23/365*N53 -> 25.75824462 | P126: ='Common Inputs'!$J$23/365*O53 -> 25.56772671 | Q126: ='Common Inputs'!$J$23/365*P53 -> 25.37683191 | R126: ='Common Inputs'!$J$23/365*Q53 -> 25.18556941 | S126: ='Common Inputs'!$J$23/365*R53 -> 24.99394817 | T126: ='Common Inputs'!$J$23/365*S53 -> 24.80197694 | U126: ='Common Inputs'!$J$23/365*T53 -> 24.60966427 | V126: ='Common Inputs'!$J$23/365*U53 -> 24.41701847 | W126: ='Common Inputs'!$J$23/365*V53 -> 26.08343214 | X126: ='Common Inputs'!$J$23/365*W53 -> 25.82066643 | Y126: ='Common Inputs'!$J$23/365*X53 -> 25.6431761 | Z126: ='Common Inputs'!$J$23/365*Y53 -> 25.46550888 | AA126: ='Common Inputs'!$J$23/365*Z53 -> 25.28715453 | AB126: ='Common Inputs'!$J$23/365*AA53 -> 25.10812663 | AC126: ='Common Inputs'!$J$23/365*AB53 -> 24.92844159 | AD126: ='Common Inputs'!$J$23/365*AC53 -> 24.74811543 | AE126: ='Common Inputs'!$J$23/365*AD53 -> 24.99124827 | AF126: ='Common Inputs'!$J$23/365*AE53 -> 24.80196028 | AG126: ='Common Inputs'!$J$23/365*AF53 -> 24.60966416 | AH126: ='Common Inputs'!$J$23/365*AG53 -> 24.41701847 | AI126: ='Common Inputs'!$J$23/365*AH53 -> 26.08343214 | AJ126: ='Common Inputs'!$J$23/365*AI53 -> 25.82066643 | AK126: ='Common Inputs'!$J$23/365*AJ53 -> 25.6431761 | AL126: ='Common Inputs'!$J$23/365*AK53 -> 25.46550888 | AM126: ='Common Inputs'!$J$23/365*AL53 -> 25.28715453 | AN126: ='Common Inputs'!$J$23/365*AM53 -> 25.10812663 | AO126: ='Common Inputs'!$J$23/365*AN53 -> 24.92844159 | AP126: ='Common Inputs'!$J$23/365*AO53 -> 24.74811543 | AQ126: ='Common Inputs'!$J$23/365*AP53 -> 24.99124827 | AR126: ='Common Inputs'!$J$23/365*AQ53 -> 24.80196028 | AS126: ='Common Inputs'!$J$23/365*AR53 -> 24.60966416 | AT126: ='Common Inputs'!$J$23/365*AS53 -> 24.41701847 | AU126: ='Common Inputs'!$J$23/365*AT53 -> 26.08343214 | AV126: ='Common Inputs'!$J$23/365*AU53 -> 25.82066643 | AW126: ='Common Inputs'!$J$23/365*AV53 -> 25.6431761 | AX126: ='Common Inputs'!$J$23/365*AW53 -> 25.46550888 | AY126: ='Common Inputs'!$J$23/365*AX53 -> 25.28715453 | AZ126: ='Common Inputs'!$J$23/365*AY53 -> 25.10812663 | BA126: ='Common Inputs'!$J$23/365*AZ53 -> 24.92844159 | BB126: ='Common Inputs'!$J$23/365*BA53 -> 24.74811543 | BC126: ='Common Inputs'!$J$23/365*BB53 -> 24.99124827 | BD126: ='Common Inputs'!$J$23/365*BC53 -> 24.80196028 | BE126: ='Common Inputs'!$J$23/365*BD53 -> 24.60966416 | BF126: ='Common Inputs'!$J$23/365*BE53 -> 24.41701847 | BG126: ='Common Inputs'!$J$23/365*BF53 -> 26.08343214 | BH126: ='Common Inputs'!$J$23/365*BG53 -> 25.82066643 | BI126: ='Common Inputs'!$J$23/365*BH53 -> 25.6431761 | BJ126: ='Common Inputs'!$J$23/365*BI53 -> 25.46550888 | BK126: ='Common Inputs'!$J$23/365*BJ53 -> 25.28715453 | BL126: ='Common Inputs'!$J$23/365*BK53 -> 25.10812663 | BM126: ='Common Inputs'!$J$23/365*BL53 -> 24.92844159 | BN126: ='Common Inputs'!$J$23/365*BM53 -> 24.74811543 | BO126: ='Common Inputs'!$J$23/365*BN53 -> 24.99124827 | BP126: ='Common Inputs'!$J$23/365*BO53 -> 24.80196028 | BQ126: ='Common Inputs'!$J$23/365*BP53 -> 24.60966416 | BR126: ='Common Inputs'!$J$23/365*BQ53 -> 24.41701847 | BS126: ='Common Inputs'!$J$23/365*BR53 -> 26.08343214 | BT126: ='Common Inputs'!$J$23/365*BS53 -> 25.82066643 | BU126: ='Common Inputs'!$J$23/365*BT53 -> 25.6431761 | BV126: ='Common Inputs'!$J$23/365*BU53 -> 25.46550888 | BW126: ='Common Inputs'!$J$23/365*BV53 -> 25.28715453 | BX126: ='Common Inputs'!$J$23/365*BW53 -> 25.10812663 | BY126: ='Common Inputs'!$J$23/365*BX53 -> 24.92844159 | BZ126: ='Common Inputs'!$J$23/365*BY53 -> 24.74811543 | CA126: ='Common Inputs'!$J$23/365*BZ53 -> 24.99124827 | CB126: ='Common Inputs'!$J$23/365*CA53 -> 24.80196028 | CC126: ='Common Inputs'!$J$23/365*CB53 -> 24.60966416 | CD126: ='Common Inputs'!$J$23/365*CC53 -> 24.41701847 | CE126: ='Common Inputs'!$J$23/365*CD53 -> 26.08343214 | CF126: ='Common Inputs'!$J$23/365*CE53 -> 25.82066643 | CG126: ='Common Inputs'!$J$23/365*CF53 -> 25.6431761 | CH126: ='Common Inputs'!$J$23/365*CG53 -> 25.46550888 | CI126: ='Common Inputs'!$J$23/365*CH53 -> 25.28715453 | CJ126: ='Common Inputs'!$J$23/365*CI53 -> 25.10812663 | CK126: ='Common Inputs'!$J$23/365*CJ53 -> 24.92844159 | CL126: ='Common Inputs'!$J$23/365*CK53 -> 24.74811543 | CM126: ='Common Inputs'!$J$23/365*CL53 -> 24.99124827 | CN126: ='Common Inputs'!$J$23/365*CM53 -> 24.80196028 | CO126: ='Common Inputs'!$J$23/365*CN53 -> 24.60966416 | CP126: ='Common Inputs'!$J$23/365*CO53 -> 24.41701847 | CQ126: ='Common Inputs'!$J$23/365*CP53 -> 26.08343214 | CR126: ='Common Inputs'!$J$23/365*CQ53 -> 25.82066643 | CS126: ='Common Inputs'!$J$23/365*CR53 -> 25.6431761 | CT126: ='Common Inputs'!$J$23/365*CS53 -> 25.46550888 | CU126: ='Common Inputs'!$J$23/365*CT53 -> 25.28715453 | CV126: ='Common Inputs'!$J$23/365*CU53 -> 25.10812663 | CW126: ='Common Inputs'!$J$23/365*CV53 -> 24.92844159 | CX126: ='Common Inputs'!$J$23/365*CW53 -> 24.74811543 | CY126: ='Common Inputs'!$J$23/365*CX53 -> 24.99124827 | CZ126: ='Common Inputs'!$J$23/365*CY53 -> 24.80196028 | DA126: ='Common Inputs'!$J$23/365*CZ53 -> 24.60966416 | DB126: ='Common Inputs'!$J$23/365*DA53 -> 24.41701847 | DC126: ='Common Inputs'!$J$23/365*DB53 -> 26.08343214 | DD126: ='Common Inputs'!$J$23/365*DC53 -> 25.82066643 | DE126: ='Common Inputs'!$J$23/365*DD53 -> 25.6431761 | DF126: ='Common Inputs'!$J$23/365*DE53 -> 25.46550888 | DG126: ='Common Inputs'!$J$23/365*DF53 -> 25.28715453 | DH126: ='Common Inputs'!$J$23/365*DG53 -> 25.10812663 | DI126: ='Common Inputs'!$J$23/365*DH53 -> 24.92844159 | DJ126: ='Common Inputs'!$J$23/365*DI53 -> 24.74811543 | DK126: ='Common Inputs'!$J$23/365*DJ53 -> 24.99124827 | DL126: ='Common Inputs'!$J$23/365*DK53 -> 24.80196028 | DM126: ='Common Inputs'!$J$23/365*DL53 -> 24.60966416 | DN126: ='Common Inputs'!$J$23/365*DM53 -> 24.41701847 | DO126: ='Common Inputs'!$J$23/365*DN53 -> 26.08343214 | DP126: ='Common Inputs'!$J$23/365*DO53 -> 25.82066643 | DQ126: ='Common Inputs'!$J$23/365*DP53 -> 25.6431761 | DR126: ='Common Inputs'!$J$23/365*DQ53 -> 25.46550888 | DS126: ='Common Inputs'!$J$23/365*DR53 -> 25.28715453 | DT126: ='Common Inputs'!$J$23/365*DS53 -> 25.10812663 | DU126: ='Common Inputs'!$J$23/365*DT53 -> 24.92844159 | DV126: ='Common Inputs'!$J$23/365*DU53 -> 24.74811543 | DW126: ='Common Inputs'!$J$23/365*DV53 -> 24.99124827 | DX126: ='Common Inputs'!$J$23/365*DW53 -> 24.80196028 | DY126: ='Common Inputs'!$J$23/365*DX53 -> 24.60966416 | DZ126: ='Common Inputs'!$J$23/365*DY53 -> 24.41701847 | EA126: ='Common Inputs'!$J$23/365*DZ53 -> 26.08343214 | EB126: ='Common Inputs'!$J$23/365*EA53 -> 25.82066643 | EC126: ='Common Inputs'!$J$23/365*EB53 -> 25.6431761 | ED126: ='Common Inputs'!$J$23/365*EC53 -> 25.46550888
D127: Inventory @ no. of days opex + net capex | J127: ='Common Inputs'!$J$24/365*SUM(J15:J17,J32) -> 3.052494553 | K127: ='Common Inputs'!$J$24/365*SUM(K15:K17,K32) -> 0.8662026082 | L127: ='Common Inputs'!$J$24/365*SUM(L15:L17,L32) -> 0.8662026082 | M127: ='Common Inputs'!$J$24/365*SUM(M15:M17,M32) -> 0.8662026082 | N127: ='Common Inputs'!$J$24/365*SUM(N15:N17,N32) -> 0.8662026082 | O127: ='Common Inputs'!$J$24/365*SUM(O15:O17,O32) -> 0.8662026082 | P127: ='Common Inputs'!$J$24/365*SUM(P15:P17,P32) -> 0.8662026082 | Q127: ='Common Inputs'!$J$24/365*SUM(Q15:Q17,Q32) -> 0.8662026082 | R127: ='Common Inputs'!$J$24/365*SUM(R15:R17,R32) -> 0.8662026082 | S127: ='Common Inputs'!$J$24/365*SUM(S15:S17,S32) -> 0.8662026082 | T127: ='Common Inputs'!$J$24/365*SUM(T15:T17,T32) -> 0.8662026082 | U127: ='Common Inputs'!$J$24/365*SUM(U15:U17,U32) -> 0.8662026082 | V127: ='Common Inputs'!$J$24/365*SUM(V15:V17,V32) -> 3.047024526 | W127: ='Common Inputs'!$J$24/365*SUM(W15:W17,W32) -> 0.8662026082 | X127: ='Common Inputs'!$J$24/365*SUM(X15:X17,X32) -> 0.8662026082 | Y127: ='Common Inputs'!$J$24/365*SUM(Y15:Y17,Y32) -> 0.8662026082 | Z127: ='Common Inputs'!$J$24/365*SUM(Z15:Z17,Z32) -> 0.8662026082 | AA127: ='Common Inputs'!$J$24/365*SUM(AA15:AA17,AA32) -> 0.8662026082 | AB127: ='Common Inputs'!$J$24/365*SUM(AB15:AB17,AB32) -> 0.8662026082 | AC127: ='Common Inputs'!$J$24/365*SUM(AC15:AC17,AC32) -> 0.8662026082 | AD127: ='Common Inputs'!$J$24/365*SUM(AD15:AD17,AD32) -> 0.8662026082 | AE127: ='Common Inputs'!$J$24/365*SUM(AE15:AE17,AE32) -> 0.8662026082 | AF127: ='Common Inputs'!$J$24/365*SUM(AF15:AF17,AF32) -> 0.8662026082 | AG127: ='Common Inputs'!$J$24/365*SUM(AG15:AG17,AG32) -> 0.8662026082 | AH127: ='Common Inputs'!$J$24/365*SUM(AH15:AH17,AH32) -> 3.047024526 | AI127: ='Common Inputs'!$J$24/365*SUM(AI15:AI17,AI32) -> 0.8662026082 | AJ127: ='Common Inputs'!$J$24/365*SUM(AJ15:AJ17,AJ32) -> 0.8662026082 | AK127: ='Common Inputs'!$J$24/365*SUM(AK15:AK17,AK32) -> 0.8662026082 | AL127: ='Common Inputs'!$J$24/365*SUM(AL15:AL17,AL32) -> 0.8662026082 | AM127: ='Common Inputs'!$J$24/365*SUM(AM15:AM17,AM32) -> 0.8662026082 | AN127: ='Common Inputs'!$J$24/365*SUM(AN15:AN17,AN32) -> 0.8662026082 | AO127: ='Common Inputs'!$J$24/365*SUM(AO15:AO17,AO32) -> 0.8662026082 | AP127: ='Common Inputs'!$J$24/365*SUM(AP15:AP17,AP32) -> 0.8662026082 | AQ127: ='Common Inputs'!$J$24/365*SUM(AQ15:AQ17,AQ32) -> 0.8662026082 | AR127: ='Common Inputs'!$J$24/365*SUM(AR15:AR17,AR32) -> 0.8662026082 | AS127: ='Common Inputs'!$J$24/365*SUM(AS15:AS17,AS32) -> 0.8662026082 | AT127: ='Common Inputs'!$J$24/365*SUM(AT15:AT17,AT32) -> 3.047024526 | AU127: ='Common Inputs'!$J$24/365*SUM(AU15:AU17,AU32) -> 0.8662026082 | AV127: ='Common Inputs'!$J$24/365*SUM(AV15:AV17,AV32) -> 0.8662026082 | AW127: ='Common Inputs'!$J$24/365*SUM(AW15:AW17,AW32) -> 0.8662026082 | AX127: ='Common Inputs'!$J$24/365*SUM(AX15:AX17,AX32) -> 0.8662026082 | AY127: ='Common Inputs'!$J$24/365*SUM(AY15:AY17,AY32) -> 0.8662026082 | AZ127: ='Common Inputs'!$J$24/365*SUM(AZ15:AZ17,AZ32) -> 0.8662026082 | BA127: ='Common Inputs'!$J$24/365*SUM(BA15:BA17,BA32) -> 0.8662026082 | BB127: ='Common Inputs'!$J$24/365*SUM(BB15:BB17,BB32) -> 0.8662026082 | BC127: ='Common Inputs'!$J$24/365*SUM(BC15:BC17,BC32) -> 0.8662026082 | BD127: ='Common Inputs'!$J$24/365*SUM(BD15:BD17,BD32) -> 0.8662026082 | BE127: ='Common Inputs'!$J$24/365*SUM(BE15:BE17,BE32) -> 0.8662026082 | BF127: ='Common Inputs'!$J$24/365*SUM(BF15:BF17,BF32) -> 3.047024526 | BG127: ='Common Inputs'!$J$24/365*SUM(BG15:BG17,BG32) -> 0.8662026082 | BH127: ='Common Inputs'!$J$24/365*SUM(BH15:BH17,BH32) -> 0.8662026082 | BI127: ='Common Inputs'!$J$24/365*SUM(BI15:BI17,BI32) -> 0.8662026082 | BJ127: ='Common Inputs'!$J$24/365*SUM(BJ15:BJ17,BJ32) -> 0.8662026082 | BK127: ='Common Inputs'!$J$24/365*SUM(BK15:BK17,BK32) -> 0.8662026082 | BL127: ='Common Inputs'!$J$24/365*SUM(BL15:BL17,BL32) -> 0.8662026082 | BM127: ='Common Inputs'!$J$24/365*SUM(BM15:BM17,BM32) -> 0.8662026082 | BN127: ='Common Inputs'!$J$24/365*SUM(BN15:BN17,BN32) -> 0.8662026082 | BO127: ='Common Inputs'!$J$24/365*SUM(BO15:BO17,BO32) -> 0.8662026082 | BP127: ='Common Inputs'!$J$24/365*SUM(BP15:BP17,BP32) -> 0.8662026082 | BQ127: ='Common Inputs'!$J$24/365*SUM(BQ15:BQ17,BQ32) -> 0.8662026082 | BR127: ='Common Inputs'!$J$24/365*SUM(BR15:BR17,BR32) -> 3.047024526 | BS127: ='Common Inputs'!$J$24/365*SUM(BS15:BS17,BS32) -> 0.8662026082 | BT127: ='Common Inputs'!$J$24/365*SUM(BT15:BT17,BT32) -> 0.8662026082 | BU127: ='Common Inputs'!$J$24/365*SUM(BU15:BU17,BU32) -> 0.8662026082 | BV127: ='Common Inputs'!$J$24/365*SUM(BV15:BV17,BV32) -> 0.8662026082 | BW127: ='Common Inputs'!$J$24/365*SUM(BW15:BW17,BW32) -> 0.8662026082 | BX127: ='Common Inputs'!$J$24/365*SUM(BX15:BX17,BX32) -> 0.8662026082 | BY127: ='Common Inputs'!$J$24/365*SUM(BY15:BY17,BY32) -> 0.8662026082 | BZ127: ='Common Inputs'!$J$24/365*SUM(BZ15:BZ17,BZ32) -> 0.8662026082 | CA127: ='Common Inputs'!$J$24/365*SUM(CA15:CA17,CA32) -> 0.8662026082 | CB127: ='Common Inputs'!$J$24/365*SUM(CB15:CB17,CB32) -> 0.8662026082 | CC127: ='Common Inputs'!$J$24/365*SUM(CC15:CC17,CC32) -> 0.8662026082 | CD127: ='Common Inputs'!$J$24/365*SUM(CD15:CD17,CD32) -> 3.047024526 | CE127: ='Common Inputs'!$J$24/365*SUM(CE15:CE17,CE32) -> 0.8662026082 | CF127: ='Common Inputs'!$J$24/365*SUM(CF15:CF17,CF32) -> 0.8662026082 | CG127: ='Common Inputs'!$J$24/365*SUM(CG15:CG17,CG32) -> 0.8662026082 | CH127: ='Common Inputs'!$J$24/365*SUM(CH15:CH17,CH32) -> 0.8662026082 | CI127: ='Common Inputs'!$J$24/365*SUM(CI15:CI17,CI32) -> 0.8662026082 | CJ127: ='Common Inputs'!$J$24/365*SUM(CJ15:CJ17,CJ32) -> 0.8662026082 | CK127: ='Common Inputs'!$J$24/365*SUM(CK15:CK17,CK32) -> 0.8662026082 | CL127: ='Common Inputs'!$J$24/365*SUM(CL15:CL17,CL32) -> 0.8662026082 | CM127: ='Common Inputs'!$J$24/365*SUM(CM15:CM17,CM32) -> 0.8662026082 | CN127: ='Common Inputs'!$J$24/365*SUM(CN15:CN17,CN32) -> 0.8662026082 | CO127: ='Common Inputs'!$J$24/365*SUM(CO15:CO17,CO32) -> 0.8662026082 | CP127: ='Common Inputs'!$J$24/365*SUM(CP15:CP17,CP32) -> 3.047024526 | CQ127: ='Common Inputs'!$J$24/365*SUM(CQ15:CQ17,CQ32) -> 0.8662026082 | CR127: ='Common Inputs'!$J$24/365*SUM(CR15:CR17,CR32) -> 0.8662026082 | CS127: ='Common Inputs'!$J$24/365*SUM(CS15:CS17,CS32) -> 0.8662026082 | CT127: ='Common Inputs'!$J$24/365*SUM(CT15:CT17,CT32) -> 0.8662026082 | CU127: ='Common Inputs'!$J$24/365*SUM(CU15:CU17,CU32) -> 0.8662026082 | CV127: ='Common Inputs'!$J$24/365*SUM(CV15:CV17,CV32) -> 0.8662026082 | CW127: ='Common Inputs'!$J$24/365*SUM(CW15:CW17,CW32) -> 0.8662026082 | CX127: ='Common Inputs'!$J$24/365*SUM(CX15:CX17,CX32) -> 0.8662026082 | CY127: ='Common Inputs'!$J$24/365*SUM(CY15:CY17,CY32) -> 0.8662026082 | CZ127: ='Common Inputs'!$J$24/365*SUM(CZ15:CZ17,CZ32) -> 0.8662026082 | DA127: ='Common Inputs'!$J$24/365*SUM(DA15:DA17,DA32) -> 0.8662026082 | DB127: ='Common Inputs'!$J$24/365*SUM(DB15:DB17,DB32) -> 3.047024526 | DC127: ='Common Inputs'!$J$24/365*SUM(DC15:DC17,DC32) -> 0.8662026082 | DD127: ='Common Inputs'!$J$24/365*SUM(DD15:DD17,DD32) -> 0.8662026082 | DE127: ='Common Inputs'!$J$24/365*SUM(DE15:DE17,DE32) -> 0.8662026082 | DF127: ='Common Inputs'!$J$24/365*SUM(DF15:DF17,DF32) -> 0.8662026082 | DG127: ='Common Inputs'!$J$24/365*SUM(DG15:DG17,DG32) -> 0.8662026082 | DH127: ='Common Inputs'!$J$24/365*SUM(DH15:DH17,DH32) -> 0.8662026082 | DI127: ='Common Inputs'!$J$24/365*SUM(DI15:DI17,DI32) -> 0.8662026082 | DJ127: ='Common Inputs'!$J$24/365*SUM(DJ15:DJ17,DJ32) -> 0.8662026082 | DK127: ='Common Inputs'!$J$24/365*SUM(DK15:DK17,DK32) -> 0.8662026082 | DL127: ='Common Inputs'!$J$24/365*SUM(DL15:DL17,DL32) -> 0.8662026082 | DM127: ='Common Inputs'!$J$24/365*SUM(DM15:DM17,DM32) -> 0.8662026082 | DN127: ='Common Inputs'!$J$24/365*SUM(DN15:DN17,DN32) -> 3.047024526 | DO127: ='Common Inputs'!$J$24/365*SUM(DO15:DO17,DO32) -> 0.8662026082 | DP127: ='Common Inputs'!$J$24/365*SUM(DP15:DP17,DP32) -> 0.8662026082 | DQ127: ='Common Inputs'!$J$24/365*SUM(DQ15:DQ17,DQ32) -> 0.8662026082 | DR127: ='Common Inputs'!$J$24/365*SUM(DR15:DR17,DR32) -> 0.8662026082 | DS127: ='Common Inputs'!$J$24/365*SUM(DS15:DS17,DS32) -> 0.8662026082 | DT127: ='Common Inputs'!$J$24/365*SUM(DT15:DT17,DT32) -> 0.8662026082 | DU127: ='Common Inputs'!$J$24/365*SUM(DU15:DU17,DU32) -> 0.8662026082 | DV127: ='Common Inputs'!$J$24/365*SUM(DV15:DV17,DV32) -> 0.8662026082 | DW127: ='Common Inputs'!$J$24/365*SUM(DW15:DW17,DW32) -> 0.8662026082 | DX127: ='Common Inputs'!$J$24/365*SUM(DX15:DX17,DX32) -> 0.8662026082 | DY127: ='Common Inputs'!$J$24/365*SUM(DY15:DY17,DY32) -> 0.8662026082 | DZ127: ='Common Inputs'!$J$24/365*SUM(DZ15:DZ17,DZ32) -> 3.047024526 | EA127: ='Common Inputs'!$J$24/365*SUM(EA15:EA17,EA32) -> 0.8662026082 | EB127: ='Common Inputs'!$J$24/365*SUM(EB15:EB17,EB32) -> 0.8662026082 | EC127: ='Common Inputs'!$J$24/365*SUM(EC15:EC17,EC32) -> 0.8662026082 | ED127: ='Common Inputs'!$J$24/365*SUM(ED15:ED17,ED32) -> 0.8662026082
D128: Accounts payable @ no. of days opex + net capex | J128: ='Common Inputs'!$J$25/365*SUM(J15:J17,J32) -> 45.7874183 | K128: ='Common Inputs'!$J$25/365*SUM(K15:K17,K32) -> 12.99303912 | L128: ='Common Inputs'!$J$25/365*SUM(L15:L17,L32) -> 12.99303912 | M128: ='Common Inputs'!$J$25/365*SUM(M15:M17,M32) -> 12.99303912 | N128: ='Common Inputs'!$J$25/365*SUM(N15:N17,N32) -> 12.99303912 | O128: ='Common Inputs'!$J$25/365*SUM(O15:O17,O32) -> 12.99303912 | P128: ='Common Inputs'!$J$25/365*SUM(P15:P17,P32) -> 12.99303912 | Q128: ='Common Inputs'!$J$25/365*SUM(Q15:Q17,Q32) -> 12.99303912 | R128: ='Common Inputs'!$J$25/365*SUM(R15:R17,R32) -> 12.99303912 | S128: ='Common Inputs'!$J$25/365*SUM(S15:S17,S32) -> 12.99303912 | T128: ='Common Inputs'!$J$25/365*SUM(T15:T17,T32) -> 12.99303912 | U128: ='Common Inputs'!$J$25/365*SUM(U15:U17,U32) -> 12.99303912 | V128: ='Common Inputs'!$J$25/365*SUM(V15:V17,V32) -> 45.70536789 | W128: ='Common Inputs'!$J$25/365*SUM(W15:W17,W32) -> 12.99303912 | X128: ='Common Inputs'!$J$25/365*SUM(X15:X17,X32) -> 12.99303912 | Y128: ='Common Inputs'!$J$25/365*SUM(Y15:Y17,Y32) -> 12.99303912 | Z128: ='Common Inputs'!$J$25/365*SUM(Z15:Z17,Z32) -> 12.99303912 | AA128: ='Common Inputs'!$J$25/365*SUM(AA15:AA17,AA32) -> 12.99303912 | AB128: ='Common Inputs'!$J$25/365*SUM(AB15:AB17,AB32) -> 12.99303912 | AC128: ='Common Inputs'!$J$25/365*SUM(AC15:AC17,AC32) -> 12.99303912 | AD128: ='Common Inputs'!$J$25/365*SUM(AD15:AD17,AD32) -> 12.99303912 | AE128: ='Common Inputs'!$J$25/365*SUM(AE15:AE17,AE32) -> 12.99303912 | AF128: ='Common Inputs'!$J$25/365*SUM(AF15:AF17,AF32) -> 12.99303912 | AG128: ='Common Inputs'!$J$25/365*SUM(AG15:AG17,AG32) -> 12.99303912 | AH128: ='Common Inputs'!$J$25/365*SUM(AH15:AH17,AH32) -> 45.70536789 | AI128: ='Common Inputs'!$J$25/365*SUM(AI15:AI17,AI32) -> 12.99303912 | AJ128: ='Common Inputs'!$J$25/365*SUM(AJ15:AJ17,AJ32) -> 12.99303912 | AK128: ='Common Inputs'!$J$25/365*SUM(AK15:AK17,AK32) -> 12.99303912 | AL128: ='Common Inputs'!$J$25/365*SUM(AL15:AL17,AL32) -> 12.99303912 | AM128: ='Common Inputs'!$J$25/365*SUM(AM15:AM17,AM32) -> 12.99303912 | AN128: ='Common Inputs'!$J$25/365*SUM(AN15:AN17,AN32) -> 12.99303912 | AO128: ='Common Inputs'!$J$25/365*SUM(AO15:AO17,AO32) -> 12.99303912 | AP128: ='Common Inputs'!$J$25/365*SUM(AP15:AP17,AP32) -> 12.99303912 | AQ128: ='Common Inputs'!$J$25/365*SUM(AQ15:AQ17,AQ32) -> 12.99303912 | AR128: ='Common Inputs'!$J$25/365*SUM(AR15:AR17,AR32) -> 12.99303912 | AS128: ='Common Inputs'!$J$25/365*SUM(AS15:AS17,AS32) -> 12.99303912 | AT128: ='Common Inputs'!$J$25/365*SUM(AT15:AT17,AT32) -> 45.70536789 | AU128: ='Common Inputs'!$J$25/365*SUM(AU15:AU17,AU32) -> 12.99303912 | AV128: ='Common Inputs'!$J$25/365*SUM(AV15:AV17,AV32) -> 12.99303912 | AW128: ='Common Inputs'!$J$25/365*SUM(AW15:AW17,AW32) -> 12.99303912 | AX128: ='Common Inputs'!$J$25/365*SUM(AX15:AX17,AX32) -> 12.99303912 | AY128: ='Common Inputs'!$J$25/365*SUM(AY15:AY17,AY32) -> 12.99303912 | AZ128: ='Common Inputs'!$J$25/365*SUM(AZ15:AZ17,AZ32) -> 12.99303912 | BA128: ='Common Inputs'!$J$25/365*SUM(BA15:BA17,BA32) -> 12.99303912 | BB128: ='Common Inputs'!$J$25/365*SUM(BB15:BB17,BB32) -> 12.99303912 | BC128: ='Common Inputs'!$J$25/365*SUM(BC15:BC17,BC32) -> 12.99303912 | BD128: ='Common Inputs'!$J$25/365*SUM(BD15:BD17,BD32) -> 12.99303912 | BE128: ='Common Inputs'!$J$25/365*SUM(BE15:BE17,BE32) -> 12.99303912 | BF128: ='Common Inputs'!$J$25/365*SUM(BF15:BF17,BF32) -> 45.70536789 | BG128: ='Common Inputs'!$J$25/365*SUM(BG15:BG17,BG32) -> 12.99303912 | BH128: ='Common Inputs'!$J$25/365*SUM(BH15:BH17,BH32) -> 12.99303912 | BI128: ='Common Inputs'!$J$25/365*SUM(BI15:BI17,BI32) -> 12.99303912 | BJ128: ='Common Inputs'!$J$25/365*SUM(BJ15:BJ17,BJ32) -> 12.99303912 | BK128: ='Common Inputs'!$J$25/365*SUM(BK15:BK17,BK32) -> 12.99303912 | BL128: ='Common Inputs'!$J$25/365*SUM(BL15:BL17,BL32) -> 12.99303912 | BM128: ='Common Inputs'!$J$25/365*SUM(BM15:BM17,BM32) -> 12.99303912 | BN128: ='Common Inputs'!$J$25/365*SUM(BN15:BN17,BN32) -> 12.99303912 | BO128: ='Common Inputs'!$J$25/365*SUM(BO15:BO17,BO32) -> 12.99303912 | BP128: ='Common Inputs'!$J$25/365*SUM(BP15:BP17,BP32) -> 12.99303912 | BQ128: ='Common Inputs'!$J$25/365*SUM(BQ15:BQ17,BQ32) -> 12.99303912 | BR128: ='Common Inputs'!$J$25/365*SUM(BR15:BR17,BR32) -> 45.70536789 | BS128: ='Common Inputs'!$J$25/365*SUM(BS15:BS17,BS32) -> 12.99303912 | BT128: ='Common Inputs'!$J$25/365*SUM(BT15:BT17,BT32) -> 12.99303912 | BU128: ='Common Inputs'!$J$25/365*SUM(BU15:BU17,BU32) -> 12.99303912 | BV128: ='Common Inputs'!$J$25/365*SUM(BV15:BV17,BV32) -> 12.99303912 | BW128: ='Common Inputs'!$J$25/365*SUM(BW15:BW17,BW32) -> 12.99303912 | BX128: ='Common Inputs'!$J$25/365*SUM(BX15:BX17,BX32) -> 12.99303912 | BY128: ='Common Inputs'!$J$25/365*SUM(BY15:BY17,BY32) -> 12.99303912 | BZ128: ='Common Inputs'!$J$25/365*SUM(BZ15:BZ17,BZ32) -> 12.99303912 | CA128: ='Common Inputs'!$J$25/365*SUM(CA15:CA17,CA32) -> 12.99303912 | CB128: ='Common Inputs'!$J$25/365*SUM(CB15:CB17,CB32) -> 12.99303912 | CC128: ='Common Inputs'!$J$25/365*SUM(CC15:CC17,CC32) -> 12.99303912 | CD128: ='Common Inputs'!$J$25/365*SUM(CD15:CD17,CD32) -> 45.70536789 | CE128: ='Common Inputs'!$J$25/365*SUM(CE15:CE17,CE32) -> 12.99303912 | CF128: ='Common Inputs'!$J$25/365*SUM(CF15:CF17,CF32) -> 12.99303912 | CG128: ='Common Inputs'!$J$25/365*SUM(CG15:CG17,CG32) -> 12.99303912 | CH128: ='Common Inputs'!$J$25/365*SUM(CH15:CH17,CH32) -> 12.99303912 | CI128: ='Common Inputs'!$J$25/365*SUM(CI15:CI17,CI32) -> 12.99303912 | CJ128: ='Common Inputs'!$J$25/365*SUM(CJ15:CJ17,CJ32) -> 12.99303912 | CK128: ='Common Inputs'!$J$25/365*SUM(CK15:CK17,CK32) -> 12.99303912 | CL128: ='Common Inputs'!$J$25/365*SUM(CL15:CL17,CL32) -> 12.99303912 | CM128: ='Common Inputs'!$J$25/365*SUM(CM15:CM17,CM32) -> 12.99303912 | CN128: ='Common Inputs'!$J$25/365*SUM(CN15:CN17,CN32) -> 12.99303912 | CO128: ='Common Inputs'!$J$25/365*SUM(CO15:CO17,CO32) -> 12.99303912 | CP128: ='Common Inputs'!$J$25/365*SUM(CP15:CP17,CP32) -> 45.70536789 | CQ128: ='Common Inputs'!$J$25/365*SUM(CQ15:CQ17,CQ32) -> 12.99303912 | CR128: ='Common Inputs'!$J$25/365*SUM(CR15:CR17,CR32) -> 12.99303912 | CS128: ='Common Inputs'!$J$25/365*SUM(CS15:CS17,CS32) -> 12.99303912 | CT128: ='Common Inputs'!$J$25/365*SUM(CT15:CT17,CT32) -> 12.99303912 | CU128: ='Common Inputs'!$J$25/365*SUM(CU15:CU17,CU32) -> 12.99303912 | CV128: ='Common Inputs'!$J$25/365*SUM(CV15:CV17,CV32) -> 12.99303912 | CW128: ='Common Inputs'!$J$25/365*SUM(CW15:CW17,CW32) -> 12.99303912 | CX128: ='Common Inputs'!$J$25/365*SUM(CX15:CX17,CX32) -> 12.99303912 | CY128: ='Common Inputs'!$J$25/365*SUM(CY15:CY17,CY32) -> 12.99303912 | CZ128: ='Common Inputs'!$J$25/365*SUM(CZ15:CZ17,CZ32) -> 12.99303912 | DA128: ='Common Inputs'!$J$25/365*SUM(DA15:DA17,DA32) -> 12.99303912 | DB128: ='Common Inputs'!$J$25/365*SUM(DB15:DB17,DB32) -> 45.70536789 | DC128: ='Common Inputs'!$J$25/365*SUM(DC15:DC17,DC32) -> 12.99303912 | DD128: ='Common Inputs'!$J$25/365*SUM(DD15:DD17,DD32) -> 12.99303912 | DE128: ='Common Inputs'!$J$25/365*SUM(DE15:DE17,DE32) -> 12.99303912 | DF128: ='Common Inputs'!$J$25/365*SUM(DF15:DF17,DF32) -> 12.99303912 | DG128: ='Common Inputs'!$J$25/365*SUM(DG15:DG17,DG32) -> 12.99303912 | DH128: ='Common Inputs'!$J$25/365*SUM(DH15:DH17,DH32) -> 12.99303912 | DI128: ='Common Inputs'!$J$25/365*SUM(DI15:DI17,DI32) -> 12.99303912 | DJ128: ='Common Inputs'!$J$25/365*SUM(DJ15:DJ17,DJ32) -> 12.99303912 | DK128: ='Common Inputs'!$J$25/365*SUM(DK15:DK17,DK32) -> 12.99303912 | DL128: ='Common Inputs'!$J$25/365*SUM(DL15:DL17,DL32) -> 12.99303912 | DM128: ='Common Inputs'!$J$25/365*SUM(DM15:DM17,DM32) -> 12.99303912 | DN128: ='Common Inputs'!$J$25/365*SUM(DN15:DN17,DN32) -> 45.70536789 | DO128: ='Common Inputs'!$J$25/365*SUM(DO15:DO17,DO32) -> 12.99303912 | DP128: ='Common Inputs'!$J$25/365*SUM(DP15:DP17,DP32) -> 12.99303912 | DQ128: ='Common Inputs'!$J$25/365*SUM(DQ15:DQ17,DQ32) -> 12.99303912 | DR128: ='Common Inputs'!$J$25/365*SUM(DR15:DR17,DR32) -> 12.99303912 | DS128: ='Common Inputs'!$J$25/365*SUM(DS15:DS17,DS32) -> 12.99303912 | DT128: ='Common Inputs'!$J$25/365*SUM(DT15:DT17,DT32) -> 12.99303912 | DU128: ='Common Inputs'!$J$25/365*SUM(DU15:DU17,DU32) -> 12.99303912 | DV128: ='Common Inputs'!$J$25/365*SUM(DV15:DV17,DV32) -> 12.99303912 | DW128: ='Common Inputs'!$J$25/365*SUM(DW15:DW17,DW32) -> 12.99303912 | DX128: ='Common Inputs'!$J$25/365*SUM(DX15:DX17,DX32) -> 12.99303912 | DY128: ='Common Inputs'!$J$25/365*SUM(DY15:DY17,DY32) -> 12.99303912 | DZ128: ='Common Inputs'!$J$25/365*SUM(DZ15:DZ17,DZ32) -> 45.70536789 | EA128: ='Common Inputs'!$J$25/365*SUM(EA15:EA17,EA32) -> 12.99303912 | EB128: ='Common Inputs'!$J$25/365*SUM(EB15:EB17,EB32) -> 12.99303912 | EC128: ='Common Inputs'!$J$25/365*SUM(EC15:EC17,EC32) -> 12.99303912 | ED128: ='Common Inputs'!$J$25/365*SUM(ED15:ED17,ED32) -> 12.99303912
D129: Net working capital | J129: =SUM(J126:J127)-J128 -> -42.73492375 | K129: =SUM(K126:K127)-K128 -> 14.44520634 | L129: 14.20094871 | M129: 14.01127741 | N129: 13.8215397 | O129: 13.6314081 | P129: 13.4408902 | Q129: 13.2499954 | R129: 13.05873289 | S129: 12.86711165 | T129: =SUM(T126:T127)-T128 -> 12.67514043 | U129: 12.48282775 | V129: -18.2413249 | W129: 13.95659562 | X129: 13.69382992 | Y129: 13.51633959 | Z129: 13.33867237 | AA129: 13.16031802 | AB129: 12.98129011 | AC129: 12.80160507 | AD129: 12.62127892 | AE129: 12.86441176 | AF129: 12.67512376 | AG129: 12.48282765 | AH129: -18.2413249 | AI129: 13.95659562 | AJ129: 13.69382992 | AK129: 13.51633959 | AL129: 13.33867237 | AM129: 13.16031802 | AN129: 12.98129011 | AO129: 12.80160507 | AP129: 12.62127892 | AQ129: 12.86441176 | AR129: 12.67512376 | AS129: 12.48282765 | AT129: -18.2413249 | AU129: 13.95659562 | AV129: 13.69382992 | AW129: 13.51633959 | AX129: 13.33867237 | AY129: 13.16031802 | AZ129: 12.98129011 | BA129: 12.80160507 | BB129: 12.62127892 | BC129: 12.86441176 | BD129: 12.67512376 | BE129: 12.48282765 | BF129: -18.2413249 | BG129: 13.95659562 | BH129: 13.69382992 | BI129: 13.51633959 | BJ129: 13.33867237 | BK129: 13.16031802 | BL129: 12.98129011 | BM129: 12.80160507 | BN129: 12.62127892 | BO129: 12.86441176 | BP129: 12.67512376 | BQ129: 12.48282765 | BR129: -18.2413249 | BS129: 13.95659562 | BT129: 13.69382992 | BU129: 13.51633959 | BV129: 13.33867237 | BW129: 13.16031802 | BX129: 12.98129011 | BY129: 12.80160507 | BZ129: 12.62127892 | CA129: 12.86441176 | CB129: 12.67512376 | CC129: 12.48282765 | CD129: -18.2413249 | CE129: 13.95659562 | CF129: =SUM(CF126:CF127)-CF128 -> 13.69382992 | CG129: 13.51633959 | CH129: 13.33867237 | CI129: 13.16031802 | CJ129: 12.98129011 | CK129: 12.80160507 | CL129: 12.62127892 | CM129: 12.86441176 | CN129: 12.67512376 | CO129: 12.48282765 | CP129: -18.2413249 | CQ129: 13.95659562 | CR129: 13.69382992 | CS129: 13.51633959 | CT129: 13.33867237 | CU129: 13.16031802 | CV129: 12.98129011 | CW129: 12.80160507 | CX129: 12.62127892 | CY129: 12.86441176 | CZ129: 12.67512376 | DA129: 12.48282765 | DB129: -18.2413249 | DC129: 13.95659562 | DD129: 13.69382992 | DE129: 13.51633959 | DF129: 13.33867237 | DG129: 13.16031802 | DH129: 12.98129011 | DI129: 12.80160507 | DJ129: 12.62127892 | DK129: 12.86441176 | DL129: 12.67512376 | DM129: 12.48282765 | DN129: -18.2413249 | DO129: 13.95659562 | DP129: 13.69382992 | DQ129: 13.51633959 | DR129: 13.33867237 | DS129: 13.16031802 | DT129: 12.98129011 | DU129: 12.80160507 | DV129: 12.62127892 | DW129: 12.86441176 | DX129: 12.67512376 | DY129: 12.48282765 | DZ129: -18.2413249 | EA129: 13.95659562 | EB129: 13.69382992 | EC129: 13.51633959 | ED129: 13.33867237
D131: Return on working capital (year end value) | J131: =J129*ROUND('Common Inputs'!$J$95,3) -> -2.094011264 | K131: =K129*ROUND('Common Inputs'!$J$95,3) -> 0.7078151105 | L131: =L129*ROUND('Common Inputs'!$J$95,3) -> 0.695846487 | M131: =M129*ROUND('Common Inputs'!$J$95,3) -> 0.6865525931 | N131: =N129*ROUND('Common Inputs'!$J$95,3) -> 0.6772554451 | O131: =O129*ROUND('Common Inputs'!$J$95,3) -> 0.6679389969 | P131: =P129*ROUND('Common Inputs'!$J$95,3) -> 0.6586036197 | Q131: =Q129*ROUND('Common Inputs'!$J$95,3) -> 0.6492497745 | R131: =R129*ROUND('Common Inputs'!$J$95,3) -> 0.6398779118 | S131: =S129*ROUND('Common Inputs'!$J$95,3) -> 0.630488471 | T131: =T129*ROUND('Common Inputs'!$J$95,3) -> 0.6210818809 | U131: =U129*ROUND('Common Inputs'!$J$95,3) -> 0.6116585598 | V131: =V129*ROUND('Common Inputs'!$J$95,3) -> -0.8938249199 | W131: =W129*ROUND('Common Inputs'!$J$95,3) -> 0.6838731854 | X131: =X129*ROUND('Common Inputs'!$J$95,3) -> 0.670997666 | Y131: =Y129*ROUND('Common Inputs'!$J$95,3) -> 0.6623006397 | Z131: =Z129*ROUND('Common Inputs'!$J$95,3) -> 0.653594946 | AA131: =AA129*ROUND('Common Inputs'!$J$95,3) -> 0.6448555827 | AB131: =AB129*ROUND('Common Inputs'!$J$95,3) -> 0.6360832156 | AC131: =AC129*ROUND('Common Inputs'!$J$95,3) -> 0.6272786486 | AD131: =AD129*ROUND('Common Inputs'!$J$95,3) -> 0.618442667 | AE131: =AE129*ROUND('Common Inputs'!$J$95,3) -> 0.6303561761 | AF131: =AF129*ROUND('Common Inputs'!$J$95,3) -> 0.6210810644 | AG131: =AG129*ROUND('Common Inputs'!$J$95,3) -> 0.6116585548 | AH131: =AH129*ROUND('Common Inputs'!$J$95,3) -> -0.89382492 | AI131: =AI129*ROUND('Common Inputs'!$J$95,3) -> 0.6838731854 | AJ131: =AJ129*ROUND('Common Inputs'!$J$95,3) -> 0.670997666 | AK131: =AK129*ROUND('Common Inputs'!$J$95,3) -> 0.6623006397 | AL131: =AL129*ROUND('Common Inputs'!$J$95,3) -> 0.653594946 | AM131: =AM129*ROUND('Common Inputs'!$J$95,3) -> 0.6448555827 | AN131: =AN129*ROUND('Common Inputs'!$J$95,3) -> 0.6360832156 | AO131: =AO129*ROUND('Common Inputs'!$J$95,3) -> 0.6272786486 | AP131: =AP129*ROUND('Common Inputs'!$J$95,3) -> 0.618442667 | AQ131: =AQ129*ROUND('Common Inputs'!$J$95,3) -> 0.6303561761 | AR131: =AR129*ROUND('Common Inputs'!$J$95,3) -> 0.6210810644 | AS131: =AS129*ROUND('Common Inputs'!$J$95,3) -> 0.6116585548 | AT131: =AT129*ROUND('Common Inputs'!$J$95,3) -> -0.89382492 | AU131: =AU129*ROUND('Common Inputs'!$J$95,3) -> 0.6838731854 | AV131: =AV129*ROUND('Common Inputs'!$J$95,3) -> 0.670997666 | AW131: =AW129*ROUND('Common Inputs'!$J$95,3) -> 0.6623006397 | AX131: =AX129*ROUND('Common Inputs'!$J$95,3) -> 0.653594946 | AY131: =AY129*ROUND('Common Inputs'!$J$95,3) -> 0.6448555827 | AZ131: =AZ129*ROUND('Common Inputs'!$J$95,3) -> 0.6360832156 | BA131: =BA129*ROUND('Common Inputs'!$J$95,3) -> 0.6272786486 | BB131: =BB129*ROUND('Common Inputs'!$J$95,3) -> 0.618442667 | BC131: =BC129*ROUND('Common Inputs'!$J$95,3) -> 0.6303561761 | BD131: =BD129*ROUND('Common Inputs'!$J$95,3) -> 0.6210810644 | BE131: =BE129*ROUND('Common Inputs'!$J$95,3) -> 0.6116585548 | BF131: =BF129*ROUND('Common Inputs'!$J$95,3) -> -0.89382492 | BG131: =BG129*ROUND('Common Inputs'!$J$95,3) -> 0.6838731854 | BH131: =BH129*ROUND('Common Inputs'!$J$95,3) -> 0.670997666 | BI131: =BI129*ROUND('Common Inputs'!$J$95,3) -> 0.6623006397 | BJ131: =BJ129*ROUND('Common Inputs'!$J$95,3) -> 0.653594946 | BK131: =BK129*ROUND('Common Inputs'!$J$95,3) -> 0.6448555827 | BL131: =BL129*ROUND('Common Inputs'!$J$95,3) -> 0.6360832156 | BM131: =BM129*ROUND('Common Inputs'!$J$95,3) -> 0.6272786486 | BN131: =BN129*ROUND('Common Inputs'!$J$95,3) -> 0.618442667 | BO131: =BO129*ROUND('Common Inputs'!$J$95,3) -> 0.6303561761 | BP131: =BP129*ROUND('Common Inputs'!$J$95,3) -> 0.6210810644 | BQ131: =BQ129*ROUND('Common Inputs'!$J$95,3) -> 0.6116585548 | BR131: =BR129*ROUND('Common Inputs'!$J$95,3) -> -0.89382492 | BS131: =BS129*ROUND('Common Inputs'!$J$95,3) -> 0.6838731854 | BT131: =BT129*ROUND('Common Inputs'!$J$95,3) -> 0.670997666 | BU131: =BU129*ROUND('Common Inputs'!$J$95,3) -> 0.6623006397 | BV131: =BV129*ROUND('Common Inputs'!$J$95,3) -> 0.653594946 | BW131: =BW129*ROUND('Common Inputs'!$J$95,3) -> 0.6448555827 | BX131: =BX129*ROUND('Common Inputs'!$J$95,3) -> 0.6360832156 | BY131: =BY129*ROUND('Common Inputs'!$J$95,3) -> 0.6272786486 | BZ131: =BZ129*ROUND('Common Inputs'!$J$95,3) -> 0.618442667 | CA131: =CA129*ROUND('Common Inputs'!$J$95,3) -> 0.6303561761 | CB131: =CB129*ROUND('Common Inputs'!$J$95,3) -> 0.6210810644 | CC131: =CC129*ROUND('Common Inputs'!$J$95,3) -> 0.6116585548 | CD131: =CD129*ROUND('Common Inputs'!$J$95,3) -> -0.89382492 | CE131: =CE129*ROUND('Common Inputs'!$J$95,3) -> 0.6838731854 | CF131: =CF129*ROUND('Common Inputs'!$J$95,3) -> 0.670997666 | CG131: =CG129*ROUND('Common Inputs'!$J$95,3) -> 0.6623006397 | CH131: =CH129*ROUND('Common Inputs'!$J$95,3) -> 0.653594946 | CI131: =CI129*ROUND('Common Inputs'!$J$95,3) -> 0.6448555827 | CJ131: =CJ129*ROUND('Common Inputs'!$J$95,3) -> 0.6360832156 | CK131: =CK129*ROUND('Common Inputs'!$J$95,3) -> 0.6272786486 | CL131: =CL129*ROUND('Common Inputs'!$J$95,3) -> 0.618442667 | CM131: =CM129*ROUND('Common Inputs'!$J$95,3) -> 0.6303561761 | CN131: =CN129*ROUND('Common Inputs'!$J$95,3) -> 0.6210810644 | CO131: =CO129*ROUND('Common Inputs'!$J$95,3) -> 0.6116585548 | CP131: =CP129*ROUND('Common Inputs'!$J$95,3) -> -0.89382492 | CQ131: =CQ129*ROUND('Common Inputs'!$J$95,3) -> 0.6838731854 | CR131: =CR129*ROUND('Common Inputs'!$J$95,3) -> 0.670997666 | CS131: =CS129*ROUND('Common Inputs'!$J$95,3) -> 0.6623006397 | CT131: =CT129*ROUND('Common Inputs'!$J$95,3) -> 0.653594946 | CU131: =CU129*ROUND('Common Inputs'!$J$95,3) -> 0.6448555827 | CV131: =CV129*ROUND('Common Inputs'!$J$95,3) -> 0.6360832156 | CW131: =CW129*ROUND('Common Inputs'!$J$95,3) -> 0.6272786486 | CX131: =CX129*ROUND('Common Inputs'!$J$95,3) -> 0.618442667 | CY131: =CY129*ROUND('Common Inputs'!$J$95,3) -> 0.6303561761 | CZ131: =CZ129*ROUND('Common Inputs'!$J$95,3) -> 0.6210810644 | DA131: =DA129*ROUND('Common Inputs'!$J$95,3) -> 0.6116585548 | DB131: =DB129*ROUND('Common Inputs'!$J$95,3) -> -0.89382492 | DC131: =DC129*ROUND('Common Inputs'!$J$95,3) -> 0.6838731854 | DD131: =DD129*ROUND('Common Inputs'!$J$95,3) -> 0.670997666 | DE131: =DE129*ROUND('Common Inputs'!$J$95,3) -> 0.6623006397 | DF131: =DF129*ROUND('Common Inputs'!$J$95,3) -> 0.653594946 | DG131: =DG129*ROUND('Common Inputs'!$J$95,3) -> 0.6448555827 | DH131: =DH129*ROUND('Common Inputs'!$J$95,3) -> 0.6360832156 | DI131: =DI129*ROUND('Common Inputs'!$J$95,3) -> 0.6272786486 | DJ131: =DJ129*ROUND('Common Inputs'!$J$95,3) -> 0.618442667 | DK131: =DK129*ROUND('Common Inputs'!$J$95,3) -> 0.6303561761 | DL131: =DL129*ROUND('Common Inputs'!$J$95,3) -> 0.6210810644 | DM131: =DM129*ROUND('Common Inputs'!$J$95,3) -> 0.6116585548 | DN131: =DN129*ROUND('Common Inputs'!$J$95,3) -> -0.89382492 | DO131: =DO129*ROUND('Common Inputs'!$J$95,3) -> 0.6838731854 | DP131: =DP129*ROUND('Common Inputs'!$J$95,3) -> 0.670997666 | DQ131: =DQ129*ROUND('Common Inputs'!$J$95,3) -> 0.6623006397 | DR131: =DR129*ROUND('Common Inputs'!$J$95,3) -> 0.653594946 | DS131: =DS129*ROUND('Common Inputs'!$J$95,3) -> 0.6448555827 | DT131: =DT129*ROUND('Common Inputs'!$J$95,3) -> 0.6360832156 | DU131: =DU129*ROUND('Common Inputs'!$J$95,3) -> 0.6272786486 | DV131: =DV129*ROUND('Common Inputs'!$J$95,3) -> 0.618442667 | DW131: =DW129*ROUND('Common Inputs'!$J$95,3) -> 0.6303561761 | DX131: =DX129*ROUND('Common Inputs'!$J$95,3) -> 0.6210810644 | DY131: =DY129*ROUND('Common Inputs'!$J$95,3) -> 0.6116585548 | DZ131: =DZ129*ROUND('Common Inputs'!$J$95,3) -> -0.89382492 | EA131: =EA129*ROUND('Common Inputs'!$J$95,3) -> 0.6838731854 | EB131: =EB129*ROUND('Common Inputs'!$J$95,3) -> 0.670997666 | EC131: =EC129*ROUND('Common Inputs'!$J$95,3) -> 0.6623006397 | ED131: =ED129*ROUND('Common Inputs'!$J$95,3) -> 0.653594946
D132: Return in working capital to be recovered from revenue (mid-year value) | J132: =J131/(1+ROUND('Common Inputs'!$J$95,3))^0.5 -> -2.044519558 | K132: =K131/(1+ROUND('Common Inputs'!$J$95,3))^0.5 -> 0.6910859849 | L132: =L131/(1+ROUND('Common Inputs'!$J$95,3))^0.5 -> 0.6794002384 | M132: =M131/(1+ROUND('Common Inputs'!$J$95,3))^0.5 -> 0.6703260046 | N132: =N131/(1+ROUND('Common Inputs'!$J$95,3))^0.5 -> 0.6612485936 | O132: =O131/(1+ROUND('Common Inputs'!$J$95,3))^0.5 -> 0.6521523385 | P132: =P131/(1+ROUND('Common Inputs'!$J$95,3))^0.5 -> 0.6430376018 | Q132: =Q131/(1+ROUND('Common Inputs'!$J$95,3))^0.5 -> 0.6339048336 | R132: =R131/(1+ROUND('Common Inputs'!$J$95,3))^0.5 -> 0.6247544738 | S132: =S131/(1+ROUND('Common Inputs'!$J$95,3))^0.5 -> 0.6155869513 | T132: =T131/(1+ROUND('Common Inputs'!$J$95,3))^0.5 -> 0.6064026849 | U132: =U131/(1+ROUND('Common Inputs'!$J$95,3))^0.5 -> 0.5972020828 | V132: =V131/(1+ROUND('Common Inputs'!$J$95,3))^0.5 -> -0.8726994747 | W132: =W131/(1+ROUND('Common Inputs'!$J$95,3))^0.5 -> 0.6677099244 | X132: =X131/(1+ROUND('Common Inputs'!$J$95,3))^0.5 -> 0.6551387163 | Y132: =Y131/(1+ROUND('Common Inputs'!$J$95,3))^0.5 -> 0.6466472432 | Z132: =Z131/(1+ROUND('Common Inputs'!$J$95,3))^0.5 -> 0.6381473075 | AA132: =AA131/(1+ROUND('Common Inputs'!$J$95,3))^0.5 -> 0.6296144981 | AB132: =AB131/(1+ROUND('Common Inputs'!$J$95,3))^0.5 -> 0.6210494648 | AC132: =AC131/(1+ROUND('Common Inputs'!$J$95,3))^0.5 -> 0.6124529926 | AD132: =AD131/(1+ROUND('Common Inputs'!$J$95,3))^0.5 -> 0.6038258484 | AE132: =AE131/(1+ROUND('Common Inputs'!$J$95,3))^0.5 -> 0.6154577832 | AF132: =AF131/(1+ROUND('Common Inputs'!$J$95,3))^0.5 -> 0.6064018877 | AG132: =AG131/(1+ROUND('Common Inputs'!$J$95,3))^0.5 -> 0.5972020779 | AH132: =AH131/(1+ROUND('Common Inputs'!$J$95,3))^0.5 -> -0.8726994748 | AI132: =AI131/(1+ROUND('Common Inputs'!$J$95,3))^0.5 -> 0.6677099244 | AJ132: =AJ131/(1+ROUND('Common Inputs'!$J$95,3))^0.5 -> 0.6551387163 | AK132: =AK131/(1+ROUND('Common Inputs'!$J$95,3))^0.5 -> 0.6466472432 | AL132: =AL131/(1+ROUND('Common Inputs'!$J$95,3))^0.5 -> 0.6381473075 | AM132: =AM131/(1+ROUND('Common Inputs'!$J$95,3))^0.5 -> 0.6296144981 | AN132: =AN131/(1+ROUND('Common Inputs'!$J$95,3))^0.5 -> 0.6210494648 | AO132: =AO131/(1+ROUND('Common Inputs'!$J$95,3))^0.5 -> 0.6124529926 | AP132: =AP131/(1+ROUND('Common Inputs'!$J$95,3))^0.5 -> 0.6038258484 | AQ132: =AQ131/(1+ROUND('Common Inputs'!$J$95,3))^0.5 -> 0.6154577832 | AR132: =AR131/(1+ROUND('Common Inputs'!$J$95,3))^0.5 -> 0.6064018877 | AS132: =AS131/(1+ROUND('Common Inputs'!$J$95,3))^0.5 -> 0.5972020779 | AT132: =AT131/(1+ROUND('Common Inputs'!$J$95,3))^0.5 -> -0.8726994748 | AU132: =AU131/(1+ROUND('Common Inputs'!$J$95,3))^0.5 -> 0.6677099244 | AV132: =AV131/(1+ROUND('Common Inputs'!$J$95,3))^0.5 -> 0.6551387163 | AW132: =AW131/(1+ROUND('Common Inputs'!$J$95,3))^0.5 -> 0.6466472432 | AX132: =AX131/(1+ROUND('Common Inputs'!$J$95,3))^0.5 -> 0.6381473075 | AY132: =AY131/(1+ROUND('Common Inputs'!$J$95,3))^0.5 -> 0.6296144981 | AZ132: =AZ131/(1+ROUND('Common Inputs'!$J$95,3))^0.5 -> 0.6210494648 | BA132: =BA131/(1+ROUND('Common Inputs'!$J$95,3))^0.5 -> 0.6124529926 | BB132: =BB131/(1+ROUND('Common Inputs'!$J$95,3))^0.5 -> 0.6038258484 | BC132: =BC131/(1+ROUND('Common Inputs'!$J$95,3))^0.5 -> 0.6154577832 | BD132: =BD131/(1+ROUND('Common Inputs'!$J$95,3))^0.5 -> 0.6064018877 | BE132: =BE131/(1+ROUND('Common Inputs'!$J$95,3))^0.5 -> 0.5972020779 | BF132: =BF131/(1+ROUND('Common Inputs'!$J$95,3))^0.5 -> -0.8726994748 | BG132: =BG131/(1+ROUND('Common Inputs'!$J$95,3))^0.5 -> 0.6677099244 | BH132: =BH131/(1+ROUND('Common Inputs'!$J$95,3))^0.5 -> 0.6551387163 | BI132: =BI131/(1+ROUND('Common Inputs'!$J$95,3))^0.5 -> 0.6466472432 | BJ132: =BJ131/(1+ROUND('Common Inputs'!$J$95,3))^0.5 -> 0.6381473075 | BK132: =BK131/(1+ROUND('Common Inputs'!$J$95,3))^0.5 -> 0.6296144981 | BL132: =BL131/(1+ROUND('Common Inputs'!$J$95,3))^0.5 -> 0.6210494648 | BM132: =BM131/(1+ROUND('Common Inputs'!$J$95,3))^0.5 -> 0.6124529926 | BN132: =BN131/(1+ROUND('Common Inputs'!$J$95,3))^0.5 -> 0.6038258484 | BO132: =BO131/(1+ROUND('Common Inputs'!$J$95,3))^0.5 -> 0.6154577832 | BP132: =BP131/(1+ROUND('Common Inputs'!$J$95,3))^0.5 -> 0.6064018877 | BQ132: =BQ131/(1+ROUND('Common Inputs'!$J$95,3))^0.5 -> 0.5972020779 | BR132: =BR131/(1+ROUND('Common Inputs'!$J$95,3))^0.5 -> -0.8726994748 | BS132: =BS131/(1+ROUND('Common Inputs'!$J$95,3))^0.5 -> 0.6677099244 | BT132: =BT131/(1+ROUND('Common Inputs'!$J$95,3))^0.5 -> 0.6551387163 | BU132: =BU131/(1+ROUND('Common Inputs'!$J$95,3))^0.5 -> 0.6466472432 | BV132: =BV131/(1+ROUND('Common Inputs'!$J$95,3))^0.5 -> 0.6381473075 | BW132: =BW131/(1+ROUND('Common Inputs'!$J$95,3))^0.5 -> 0.6296144981 | BX132: =BX131/(1+ROUND('Common Inputs'!$J$95,3))^0.5 -> 0.6210494648 | BY132: =BY131/(1+ROUND('Common Inputs'!$J$95,3))^0.5 -> 0.6124529926 | BZ132: =BZ131/(1+ROUND('Common Inputs'!$J$95,3))^0.5 -> 0.6038258484 | CA132: =CA131/(1+ROUND('Common Inputs'!$J$95,3))^0.5 -> 0.6154577832 | CB132: =CB131/(1+ROUND('Common Inputs'!$J$95,3))^0.5 -> 0.6064018877 | CC132: =CC131/(1+ROUND('Common Inputs'!$J$95,3))^0.5 -> 0.5972020779 | CD132: =CD131/(1+ROUND('Common Inputs'!$J$95,3))^0.5 -> -0.8726994748 | CE132: =CE131/(1+ROUND('Common Inputs'!$J$95,3))^0.5 -> 0.6677099244 | CF132: =CF131/(1+ROUND('Common Inputs'!$J$95,3))^0.5 -> 0.6551387163 | CG132: =CG131/(1+ROUND('Common Inputs'!$J$95,3))^0.5 -> 0.6466472432 | CH132: =CH131/(1+ROUND('Common Inputs'!$J$95,3))^0.5 -> 0.6381473075 | CI132: =CI131/(1+ROUND('Common Inputs'!$J$95,3))^0.5 -> 0.6296144981 | CJ132: =CJ131/(1+ROUND('Common Inputs'!$J$95,3))^0.5 -> 0.6210494648 | CK132: =CK131/(1+ROUND('Common Inputs'!$J$95,3))^0.5 -> 0.6124529926 | CL132: =CL131/(1+ROUND('Common Inputs'!$J$95,3))^0.5 -> 0.6038258484 | CM132: =CM131/(1+ROUND('Common Inputs'!$J$95,3))^0.5 -> 0.6154577832 | CN132: =CN131/(1+ROUND('Common Inputs'!$J$95,3))^0.5 -> 0.6064018877 | CO132: =CO131/(1+ROUND('Common Inputs'!$J$95,3))^0.5 -> 0.5972020779 | CP132: =CP131/(1+ROUND('Common Inputs'!$J$95,3))^0.5 -> -0.8726994748 | CQ132: =CQ131/(1+ROUND('Common Inputs'!$J$95,3))^0.5 -> 0.6677099244 | CR132: =CR131/(1+ROUND('Common Inputs'!$J$95,3))^0.5 -> 0.6551387163 | CS132: =CS131/(1+ROUND('Common Inputs'!$J$95,3))^0.5 -> 0.6466472432 | CT132: =CT131/(1+ROUND('Common Inputs'!$J$95,3))^0.5 -> 0.6381473075 | CU132: =CU131/(1+ROUND('Common Inputs'!$J$95,3))^0.5 -> 0.6296144981 | CV132: =CV131/(1+ROUND('Common Inputs'!$J$95,3))^0.5 -> 0.6210494648 | CW132: =CW131/(1+ROUND('Common Inputs'!$J$95,3))^0.5 -> 0.6124529926 | CX132: =CX131/(1+ROUND('Common Inputs'!$J$95,3))^0.5 -> 0.6038258484 | CY132: =CY131/(1+ROUND('Common Inputs'!$J$95,3))^0.5 -> 0.6154577832 | CZ132: =CZ131/(1+ROUND('Common Inputs'!$J$95,3))^0.5 -> 0.6064018877 | DA132: =DA131/(1+ROUND('Common Inputs'!$J$95,3))^0.5 -> 0.5972020779 | DB132: =DB131/(1+ROUND('Common Inputs'!$J$95,3))^0.5 -> -0.8726994748 | DC132: =DC131/(1+ROUND('Common Inputs'!$J$95,3))^0.5 -> 0.6677099244 | DD132: =DD131/(1+ROUND('Common Inputs'!$J$95,3))^0.5 -> 0.6551387163 | DE132: =DE131/(1+ROUND('Common Inputs'!$J$95,3))^0.5 -> 0.6466472432 | DF132: =DF131/(1+ROUND('Common Inputs'!$J$95,3))^0.5 -> 0.6381473075 | DG132: =DG131/(1+ROUND('Common Inputs'!$J$95,3))^0.5 -> 0.6296144981 | DH132: =DH131/(1+ROUND('Common Inputs'!$J$95,3))^0.5 -> 0.6210494648 | DI132: =DI131/(1+ROUND('Common Inputs'!$J$95,3))^0.5 -> 0.6124529926 | DJ132: =DJ131/(1+ROUND('Common Inputs'!$J$95,3))^0.5 -> 0.6038258484 | DK132: =DK131/(1+ROUND('Common Inputs'!$J$95,3))^0.5 -> 0.6154577832 | DL132: =DL131/(1+ROUND('Common Inputs'!$J$95,3))^0.5 -> 0.6064018877 | DM132: =DM131/(1+ROUND('Common Inputs'!$J$95,3))^0.5 -> 0.5972020779 | DN132: =DN131/(1+ROUND('Common Inputs'!$J$95,3))^0.5 -> -0.8726994748 | DO132: =DO131/(1+ROUND('Common Inputs'!$J$95,3))^0.5 -> 0.6677099244 | DP132: =DP131/(1+ROUND('Common Inputs'!$J$95,3))^0.5 -> 0.6551387163 | DQ132: =DQ131/(1+ROUND('Common Inputs'!$J$95,3))^0.5 -> 0.6466472432 | DR132: =DR131/(1+ROUND('Common Inputs'!$J$95,3))^0.5 -> 0.6381473075 | DS132: =DS131/(1+ROUND('Common Inputs'!$J$95,3))^0.5 -> 0.6296144981 | DT132: =DT131/(1+ROUND('Common Inputs'!$J$95,3))^0.5 -> 0.6210494648 | DU132: =DU131/(1+ROUND('Common Inputs'!$J$95,3))^0.5 -> 0.6124529926 | DV132: =DV131/(1+ROUND('Common Inputs'!$J$95,3))^0.5 -> 0.6038258484 | DW132: =DW131/(1+ROUND('Common Inputs'!$J$95,3))^0.5 -> 0.6154577832 | DX132: =DX131/(1+ROUND('Common Inputs'!$J$95,3))^0.5 -> 0.6064018877 | DY132: =DY131/(1+ROUND('Common Inputs'!$J$95,3))^0.5 -> 0.5972020779 | DZ132: =DZ131/(1+ROUND('Common Inputs'!$J$95,3))^0.5 -> -0.8726994748 | EA132: =EA131/(1+ROUND('Common Inputs'!$J$95,3))^0.5 -> 0.6677099244 | EB132: =EB131/(1+ROUND('Common Inputs'!$J$95,3))^0.5 -> 0.6551387163 | EC132: =EC131/(1+ROUND('Common Inputs'!$J$95,3))^0.5 -> 0.6466472432 | ED132: =ED131/(1+ROUND('Common Inputs'!$J$95,3))^0.5 -> 0.6381473075
D136: ="Tax Allowance ("&'Common Inputs'!J9&", "&"$Nominal)" -> Tax Allowance ($, $Nominal)
D137: Year | J137: =J14 -> 1 | K137: 2 | L137: 3 | M137: 4 | N137: 5 | O137: 6 | P137: 7 | Q137: 8 | R137: 9 | S137: 10 | T137: 11 | U137: 12 | V137: 13 | W137: 14 | X137: 15 | Y137: 16 | Z137: 17 | AA137: 18 | AB137: 19 | AC137: 20 | AD137: 21 | AE137: 22 | AF137: 23 | AG137: 24 | AH137: 25 | AI137: 26 | AJ137: 27 | AK137: 28 | AL137: 29 | AM137: 30 | AN137: 31 | AO137: 32 | AP137: 33 | AQ137: 34 | AR137: 35 | AS137: 36 | AT137: 37 | AU137: 38 | AV137: 39 | AW137: 40 | AX137: 41 | AY137: 42 | AZ137: 43 | BA137: 44 | BB137: 45 | BC137: 46 | BD137: 47 | BE137: 48 | BF137: 49 | BG137: 50 | BH137: 51 | BI137: 52 | BJ137: 53 | BK137: 54 | BL137: 55 | BM137: 56 | BN137: 57 | BO137: 58 | BP137: 59 | BQ137: 60 | BR137: 61 | BS137: 62 | BT137: 63 | BU137: 64 | BV137: =BV14 -> 65 | BW137: 66 | BX137: 67 | BY137: 68 | BZ137: 69 | CA137: 70 | CB137: 71 | CC137: 72 | CD137: 73 | CE137: 74 | CF137: 75 | CG137: 76 | CH137: 77 | CI137: 78 | CJ137: 79 | CK137: 80 | CL137: 81 | CM137: 82 | CN137: 83 | CO137: 84 | CP137: 85 | CQ137: 86 | CR137: 87 | CS137: 88 | CT137: 89 | CU137: 90 | CV137: 91 | CW137: 92 | CX137: 93 | CY137: 94 | CZ137: 95 | DA137: 96 | DB137: 97 | DC137: 98 | DD137: 99 | DE137: 100 | DF137: 101 | DG137: 102 | DH137: 103 | DI137: 104 | DJ137: 105 | DK137: 106 | DL137: 107 | DM137: 108 | DN137: 109 | DO137: 110 | DP137: 111 | DQ137: 112 | DR137: 113 | DS137: 114 | DT137: 115 | DU137: 116 | DV137: 117 | DW137: 118 | DX137: 119 | DY137: 120 | DZ137: 121 | EA137: 122 | EB137: 123 | EC137: 124 | ED137: 125
D141: Required revenue excluding tax liability | J141: =SUM(J47:J50)*(1+'Common Inputs'!J$14)^J137 -> 213.6710751 | K141: =SUM(K47:K50)*(1+'Common Inputs'!K$14)^K137 -> 219.1710441 | L141: =SUM(L47:L50)*(1+'Common Inputs'!L$14)^L137 -> 222.9289732 | M141: =SUM(M47:M50)*(1+'Common Inputs'!M$14)^M137 -> 226.7406995 | N141: =SUM(N47:N50)*(1+'Common Inputs'!N$14)^N137 -> 230.6036779 | O141: =SUM(O47:O50)*(1+'Common Inputs'!O$14)^O137 -> 234.5180704 | P141: =SUM(P47:P50)*(1+'Common Inputs'!P$14)^P137 -> 238.4840333 | Q141: =SUM(Q47:Q50)*(1+'Common Inputs'!Q$14)^Q137 -> 242.5016986 | R141: =SUM(R47:R50)*(1+'Common Inputs'!R$14)^R137 -> 246.5711726 | S141: =SUM(S47:S50)*(1+'Common Inputs'!S$14)^S137 -> 250.6925349 | T141: =SUM(T47:T50)*(1+'Common Inputs'!T$14)^T137 -> 254.8658362 | U141: =SUM(U47:U50)*(1+'Common Inputs'!U$14)^U137 -> 259.0910979 | V141: =SUM(V47:V50)*(1+'Common Inputs'!V$14)^V137 -> 287.6030679 | W141: =SUM(W47:W50)*(1+'Common Inputs'!W$14)^W137 -> 294.727658 | X141: =SUM(X47:X50)*(1+'Common Inputs'!X$14)^X137 -> 299.7795467 | Y141: =SUM(Y47:Y50)*(1+'Common Inputs'!Y$14)^Y137 -> 304.9058815 | Z141: =SUM(Z47:Z50)*(1+'Common Inputs'!Z$14)^Z137 -> 310.1011579 | AA141: =SUM(AA47:AA50)*(1+'Common Inputs'!AA$14)^AA137 -> 315.3655806 | AB141: =SUM(AB47:AB50)*(1+'Common Inputs'!AB$14)^AB137 -> 320.6993598 | AC141: =SUM(AC47:AC50)*(1+'Common Inputs'!AC$14)^AC137 -> 326.1026729 | AD141: =SUM(AD47:AD50)*(1+'Common Inputs'!AD$14)^AD137 -> 331.5756631 | AE141: =SUM(AE47:AE50)*(1+'Common Inputs'!AE$14)^AE137 -> 337.1533661 | AF141: =SUM(AF47:AF50)*(1+'Common Inputs'!AF$14)^AF137 -> 342.7662134 | AG141: =SUM(AG47:AG50)*(1+'Common Inputs'!AG$14)^AG137 -> 348.448722 | AH141: =SUM(AH47:AH50)*(1+'Common Inputs'!AH$14)^AH137 -> 386.7941518 | AI141: =SUM(AI47:AI50)*(1+'Common Inputs'!AI$14)^AI137 -> 396.3759334 | AJ141: =SUM(AJ47:AJ50)*(1+'Common Inputs'!AJ$14)^AJ137 -> 403.1701621 | AK141: =SUM(AK47:AK50)*(1+'Common Inputs'!AK$14)^AK137 -> 410.0645124 | AL141: =SUM(AL47:AL50)*(1+'Common Inputs'!AL$14)^AL137 -> 417.0515816 | AM141: =SUM(AM47:AM50)*(1+'Common Inputs'!AM$14)^AM137 -> 424.131645 | AN141: =SUM(AN47:AN50)*(1+'Common Inputs'!AN$14)^AN137 -> 431.304985 | AO141: =SUM(AO47:AO50)*(1+'Common Inputs'!AO$14)^AO137 -> 438.5718404 | AP141: =SUM(AP47:AP50)*(1+'Common Inputs'!AP$14)^AP137 -> 445.9324037 | AQ141: =SUM(AQ47:AQ50)*(1+'Common Inputs'!AQ$14)^AQ137 -> 453.4337941 | AR141: =SUM(AR47:AR50)*(1+'Common Inputs'!AR$14)^AR137 -> 460.9824498 | AS141: =SUM(AS47:AS50)*(1+'Common Inputs'!AS$14)^AS137 -> 468.624792 | AT141: =SUM(AT47:AT50)*(1+'Common Inputs'!AT$14)^AT137 -> 520.1951321 | AU141: =SUM(AU47:AU50)*(1+'Common Inputs'!AU$14)^AU137 -> 533.0815631 | AV141: =SUM(AV47:AV50)*(1+'Common Inputs'!AV$14)^AV137 -> 542.2190453 | AW141: =SUM(AW47:AW50)*(1+'Common Inputs'!AW$14)^AW137 -> 551.49118 | AX141: =SUM(AX47:AX50)*(1+'Common Inputs'!AX$14)^AX137 -> 560.8880112 | AY141: =SUM(AY47:AY50)*(1+'Common Inputs'!AY$14)^AY137 -> 570.4099093 | AZ141: =SUM(AZ47:AZ50)*(1+'Common Inputs'!AZ$14)^AZ137 -> 580.0572541 | BA141: =SUM(BA47:BA50)*(1+'Common Inputs'!BA$14)^BA137 -> 589.8303668 | BB141: =SUM(BB47:BB50)*(1+'Common Inputs'!BB$14)^BB137 -> 599.7295061 | BC141: =SUM(BC47:BC50)*(1+'Common Inputs'!BC$14)^BC137 -> 609.8180422 | BD141: =SUM(BD47:BD50)*(1+'Common Inputs'!BD$14)^BD137 -> 619.9701449 | BE141: =SUM(BE47:BE50)*(1+'Common Inputs'!BE$14)^BE137 -> 630.2482456 | BF141: =SUM(BF47:BF50)*(1+'Common Inputs'!BF$14)^BF137 -> 699.6046196 | BG141: =SUM(BG47:BG50)*(1+'Common Inputs'!BG$14)^BG137 -> 716.9354366 | BH141: =SUM(BH47:BH50)*(1+'Common Inputs'!BH$14)^BH137 -> 729.2243343 | BI141: =SUM(BI47:BI50)*(1+'Common Inputs'!BI$14)^BI137 -> 741.6943246 | BJ141: =SUM(BJ47:BJ50)*(1+'Common Inputs'!BJ$14)^BJ137 -> 754.332018 | BK141: =SUM(BK47:BK50)*(1+'Common Inputs'!BK$14)^BK137 -> 767.1379123 | BL141: =SUM(BL47:BL50)*(1+'Common Inputs'!BL$14)^BL137 -> 780.1125185 | BM141: =SUM(BM47:BM50)*(1+'Common Inputs'!BM$14)^BM137 -> 793.2562685 | BN141: =SUM(BN47:BN50)*(1+'Common Inputs'!BN$14)^BN137 -> 806.5695104 | BO141: =SUM(BO47:BO50)*(1+'Common Inputs'!BO$14)^BO137 -> 820.1374698 | BP141: =SUM(BP47:BP50)*(1+'Common Inputs'!BP$14)^BP137 -> 833.7909192 | BQ141: =SUM(BQ47:BQ50)*(1+'Common Inputs'!BQ$14)^BQ137 -> 847.613822 | BR141: =SUM(BR47:BR50)*(1+'Common Inputs'!BR$14)^BR137 -> 940.8904342 | BS141: =SUM(BS47:BS50)*(1+'Common Inputs'!BS$14)^BS137 -> 964.1984564 | BT141: =SUM(BT47:BT50)*(1+'Common Inputs'!BT$14)^BT137 -> 980.7256576 | BU141: =SUM(BU47:BU50)*(1+'Common Inputs'!BU$14)^BU137 -> 997.4964082 | BV141: =SUM(BV47:BV50)*(1+'Common Inputs'!BV$14)^BV137 -> 1014.492701 | BW141: =SUM(BW47:BW50)*(1+'Common Inputs'!BW$14)^BW137 -> 1031.715205 | BX141: =SUM(BX47:BX50)*(1+'Common Inputs'!BX$14)^BX137 -> 1049.164608 | BY141: =SUM(BY47:BY50)*(1+'Common Inputs'!BY$14)^BY137 -> 1066.84149 | BZ141: =SUM(BZ47:BZ50)*(1+'Common Inputs'!BZ$14)^BZ137 -> 1084.74632 | CA141: =SUM(CA47:CA50)*(1+'Common Inputs'!CA$14)^CA137 -> 1102.993717 | CB141: =SUM(CB47:CB50)*(1+'Common Inputs'!CB$14)^CB137 -> 1121.356089 | CC141: =SUM(CC47:CC50)*(1+'Common Inputs'!CC$14)^CC137 -> 1139.946356 | CD141: =SUM(CD47:CD50)*(1+'Common Inputs'!CD$14)^CD137 -> 1265.39303 | CE141: =SUM(CE47:CE50)*(1+'Common Inputs'!CE$14)^CE137 -> 1296.739728 | CF141: =SUM(CF47:CF50)*(1+'Common Inputs'!CF$14)^CF137 -> 1318.966977 | CG141: =SUM(CG47:CG50)*(1+'Common Inputs'!CG$14)^CG137 -> 1341.521772 | CH141: =SUM(CH47:CH50)*(1+'Common Inputs'!CH$14)^CH137 -> 1364.379895 | CI141: =SUM(CI47:CI50)*(1+'Common Inputs'!CI$14)^CI137 -> 1387.542249 | CJ141: =SUM(CJ47:CJ50)*(1+'Common Inputs'!CJ$14)^CJ137 -> 1411.009756 | CK141: =SUM(CK47:CK50)*(1+'Common Inputs'!CK$14)^CK137 -> 1434.783197 | CL141: =SUM(CL47:CL50)*(1+'Common Inputs'!CL$14)^CL137 -> 1458.863204 | CM141: =SUM(CM47:CM50)*(1+'Common Inputs'!CM$14)^CM137 -> 1483.403924 | CN141: =SUM(CN47:CN50)*(1+'Common Inputs'!CN$14)^CN137 -> 1508.099272 | CO141: =SUM(CO47:CO50)*(1+'Common Inputs'!CO$14)^CO137 -> 1533.101115 | CP141: =SUM(CP47:CP50)*(1+'Common Inputs'!CP$14)^CP137 -> 1701.812944 | CQ141: =SUM(CQ47:CQ50)*(1+'Common Inputs'!CQ$14)^CQ137 -> 1743.970769 | CR141: =SUM(CR47:CR50)*(1+'Common Inputs'!CR$14)^CR137 -> 1773.863946 | CS141: =SUM(CS47:CS50)*(1+'Common Inputs'!CS$14)^CS137 -> 1804.197638 | CT141: =SUM(CT47:CT50)*(1+'Common Inputs'!CT$14)^CT137 -> 1834.939273 | CU141: =SUM(CU47:CU50)*(1+'Common Inputs'!CU$14)^CU137 -> 1866.090064 | CV141: =SUM(CV47:CV50)*(1+'Common Inputs'!CV$14)^CV137 -> 1897.651251 | CW141: =SUM(CW47:CW50)*(1+'Common Inputs'!CW$14)^CW137 -> 1929.623888 | CX141: =SUM(CX47:CX50)*(1+'Common Inputs'!CX$14)^CX137 -> 1962.008819 | CY141: =SUM(CY47:CY50)*(1+'Common Inputs'!CY$14)^CY137 -> 1995.013359 | CZ141: =SUM(CZ47:CZ50)*(1+'Common Inputs'!CZ$14)^CZ137 -> 2028.225857 | DA141: =SUM(DA47:DA50)*(1+'Common Inputs'!DA$14)^DA137 -> 2061.850556 | DB141: =SUM(DB47:DB50)*(1+'Common Inputs'!DB$14)^DB137 -> 2288.749209 | DC141: =SUM(DC47:DC50)*(1+'Common Inputs'!DC$14)^DC137 -> 2345.446796 | DD141: =SUM(DD47:DD50)*(1+'Common Inputs'!DD$14)^DD137 -> 2385.649797 | DE141: =SUM(DE47:DE50)*(1+'Common Inputs'!DE$14)^DE137 -> 2426.44524 | DF141: =SUM(DF47:DF50)*(1+'Common Inputs'!DF$14)^DF137 -> 2467.789322 | DG141: =SUM(DG47:DG50)*(1+'Common Inputs'!DG$14)^DG137 -> 2509.683672 | DH141: =SUM(DH47:DH50)*(1+'Common Inputs'!DH$14)^DH137 -> 2552.12996 | DI141: =SUM(DI47:DI50)*(1+'Common Inputs'!DI$14)^DI137 -> 2595.129601 | DJ141: =SUM(DJ47:DJ50)*(1+'Common Inputs'!DJ$14)^DJ137 -> 2638.683733 | DK141: =SUM(DK47:DK50)*(1+'Common Inputs'!DK$14)^DK137 -> 2683.071171 | DL141: =SUM(DL47:DL50)*(1+'Common Inputs'!DL$14)^DL137 -> 2727.738288 | DM141: =SUM(DM47:DM50)*(1+'Common Inputs'!DM$14)^DM137 -> 2772.95977 | DN141: =SUM(DN47:DN50)*(1+'Common Inputs'!DN$14)^DN137 -> 3078.113233 | DO141: =SUM(DO47:DO50)*(1+'Common Inputs'!DO$14)^DO137 -> 3154.365184 | DP141: =SUM(DP47:DP50)*(1+'Common Inputs'!DP$14)^DP137 -> 3208.433751 | DQ141: =SUM(DQ47:DQ50)*(1+'Common Inputs'!DQ$14)^DQ137 -> 3263.299086 | DR141: =SUM(DR47:DR50)*(1+'Common Inputs'!DR$14)^DR137 -> 3318.90228 | DS141: =SUM(DS47:DS50)*(1+'Common Inputs'!DS$14)^DS137 -> 3375.245522 | DT141: =SUM(DT47:DT50)*(1+'Common Inputs'!DT$14)^DT137 -> 3432.331062 | DU141: =SUM(DU47:DU50)*(1+'Common Inputs'!DU$14)^DU137 -> 3490.160798 | DV141: =SUM(DV47:DV50)*(1+'Common Inputs'!DV$14)^DV137 -> 3548.736263 | DW141: =SUM(DW47:DW50)*(1+'Common Inputs'!DW$14)^DW137 -> 3608.432432 | DX141: =SUM(DX47:DX50)*(1+'Common Inputs'!DX$14)^DX137 -> 3668.504739 | DY141: =SUM(DY47:DY50)*(1+'Common Inputs'!DY$14)^DY137 -> 3729.322605 | DZ141: =SUM(DZ47:DZ50)*(1+'Common Inputs'!DZ$14)^DZ137 -> 4139.720087 | EA141: =SUM(EA47:EA50)*(1+'Common Inputs'!EA$14)^EA137 -> 4242.270484 | EB141: =SUM(EB47:EB50)*(1+'Common Inputs'!EB$14)^EB137 -> 4314.986695 | EC141: =SUM(EC47:EC50)*(1+'Common Inputs'!EC$14)^EC137 -> 4388.774471 | ED141: =SUM(ED47:ED50)*(1+'Common Inputs'!ED$14)^ED137 -> 4463.554585
D142: In-kind asset contributions | J142: =SUM(J35:J36)*(1+'Common Inputs'!J$14)^J137 -> 0 | K142: =SUM(K35:K36)*(1+'Common Inputs'!K$14)^K137 -> 0 | L142: =SUM(L35:L36)*(1+'Common Inputs'!L$14)^L137 -> 0 | M142: =SUM(M35:M36)*(1+'Common Inputs'!M$14)^M137 -> 0 | N142: =SUM(N35:N36)*(1+'Common Inputs'!N$14)^N137 -> 0 | O142: =SUM(O35:O36)*(1+'Common Inputs'!O$14)^O137 -> 0 | P142: =SUM(P35:P36)*(1+'Common Inputs'!P$14)^P137 -> 0 | Q142: =SUM(Q35:Q36)*(1+'Common Inputs'!Q$14)^Q137 -> 0 | R142: =SUM(R35:R36)*(1+'Common Inputs'!R$14)^R137 -> 0 | S142: =SUM(S35:S36)*(1+'Common Inputs'!S$14)^S137 -> 0 | T142: =SUM(T35:T36)*(1+'Common Inputs'!T$14)^T137 -> 0 | U142: =SUM(U35:U36)*(1+'Common Inputs'!U$14)^U137 -> 0 | V142: =SUM(V35:V36)*(1+'Common Inputs'!V$14)^V137 -> 0 | W142: =SUM(W35:W36)*(1+'Common Inputs'!W$14)^W137 -> 0 | X142: =SUM(X35:X36)*(1+'Common Inputs'!X$14)^X137 -> 0 | Y142: =SUM(Y35:Y36)*(1+'Common Inputs'!Y$14)^Y137 -> 0 | Z142: =SUM(Z35:Z36)*(1+'Common Inputs'!Z$14)^Z137 -> 0 | AA142: =SUM(AA35:AA36)*(1+'Common Inputs'!AA$14)^AA137 -> 0 | AB142: =SUM(AB35:AB36)*(1+'Common Inputs'!AB$14)^AB137 -> 0 | AC142: =SUM(AC35:AC36)*(1+'Common Inputs'!AC$14)^AC137 -> 0 | AD142: =SUM(AD35:AD36)*(1+'Common Inputs'!AD$14)^AD137 -> 0 | AE142: =SUM(AE35:AE36)*(1+'Common Inputs'!AE$14)^AE137 -> 0 | AF142: =SUM(AF35:AF36)*(1+'Common Inputs'!AF$14)^AF137 -> 0 | AG142: =SUM(AG35:AG36)*(1+'Common Inputs'!AG$14)^AG137 -> 0 | AH142: =SUM(AH35:AH36)*(1+'Common Inputs'!AH$14)^AH137 -> 0 | AI142: =SUM(AI35:AI36)*(1+'Common Inputs'!AI$14)^AI137 -> 0 | AJ142: =SUM(AJ35:AJ36)*(1+'Common Inputs'!AJ$14)^AJ137 -> 0 | AK142: =SUM(AK35:AK36)*(1+'Common Inputs'!AK$14)^AK137 -> 0 | AL142: =SUM(AL35:AL36)*(1+'Common Inputs'!AL$14)^AL137 -> 0 | AM142: =SUM(AM35:AM36)*(1+'Common Inputs'!AM$14)^AM137 -> 0 | AN142: =SUM(AN35:AN36)*(1+'Common Inputs'!AN$14)^AN137 -> 0 | AO142: =SUM(AO35:AO36)*(1+'Common Inputs'!AO$14)^AO137 -> 0 | AP142: =SUM(AP35:AP36)*(1+'Common Inputs'!AP$14)^AP137 -> 0 | AQ142: =SUM(AQ35:AQ36)*(1+'Common Inputs'!AQ$14)^AQ137 -> 0 | AR142: =SUM(AR35:AR36)*(1+'Common Inputs'!AR$14)^AR137 -> 0 | AS142: =SUM(AS35:AS36)*(1+'Common Inputs'!AS$14)^AS137 -> 0 | AT142: =SUM(AT35:AT36)*(1+'Common Inputs'!AT$14)^AT137 -> 0 | AU142: =SUM(AU35:AU36)*(1+'Common Inputs'!AU$14)^AU137 -> 0 | AV142: =SUM(AV35:AV36)*(1+'Common Inputs'!AV$14)^AV137 -> 0 | AW142: =SUM(AW35:AW36)*(1+'Common Inputs'!AW$14)^AW137 -> 0 | AX142: =SUM(AX35:AX36)*(1+'Common Inputs'!AX$14)^AX137 -> 0 | AY142: =SUM(AY35:AY36)*(1+'Common Inputs'!AY$14)^AY137 -> 0 | AZ142: =SUM(AZ35:AZ36)*(1+'Common Inputs'!AZ$14)^AZ137 -> 0 | BA142: =SUM(BA35:BA36)*(1+'Common Inputs'!BA$14)^BA137 -> 0 | BB142: =SUM(BB35:BB36)*(1+'Common Inputs'!BB$14)^BB137 -> 0 | BC142: =SUM(BC35:BC36)*(1+'Common Inputs'!BC$14)^BC137 -> 0 | BD142: =SUM(BD35:BD36)*(1+'Common Inputs'!BD$14)^BD137 -> 0 | BE142: =SUM(BE35:BE36)*(1+'Common Inputs'!BE$14)^BE137 -> 0 | BF142: =SUM(BF35:BF36)*(1+'Common Inputs'!BF$14)^BF137 -> 0 | BG142: =SUM(BG35:BG36)*(1+'Common Inputs'!BG$14)^BG137 -> 0 | BH142: =SUM(BH35:BH36)*(1+'Common Inputs'!BH$14)^BH137 -> 0 | BI142: =SUM(BI35:BI36)*(1+'Common Inputs'!BI$14)^BI137 -> 0 | BJ142: =SUM(BJ35:BJ36)*(1+'Common Inputs'!BJ$14)^BJ137 -> 0 | BK142: =SUM(BK35:BK36)*(1+'Common Inputs'!BK$14)^BK137 -> 0 | BL142: =SUM(BL35:BL36)*(1+'Common Inputs'!BL$14)^BL137 -> 0 | BM142: =SUM(BM35:BM36)*(1+'Common Inputs'!BM$14)^BM137 -> 0 | BN142: =SUM(BN35:BN36)*(1+'Common Inputs'!BN$14)^BN137 -> 0 | BO142: =SUM(BO35:BO36)*(1+'Common Inputs'!BO$14)^BO137 -> 0 | BP142: =SUM(BP35:BP36)*(1+'Common Inputs'!BP$14)^BP137 -> 0 | BQ142: =SUM(BQ35:BQ36)*(1+'Common Inputs'!BQ$14)^BQ137 -> 0 | BR142: =SUM(BR35:BR36)*(1+'Common Inputs'!BR$14)^BR137 -> 0 | BS142: =SUM(BS35:BS36)*(1+'Common Inputs'!BS$14)^BS137 -> 0 | BT142: =SUM(BT35:BT36)*(1+'Common Inputs'!BT$14)^BT137 -> 0 | BU142: =SUM(BU35:BU36)*(1+'Common Inputs'!BU$14)^BU137 -> 0 | BV142: =SUM(BV35:BV36)*(1+'Common Inputs'!BV$14)^BV137 -> 0 | BW142: =SUM(BW35:BW36)*(1+'Common Inputs'!BW$14)^BW137 -> 0 | BX142: =SUM(BX35:BX36)*(1+'Common Inputs'!BX$14)^BX137 -> 0 | BY142: =SUM(BY35:BY36)*(1+'Common Inputs'!BY$14)^BY137 -> 0 | BZ142: =SUM(BZ35:BZ36)*(1+'Common Inputs'!BZ$14)^BZ137 -> 0 | CA142: =SUM(CA35:CA36)*(1+'Common Inputs'!CA$14)^CA137 -> 0 | CB142: =SUM(CB35:CB36)*(1+'Common Inputs'!CB$14)^CB137 -> 0 | CC142: =SUM(CC35:CC36)*(1+'Common Inputs'!CC$14)^CC137 -> 0 | CD142: =SUM(CD35:CD36)*(1+'Common Inputs'!CD$14)^CD137 -> 0 | CE142: =SUM(CE35:CE36)*(1+'Common Inputs'!CE$14)^CE137 -> 0 | CF142: =SUM(CF35:CF36)*(1+'Common Inputs'!CF$14)^CF137 -> 0 | CG142: =SUM(CG35:CG36)*(1+'Common Inputs'!CG$14)^CG137 -> 0 | CH142: =SUM(CH35:CH36)*(1+'Common Inputs'!CH$14)^CH137 -> 0 | CI142: =SUM(CI35:CI36)*(1+'Common Inputs'!CI$14)^CI137 -> 0 | CJ142: =SUM(CJ35:CJ36)*(1+'Common Inputs'!CJ$14)^CJ137 -> 0 | CK142: =SUM(CK35:CK36)*(1+'Common Inputs'!CK$14)^CK137 -> 0 | CL142: =SUM(CL35:CL36)*(1+'Common Inputs'!CL$14)^CL137 -> 0 | CM142: =SUM(CM35:CM36)*(1+'Common Inputs'!CM$14)^CM137 -> 0 | CN142: =SUM(CN35:CN36)*(1+'Common Inputs'!CN$14)^CN137 -> 0 | CO142: =SUM(CO35:CO36)*(1+'Common Inputs'!CO$14)^CO137 -> 0 | CP142: =SUM(CP35:CP36)*(1+'Common Inputs'!CP$14)^CP137 -> 0 | CQ142: =SUM(CQ35:CQ36)*(1+'Common Inputs'!CQ$14)^CQ137 -> 0 | CR142: =SUM(CR35:CR36)*(1+'Common Inputs'!CR$14)^CR137 -> 0 | CS142: =SUM(CS35:CS36)*(1+'Common Inputs'!CS$14)^CS137 -> 0 | CT142: =SUM(CT35:CT36)*(1+'Common Inputs'!CT$14)^CT137 -> 0 | CU142: =SUM(CU35:CU36)*(1+'Common Inputs'!CU$14)^CU137 -> 0 | CV142: =SUM(CV35:CV36)*(1+'Common Inputs'!CV$14)^CV137 -> 0 | CW142: =SUM(CW35:CW36)*(1+'Common Inputs'!CW$14)^CW137 -> 0 | CX142: =SUM(CX35:CX36)*(1+'Common Inputs'!CX$14)^CX137 -> 0 | CY142: =SUM(CY35:CY36)*(1+'Common Inputs'!CY$14)^CY137 -> 0 | CZ142: =SUM(CZ35:CZ36)*(1+'Common Inputs'!CZ$14)^CZ137 -> 0 | DA142: =SUM(DA35:DA36)*(1+'Common Inputs'!DA$14)^DA137 -> 0 | DB142: =SUM(DB35:DB36)*(1+'Common Inputs'!DB$14)^DB137 -> 0 | DC142: =SUM(DC35:DC36)*(1+'Common Inputs'!DC$14)^DC137 -> 0 | DD142: =SUM(DD35:DD36)*(1+'Common Inputs'!DD$14)^DD137 -> 0 | DE142: =SUM(DE35:DE36)*(1+'Common Inputs'!DE$14)^DE137 -> 0 | DF142: =SUM(DF35:DF36)*(1+'Common Inputs'!DF$14)^DF137 -> 0 | DG142: =SUM(DG35:DG36)*(1+'Common Inputs'!DG$14)^DG137 -> 0 | DH142: =SUM(DH35:DH36)*(1+'Common Inputs'!DH$14)^DH137 -> 0 | DI142: =SUM(DI35:DI36)*(1+'Common Inputs'!DI$14)^DI137 -> 0 | DJ142: =SUM(DJ35:DJ36)*(1+'Common Inputs'!DJ$14)^DJ137 -> 0 | DK142: =SUM(DK35:DK36)*(1+'Common Inputs'!DK$14)^DK137 -> 0 | DL142: =SUM(DL35:DL36)*(1+'Common Inputs'!DL$14)^DL137 -> 0 | DM142: =SUM(DM35:DM36)*(1+'Common Inputs'!DM$14)^DM137 -> 0 | DN142: =SUM(DN35:DN36)*(1+'Common Inputs'!DN$14)^DN137 -> 0 | DO142: =SUM(DO35:DO36)*(1+'Common Inputs'!DO$14)^DO137 -> 0 | DP142: =SUM(DP35:DP36)*(1+'Common Inputs'!DP$14)^DP137 -> 0 | DQ142: =SUM(DQ35:DQ36)*(1+'Common Inputs'!DQ$14)^DQ137 -> 0 | DR142: =SUM(DR35:DR36)*(1+'Common Inputs'!DR$14)^DR137 -> 0 | DS142: =SUM(DS35:DS36)*(1+'Common Inputs'!DS$14)^DS137 -> 0 | DT142: =SUM(DT35:DT36)*(1+'Common Inputs'!DT$14)^DT137 -> 0 | DU142: =SUM(DU35:DU36)*(1+'Common Inputs'!DU$14)^DU137 -> 0 | DV142: =SUM(DV35:DV36)*(1+'Common Inputs'!DV$14)^DV137 -> 0 | DW142: =SUM(DW35:DW36)*(1+'Common Inputs'!DW$14)^DW137 -> 0 | DX142: =SUM(DX35:DX36)*(1+'Common Inputs'!DX$14)^DX137 -> 0 | DY142: =SUM(DY35:DY36)*(1+'Common Inputs'!DY$14)^DY137 -> 0 | DZ142: =SUM(DZ35:DZ36)*(1+'Common Inputs'!DZ$14)^DZ137 -> 0 | EA142: =SUM(EA35:EA36)*(1+'Common Inputs'!EA$14)^EA137 -> 0 | EB142: =SUM(EB35:EB36)*(1+'Common Inputs'!EB$14)^EB137 -> 0 | EC142: =SUM(EC35:EC36)*(1+'Common Inputs'!EC$14)^EC137 -> 0 | ED142: =SUM(ED35:ED36)*(1+'Common Inputs'!ED$14)^ED137 -> 0
D143: Total income for tax calculation | J143: =SUM(J141:J142) -> 213.6710751 | K143: 219.1710441 | L143: 222.9289732 | M143: 226.7406995 | N143: 230.6036779 | O143: 234.5180704 | P143: 238.4840333 | Q143: 242.5016986 | R143: 246.5711726 | S143: 250.6925349 | T143: =SUM(T141:T142) -> 254.8658362 | U143: 259.0910979 | V143: 287.6030679 | W143: 294.727658 | X143: 299.7795467 | Y143: 304.9058815 | Z143: 310.1011579 | AA143: 315.3655806 | AB143: 320.6993598 | AC143: 326.1026729 | AD143: 331.5756631 | AE143: 337.1533661 | AF143: 342.7662134 | AG143: 348.448722 | AH143: 386.7941518 | AI143: 396.3759334 | AJ143: 403.1701621 | AK143: 410.0645124 | AL143: 417.0515816 | AM143: 424.131645 | AN143: 431.304985 | AO143: 438.5718404 | AP143: 445.9324037 | AQ143: 453.4337941 | AR143: 460.9824498 | AS143: 468.624792 | AT143: 520.1951321 | AU143: 533.0815631 | AV143: 542.2190453 | AW143: 551.49118 | AX143: 560.8880112 | AY143: 570.4099093 | AZ143: 580.0572541 | BA143: 589.8303668 | BB143: 599.7295061 | BC143: 609.8180422 | BD143: 619.9701449 | BE143: 630.2482456 | BF143: 699.6046196 | BG143: 716.9354366 | BH143: 729.2243343 | BI143: 741.6943246 | BJ143: 754.332018 | BK143: 767.1379123 | BL143: 780.1125185 | BM143: 793.2562685 | BN143: 806.5695104 | BO143: 820.1374698 | BP143: 833.7909192 | BQ143: 847.613822 | BR143: 940.8904342 | BS143: 964.1984564 | BT143: 980.7256576 | BU143: 997.4964082 | BV143: 1014.492701 | BW143: 1031.715205 | BX143: 1049.164608 | BY143: 1066.84149 | BZ143: 1084.74632 | CA143: 1102.993717 | CB143: 1121.356089 | CC143: 1139.946356 | CD143: 1265.39303 | CE143: 1296.739728 | CF143: =SUM(CF141:CF142) -> 1318.966977 | CG143: 1341.521772 | CH143: 1364.379895 | CI143: 1387.542249 | CJ143: 1411.009756 | CK143: 1434.783197 | CL143: 1458.863204 | CM143: 1483.403924 | CN143: 1508.099272 | CO143: 1533.101115 | CP143: 1701.812944 | CQ143: 1743.970769 | CR143: 1773.863946 | CS143: 1804.197638 | CT143: 1834.939273 | CU143: 1866.090064 | CV143: 1897.651251 | CW143: 1929.623888 | CX143: 1962.008819 | CY143: 1995.013359 | CZ143: 2028.225857 | DA143: 2061.850556 | DB143: 2288.749209 | DC143: 2345.446796 | DD143: 2385.649797 | DE143: 2426.44524 | DF143: 2467.789322 | DG143: 2509.683672 | DH143: 2552.12996 | DI143: 2595.129601 | DJ143: 2638.683733 | DK143: 2683.071171 | DL143: 2727.738288 | DM143: 2772.95977 | DN143: 3078.113233 | DO143: 3154.365184 | DP143: 3208.433751 | DQ143: 3263.299086 | DR143: 3318.90228 | DS143: 3375.245522 | DT143: 3432.331062 | DU143: 3490.160798 | DV143: 3548.736263 | DW143: 3608.432432 | DX143: 3668.504739 | DY143: 3729.322605 | DZ143: 4139.720087 | EA143: 4242.270484 | EB143: 4314.986695 | EC143: 4388.774471 | ED143: 4463.554585
D144: less
D145: Operating expenditure | J145: =J32*(1+'Common Inputs'!J$14)^J137 -> 163.0572624 | K145: =K32*(1+'Common Inputs'!K$14)^K137 -> 166.084876 | L145: =L32*(1+'Common Inputs'!L$14)^L137 -> 170.2369979 | M145: =M32*(1+'Common Inputs'!M$14)^M137 -> 174.4929229 | N145: =N32*(1+'Common Inputs'!N$14)^N137 -> 178.855246 | O145: =O32*(1+'Common Inputs'!O$14)^O137 -> 183.3266271 | P145: =P32*(1+'Common Inputs'!P$14)^P137 -> 187.9097928 | Q145: =Q32*(1+'Common Inputs'!Q$14)^Q137 -> 192.6075376 | R145: =R32*(1+'Common Inputs'!R$14)^R137 -> 197.422726 | S145: =S32*(1+'Common Inputs'!S$14)^S137 -> 202.3582942 | T145: =T32*(1+'Common Inputs'!T$14)^T137 -> 207.4172515 | U145: =U32*(1+'Common Inputs'!U$14)^U137 -> 212.6026828 | V145: =V32*(1+'Common Inputs'!V$14)^V137 -> 217.9177499 | W145: =W32*(1+'Common Inputs'!W$14)^W137 -> 223.3656937 | X145: =X32*(1+'Common Inputs'!X$14)^X137 -> 228.949836 | Y145: =Y32*(1+'Common Inputs'!Y$14)^Y137 -> 234.6735819 | Z145: =Z32*(1+'Common Inputs'!Z$14)^Z137 -> 240.5404214 | AA145: =AA32*(1+'Common Inputs'!AA$14)^AA137 -> 246.553932 | AB145: =AB32*(1+'Common Inputs'!AB$14)^AB137 -> 252.7177803 | AC145: =AC32*(1+'Common Inputs'!AC$14)^AC137 -> 259.0357248 | AD145: =AD32*(1+'Common Inputs'!AD$14)^AD137 -> 265.5116179 | AE145: =AE32*(1+'Common Inputs'!AE$14)^AE137 -> 272.1494084 | AF145: =AF32*(1+'Common Inputs'!AF$14)^AF137 -> 278.9531436 | AG145: =AG32*(1+'Common Inputs'!AG$14)^AG137 -> 285.9269722 | AH145: =AH32*(1+'Common Inputs'!AH$14)^AH137 -> 293.0751465 | AI145: =AI32*(1+'Common Inputs'!AI$14)^AI137 -> 300.4020251 | AJ145: =AJ32*(1+'Common Inputs'!AJ$14)^AJ137 -> 307.9120757 | AK145: =AK32*(1+'Common Inputs'!AK$14)^AK137 -> 315.6098776 | AL145: =AL32*(1+'Common Inputs'!AL$14)^AL137 -> 323.5001246 | AM145: =AM32*(1+'Common Inputs'!AM$14)^AM137 -> 331.5876277 | AN145: =AN32*(1+'Common Inputs'!AN$14)^AN137 -> 339.8773184 | AO145: =AO32*(1+'Common Inputs'!AO$14)^AO137 -> 348.3742513 | AP145: =AP32*(1+'Common Inputs'!AP$14)^AP137 -> 357.0836076 | AQ145: =AQ32*(1+'Common Inputs'!AQ$14)^AQ137 -> 366.0106978 | AR145: =AR32*(1+'Common Inputs'!AR$14)^AR137 -> 375.1609653 | AS145: =AS32*(1+'Common Inputs'!AS$14)^AS137 -> 384.5399894 | AT145: =AT32*(1+'Common Inputs'!AT$14)^AT137 -> 394.1534891 | AU145: =AU32*(1+'Common Inputs'!AU$14)^AU137 -> 404.0073264 | AV145: =AV32*(1+'Common Inputs'!AV$14)^AV137 -> 414.1075095 | AW145: =AW32*(1+'Common Inputs'!AW$14)^AW137 -> 424.4601973 | AX145: =AX32*(1+'Common Inputs'!AX$14)^AX137 -> 435.0717022 | AY145: =AY32*(1+'Common Inputs'!AY$14)^AY137 -> 445.9484947 | AZ145: =AZ32*(1+'Common Inputs'!AZ$14)^AZ137 -> 457.0972071 | BA145: =BA32*(1+'Common Inputs'!BA$14)^BA137 -> 468.5246373 | BB145: =BB32*(1+'Common Inputs'!BB$14)^BB137 -> 480.2377532 | BC145: =BC32*(1+'Common Inputs'!BC$14)^BC137 -> 492.2436971 | BD145: =BD32*(1+'Common Inputs'!BD$14)^BD137 -> 504.5497895 | BE145: =BE32*(1+'Common Inputs'!BE$14)^BE137 -> 517.1635342 | BF145: =BF32*(1+'Common Inputs'!BF$14)^BF137 -> 530.0926226 | BG145: =BG32*(1+'Common Inputs'!BG$14)^BG137 -> 543.3449381 | BH145: =BH32*(1+'Common Inputs'!BH$14)^BH137 -> 556.9285616 | BI145: =BI32*(1+'Common Inputs'!BI$14)^BI137 -> 570.8517756 | BJ145: =BJ32*(1+'Common Inputs'!BJ$14)^BJ137 -> 585.12307 | BK145: =BK32*(1+'Common Inputs'!BK$14)^BK137 -> 599.7511468 | BL145: =BL32*(1+'Common Inputs'!BL$14)^BL137 -> 614.7449254 | BM145: =BM32*(1+'Common Inputs'!BM$14)^BM137 -> 630.1135486 | BN145: =BN32*(1+'Common Inputs'!BN$14)^BN137 -> 645.8663873 | BO145: =BO32*(1+'Common Inputs'!BO$14)^BO137 -> 662.013047 | BP145: =BP32*(1+'Common Inputs'!BP$14)^BP137 -> 678.5633731 | BQ145: =BQ32*(1+'Common Inputs'!BQ$14)^BQ137 -> 695.5274575 | BR145: =BR32*(1+'Common Inputs'!BR$14)^BR137 -> 712.9156439 | BS145: =BS32*(1+'Common Inputs'!BS$14)^BS137 -> 730.738535 | BT145: =BT32*(1+'Common Inputs'!BT$14)^BT137 -> 749.0069984 | BU145: =BU32*(1+'Common Inputs'!BU$14)^BU137 -> 767.7321733 | BV145: =BV32*(1+'Common Inputs'!BV$14)^BV137 -> 786.9254777 | BW145: =BW32*(1+'Common Inputs'!BW$14)^BW137 -> 806.5986146 | BX145: =BX32*(1+'Common Inputs'!BX$14)^BX137 -> 826.76358 | BY145: =BY32*(1+'Common Inputs'!BY$14)^BY137 -> 847.4326695 | BZ145: =BZ32*(1+'Common Inputs'!BZ$14)^BZ137 -> 868.6184862 | CA145: =CA32*(1+'Common Inputs'!CA$14)^CA137 -> 890.3339484 | CB145: =CB32*(1+'Common Inputs'!CB$14)^CB137 -> 912.5922971 | CC145: =CC32*(1+'Common Inputs'!CC$14)^CC137 -> 935.4071045 | CD145: =CD32*(1+'Common Inputs'!CD$14)^CD137 -> 958.7922821 | CE145: =CE32*(1+'Common Inputs'!CE$14)^CE137 -> 982.7620892 | CF145: =CF32*(1+'Common Inputs'!CF$14)^CF137 -> 1007.331141 | CG145: =CG32*(1+'Common Inputs'!CG$14)^CG137 -> 1032.51442 | CH145: =CH32*(1+'Common Inputs'!CH$14)^CH137 -> 1058.32728 | CI145: =CI32*(1+'Common Inputs'!CI$14)^CI137 -> 1084.785462 | CJ145: =CJ32*(1+'Common Inputs'!CJ$14)^CJ137 -> 1111.905099 | CK145: =CK32*(1+'Common Inputs'!CK$14)^CK137 -> 1139.702726 | CL145: =CL32*(1+'Common Inputs'!CL$14)^CL137 -> 1168.195295 | CM145: =CM32*(1+'Common Inputs'!CM$14)^CM137 -> 1197.400177 | CN145: =CN32*(1+'Common Inputs'!CN$14)^CN137 -> 1227.335181 | CO145: =CO32*(1+'Common Inputs'!CO$14)^CO137 -> 1258.018561 | CP145: =CP32*(1+'Common Inputs'!CP$14)^CP137 -> 1289.469025 | CQ145: =CQ32*(1+'Common Inputs'!CQ$14)^CQ137 -> 1321.705751 | CR145: =CR32*(1+'Common Inputs'!CR$14)^CR137 -> 1354.748394 | CS145: =CS32*(1+'Common Inputs'!CS$14)^CS137 -> 1388.617104 | CT145: =CT32*(1+'Common Inputs'!CT$14)^CT137 -> 1423.332532 | CU145: =CU32*(1+'Common Inputs'!CU$14)^CU137 -> 1458.915845 | CV145: =CV32*(1+'Common Inputs'!CV$14)^CV137 -> 1495.388741 | CW145: =CW32*(1+'Common Inputs'!CW$14)^CW137 -> 1532.77346 | CX145: =CX32*(1+'Common Inputs'!CX$14)^CX137 -> 1571.092796 | CY145: =CY32*(1+'Common Inputs'!CY$14)^CY137 -> 1610.370116 | CZ145: =CZ32*(1+'Common Inputs'!CZ$14)^CZ137 -> 1650.629369 | DA145: =DA32*(1+'Common Inputs'!DA$14)^DA137 -> 1691.895103 | DB145: =DB32*(1+'Common Inputs'!DB$14)^DB137 -> 1734.192481 | DC145: =DC32*(1+'Common Inputs'!DC$14)^DC137 -> 1777.547293 | DD145: =DD32*(1+'Common Inputs'!DD$14)^DD137 -> 1821.985975 | DE145: =DE32*(1+'Common Inputs'!DE$14)^DE137 -> 1867.535625 | DF145: =DF32*(1+'Common Inputs'!DF$14)^DF137 -> 1914.224015 | DG145: =DG32*(1+'Common Inputs'!DG$14)^DG137 -> 1962.079616 | DH145: =DH32*(1+'Common Inputs'!DH$14)^DH137 -> 2011.131606 | DI145: =DI32*(1+'Common Inputs'!DI$14)^DI137 -> 2061.409896 | DJ145: =DJ32*(1+'Common Inputs'!DJ$14)^DJ137 -> 2112.945144 | DK145: =DK32*(1+'Common Inputs'!DK$14)^DK137 -> 2165.768772 | DL145: =DL32*(1+'Common Inputs'!DL$14)^DL137 -> 2219.912992 | DM145: =DM32*(1+'Common Inputs'!DM$14)^DM137 -> 2275.410816 | DN145: =DN32*(1+'Common Inputs'!DN$14)^DN137 -> 2332.296087 | DO145: =DO32*(1+'Common Inputs'!DO$14)^DO137 -> 2390.603489 | DP145: =DP32*(1+'Common Inputs'!DP$14)^DP137 -> 2450.368576 | DQ145: =DQ32*(1+'Common Inputs'!DQ$14)^DQ137 -> 2511.627791 | DR145: =DR32*(1+'Common Inputs'!DR$14)^DR137 -> 2574.418485 | DS145: =DS32*(1+'Common Inputs'!DS$14)^DS137 -> 2638.778947 | DT145: =DT32*(1+'Common Inputs'!DT$14)^DT137 -> 2704.748421 | DU145: =DU32*(1+'Common Inputs'!DU$14)^DU137 -> 2772.367132 | DV145: =DV32*(1+'Common Inputs'!DV$14)^DV137 -> 2841.67631 | DW145: =DW32*(1+'Common Inputs'!DW$14)^DW137 -> 2912.718218 | DX145: =DX32*(1+'Common Inputs'!DX$14)^DX137 -> 2985.536173 | DY145: =DY32*(1+'Common Inputs'!DY$14)^DY137 -> 3060.174577 | DZ145: =DZ32*(1+'Common Inputs'!DZ$14)^DZ137 -> 3136.678942 | EA145: =EA32*(1+'Common Inputs'!EA$14)^EA137 -> 3215.095915 | EB145: =EB32*(1+'Common Inputs'!EB$14)^EB137 -> 3295.473313 | EC145: =EC32*(1+'Common Inputs'!EC$14)^EC137 -> 3377.860146 | ED145: =ED32*(1+'Common Inputs'!ED$14)^ED137 -> 3462.30665
D146: Tax depreciation | J146: =IF(J39=0,SUM(J582,J716,J727,J860,J870,J1003),J39) -> 19.9 | K146: 19.9 | L146: 19.9 | M146: 19.9 | N146: 19.9 | O146: 19.9 | P146: 19.9 | Q146: 19.9 | R146: 19.9 | S146: 19.9 | T146: 19.9 | U146: 19.9 | V146: 46.6632876 | W146: 46.6632876 | X146: 46.6632876 | Y146: 46.6632876 | Z146: 46.6632876 | AA146: 46.6632876 | AB146: 46.6632876 | AC146: 46.6632876 | AD146: 26.7632876 | AE146: 26.7632876 | AF146: 26.7632876 | AG146: 26.7632876 | AH146: 62.756934 | AI146: 62.756934 | AJ146: 62.756934 | AK146: 62.756934 | AL146: 62.756934 | AM146: 62.756934 | AN146: 62.756934 | AO146: 62.756934 | AP146: =IF(AP39=0,SUM(AP582,AP716,AP727,AP860,AP870,AP1003),AP39) -> 35.9936464 | AQ146: 35.9936464 | AR146: 35.9936464 | AS146: 35.9936464 | AT146: 84.40109918 | AU146: 84.40109918 | AV146: 84.40109918 | AW146: 84.40109918 | AX146: 84.40109918 | AY146: 84.40109918 | AZ146: 84.40109918 | BA146: 84.40109918 | BB146: 48.40745278 | BC146: 48.40745278 | BD146: 48.40745278 | BE146: 48.40745278 | BF146: 113.510095 | BG146: 113.510095 | BH146: 113.510095 | BI146: 113.510095 | BJ146: 113.510095 | BK146: 113.510095 | BL146: 113.510095 | BM146: 113.510095 | BN146: 65.10264226 | BO146: 65.10264226 | BP146: 65.10264226 | BQ146: 65.10264226 | BR146: 152.6584583 | BS146: 152.6584583 | BT146: 152.6584583 | BU146: 152.6584583 | BV146: =IF(BV39=0,SUM(BV582,BV716,BV727,BV860,BV870,BV1003),BV39) -> 152.6584583 | BW146: 152.6584583 | BX146: 152.6584583 | BY146: 152.6584583 | BZ146: 87.555816 | CA146: 87.555816 | CB146: 87.555816 | CC146: 87.555816 | CD146: 205.3086544 | CE146: 205.3086544 | CF146: 205.3086544 | CG146: 205.3086544 | CH146: 205.3086544 | CI146: 205.3086544 | CJ146: 205.3086544 | CK146: 205.3086544 | CL146: 117.7528384 | CM146: 117.7528384 | CN146: 117.7528384 | CO146: 117.7528384 | CP146: 276.1173149 | CQ146: 276.1173149 | CR146: 276.1173149 | CS146: 276.1173149 | CT146: 276.1173149 | CU146: 276.1173149 | CV146: 276.1173149 | CW146: 276.1173149 | CX146: 158.3644764 | CY146: 158.3644764 | CZ146: 158.3644764 | DA146: 158.3644764 | DB146: =IF(DB39=0,SUM(DB582,DB716,DB727,DB860,DB870,DB1003),DB39) -> 371.347091 | DC146: 371.347091 | DD146: 371.347091 | DE146: 371.347091 | DF146: 371.347091 | DG146: 371.347091 | DH146: 371.347091 | DI146: 371.347091 | DJ146: 212.9826145 | DK146: 212.9826145 | DL146: 212.9826145 | DM146: 212.9826145 | DN146: 499.4205525 | DO146: 499.4205525 | DP146: 499.4205525 | DQ146: 499.4205525 | DR146: 499.4205525 | DS146: 499.4205525 | DT146: 499.4205525 | DU146: 499.4205525 | DV146: 286.437938 | DW146: 286.437938 | DX146: 286.437938 | DY146: 286.437938 | DZ146: 671.6651197 | EA146: 671.6651197 | EB146: 671.6651197 | EC146: 671.6651197 | ED146: 671.6651197
